Workbook

Sheet FrontPage (hidden)
AA1: Lane Priority | AH1: Points
A2: Competition | C2: Scottish University & College Athletics Championships | AA2: Order | AB2: 8 Lane | AC2: 6 lane | AD2: indoor | AH2: Position | AI2: Points
A3: Venue | C3: Grangemouth Stadium | AA3: 1 | AB3: 4 | AC3: 3 | AD3: 6 | AH3: 1 | AI3: 8
A4: Date | C4: 25.04.2015 | H4: (format is DD.MM.YYYY) | AA4: 2 | AB4: 5 | AC4: 4 | AD4: 5 | AH4: 2 | AI4: 7
A5: Contact | C5: sua2011@hotmail.co.uk | AA5: 3 | AB5: 3 | AC5: 2 | AD5: 4 | AH5: 3 | AI5: 6
A6: Folder (Uploads) | C6: C:\UniversityChampionship | AA6: 4 | AB6: 6 | AC6: 5 | AD6: 3 | AH6: 4 | AI6: 5
A7: Folder (Startlist.txt) | C7: C:\UniversityChampionship | J7: 1 | M7: 1 | AA7: 5 | AB7: 2 | AC7: 1 | AD7: 2 | AH7: 5 | AI7: 4
AA8: 6 | AB8: 7 | AC8: 6 | AD8: 1 | AH8: 6 | AI8: 3
AA9: 7 | AB9: 1 | AC9: 7 | AD9: 7 | AH9: 7 | AI9: 2
AA10: 8 | AB10: 8 | AC10: 8 | AD10: 8 | AH10: 8 | AI10: 1
A17: Track Events | M17: =COUNTIF($M$20:$M$49,"Completed")& " events out of "& COUNTA($A$20:$A$50) & " Completed" -> 20 events out of 22 Completed | O17: Field Events | U17: =COUNTIF($U$20:$U$49,"Completed")&" events out of "& COUNTA($A$20:$A$29) &" Completed" -> 16 events out of 10 Completed
A18: Event | B18: Distance | C18: Hurdles etc | D18: Category | E18: Record | F18: Start Time | I18: Event Name | J18: Distance | K18: Rounds | L18: Rounds | M18: Event | O18: Event | P18: Event | Q18: Category | R18: Record | S18: Start | T18: Event Name | U18: Event
A19: No | B19: e.g. 100m | D19: e.g. M or F | E19: e.g. 7.00 | F19: R1 | G19: R2 | H19: R3 | L19: Completed | M19: Completed | O19: No | P19: Name | Q19: e.g. M or F | R19: e.g. 7.00 | S19: Time | U19: Completed
A20: 501 | B20: 400m | C20: Long Hurdles | D20: M | E20: 52.8 | F20: 10:00 | I20: =IF(C20="",B20,IF(RIGHT(C20,7)="Hurdles",B20&" Hurdles",IF(C20="Steeplechase",B20&" Steeplechase",C20))) & IF(D20="M"," Men",IF(D20="F"," Women"," "&D20)) -> 400m Hurdles Men | J20: =IF(B20="","",VALUE(LEFT(B20,LEN(B20)-1))) -> 400 | K20: =IFERROR(INDEX(Startlist!$G:$G,MATCH(10000*$A20+100,Startlist!$A:$A,0),1),"") -> 1 | L20: =IF(ISNA(MATCH(10000*$A20+301,Results!$A:$A,0))=FALSE,"3", IF(ISNA(MATCH(10000*$A20+201,Results!$A:$A,0))=FALSE,"2",IF(ISNA(MATCH(10000*$A20+101,Results!$A:$A,0))=FALSE,"1", IF(ISNA(MATCH(10000*$A20+100,Startlist!$A:$A,0))=FALSE,"Seeded","-")))) -> 1 | M20: =IFERROR(IF(A20="","",IF(L20-K20=0,"Completed",IF(OR(L20<K20,L20="Seeded"),"In Progress","-"))),"") -> Completed | O20: 1 | P20: High Jump | Q20: M | R20: 2.1 | S20: 10:00 | T20: =P20&" "&IF(Q20="M","Men",IF(Q20="F","Women",Q20)) -> High Jump Men | U20: =IFERROR(IF(MATCH(10000000+10000*$O20,Results!$M:$M,0)>0,"Completed",""),"") -> Completed
A21: 502 | B21: 400m | C21: Long Hurdles | D21: F | E21: 61.4 | F21: 10:00 | I21: =IF(C21="",B21,IF(RIGHT(C21,7)="Hurdles",B21&" Hurdles",IF(C21="Steeplechase",B21&" Steeplechase",C21))) & IF(D21="M"," Men",IF(D21="F"," Women"," "&D21)) -> 400m Hurdles Women | J21: =IF(B21="","",VALUE(LEFT(B21,LEN(B21)-1))) -> 400 | K21: =IFERROR(INDEX(Startlist!$G:$G,MATCH(10000*$A21+100,Startlist!$A:$A,0),1),"") -> 1 | L21: =IF(ISNA(MATCH(10000*$A21+301,Results!$A:$A,0))=FALSE,"3", IF(ISNA(MATCH(10000*$A21+201,Results!$A:$A,0))=FALSE,"2",IF(ISNA(MATCH(10000*$A21+101,Results!$A:$A,0))=FALSE,"1", IF(ISNA(MATCH(10000*$A21+100,Startlist!$A:$A,0))=FALSE,"Seeded","-")))) -> 1 | M21: =IFERROR(IF(A21="","",IF(L21-K21=0,"Completed",IF(OR(L21<K21,L21="Seeded"),"In Progress","-"))),"") -> Completed | O21: 2 | P21: High Jump | Q21: F | R21: 1.7 | S21: 10:00 | T21: =P21&" "&IF(Q21="M","Men",IF(Q21="F","Women",Q21)) -> High Jump Women | U21: =IFERROR(IF(MATCH(10000000+10000*$O21,Results!$M:$M,0)>0,"Completed",""),"") -> Completed
A22: 101 | B22: 100m | D22: M | E22: 10.97 | F22: 10:25 | G22: 11:15 | I22: =IF(C22="",B22,IF(RIGHT(C22,7)="Hurdles",B22&" Hurdles",IF(C22="Steeplechase",B22&" Steeplechase",C22))) & IF(D22="M"," Men",IF(D22="F"," Women"," "&D22)) -> 100m Men | J22: =IF(B22="","",VALUE(LEFT(B22,LEN(B22)-1))) -> 100 | K22: =IFERROR(INDEX(Startlist!$G:$G,MATCH(10000*$A22+100,Startlist!$A:$A,0),1),"") -> 2 | L22: =IF(ISNA(MATCH(10000*$A22+301,Results!$A:$A,0))=FALSE,"3", IF(ISNA(MATCH(10000*$A22+201,Results!$A:$A,0))=FALSE,"2",IF(ISNA(MATCH(10000*$A22+101,Results!$A:$A,0))=FALSE,"1", IF(ISNA(MATCH(10000*$A22+100,Startlist!$A:$A,0))=FALSE,"Seeded","-")))) -> 2 | M22: Completed | O22: 3 | P22: Hammer | Q22: M | R22: 62.73 | S22: 10:00 | T22: Hammer Men | U22: =IFERROR(IF(MATCH(10000000+10000*$O22,Results!$M:$M,0)>0,"Completed",""),"") -> Completed
A23: 102 | B23: 100m | D23: F | E23: 12.2 | F23: 10:25 | G23: 11:15 | I23: =IF(C23="",B23,IF(RIGHT(C23,7)="Hurdles",B23&" Hurdles",IF(C23="Steeplechase",B23&" Steeplechase",C23))) & IF(D23="M"," Men",IF(D23="F"," Women"," "&D23)) -> 100m Women | J23: =IF(B23="","",VALUE(LEFT(B23,LEN(B23)-1))) -> 100 | K23: =IFERROR(INDEX(Startlist!$G:$G,MATCH(10000*$A23+100,Startlist!$A:$A,0),1),"") -> 2 | L23: =IF(ISNA(MATCH(10000*$A23+301,Results!$A:$A,0))=FALSE,"3", IF(ISNA(MATCH(10000*$A23+201,Results!$A:$A,0))=FALSE,"2",IF(ISNA(MATCH(10000*$A23+101,Results!$A:$A,0))=FALSE,"1", IF(ISNA(MATCH(10000*$A23+100,Startlist!$A:$A,0))=FALSE,"Seeded","-")))) -> 2 | M23: Completed | O23: 4 | P23: Hammer | Q23: F | R23: 61.68 | S23: 10:00 | T23: Hammer Women | U23: =IFERROR(IF(MATCH(10000000+10000*$O23,Results!$M:$M,0)>0,"Completed",""),"") -> Completed
A24: 801 | B24: 800m | D24: M | E24: 00:01:52.520 | F24: 10:50 | G24: 13:40 | I24: =IF(C24="",B24,IF(RIGHT(C24,7)="Hurdles",B24&" Hurdles",IF(C24="Steeplechase",B24&" Steeplechase",C24))) & IF(D24="M"," Men",IF(D24="F"," Women"," "&D24)) -> 800m Men | J24: =IF(B24="","",VALUE(LEFT(B24,LEN(B24)-1))) -> 800 | K24: =IFERROR(INDEX(Startlist!$G:$G,MATCH(10000*$A24+100,Startlist!$A:$A,0),1),"") -> 2 | L24: =IF(ISNA(MATCH(10000*$A24+301,Results!$A:$A,0))=FALSE,"3", IF(ISNA(MATCH(10000*$A24+201,Results!$A:$A,0))=FALSE,"2",IF(ISNA(MATCH(10000*$A24+101,Results!$A:$A,0))=FALSE,"1", IF(ISNA(MATCH(10000*$A24+100,Startlist!$A:$A,0))=FALSE,"Seeded","-")))) -> 2 | M24: Completed | O24: 5 | P24: Discus | Q24: M | R24: 39.21 | S24: 11:30 | T24: Discus Men | U24: =IFERROR(IF(MATCH(10000000+10000*$O24,Results!$M:$M,0)>0,"Completed",""),"") -> Completed
A25: 802 | B25: 800m | D25: F | E25: 00:02:10.570 | F25: 10:50 | G25: 13:40 | I25: =IF(C25="",B25,IF(RIGHT(C25,7)="Hurdles",B25&" Hurdles",IF(C25="Steeplechase",B25&" Steeplechase",C25))) & IF(D25="M"," Men",IF(D25="F"," Women"," "&D25)) -> 800m Women | J25: =IF(B25="","",VALUE(LEFT(B25,LEN(B25)-1))) -> 800 | K25: =IFERROR(INDEX(Startlist!$G:$G,MATCH(10000*$A25+100,Startlist!$A:$A,0),1),"") -> 1 | L25: =IF(ISNA(MATCH(10000*$A25+301,Results!$A:$A,0))=FALSE,"3", IF(ISNA(MATCH(10000*$A25+201,Results!$A:$A,0))=FALSE,"2",IF(ISNA(MATCH(10000*$A25+101,Results!$A:$A,0))=FALSE,"1", IF(ISNA(MATCH(10000*$A25+100,Startlist!$A:$A,0))=FALSE,"Seeded","-")))) -> 1 | M25: Completed | O25: 6 | P25: Discus | Q25: F | R25: 37.59 | S25: 11:30 | T25: Discus Women | U25: =IFERROR(IF(MATCH(10000000+10000*$O25,Results!$M:$M,0)>0,"Completed",""),"") -> Completed
A26: 1501 | B26: 1500m | D26: M | E26: 00:03:52.900 | F26: 11:25 | I26: 1500m Men | J26: 1500 | K26: =IFERROR(INDEX(Startlist!$G:$G,MATCH(10000*$A26+100,Startlist!$A:$A,0),1),"") -> 1 | L26: =IF(ISNA(MATCH(10000*$A26+301,Results!$A:$A,0))=FALSE,"3", IF(ISNA(MATCH(10000*$A26+201,Results!$A:$A,0))=FALSE,"2",IF(ISNA(MATCH(10000*$A26+101,Results!$A:$A,0))=FALSE,"1", IF(ISNA(MATCH(10000*$A26+100,Startlist!$A:$A,0))=FALSE,"Seeded","-")))) -> 1 | M26: Completed | O26: 7 | P26: Triple Jump | Q26: M | R26: 14.97 | S26: 11:30 | T26: Triple Jump Men | U26: =IFERROR(IF(MATCH(10000000+10000*$O26,Results!$M:$M,0)>0,"Completed",""),"") -> Completed
A27: 1502 | B27: 1500m | D27: F | E27: 00:04:26.010 | F27: 11:25 | I27: 1500m Women | J27: 1500 | K27: =IFERROR(INDEX(Startlist!$G:$G,MATCH(10000*$A27+100,Startlist!$A:$A,0),1),"") -> 1 | L27: =IF(ISNA(MATCH(10000*$A27+301,Results!$A:$A,0))=FALSE,"3", IF(ISNA(MATCH(10000*$A27+201,Results!$A:$A,0))=FALSE,"2",IF(ISNA(MATCH(10000*$A27+101,Results!$A:$A,0))=FALSE,"1", IF(ISNA(MATCH(10000*$A27+100,Startlist!$A:$A,0))=FALSE,"Seeded","-")))) -> 1 | M27: Completed | O27: 8 | P27: Triple Jump | Q27: F | R27: 11.73 | S27: 11:30 | T27: Triple Jump Women | U27: =IFERROR(IF(MATCH(10000000+10000*$O27,Results!$M:$M,0)>0,"Completed",""),"") -> Completed
A28: 1 | B28: 110m | C28: Sprint Hurdles | D28: M | E28: 15.7 | F28: 11:45 | I28: 110m Hurdles Men | J28: 110 | K28: =IFERROR(INDEX(Startlist!$G:$G,MATCH(10000*$A28+100,Startlist!$A:$A,0),1),"") -> 1 | L28: =IF(ISNA(MATCH(10000*$A28+301,Results!$A:$A,0))=FALSE,"3", IF(ISNA(MATCH(10000*$A28+201,Results!$A:$A,0))=FALSE,"2",IF(ISNA(MATCH(10000*$A28+101,Results!$A:$A,0))=FALSE,"1", IF(ISNA(MATCH(10000*$A28+100,Startlist!$A:$A,0))=FALSE,"Seeded","-")))) -> 1 | M28: Completed | U28: =IFERROR(IF(MATCH(10000000+10000*$O28,Results!$M:$M,0)>0,"Completed",""),"") -> 
A29: 2 | B29: 100m | C29: Sprint Hurdles | D29: F | E29: 14.3 | F29: 11:45 | I29: 100m Hurdles Women | J29: 100 | K29: =IFERROR(INDEX(Startlist!$G:$G,MATCH(10000*$A29+100,Startlist!$A:$A,0),1),"") -> 1 | L29: =IF(ISNA(MATCH(10000*$A29+301,Results!$A:$A,0))=FALSE,"3", IF(ISNA(MATCH(10000*$A29+201,Results!$A:$A,0))=FALSE,"2",IF(ISNA(MATCH(10000*$A29+101,Results!$A:$A,0))=FALSE,"1", IF(ISNA(MATCH(10000*$A29+100,Startlist!$A:$A,0))=FALSE,"Seeded","-")))) -> 1 | M29: Completed | U29: =IFERROR(IF(MATCH(10000000+10000*$O29,Results!$M:$M,0)>0,"Completed",""),"") -> 
K30: =IFERROR(INDEX(Startlist!$G:$G,MATCH(10000*$A30+100,Startlist!$A:$A,0),1),"") ->  | L30: =IF(ISNA(MATCH(10000*$A30+301,Results!$A:$A,0))=FALSE,"3", IF(ISNA(MATCH(10000*$A30+201,Results!$A:$A,0))=FALSE,"2",IF(ISNA(MATCH(10000*$A30+101,Results!$A:$A,0))=FALSE,"1", IF(ISNA(MATCH(10000*$A30+100,Startlist!$A:$A,0))=FALSE,"Seeded","-")))) -> - | U30: =IFERROR(IF(MATCH(10000000+10000*$O30,Results!$M:$M,0)>0,"Completed",""),"") -> 
K31: =IFERROR(INDEX(Startlist!$G:$G,MATCH(10000*$A31+100,Startlist!$A:$A,0),1),"") ->  | L31: =IF(ISNA(MATCH(10000*$A31+301,Results!$A:$A,0))=FALSE,"3", IF(ISNA(MATCH(10000*$A31+201,Results!$A:$A,0))=FALSE,"2",IF(ISNA(MATCH(10000*$A31+101,Results!$A:$A,0))=FALSE,"1", IF(ISNA(MATCH(10000*$A31+100,Startlist!$A:$A,0))=FALSE,"Seeded","-")))) -> - | U31: =IFERROR(IF(MATCH(10000000+10000*$O31,Results!$M:$M,0)>0,"Completed",""),"") -> 
A32: 201 | B32: 200m | D32: M | E32: 21.59 | F32: 13:00 | G32: 14:50 | I32: 200m Men | J32: 200 | K32: =IFERROR(INDEX(Startlist!$G:$G,MATCH(10000*$A32+100,Startlist!$A:$A,0),1),"") -> 2 | L32: =IF(ISNA(MATCH(10000*$A32+301,Results!$A:$A,0))=FALSE,"3", IF(ISNA(MATCH(10000*$A32+201,Results!$A:$A,0))=FALSE,"2",IF(ISNA(MATCH(10000*$A32+101,Results!$A:$A,0))=FALSE,"1", IF(ISNA(MATCH(10000*$A32+100,Startlist!$A:$A,0))=FALSE,"Seeded","-")))) -> 2 | M32: Completed | O32: 9 | P32: Shot Putt | Q32: M | R32: 12.82 | S32: 13:30 | T32: Shot Putt Men | U32: =IFERROR(IF(MATCH(10000000+10000*$O32,Results!$M:$M,0)>0,"Completed",""),"") -> Completed
A33: 202 | B33: 200m | D33: F | E33: 24.6 | F33: 13:00 | G33: 14:50 | I33: 200m Women | J33: 200 | K33: =IFERROR(INDEX(Startlist!$G:$G,MATCH(10000*$A33+100,Startlist!$A:$A,0),1),"") -> 2 | L33: =IF(ISNA(MATCH(10000*$A33+301,Results!$A:$A,0))=FALSE,"3", IF(ISNA(MATCH(10000*$A33+201,Results!$A:$A,0))=FALSE,"2",IF(ISNA(MATCH(10000*$A33+101,Results!$A:$A,0))=FALSE,"1", IF(ISNA(MATCH(10000*$A33+100,Startlist!$A:$A,0))=FALSE,"Seeded","-")))) -> 2 | M33: Completed | O33: 10 | P33: Shot Putt | Q33: F | R33: 12.9 | S33: 13:30 | T33: Shot Putt Women | U33: =IFERROR(IF(MATCH(10000000+10000*$O33,Results!$M:$M,0)>0,"Completed",""),"") -> Completed
A34: 401 | B34: 400m | D34: M | E34: 48.51 | F34: 13:50 | G34: 15:25 | I34: 400m Men | J34: 400 | K34: =IFERROR(INDEX(Startlist!$G:$G,MATCH(10000*$A34+100,Startlist!$A:$A,0),1),"") -> 2 | L34: =IF(ISNA(MATCH(10000*$A34+301,Results!$A:$A,0))=FALSE,"3", IF(ISNA(MATCH(10000*$A34+201,Results!$A:$A,0))=FALSE,"2",IF(ISNA(MATCH(10000*$A34+101,Results!$A:$A,0))=FALSE,"1", IF(ISNA(MATCH(10000*$A34+100,Startlist!$A:$A,0))=FALSE,"Seeded","-")))) -> 2 | M34: Completed | O34: 11 | P34: Pole Vault | Q34: M | R34: 4.4 | S34: 13:30 | T34: Pole Vault Men | U34: =IFERROR(IF(MATCH(10000000+10000*$O34,Results!$M:$M,0)>0,"Completed",""),"") -> Completed
A35: 402 | B35: 400m | D35: F | E35: 56.58 | F35: 13:50 | G35: 15:25 | I35: 400m Women | J35: 400 | K35: =IFERROR(INDEX(Startlist!$G:$G,MATCH(10000*$A35+100,Startlist!$A:$A,0),1),"") -> 1 | L35: =IF(ISNA(MATCH(10000*$A35+301,Results!$A:$A,0))=FALSE,"3", IF(ISNA(MATCH(10000*$A35+201,Results!$A:$A,0))=FALSE,"2",IF(ISNA(MATCH(10000*$A35+101,Results!$A:$A,0))=FALSE,"1", IF(ISNA(MATCH(10000*$A35+100,Startlist!$A:$A,0))=FALSE,"Seeded","-")))) -> 1 | M35: Completed | O35: 12 | P35: Pole Vault | Q35: F | R35: 3.3 | S35: 13:30 | T35: Pole Vault Women | U35: =IFERROR(IF(MATCH(10000000+10000*$O35,Results!$M:$M,0)>0,"Completed",""),"") -> Completed
A36: 5001 | B36: 5000m | D36: M | E36: 00:15:16.180 | F36: 14:10 | I36: 5000m Men | J36: 5000 | K36: =IFERROR(INDEX(Startlist!$G:$G,MATCH(10000*$A36+100,Startlist!$A:$A,0),1),"") -> 1 | L36: =IF(ISNA(MATCH(10000*$A36+301,Results!$A:$A,0))=FALSE,"3", IF(ISNA(MATCH(10000*$A36+201,Results!$A:$A,0))=FALSE,"2",IF(ISNA(MATCH(10000*$A36+101,Results!$A:$A,0))=FALSE,"1", IF(ISNA(MATCH(10000*$A36+100,Startlist!$A:$A,0))=FALSE,"Seeded","-")))) -> 1 | M36: Completed | O36: 13 | P36: Long Jump | Q36: M | R36: 7.16 | S36: 15:00 | T36: Long Jump Men | U36: =IFERROR(IF(MATCH(10000000+10000*$O36,Results!$M:$M,0)>0,"Completed",""),"") -> Completed
A37: 5002 | B37: 3000m | D37: F | E37: 00:09:15.720 | F37: 15:00 | I37: 3000m Women | J37: 3000 | K37: =IFERROR(INDEX(Startlist!$G:$G,MATCH(10000*$A37+100,Startlist!$A:$A,0),1),"") -> 1 | L37: =IF(ISNA(MATCH(10000*$A37+301,Results!$A:$A,0))=FALSE,"3", IF(ISNA(MATCH(10000*$A37+201,Results!$A:$A,0))=FALSE,"2",IF(ISNA(MATCH(10000*$A37+101,Results!$A:$A,0))=FALSE,"1", IF(ISNA(MATCH(10000*$A37+100,Startlist!$A:$A,0))=FALSE,"Seeded","-")))) -> 1 | M37: Completed | O37: 14 | P37: Long Jump | Q37: F | R37: 6.16 | S37: 15:00 | T37: Long Jump Women | U37: =IFERROR(IF(MATCH(10000000+10000*$O37,Results!$M:$M,0)>0,"Completed",""),"") -> Completed
A38: 3001 | B38: 3000m | C38: Steeplechase | D38: M | E38: 00:09:27.200 | F38: 16:00 | I38: 3000m Steeplechase Men | J38: 3000 | K38: =IFERROR(INDEX(Startlist!$G:$G,MATCH(10000*$A38+100,Startlist!$A:$A,0),1),"") -> 1 | L38: =IF(ISNA(MATCH(10000*$A38+301,Results!$A:$A,0))=FALSE,"3", IF(ISNA(MATCH(10000*$A38+201,Results!$A:$A,0))=FALSE,"2",IF(ISNA(MATCH(10000*$A38+101,Results!$A:$A,0))=FALSE,"1", IF(ISNA(MATCH(10000*$A38+100,Startlist!$A:$A,0))=FALSE,"Seeded","-")))) -> 1 | M38: Completed | O38: 15 | P38: Javelin | Q38: M | R38: 54.67 | S38: 15:00 | T38: Javelin Men | U38: =IFERROR(IF(MATCH(10000000+10000*$O38,Results!$M:$M,0)>0,"Completed",""),"") -> Completed
A39: 3002 | B39: 3000m | C39: Steeplechase | D39: F | E39: 00:11:11.230 | F39: 16:00 | I39: 3000m Steeplechase Women | J39: 3000 | K39: =IFERROR(INDEX(Startlist!$G:$G,MATCH(10000*$A39+100,Startlist!$A:$A,0),1),"") -> 1 | L39: =IF(ISNA(MATCH(10000*$A39+301,Results!$A:$A,0))=FALSE,"3", IF(ISNA(MATCH(10000*$A39+201,Results!$A:$A,0))=FALSE,"2",IF(ISNA(MATCH(10000*$A39+101,Results!$A:$A,0))=FALSE,"1", IF(ISNA(MATCH(10000*$A39+100,Startlist!$A:$A,0))=FALSE,"Seeded","-")))) -> 1 | M39: Completed | O39: 16 | P39: Javelin | Q39: F | R39: 41.76 | S39: 15:00 | T39: Javelin Women | U39: =IFERROR(IF(MATCH(10000000+10000*$O39,Results!$M:$M,0)>0,"Completed",""),"") -> Completed
K40: =IFERROR(INDEX(Startlist!$G:$G,MATCH(10000*$A40+100,Startlist!$A:$A,0),1),"") ->  | L40: =IF(ISNA(MATCH(10000*$A40+301,Results!$A:$A,0))=FALSE,"3", IF(ISNA(MATCH(10000*$A40+201,Results!$A:$A,0))=FALSE,"2",IF(ISNA(MATCH(10000*$A40+101,Results!$A:$A,0))=FALSE,"1", IF(ISNA(MATCH(10000*$A40+100,Startlist!$A:$A,0))=FALSE,"Seeded","-")))) -> - | U40: =IFERROR(IF(MATCH(10000000+10000*$O40,Results!$M:$M,0)>0,"Completed",""),"") -> 
K41: =IFERROR(INDEX(Startlist!$G:$G,MATCH(10000*$A41+100,Startlist!$A:$A,0),1),"") ->  | L41: =IF(ISNA(MATCH(10000*$A41+301,Results!$A:$A,0))=FALSE,"3", IF(ISNA(MATCH(10000*$A41+201,Results!$A:$A,0))=FALSE,"2",IF(ISNA(MATCH(10000*$A41+101,Results!$A:$A,0))=FALSE,"1", IF(ISNA(MATCH(10000*$A41+100,Startlist!$A:$A,0))=FALSE,"Seeded","-")))) -> - | U41: =IFERROR(IF(MATCH(10000000+10000*$O41,Results!$M:$M,0)>0,"Completed",""),"") -> 
A42: 4101 | B42: 400m | C42: 4x100m Relay | D42: M | E42: 42.74 | F42: 15:45 | I42: 4x100m Relay Men | J42: 400 | K42: =IFERROR(INDEX(Startlist!$G:$G,MATCH(10000*$A42+100,Startlist!$A:$A,0),1),"") -> 1 | L42: =IF(ISNA(MATCH(10000*$A42+301,Results!$A:$A,0))=FALSE,"3", IF(ISNA(MATCH(10000*$A42+201,Results!$A:$A,0))=FALSE,"2",IF(ISNA(MATCH(10000*$A42+101,Results!$A:$A,0))=FALSE,"1", IF(ISNA(MATCH(10000*$A42+100,Startlist!$A:$A,0))=FALSE,"Seeded","-")))) -> 1 | M42: Completed | U42: =IFERROR(IF(MATCH(10000000+10000*$O42,Results!$M:$M,0)>0,"Completed",""),"") -> 
A43: 4102 | B43: 400m | C43: 4x100m Relay | D43: F | E43: 47.75 | F43: 15:45 | I43: 4x100m Relay Women | J43: 400 | K43: =IFERROR(INDEX(Startlist!$G:$G,MATCH(10000*$A43+100,Startlist!$A:$A,0),1),"") ->  | L43: =IF(ISNA(MATCH(10000*$A43+301,Results!$A:$A,0))=FALSE,"3", IF(ISNA(MATCH(10000*$A43+201,Results!$A:$A,0))=FALSE,"2",IF(ISNA(MATCH(10000*$A43+101,Results!$A:$A,0))=FALSE,"1", IF(ISNA(MATCH(10000*$A43+100,Startlist!$A:$A,0))=FALSE,"Seeded","-")))) -> - | U43: =IFERROR(IF(MATCH(10000000+10000*$O43,Results!$M:$M,0)>0,"Completed",""),"") -> 
A44: 4401 | B44: 1600m | C44: 4x400m Relay | D44: M | E44: 00:03:20.750 | F44: 16:45 | I44: 4x400m Relay Men | J44: 1600 | K44: =IFERROR(INDEX(Startlist!$G:$G,MATCH(10000*$A44+100,Startlist!$A:$A,0),1),"") -> 1 | L44: =IF(ISNA(MATCH(10000*$A44+301,Results!$A:$A,0))=FALSE,"3", IF(ISNA(MATCH(10000*$A44+201,Results!$A:$A,0))=FALSE,"2",IF(ISNA(MATCH(10000*$A44+101,Results!$A:$A,0))=FALSE,"1", IF(ISNA(MATCH(10000*$A44+100,Startlist!$A:$A,0))=FALSE,"Seeded","-")))) -> 1 | M44: Completed | U44: =IFERROR(IF(MATCH(10000000+10000*$O44,Results!$M:$M,0)>0,"Completed",""),"") -> 
A45: 4402 | B45: 1600m | C45: 4x400m Relay | D45: F | E45: 00:03:55.170 | F45: 16:45 | I45: 4x400m Relay Women | J45: 1600 | K45: =IFERROR(INDEX(Startlist!$G:$G,MATCH(10000*$A45+100,Startlist!$A:$A,0),1),"") ->  | L45: =IF(ISNA(MATCH(10000*$A45+301,Results!$A:$A,0))=FALSE,"3", IF(ISNA(MATCH(10000*$A45+201,Results!$A:$A,0))=FALSE,"2",IF(ISNA(MATCH(10000*$A45+101,Results!$A:$A,0))=FALSE,"1", IF(ISNA(MATCH(10000*$A45+100,Startlist!$A:$A,0))=FALSE,"Seeded","-")))) -> - | U45: =IFERROR(IF(MATCH(10000000+10000*$O45,Results!$M:$M,0)>0,"Completed",""),"") -> 
K46: =IFERROR(INDEX(Startlist!$G:$G,MATCH(10000*$A46+100,Startlist!$A:$A,0),1),"") ->  | L46: =IF(ISNA(MATCH(10000*$A46+301,Results!$A:$A,0))=FALSE,"3", IF(ISNA(MATCH(10000*$A46+201,Results!$A:$A,0))=FALSE,"2",IF(ISNA(MATCH(10000*$A46+101,Results!$A:$A,0))=FALSE,"1", IF(ISNA(MATCH(10000*$A46+100,Startlist!$A:$A,0))=FALSE,"Seeded","-")))) -> - | U46: =IFERROR(IF(MATCH(10000000+10000*$O46,Results!$M:$M,0)>0,"Completed",""),"") -> 
K47: =IFERROR(INDEX(Startlist!$G:$G,MATCH(10000*$A47+100,Startlist!$A:$A,0),1),"") ->  | L47: =IF(ISNA(MATCH(10000*$A47+301,Results!$A:$A,0))=FALSE,"3", IF(ISNA(MATCH(10000*$A47+201,Results!$A:$A,0))=FALSE,"2",IF(ISNA(MATCH(10000*$A47+101,Results!$A:$A,0))=FALSE,"1", IF(ISNA(MATCH(10000*$A47+100,Startlist!$A:$A,0))=FALSE,"Seeded","-")))) -> - | U47: =IFERROR(IF(MATCH(10000000+10000*$O47,Results!$M:$M,0)>0,"Completed",""),"") -> 
K48: =IFERROR(INDEX(Startlist!$G:$G,MATCH(10000*$A48+100,Startlist!$A:$A,0),1),"") ->  | L48: =IF(ISNA(MATCH(10000*$A48+301,Results!$A:$A,0))=FALSE,"3", IF(ISNA(MATCH(10000*$A48+201,Results!$A:$A,0))=FALSE,"2",IF(ISNA(MATCH(10000*$A48+101,Results!$A:$A,0))=FALSE,"1", IF(ISNA(MATCH(10000*$A48+100,Startlist!$A:$A,0))=FALSE,"Seeded","-")))) -> - | U48: =IFERROR(IF(MATCH(10000000+10000*$O48,Results!$M:$M,0)>0,"Completed",""),"") -> 
K49: =IFERROR(INDEX(Startlist!$G:$G,MATCH(10000*$A49+100,Startlist!$A:$A,0),1),"") ->  | L49: =IF(ISNA(MATCH(10000*$A49+301,Results!$A:$A,0))=FALSE,"3", IF(ISNA(MATCH(10000*$A49+201,Results!$A:$A,0))=FALSE,"2",IF(ISNA(MATCH(10000*$A49+101,Results!$A:$A,0))=FALSE,"1", IF(ISNA(MATCH(10000*$A49+100,Startlist!$A:$A,0))=FALSE,"Seeded","-")))) -> - | U49: =IFERROR(IF(MATCH(10000000+10000*$O49,Results!$M:$M,0)>0,"Completed",""),"") -> 
I50: =IF(C50="",B50,IF(RIGHT(C50,7)="Hurdles",B50&" Hurdles",IF(C50="Steeplechase",B50&" Steeplechase",C50))) & IF(D50="M"," Men",IF(D50="F"," Women"," "&D50)) ->  | J50: =IF(B50="","",VALUE(LEFT(B50,LEN(B50)-1))) ->  | K50: =IFERROR(INDEX(Startlist!$G:$G,MATCH(10000*$A50+100,Startlist!$A:$A,0),1),"") ->  | L50: =IF(ISNA(MATCH(10000*$A50+301,Results!$A:$A,0))=FALSE,"3", IF(ISNA(MATCH(10000*$A50+201,Results!$A:$A,0))=FALSE,"2",IF(ISNA(MATCH(10000*$A50+101,Results!$A:$A,0))=FALSE,"1", IF(ISNA(MATCH(10000*$A50+100,Startlist!$A:$A,0))=FALSE,"Seeded","-")))) -> - | T50: =P50&" "&IF(Q50="M","Men",IF(Q50="F","Women",Q50)) ->  | U50: =IFERROR(IF(MATCH(10000000+10000*$O50,Results!$M:$M,0)>0,"Completed",""),"") -> 

Sheet Athletes
G1: =COUNTIFS(G$4:G$1003,"<>",$F$4:$F$1003,$AA$1) -> 7 | H1: =COUNTIFS(H$4:H$1003,"<>",$F$4:$F$1003,$AA$1) -> 4 | I1: 23 | J1: 22 | K1: 16 | L1: 16 | M1: 8 | N1: 8 | O1: 0 | P1: 5 | Q1: 10 | R1: 5 | S1: 2 | T1: 5 | U1: 4 | V1: 8 | W1: 2 | X1: 7 | Y1: 2 | Z1: 4 | AA1: M | AD1: =COUNT(AC4:AC1003)&" athletes and "&SUM(Y1:Z2)&" relay teams" -> 161 athletes and 11 relay teams | AL1: Finances
G2: =COUNTIFS(G$4:G$1003,"<>",$F$4:$F$1003,$AA$2) -> 5 | H2: =COUNTIFS(H$4:H$1003,"<>",$F$4:$F$1003,$AA$2) -> 2 | I2: 12 | J2: 13 | K2: 6 | L2: 5 | M2: 5 | N2: 3 | O2: 5 | P2: 0 | Q2: 10 | R2: 6 | S2: 2 | T2: 4 | U2: 5 | V2: 5 | W2: 5 | X2: 5 | Y2: 3 | Z2: 2 | AA2: F | AK2: INVOICE | AL2: CASH | AM2: GUEST
A3: Bib | B3: First Name | C3: Second Name | D3: Team Code | E3: Team | F3: Category e.g. M or F | G3: Long Hurdles | H3: Sprint Hurdles | I3: 100m | J3: 200m | K3: 400m | L3: 800m | M3: 1500m | N3: Steeplechase | O3: 3000m | P3: 5000m | Q3: Long Jump | R3: Triple Jump | S3: High Jump | T3: Pole Vault | U3: Shot Putt | V3: Discus | W3: Hammer | X3: Javelin | Y3: 4x100m Relay | Z3: 4x400m Relay | AA3: Bib | AB3: Cash | AC3: Events | AF3: Teams | AG3: Used with the column to the right | AH3: Assigns a random number to each team | AI3: Award points Empty cells are not counted | AJ3: Guests do not proceed beyond the first round | AK3: =SUM(AK4:AK102) -> 176 | AL3: =SUM(AL4:AL102) -> 58 | AM3: =SUM(AM4:AM102) -> 18
A4: 135 | B4: Anna | C4: Nelson | D4: e | E4: =IF($D4="","",INDEX($AE$4:$AF$102,MATCH($D4,$AE$4:$AE$102,0),2)) -> Edinburgh | F4: f | G4: x | AA4: =A4 -> 135 | AB4: i | AC4: =IF(COUNTIF(G4:X4,"<>")=0,"",COUNTIF(G4:X4,"<>")) -> 1 | AE4: A | AF4: Aberdeen | AG4: 1 | AH4: =1000000*ROUND(ABS(SIN(SIN(AG4*DAY(LEFT(FrontPage!$C$4,2))))),6) -> 131966 | AI4: Y | AK4: =IF(OR(AF4="",AF4="Guest"),"",SUMIFS($AC$4:$AC$1003,$E$4:$E$1003,$AF4,$AB$4:$AB$1003,"I")+SUMIFS($AC$4:$AC$1003,$E$4:$E$1003,$AF4,$AB$4:$AB$1003,"")) -> 13 | AL4: =IF(OR(AF4="",AF4="Guest"),"",SUMIFS($AC$4:$AC$1003,$E$4:$E$1003,$AF4,$AB$4:$AB$1003,"C")) -> 0 | AM4: =IF($AF4="Guest",SUMIFS($AC$4:$AC$1003,$E$4:$E$1003,"Guest"),"") -> 
A5: =A4+1 -> 136 | B5: Jade | C5: Currie | D5: e | E5: =IF($D5="","",INDEX($AE$4:$AF$102,MATCH($D5,$AE$4:$AE$102,0),2)) -> Edinburgh | F5: f | G5: x | J5: x | X5: x | AA5: =A5 -> 136 | AB5: i | AC5: =IF(COUNTIF(G5:X5,"<>")=0,"",COUNTIF(G5:X5,"<>")) -> 3 | AE5: B | AG5: =AG4+1 -> 2 | AH5: =1000000*ROUND(ABS(SIN(SIN(AG5*DAY(LEFT(FrontPage!$C$4,2))))),6) -> 259375 | AK5: =IF(OR(AF5="",AF5="Guest"),"",SUMIFS($AC$4:$AC$1003,$E$4:$E$1003,$AF5,$AB$4:$AB$1003,"I")+SUMIFS($AC$4:$AC$1003,$E$4:$E$1003,$AF5,$AB$4:$AB$1003,"")) ->  | AL5: =IF(OR(AF5="",AF5="Guest"),"",SUMIFS($AC$4:$AC$1003,$E$4:$E$1003,$AF5,$AB$4:$AB$1003,"C")) ->  | AM5: =IF($AF5="Guest",SUMIFS($AC$4:$AC$1003,$E$4:$E$1003,"Guest"),"") -> 
A6: =A5+1 -> 137 | B6: Claire | C6: Cameron | D6: z | E6: Guest | F6: f | U6: x | V6: x | W6: x | AA6: =A6 -> 137 | AB6: g | AC6: 3 | AE6: C | AF6: Glasgow_Caledonian | AG6: =AG5+1 -> 3 | AH6: =1000000*ROUND(ABS(SIN(SIN(AG6*DAY(LEFT(FrontPage!$C$4,2))))),6) -> 378136 | AI6: Y | AK6: 5 | AL6: 0
A7: 138 | B7: Ewan | C7: Dyer | D7: h | E7: Heriot-Watt | F7: m | G7: x | AA7: 138 | AB7: i | AC7: 1 | AE7: D | AF7: Dundee | AG7: 4 | AH7: =1000000*ROUND(ABS(SIN(SIN(AG7*DAY(LEFT(FrontPage!$C$4,2))))),6) -> 485002 | AI7: Y | AK7: 0 | AL7: 0
A8: 139 | B8: Rachel | C8: Hunter | D8: w | E8: West_of_Scotland | F8: f | W8: x | AA8: 139 | AB8: c | AC8: 1 | AE8: E | AF8: Edinburgh | AG8: 5 | AH8: =1000000*ROUND(ABS(SIN(SIN(AG8*DAY(LEFT(FrontPage!$C$4,2))))),6) -> 577808 | AI8: Y | AK8: 50 | AL8: 0
A9: 140 | B9: Emily | C9: Craig | D9: z | E9: Guest | F9: f | G9: x | AA9: 140 | AB9: g | AC9: 1 | AE9: F | AG9: 6 | AH9: =1000000*ROUND(ABS(SIN(SIN(AG9*DAY(LEFT(FrontPage!$C$4,2))))),6) -> 655524
A10: 141 | B10: Holly | C10: McArthur | D10: z | E10: Guest | F10: f | G10: x | AA10: 141 | AB10: g | AC10: 1 | AE10: G | AF10: Glasgow | AG10: 7 | AH10: =1000000*ROUND(ABS(SIN(SIN(AG10*DAY(LEFT(FrontPage!$C$4,2))))),6) -> 718146 | AI10: Y | AK10: 74 | AL10: 0
A11: 142 | B11: Ross | C11: White | D11: h | E11: Heriot-Watt | F11: m | G11: x | AA11: 142 | AB11: i | AC11: 1 | AE11: H | AF11: Heriot-Watt | AG11: 8 | AH11: =1000000*ROUND(ABS(SIN(SIN(AG11*DAY(LEFT(FrontPage!$C$4,2))))),6) -> 766451 | AI11: Y | AK11: 5 | AL11: 0
A12: 143 | B12: Grace | C12: Conroy | D12: e | E12: Edinburgh | F12: f | K12: x | L12: x | T12: x | AA12: 143 | AB12: i | AC12: 3 | AE12: I | AF12: Highlands_&_Islands | AG12: 9 | AH12: =1000000*ROUND(ABS(SIN(SIN(AG12*DAY(LEFT(FrontPage!$C$4,2))))),6) -> 801677 | AI12: Y | AK12: 0 | AL12: 2
A13: 144 | B13: Sam | C13: Freck | D13: g | E13: Glasgow | F13: m | I13: x | J13: x | AA13: 144 | AB13: i | AC13: 2 | AE13: J | AG13: 10 | AH13: =1000000*ROUND(ABS(SIN(SIN(AG13*DAY(LEFT(FrontPage!$C$4,2))))),6) -> 825184
A14: 145 | B14: Robbie | C14: Shaw | D14: c | E14: Glasgow_Caledonian | F14: m | I14: x | J14: x | AA14: 145 | AB14: i | AC14: 2 | AE14: K | AG14: 11 | AH14: =1000000*ROUND(ABS(SIN(SIN(AG14*DAY(LEFT(FrontPage!$C$4,2))))),6) -> 838152
A15: 146 | B15: William | C15: King | D15: e | E15: Edinburgh | K15: x | L15: x | AA15: 146 | AB15: i | AC15: 2 | AE15: L | AG15: 12 | AH15: =1000000*ROUND(ABS(SIN(SIN(AG15*DAY(LEFT(FrontPage!$C$4,2))))),6) -> 841339
A16: 147 | B16: Claire | C16: Robinson | D16: e | E16: Edinburgh | F16: f | H16: x | Q16: x | AA16: 147 | AB16: i | AC16: 2 | AE16: M | AG16: 13 | AH16: =1000000*ROUND(ABS(SIN(SIN(AG16*DAY(LEFT(FrontPage!$C$4,2))))),6) -> 834947
A17: 148 | B17: Evan | C17: Cornforth | D17: e | E17: Edinburgh | F17: m | K17: x | L17: x | AA17: 148 | AB17: i | AC17: 2 | AE17: N | AF17: Napier | AG17: 14 | AH17: =1000000*ROUND(ABS(SIN(SIN(AG17*DAY(LEFT(FrontPage!$C$4,2))))),6) -> 818579 | AI17: Y | AK17: 0 | AL17: 2
A18: 149 | B18: Alec | C18: Thomas | D18: cc | E18: City_of_Glasgow_College | F18: m | I18: x | J18: x | AA18: 149 | AB18: c | AC18: 2 | AE18: O | AF18: Open_University | AG18: 15 | AH18: =1000000*ROUND(ABS(SIN(SIN(AG18*DAY(LEFT(FrontPage!$C$4,2))))),6) -> 791315 | AI18: Y | AK18: 0 | AL18: 0
A19: 150 | B19: Lindsey | C19: Young | D19: g | E19: Glasgow | F19: f | K19: x | AA19: 150 | AB19: i | AC19: 1 | AE19: P | AG19: 16 | AH19: =1000000*ROUND(ABS(SIN(SIN(AG19*DAY(LEFT(FrontPage!$C$4,2))))),6) -> 751887
A20: 151 | B20: Hannah | C20: Moore | D20: g | E20: Glasgow | F20: f | I20: x | AA20: 151 | AB20: i | AC20: 1 | AE20: Q | AF20: Queen_Margaret | AG20: 17 | AH20: =1000000*ROUND(ABS(SIN(SIN(AG20*DAY(LEFT(FrontPage!$C$4,2))))),6) -> 698937 | AI20: Y | AK20: 0 | AL20: 2
A21: 152 | B21: William | C21: Smy | D21: e | E21: Edinburgh | F21: m | K21: x | AA21: 152 | AB21: i | AC21: 1 | AE21: R | AF21: Robert_Gordon | AG21: 18 | AH21: =1000000*ROUND(ABS(SIN(SIN(AG21*DAY(LEFT(FrontPage!$C$4,2))))),6) -> 631343 | AI21: Y | AK21: 8 | AL21: 0
A22: 153 | B22: Cameron | C22: Tindle | D22: z | E22: Guest | F22: m | I22: x | J22: x | AA22: 153 | AB22: g | AC22: 2 | AE22: S | AF22: Stirling | AG22: 19 | AH22: =1000000*ROUND(ABS(SIN(SIN(AG22*DAY(LEFT(FrontPage!$C$4,2))))),6) -> 548556 | AI22: Y | AK22: 0 | AL22: 19
A23: 154 | B23: Kade | C23: Thomas | D23: cc | E23: City_of_Glasgow_College | F23: m | I23: x | J23: x | AA23: 154 | AB23: c | AC23: 2 | AE23: T | AF23: Abertay | AG23: 20 | AH23: =1000000*ROUND(ABS(SIN(SIN(AG23*DAY(LEFT(FrontPage!$C$4,2))))),6) -> 450899 | AI23: Y | AK23: 2 | AL23: 0
A24: 155 | B24: Katie | C24: Ord | D24: g | E24: Glasgow | F24: f | U24: x | V24: x | W24: x | AA24: 155 | AB24: i | AC24: 3 | AE24: U | AG24: 21 | AH24: =1000000*ROUND(ABS(SIN(SIN(AG24*DAY(LEFT(FrontPage!$C$4,2))))),6) -> 339775
A25: 156 | B25: Caitlin | C25: Watt | D25: q | E25: Queen_Margaret | F25: f | V25: x | AA25: 156 | AB25: c | AC25: 1 | AE25: V | AG25: 22 | AH25: =1000000*ROUND(ABS(SIN(SIN(AG25*DAY(LEFT(FrontPage!$C$4,2))))),6) -> 217726
A26: 157 | B26: Stephanie | C26: Lawrie | D26: e | E26: Edinburgh | F26: f | M26: x | AA26: 157 | AB26: i | AC26: 1 | AE26: W | AF26: West_of_Scotland | AG26: 23 | AH26: =1000000*ROUND(ABS(SIN(SIN(AG26*DAY(LEFT(FrontPage!$C$4,2))))),6) -> 88314 | AI26: Y | AK26: 0 | AL26: 1
A27: 158 | B27: Jack | C27: Lawrie | D27: vc | E27: Forth_Valley_College | F27: m | G27: x | H27: x | AA27: 158 | AB27: c | AC27: 2 | AE27: X | AF27: St_Andrews | AG27: 24 | AH27: =1000000*ROUND(ABS(SIN(SIN(AG27*DAY(LEFT(FrontPage!$C$4,2))))),6) -> 44168 | AI27: Y | AK27: 11 | AL27: 0
A28: 159 | B28: Patrick | C28: Corsar | D28: e | E28: Edinburgh | F28: m | I28: x | J28: x | AA28: 159 | AB28: i | AC28: 2 | AE28: Y | AF28: Strathclyde | AG28: 25 | AH28: =1000000*ROUND(ABS(SIN(SIN(AG28*DAY(LEFT(FrontPage!$C$4,2))))),6) -> 175109 | AI28: Y | AK28: 0 | AL28: 15
A29: 160 | B29: Ross | C29: Maxwell | D29: g | E29: Glasgow | F29: m | I29: x | AA29: 160 | AB29: i | AC29: 1 | AE29: Z | AF29: Guest | AG29: 26 | AH29: =1000000*ROUND(ABS(SIN(SIN(AG29*DAY(LEFT(FrontPage!$C$4,2))))),6) -> 300058 | AM29: 18
A30: 161 | B30: Jill | C30: Hinchliffe | D30: e | E30: Edinburgh | F30: f | L30: x | Q30: x | AA30: 161 | AB30: i | AC30: 2 | AG30: 27 | AH30: =1000000*ROUND(ABS(SIN(SIN(AG30*DAY(LEFT(FrontPage!$C$4,2))))),6) -> 415169
A31: 162 | B31: Stacey | C31: Downie | D31: e | E31: Edinburgh | F31: f | I31: x | J31: x | AA31: 162 | AB31: i | AC31: 2 | AE31: AC | AF31: Ayrshire_College | AG31: 28 | AH31: =1000000*ROUND(ABS(SIN(SIN(AG31*DAY(LEFT(FrontPage!$C$4,2))))),6) -> 517537 | AK31: 1 | AL31: 0
A32: 163 | B32: Eleanor | C32: Marlow | D32: g | E32: Glasgow | F32: f | I32: x | J32: x | AA32: 163 | AB32: i | AC32: 2 | AE32: BC | AF32: Borders_College | AG32: 29 | AH32: =1000000*ROUND(ABS(SIN(SIN(AG32*DAY(LEFT(FrontPage!$C$4,2))))),6) -> 605379 | AK32: 0 | AL32: 0
A33: 164 | B33: Elizabeth | C33: Musgrove | D33: e | E33: Edinburgh | F33: f | K33: x | AA33: 164 | AB33: i | AC33: 1 | AE33: CC | AF33: City_of_Glasgow_College | AG33: 30 | AH33: =1000000*ROUND(ABS(SIN(SIN(AG33*DAY(LEFT(FrontPage!$C$4,2))))),6) -> 678025 | AK33: 0 | AL33: 8
A34: 165 | B34: Alice | C34: Horne | D34: e | E34: Edinburgh | F34: f | I34: x | AA34: 165 | AB34: i | AC34: 1 | AE34: DC | AF34: Dundee_&_Angus_College | AG34: 31 | AH34: =1000000*ROUND(ABS(SIN(SIN(AG34*DAY(LEFT(FrontPage!$C$4,2))))),6) -> 735764 | AK34: 0 | AL34: 0
A35: 166 | B35: Stephen | C35: Dunlop | D35: a | E35: Aberdeen | F35: m | I35: x | AA35: 166 | AB35: i | AC35: 1 | AE35: EC | AF35: Edinburgh_College | AG35: 32 | AH35: =1000000*ROUND(ABS(SIN(SIN(AG35*DAY(LEFT(FrontPage!$C$4,2))))),6) -> 779564 | AK35: 0 | AL35: 3
A36: 167 | B36: Jemma | C36: Reekie | D36: cc | E36: City_of_Glasgow_College | F36: f | L36: x | AA36: 167 | AB36: c | AC36: 1 | AE36: FC | AF36: Fife_College | AG36: 33 | AH36: =1000000*ROUND(ABS(SIN(SIN(AG36*DAY(LEFT(FrontPage!$C$4,2))))),6) -> 810740 | AK36: 4 | AL36: 0
A37: 168 | B37: Chloe | C37: Mason | D37: cc | E37: City_of_Glasgow_College | F37: f | I37: x | AA37: 168 | AB37: c | AC37: 1 | AE37: GC | AF37: Glasgow_Clyde_College | AG37: 34 | AH37: =1000000*ROUND(ABS(SIN(SIN(AG37*DAY(LEFT(FrontPage!$C$4,2))))),6) -> 830624 | AK37: 0 | AL37: 1
A38: 169 | B38: Eleanor | C38: Newton | D38: e | E38: Edinburgh | F38: f | I38: x | J38: x | U38: x | AA38: 169 | AB38: i | AC38: 3 | AE38: HC | AG38: 35 | AH38: =1000000*ROUND(ABS(SIN(SIN(AG38*DAY(LEFT(FrontPage!$C$4,2))))),6) -> 840277
A39: 170 | B39: Paul | C39: Wishart | D39: g | E39: Glasgow | F39: m | U39: x | V39: x | W39: x | AA39: 170 | AB39: i | AC39: 3 | AE39: IC | AG39: 36 | AH39: =1000000*ROUND(ABS(SIN(SIN(AG39*DAY(LEFT(FrontPage!$C$4,2))))),6) -> 840282
A40: 171 | B40: Natalie | C40: Robbins | D40: ec | E40: Edinburgh_College | F40: f | W40: x | AA40: 171 | AB40: c | AC40: 1 | AE40: JC | AG40: 37 | AH40: =1000000*ROUND(ABS(SIN(SIN(AG40*DAY(LEFT(FrontPage!$C$4,2))))),6) -> 830641
A41: 172 | B41: Greg | C41: Tumolo | D41: e | E41: Edinburgh | F41: m | I41: x | J41: x | Q41: x | V41: x | AA41: 172 | AB41: i | AC41: 4 | AE41: KC | AF41: Glasgow_Kelvin_College | AG41: 38 | AH41: =1000000*ROUND(ABS(SIN(SIN(AG41*DAY(LEFT(FrontPage!$C$4,2))))),6) -> 810769 | AK41: 0 | AL41: 0
A42: 173 | B42: David | C42: Campbell | D42: y | E42: Strathclyde | F42: m | G42: x | K42: x | AA42: 173 | AB42: c | AC42: 2 | AE42: LC | AF42: New_College_Lanarkshire | AG42: 39 | AH42: =1000000*ROUND(ABS(SIN(SIN(AG42*DAY(LEFT(FrontPage!$C$4,2))))),6) -> 779606 | AK42: 0 | AL42: 0
A43: 174 | B43: Hazel | C43: Jamieson | D43: g | E43: Glasgow | F43: f | R43: x | S43: x | AA43: 174 | AB43: i | AC43: 2 | AE43: MC | AG43: 40 | AH43: =1000000*ROUND(ABS(SIN(SIN(AG43*DAY(LEFT(FrontPage!$C$4,2))))),6) -> 735822
A44: 175 | B44: Jegor | C44: Mljavov | D44: g | E44: Glasgow | F44: m | G44: x | J44: x | Q44: x | AA44: 175 | AB44: i | AC44: 3 | AE44: NC | AF44: NE_Scotland_College | AG44: 41 | AH44: =1000000*ROUND(ABS(SIN(SIN(AG44*DAY(LEFT(FrontPage!$C$4,2))))),6) -> 678099 | AK44: 3 | AL44: 0
A45: 176 | B45: Jeremy | C45: O'Neill | D45: g | E45: Glasgow | F45: m | G45: x | AA45: 176 | AB45: i | AC45: 1 | AE45: OC | AG45: 42 | AH45: =1000000*ROUND(ABS(SIN(SIN(AG45*DAY(LEFT(FrontPage!$C$4,2))))),6) -> 605470
A46: 177 | B46: Zoey | C46: Clark | D46: a | E46: Aberdeen | F46: f | I46: x | J46: x | AA46: 177 | AB46: i | AC46: 2 | AE46: PC | AG46: 43 | AH46: =1000000*ROUND(ABS(SIN(SIN(AG46*DAY(LEFT(FrontPage!$C$4,2))))),6) -> 517646
A47: 178 | B47: Declan | C47: Brennan | D47: fc | E47: Fife_College | F47: m | I47: x | J47: x | AA47: 178 | AB47: i | AC47: 2 | AE47: QC | AG47: 44 | AH47: =1000000*ROUND(ABS(SIN(SIN(AG47*DAY(LEFT(FrontPage!$C$4,2))))),6) -> 415293
A48: 179 | B48: Thomas | C48: Campbell | D48: a | E48: Aberdeen | F48: m | S48: x | AA48: 179 | AB48: i | AC48: 1 | AE48: RC | AF48: Scotlands_Rural_College | AG48: 45 | AH48: =1000000*ROUND(ABS(SIN(SIN(AG48*DAY(LEFT(FrontPage!$C$4,2))))),6) -> 300195 | AK48: 0 | AL48: 0
A49: 180 | B49: Daniel | C49: Rees | D49: a | E49: Aberdeen | F49: m | G49: x | T49: x | AA49: 180 | AB49: i | AC49: 2 | AE49: SC | AF49: South_Lanarkshire_College | AG49: 46 | AH49: =1000000*ROUND(ABS(SIN(SIN(AG49*DAY(LEFT(FrontPage!$C$4,2))))),6) -> 175255 | AK49: 0 | AL49: 1
A50: 181 | B50: Eoghan | C50: MacNamara | D50: a | E50: Aberdeen | F50: m | L50: x | AA50: 181 | AB50: i | AC50: 1 | AE50: TC | AF50: Newbattle_Abbey_College | AG50: 47 | AH50: =1000000*ROUND(ABS(SIN(SIN(AG50*DAY(LEFT(FrontPage!$C$4,2))))),6) -> 44319 | AK50: 0 | AL50: 0
A51: 182 | B51: Sam | C51: O'Kane | D51: g | E51: Glasgow | F51: m | U51: x | V51: x | W51: x | X51: x | AA51: 182 | AB51: I | AC51: 4 | AE51: UC | AG51: 48 | AH51: =1000000*ROUND(ABS(SIN(SIN(AG51*DAY(LEFT(FrontPage!$C$4,2))))),6) -> 88164
A52: 183 | B52: Fearghas | C52: Thomson | D52: a | E52: Aberdeen | F52: m | L52: x | AA52: 183 | AB52: i | AC52: 1 | AE52: VC | AF52: Forth_Valley_College | AG52: 49 | AH52: =1000000*ROUND(ABS(SIN(SIN(AG52*DAY(LEFT(FrontPage!$C$4,2))))),6) -> 217583 | AK52: 0 | AL52: 2
A53: 184 | B53: Isla | C53: Scott-Pearce | D53: a | E53: Aberdeen | F53: f | K53: x | AA53: 184 | AB53: i | AC53: 1 | AE53: WC | AF53: West_College_Scotland | AG53: 50 | AH53: =1000000*ROUND(ABS(SIN(SIN(AG53*DAY(LEFT(FrontPage!$C$4,2))))),6) -> 339642 | AK53: 0 | AL53: 0
A54: 185 | B54: Addrienne | C54: Rennie | D54: s | E54: Stirling | F54: f | I54: x | J54: x | Q54: x | AA54: 185 | AB54: c | AC54: 3 | AE54: XC | AF54: West_Lothian_College | AG54: 51 | AH54: =1000000*ROUND(ABS(SIN(SIN(AG54*DAY(LEFT(FrontPage!$C$4,2))))),6) -> 450780 | AK54: 0 | AL54: 0
A55: 186 | B55: Patrick | C55: Bowman | D55: g | E55: Glasgow | F55: m | L55: x | AA55: 186 | AB55: i | AC55: 1 | AE55: YC | AF55: Dumfries_Galloway_College | AG55: 52 | AH55: =1000000*ROUND(ABS(SIN(SIN(AG55*DAY(LEFT(FrontPage!$C$4,2))))),6) -> 548453 | AK55: 0 | AL55: 0
A56: 187 | B56: Nene | C56: Wildman | D56: s | E56: Stirling | F56: m | I56: x | J56: x | AA56: 187 | AB56: c | AC56: 2 | AE56: ZC | AG56: 53 | AH56: =1000000*ROUND(ABS(SIN(SIN(AG56*DAY(LEFT(FrontPage!$C$4,2))))),6) -> 631258
A57: 188 | B57: Christian | C57: Volodiev_Hristov | D57: a | E57: Aberdeen | F57: m | J57: x | AA57: 188 | AB57: i | AC57: 1 | AE57: anc | AF57: Anniesland_College | AG57: 54 | AH57: =1000000*ROUND(ABS(SIN(SIN(AG57*DAY(LEFT(FrontPage!$C$4,2))))),6) -> 698869 | AK57: 0 | AL57: 0
A58: 189 | B58: Andrew | C58: Milne | D58: a | E58: Aberdeen | F58: m | I58: x | J58: x | AA58: 189 | AB58: i | AC58: 2 | AE58: rcc | AF58: Reid_Kerr_College | AG58: 55 | AH58: =1000000*ROUND(ABS(SIN(SIN(AG58*DAY(LEFT(FrontPage!$C$4,2))))),6) -> 751835 | AK58: 0 | AL58: 0
A59: 190 | B59: Remi | C59: Caudoux | D59: g | E59: Glasgow | F59: m | T59: x | X59: x | AA59: 190 | AB59: i | AC59: 2 | AE59: ws | AF59: Western School | AG59: 56 | AH59: =1000000*ROUND(ABS(SIN(SIN(AG59*DAY(LEFT(FrontPage!$C$4,2))))),6) -> 791278 | AK59: 0 | AL59: 2
A60: 191 | B60: Adam | C60: Hobson | D60: i | E60: Highlands_&_Islands | F60: m | X60: x | AA60: 191 | AB60: c | AC60: 1 | AG60: 57 | AH60: =1000000*ROUND(ABS(SIN(SIN(AG60*DAY(LEFT(FrontPage!$C$4,2))))),6) -> 818554
A61: 192 | B61: Fraser | C61: Grady | D61: s | E61: Stirling | F61: m | I61: x | AA61: 192 | AB61: c | AC61: 1 | AG61: 58 | AH61: =1000000*ROUND(ABS(SIN(SIN(AG61*DAY(LEFT(FrontPage!$C$4,2))))),6) -> 834934
A62: 193 | B62: Daniel | C62: Whittam | D62: s | E62: Stirling | F62: m | I62: x | J62: x | AA62: 193 | AB62: c | AC62: 2 | AG62: 59 | AH62: =1000000*ROUND(ABS(SIN(SIN(AG62*DAY(LEFT(FrontPage!$C$4,2))))),6) -> 841337
A63: 194 | B63: Scott | C63: Young | D63: ac | E63: Ayrshire_College | F63: m | I63: x | AA63: 194 | AB63: i | AC63: 1 | AG63: 60 | AH63: =1000000*ROUND(ABS(SIN(SIN(AG63*DAY(LEFT(FrontPage!$C$4,2))))),6) -> 838161
A64: 195 | B64: Andrew | C64: Lazarowicz | D64: e | E64: Edinburgh | F64: m | I64: x | J64: x | Q64: x | AA64: 195 | AB64: i | AC64: 3 | AG64: 61 | AH64: =1000000*ROUND(ABS(SIN(SIN(AG64*DAY(LEFT(FrontPage!$C$4,2))))),6) -> 825205
A65: 196 | B65: Lewis | C65: Renton | D65: g | E65: Glasgow | F65: m | L65: x | X65: x | AA65: 196 | AB65: i | AC65: 2 | AG65: 62 | AH65: =1000000*ROUND(ABS(SIN(SIN(AG65*DAY(LEFT(FrontPage!$C$4,2))))),6) -> 801710
A66: 197 | B66: Michael | C66: ferguson | D66: a | E66: Aberdeen | F66: m | L66: x | AA66: 197 | AB66: i | AC66: 1 | AG66: 63 | AH66: =1000000*ROUND(ABS(SIN(SIN(AG66*DAY(LEFT(FrontPage!$C$4,2))))),6) -> 766498
A67: 198 | B67: George | C67: Killingworth | D67: g | E67: Glasgow | F67: m | M67: x | N67: x | R67: x | AA67: 198 | AB67: i | AC67: 3 | AG67: 64 | AH67: =1000000*ROUND(ABS(SIN(SIN(AG67*DAY(LEFT(FrontPage!$C$4,2))))),6) -> 718209
A68: 199 | B68: Matthew | C68: McKenna | D68: s | E68: Stirling | F68: m | L68: x | AA68: 199 | AB68: c | AC68: 1 | AG68: 65 | AH68: =1000000*ROUND(ABS(SIN(SIN(AG68*DAY(LEFT(FrontPage!$C$4,2))))),6) -> 655604
A69: 200 | B69: Jiri | C69: Prazan | D69: g | E69: =IF($D69="","",INDEX($AE$4:$AF$102,MATCH($D69,$AE$4:$AE$102,0),2)) -> Glasgow | F69: m | R69: x | AA69: 200 | AB69: i | AC69: =IF(COUNTIF(G69:X69,"<>")=0,"",COUNTIF(G69:X69,"<>")) -> 1 | AG69: 66 | AH69: =1000000*ROUND(ABS(SIN(SIN(AG69*DAY(LEFT(FrontPage!$C$4,2))))),6) -> 577905 | AK69: =IF(OR(AF69="",AF69="Guest"),"",SUMIFS($AC$4:$AC$1003,$E$4:$E$1003,$AF69,$AB$4:$AB$1003,"I")+SUMIFS($AC$4:$AC$1003,$E$4:$E$1003,$AF69,$AB$4:$AB$1003,"")) ->  | AL69: =IF(OR(AF69="",AF69="Guest"),"",SUMIFS($AC$4:$AC$1003,$E$4:$E$1003,$AF69,$AB$4:$AB$1003,"C")) ->  | AM69: =IF($AF69="Guest",SUMIFS($AC$4:$AC$1003,$E$4:$E$1003,"Guest"),"") -> 
A70: 901 | B70: Krishawn | C70: Aiken | D70: g | E70: Glasgow | F70: m | K70: x | AA70: =A70 -> 901 | AB70: i | AC70: 1 | AG70: =AG69+1 -> 67 | AH70: =1000000*ROUND(ABS(SIN(SIN(AG70*DAY(LEFT(FrontPage!$C$4,2))))),6) -> 485116
A71: =A70+1 -> 902 | B71: D | C71: Lafferty | D71: g | E71: Glasgow | F71: m | I71: x | K71: x | AA71: 902 | AB71: i | AC71: 2 | AG71: 68 | AH71: =1000000*ROUND(ABS(SIN(SIN(AG71*DAY(LEFT(FrontPage!$C$4,2))))),6) -> 378264
A72: 903 | B72: Edidiong | C72: Akpan | D72: g | E72: Glasgow | F72: f | G72: x | I72: x | J72: x | Q72: x | AA72: 903 | AB72: i | AC72: 4 | AG72: 69 | AH72: =1000000*ROUND(ABS(SIN(SIN(AG72*DAY(LEFT(FrontPage!$C$4,2))))),6) -> 259515
A73: 904 | B73: Sam | C73: Davies | D73: g | E73: Glasgow | F73: m | L73: x | AA73: 904 | AB73: i | AC73: 1 | AG73: 70 | AH73: =1000000*ROUND(ABS(SIN(SIN(AG73*DAY(LEFT(FrontPage!$C$4,2))))),6) -> 132114
A74: 905 | B74: David | C74: Brand | D74: fc | E74: Fife_College | F74: m | I74: x | J74: x | AA74: 905 | AB74: i | AC74: 2 | AG74: 71 | AH74: =1000000*ROUND(ABS(SIN(SIN(AG74*DAY(LEFT(FrontPage!$C$4,2))))),6) -> 151
A75: 906 | B75: Kyle | C75: Laing | D75: e | E75: Edinburgh | F75: m | I75: x | J75: x | AA75: 906 | AB75: i | AC75: 2 | AG75: 72 | AH75: =1000000*ROUND(ABS(SIN(SIN(AG75*DAY(LEFT(FrontPage!$C$4,2))))),6) -> 131818
A76: 907 | B76: Andrew | C76: Murphy | D76: g | E76: Glasgow | F76: m | H76: x | Q76: x | S76: x | T76: x | V76: x | AA76: 907 | AB76: i | AC76: 5 | AG76: 73 | AH76: =1000000*ROUND(ABS(SIN(SIN(AG76*DAY(LEFT(FrontPage!$C$4,2))))),6) -> 259234
A77: 908 | B77: Sidi | C77: Agoro | D77: g | E77: Glasgow | F77: f | I77: x | J77: x | Q77: x | AA77: 908 | AB77: i | AC77: 3 | AG77: 74 | AH77: =1000000*ROUND(ABS(SIN(SIN(AG77*DAY(LEFT(FrontPage!$C$4,2))))),6) -> 378007
A78: 909 | B78: Lachlan | C78: Oates | D78: g | E78: Glasgow | F78: m | L78: x | M78: x | AA78: 909 | AB78: i | AC78: 2 | AG78: 75 | AH78: =1000000*ROUND(ABS(SIN(SIN(AG78*DAY(LEFT(FrontPage!$C$4,2))))),6) -> 484888
A79: 910 | B79: Ewan | C79: Davidson | D79: e | E79: Edinburgh | F79: m | P79: x | AA79: 910 | AB79: i | AC79: 1 | AG79: 76 | AH79: =1000000*ROUND(ABS(SIN(SIN(AG79*DAY(LEFT(FrontPage!$C$4,2))))),6) -> 577711
A80: 911 | B80: Caroline | C80: George | D80: c | E80: Glasgow_Caledonian | F80: f | I80: x | J80: x | AA80: 911 | AB80: i | AC80: 2 | AG80: 77 | AH80: =1000000*ROUND(ABS(SIN(SIN(AG80*DAY(LEFT(FrontPage!$C$4,2))))),6) -> 655445
A81: 912 | B81: Timothy | C81: Gibney | D81: e | E81: Edinburgh | F81: m | M81: x | AA81: 912 | AB81: i | AC81: 1 | AG81: 78 | AH81: =1000000*ROUND(ABS(SIN(SIN(AG81*DAY(LEFT(FrontPage!$C$4,2))))),6) -> 718083
A82: 913 | B82: Ivan | C82: Armstrong | D82: g | E82: Glasgow | F82: m | J82: x | V82: x | AA82: 913 | AB82: i | AC82: 2 | AG82: 79 | AH82: =1000000*ROUND(ABS(SIN(SIN(AG82*DAY(LEFT(FrontPage!$C$4,2))))),6) -> 766404
A83: 914 | B83: Greene | C83: Greene | D83: g | E83: Glasgow | F83: m | K83: x | AA83: 914 | AB83: i | AC83: 1 | AG83: 80 | AH83: =1000000*ROUND(ABS(SIN(SIN(AG83*DAY(LEFT(FrontPage!$C$4,2))))),6) -> 801644
A84: 915 | B84: David | C84: Stewart | D84: g | E84: Glasgow | F84: m | Q84: x | AA84: 915 | AB84: i | AC84: 1 | AG84: 81 | AH84: =1000000*ROUND(ABS(SIN(SIN(AG84*DAY(LEFT(FrontPage!$C$4,2))))),6) -> 825164
A85: 916 | B85: Dora | C85: Pongraz | D85: g | E85: Glasgow | F85: f | M85: x | AA85: 916 | AB85: i | AC85: 1 | AG85: 82 | AH85: =1000000*ROUND(ABS(SIN(SIN(AG85*DAY(LEFT(FrontPage!$C$4,2))))),6) -> 838142
A86: 917 | B86: Allen | C86: Farrington | D86: x | E86: St_Andrews | F86: m | K86: x | AA86: 917 | AB86: i | AC86: 1 | AG86: 83 | AH86: =1000000*ROUND(ABS(SIN(SIN(AG86*DAY(LEFT(FrontPage!$C$4,2))))),6) -> 841341
A87: 918 | B87: Glen | C87: Murray | D87: e | E87: Edinburgh | F87: m | V87: x | X87: x | AA87: 918 | AB87: i | AC87: 2 | AG87: 84 | AH87: =1000000*ROUND(ABS(SIN(SIN(AG87*DAY(LEFT(FrontPage!$C$4,2))))),6) -> 834960
A88: 919 | B88: David | C88: Mann | D88: y | E88: Strathclyde | F88: m | T88: x | AA88: 919 | AB88: c | AC88: 1 | AG88: 85 | AH88: =1000000*ROUND(ABS(SIN(SIN(AG88*DAY(LEFT(FrontPage!$C$4,2))))),6) -> 818604
A89: 920 | B89: George | C89: Payne | D89: x | E89: St_Andrews | F89: m | I89: x | AA89: 920 | AB89: i | AC89: 1 | AG89: 86 | AH89: =1000000*ROUND(ABS(SIN(SIN(AG89*DAY(LEFT(FrontPage!$C$4,2))))),6) -> 791353
A90: 921 | B90: Simon | C90: Hardie | D90: g | E90: Glasgow | F90: m | H90: x | I90: x | AA90: 921 | AB90: i | AC90: 2 | AG90: 87 | AH90: =1000000*ROUND(ABS(SIN(SIN(AG90*DAY(LEFT(FrontPage!$C$4,2))))),6) -> 751939
A91: 922 | B91: Rachel | C91: Dinsdale | D91: x | E91: St_Andrews | F91: f | J91: x | R91: x | AA91: 922 | AB91: i | AC91: 2 | AG91: 88 | AH91: =1000000*ROUND(ABS(SIN(SIN(AG91*DAY(LEFT(FrontPage!$C$4,2))))),6) -> 699005
A92: 923 | B92: Kirsty | C92: Lawrenson | D92: x | E92: St_Andrews | F92: f | I92: x | U92: x | AA92: 923 | AB92: i | AC92: 2 | AG92: 89 | AH92: =1000000*ROUND(ABS(SIN(SIN(AG92*DAY(LEFT(FrontPage!$C$4,2))))),6) -> 631428
A93: 924 | B93: Cameron | C93: Milne | D93: x | E93: St_Andrews | F93: m | P93: x | AA93: 924 | AB93: i | AC93: 1 | AG93: 90 | AH93: =1000000*ROUND(ABS(SIN(SIN(AG93*DAY(LEFT(FrontPage!$C$4,2))))),6) -> 548658
A94: 925 | B94: Angela | C94: Richardson | D94: x | E94: St_Andrews | F94: f | M94: x | O94: x | AA94: 925 | AB94: i | AC94: 2 | AG94: 91 | AH94: =1000000*ROUND(ABS(SIN(SIN(AG94*DAY(LEFT(FrontPage!$C$4,2))))),6) -> 451017
A95: 926 | B95: Euan | C95: Kerr | D95: x | E95: St_Andrews | F95: m | L95: x | AA95: 926 | AB95: i | AC95: 1 | AG95: 92 | AH95: =1000000*ROUND(ABS(SIN(SIN(AG95*DAY(LEFT(FrontPage!$C$4,2))))),6) -> 339908
A96: 927 | B96: Rachel | C96: Pugh | D96: g | E96: Glasgow | F96: f | V96: x | W96: x | X96: x | AA96: 927 | AB96: i | AC96: 3 | AG96: 93 | AH96: =1000000*ROUND(ABS(SIN(SIN(AG96*DAY(LEFT(FrontPage!$C$4,2))))),6) -> 217870
A97: 928 | B97: Nikki | C97: Manson | D97: g | E97: Glasgow | F97: f | S97: x | AA97: 928 | AB97: i | AC97: 1 | AG97: 94 | AH97: =1000000*ROUND(ABS(SIN(SIN(AG97*DAY(LEFT(FrontPage!$C$4,2))))),6) -> 88463
A98: 929 | B98: Ellen | C98: Robertson | D98: r | E98: Robert_Gordon | F98: f | R98: x | AA98: 929 | AB98: i | AC98: 1 | AG98: 95 | AH98: =1000000*ROUND(ABS(SIN(SIN(AG98*DAY(LEFT(FrontPage!$C$4,2))))),6) -> 44018
A99: 930 | B99: Emma | C99: Leask | D99: r | E99: Robert_Gordon | F99: f | L99: x | AA99: 930 | AB99: i | AC99: 1 | AG99: 96 | AH99: =1000000*ROUND(ABS(SIN(SIN(AG99*DAY(LEFT(FrontPage!$C$4,2))))),6) -> 174963
A100: 931 | B100: Katie | C100: Watson | D100: r | E100: Robert_Gordon | F100: f | M100: x | AA100: 931 | AB100: i | AC100: 1 | AG100: 97 | AH100: =1000000*ROUND(ABS(SIN(SIN(AG100*DAY(LEFT(FrontPage!$C$4,2))))),6) -> 299921
A101: 932 | B101: Calum | C101: Murray | D101: e | E101: Edinburgh | F101: m | M101: x | N101: x | AA101: 932 | AB101: i | AC101: 2 | AG101: 98 | AH101: =1000000*ROUND(ABS(SIN(SIN(AG101*DAY(LEFT(FrontPage!$C$4,2))))),6) -> 415045
A102: 933 | B102: Neale | C102: Kelly | D102: z | E102: Guest | F102: m | H102: x | I102: x | AA102: 933 | AB102: g | AC102: 2 | AG102: 99 | AH102: =1000000*ROUND(ABS(SIN(SIN(AG102*DAY(LEFT(FrontPage!$C$4,2))))),6) -> 517429
A103: 934 | B103: Jamie | C103: Andrew | D103: r | E103: Robert_Gordon | F103: m | L103: x | AA103: 934 | AB103: i | AC103: 1
A104: 935 | B104: Jordan | C104: Charters | D104: ec | E104: Edinburgh_College | F104: m | I104: x | Q104: x | AA104: 935 | AB104: c | AC104: 2
A105: 936 | B105: Euan | C105: Martin | D105: g | E105: Glasgow | F105: m | L105: x | AA105: 936 | AB105: i | AC105: 1
A106: 937 | B106: Rebecca | C106: Parker | D106: z | E106: Guest | F106: f | V106: x | AA106: 937 | AB106: g | AC106: 1
A107: 938 | B107: Adam | C107: Redpath | D107: g | E107: Glasgow | F107: m | K107: x | L107: x | AA107: 938 | AB107: i | AC107: 2
A108: 939 | B108: Karen | C108: McClymont | D108: g | E108: Glasgow | F108: f | Q108: x | R108: x | AA108: 939 | AB108: i | AC108: 2
A109: 940 | B109: Martin | C109: Hayes | D109: y | E109: Strathclyde | F109: m | N109: x | AA109: 940 | AB109: c | AC109: 1
A110: 941 | B110: Michael | C110: Houston | D110: c | E110: Glasgow_Caledonian | F110: m | N110: x | AA110: 941 | AB110: i | AC110: 1
A111: 942 | B111: Stephanie | C111: Pennycook | D111: e | E111: Edinburgh | F111: f | L111: x | AA111: 942 | AB111: i | AC111: 1
A112: 943 | B112: Callum | C112: Hunter | D112: g | E112: Glasgow | F112: m | L112: x | AA112: 943 | AB112: i | AC112: 1
A113: 944 | B113: Ben | C113: Potrykus | D113: h | E113: Heriot-Watt | F113: m | L113: x | AA113: 944 | AB113: i | AC113: 1
A114: 945 | B114: Paula | C114: Gass | D114: s | E114: Stirling | F114: f | U114: x | X114: x | AA114: 945 | AB114: c | AC114: 2
A115: 946 | B115: Cameron | C115: Wilson | D115: i | E115: Highlands_&_Islands | F115: m | R115: x | AA115: 946 | AB115: c | AC115: 1
A116: 947 | B116: Charles | C116: Reynolds | D116: e | E116: Edinburgh | F116: m | V116: x | AA116: 947 | AB116: i | AC116: 1
A117: 948 | B117: Edward | C117: Dudgeon | D117: e | E117: Edinburgh | F117: m | M117: x | AA117: 948 | AB117: i | AC117: 1
A118: 949 | B118: Andrew | C118: Clark | D118: cc | E118: City_of_Glasgow_College | F118: m | L118: x | M118: x | AA118: 949 | AB118: c | AC118: 2
A119: 950 | B119: James | C119: McLaren | D119: g | E119: Glasgow | F119: m | J119: x | K119: x | AA119: 950 | AB119: i | AC119: 2
A120: 951 | B120: Carolyn | C120: Harvey | D120: y | E120: Strathclyde | F120: f | R120: x | AA120: 951 | AB120: c | AC120: 1
A121: 952 | B121: Thomas | C121: Johnson | D121: g | E121: Glasgow | F121: m | K121: x | AA121: 952 | AB121: i | AC121: 1
A122: 953 | B122: Rachel | C122: Robertson | D122: n | E122: Napier | F122: f | Q122: x | R122: x | AA122: 953 | AB122: c | AC122: 2
A123: 954 | B123: Aidan | C123: Thompson | D123: s | E123: Stirling | F123: m | M123: x | AA123: 954 | AB123: c | AC123: 1
A124: 955 | B124: Ryan | C124: Thomson | D124: y | E124: Strathclyde | F124: m | M124: x | AA124: 955 | AB124: c | AC124: 1
A125: 956 | B125: Angus | C125: McInroy | D125: z | E125: Guest | F125: m | V125: x | AA125: 956 | AB125: g | AC125: 1
A126: 957 | B126: Sam | C126: Lyon | D126: r | E126: Robert_Gordon | F126: m | Q126: x | R126: x | X126: x | AA126: 957 | AB126: i | AC126: 3
A127: 958 | B127: Kieran | C127: Gauld | D127: nc | E127: NE_Scotland_College | F127: m | Q127: x | R127: x | U127: x | AA127: 958 | AB127: i | AC127: 3
A128: 959 | B128: Michael | C128: Fernie | D128: h | E128: Heriot-Watt | F128: m | K128: x | AA128: 959 | AB128: i | AC128: 1
A129: 960 | B129: Hannah | C129: Lawler | D129: g | E129: Glasgow | F129: f | T129: x | AA129: 960 | AB129: i | AC129: 1
A130: 961 | B130: Jacqueline | C130: Hughes | D130: q | E130: Queen_Margaret | F130: f | M130: x | AA130: 961 | AB130: c | AC130: 1
A131: 962 | B131: Anthony | C131: Young | D131: ws | E131: Western School | F131: m | J131: x | K131: x | AA131: 962 | AB131: c | AC131: 2
A132: 963 | B132: Emma | C132: Canning | D132: y | E132: Strathclyde | F132: f | H132: x | J132: x | Q132: x | AA132: 963 | AB132: c | AC132: 3
A133: 964 | B133: James | C133: Flett | D133: z | E133: =IF($D133="","",INDEX($AE$4:$AF$102,MATCH($D133,$AE$4:$AE$102,0),2)) -> Guest | F133: m | J133: x | AA133: 964 | AB133: i | AC133: =IF(COUNTIF(G133:X133,"<>")=0,"",COUNTIF(G133:X133,"<>")) -> 1
A134: =A133+1 -> 965 | B134: Shaun | C134: Tonner | D134: y | E134: Strathclyde | F134: m | J134: x | AA134: =A134 -> 965 | AB134: c | AC134: 1
A135: 966 | B135: Hollie | C135: Lister | D135: s | E135: Stirling | F135: f | J135: x | AA135: 966 | AB135: c | AC135: 1
A136: 967 | B136: Mhairi | C136: Hendry | D136: y | E136: Strathclyde | F136: f | J136: x | K136: x | AA136: 967 | AB136: c | AC136: 2
A137: 968 | B137: Claire | C137: Sloan | D137: y | E137: Strathclyde | F137: f | K137: x | AA137: 968 | AB137: c | AC137: 1
A138: 969 | B138: Paula | C138: Murray | D138: t | E138: Abertay | F138: f | X138: x | AA138: 969 | AB138: i | AC138: 1
A139: 970 | B139: Damien | C139: Murray | D139: t | E139: Abertay | F139: m | X139: x | AA139: 970 | AB139: i | AC139: 1
A140: 971 | B140: Grant | C140: Plenderleith | D140: z | E140: Guest | F140: m | J140: x | AA140: 971 | AB140: g | AC140: 1
A141: 972 | B141: David | C141: Lindsay | D141: s | E141: Stirling | F141: m | N141: x | AA141: 972 | AB141: c | AC141: 1
A142: 973 | B142: Anna | C142: Gordon | D142: z | E142: Guest | F142: f | T142: x | AA142: 973 | AB142: g | AC142: 1
A143: 974 | B143: Peter | C143: Muirhead | D143: s | E143: Stirling | F143: m | Q143: x | AA143: 974 | AB143: c | AC143: 1
A144: 975 | B144: Callum | C144: Robertson | D144: r | E144: Robert_Gordon | F144: m | T144: x | AA144: 975 | AB144: i | AC144: 1
A145: 976 | B145: Robert | C145: Ferrol | D145: z | E145: Guest | F145: m | K145: x | AA145: 976 | AB145: g | AC145: 1
A146: 977 | B146: Craig | C146: Moriarty | D146: z | E146: Guest | F146: m | AA146: 977 | AB146: g
A147: 978 | B147: Kara | C147: Bradbeer | D147: h | E147: Heriot-Watt | F147: f | T147: x | AA147: 978 | AB147: i | AC147: 1
A148: 979 | B148: David | C148: Agnew | D148: s | E148: Stirling | F148: m | K148: x | AA148: 979 | AB148: c | AC148: 1
A149: 980 | B149: George | C149: Swankie | D149: y | E149: Strathclyde | F149: m | U149: x | AA149: 980 | AB149: c | AC149: 1
A150: 981 | B150: Nathan | C150: Merchant | D150: sc | E150: South_Lanarkshire_College | F150: m | K150: x | AA150: 981 | AB150: c | AC150: 1
A151: 982 | B151: Conan | C151: McCaughey | D151: s | E151: Stirling | F151: m | P151: x | AA151: 982 | AB151: c | AC151: 1
A152: 983 | B152: David | C152: Martin | D152: z | E152: Guest | F152: m | K152: x | AA152: 983 | AB152: g | AC152: 1
A153: 984 | B153: Richard | C153: Tsang | D153: y | E153: Strathclyde | F153: m | Q153: x | AA153: 984 | AB153: c | AC153: 1
A154: 985 | B154: Kyle | C154: McLellan | D154: e | E154: Edinburgh | F154: m | P154: x | AA154: 985 | AB154: i | AC154: 1
A155: 986 | B155: Andrew | C155: Lawler | D155: e | E155: Edinburgh | F155: m | N155: x | AA155: 986 | AB155: i | AC155: 1
A156: 987 | B156: Jamie | C156: Crowe | D156: s | E156: Stirling | F156: m | P156: x | AA156: 987 | AB156: c | AC156: 1
A157: 988 | B157: Sarah | C157: Douglas | D157: e | E157: Edinburgh | F157: f | N157: x | O157: x | Q157: x | AA157: 988 | AB157: i | AC157: 3
A158: 989 | B158: Danielle | C158: Beattie | D158: s | E158: Stirling | F158: f | N158: x | AA158: 989 | AB158: c | AC158: 1
A159: 990 | B159: Faye | C159: Nicholson | D159: e | E159: Edinburgh | F159: f | Q159: x | AA159: 990 | AB159: i | AC159: 1
A160: 991 | B160: Aileen | C160: Rennie | D160: z | E160: Guest | F160: f | X160: x | AA160: 991 | AB160: g | AC160: 1
A161: 992 | B161: Sarah | C161: Inglis | D161: z | E161: Guest | F161: f | O161: x | AA161: 992 | AB161: g | AC161: 1
A162: 993 | B162: Sarah | C162: Laverty | D162: g | E162: Glasgow | F162: f | O162: x | AA162: 993 | AB162: i | AC162: 1
A163: 994 | B163: Christopher | C163: Stewart | D163: gc | E163: Glasgow_Clyde_College | F163: m | N163: x | AA163: 994 | AB163: c | AC163: 1
A164: 995 | B164: Daniel | C164: Lynch | D164: x | E164: St_Andrews | F164: m | N164: x | AA164: 995 | AB164: i | AC164: 1
A165: 996 | B165: Aberdeen | C165: 4 by 400 M | D165: a | E165: Aberdeen | F165: m | Z165: x | AA165: 996 | AB165: i
A166: 997 | B166: Joanna | C166: Patterson | D166: g | E166: Glasgow | F166: f | N166: x | O166: x | AA166: 997 | AB166: i | AC166: 2
A167: 998 | B167: Edinburgh | C167: 4 by 100 M | D167: e | E167: Edinburgh | F167: m | Y167: x | AA167: 998 | AB167: i
A168: 999 | B168: EMPTY | C168: EMPTY | D168: z | E168: Guest | AA168: 999
A169: 1000 | B169: Edinburgh | C169: 4 by 400 M | D169: e | E169: Edinburgh | F169: m | Z169: x | AA169: 1000 | AB169: i
A170: 201 | B170: Edinburgh | C170: 4 by 400 F | D170: e | E170: Edinburgh | F170: f | Z170: x | AA170: 201 | AB170: i
A171: 202 | B171: Edinburgh | C171: 4 by 100 F | D171: e | E171: Edinburgh | F171: f | Y171: x | AA171: 202 | AB171: i
A172: 203 | B172: Glasgow A | C172: 4 by 400 M | D172: g | E172: Glasgow | F172: m | Z172: x | AA172: 203 | AB172: i
A173: 204 | B173: Glasgow B | C173: 4 by 400 M | D173: g | E173: Glasgow | F173: m | Z173: x | AA173: 204 | AB173: i
A174: 205 | B174: Glasgow | C174: 4 by 100 M | D174: g | E174: Glasgow | F174: m | Y174: x | AA174: 205 | AB174: i
A175: 206 | B175: Glasgow | C175: 4 by 400 F | D175: g | E175: Glasgow | F175: f | Z175: x | AA175: 206 | AB175: i
A176: 207 | B176: Glasgow A | C176: 4 by 100 F | D176: g | E176: Glasgow | F176: f | Y176: x | AA176: 207 | AB176: i
A177: 208 | B177: Glasgow B | C177: 4 by 100 F | D177: g | E177: Glasgow | F177: f | Y177: x | AA177: 208 | AB177: i
A178: 209 | AA178: 209 | AB178: i
A179: 210 | AA179: 210
A180: 211 | AA180: 211
A181: 212 | AA181: 212
A182: 213 | AA182: 213
A183: 214 | AA183: 214
A184: 215 | AA184: 215
A185: 216 | AA185: 216
A186: 217 | AA186: 217
A187: 218 | AA187: 218
A188: 219 | AA188: 219
A189: 220 | AA189: 220
A190: 221 | AA190: 221
A191: 222 | AA191: 222
A192: 223 | AA192: 223
A193: 224 | AA193: 224
A194: 225 | AA194: 225
A195: 226 | AA195: 226
A196: 227 | AA196: 227
A197: 228 | E197: =IF($D197="","",INDEX($AE$4:$AF$102,MATCH($D197,$AE$4:$AE$102,0),2)) ->  | AA197: 228 | AC197: =IF(COUNTIF(G197:X197,"<>")=0,"",COUNTIF(G197:X197,"<>")) -> 
A198: =A197+1 -> 229 | AA198: =A198 -> 229
A199: 230 | AA199: 230
A200: 231 | AA200: 231
... 803 more rows

Sheet Round1 (hidden)
B1: First round seeding (imports data from the Athletes sheet)
K2: Check to see if there is already a file in Startlist | L2: =IF(ISNA(MATCH($N$3*10000+101,Startlist!A:A,0)),"OK",MATCH(N3*10000+101,Startlist!A:A,0)) -> 378 | U2: 1
B3: Event | C3: =IF($D$5="","",IF(INDEX(FrontPage!C$20:C$50,MATCH(Round1!$N$3,FrontPage!A$20:A$50,0),1)="",$D$5,INDEX(FrontPage!C$20:C$50,MATCH(Round1!$N$3,FrontPage!A$20:A$50,0),1))) -> Steeplechase | N3: 3002 | U3: 8
B4: Category | C4: =INDEX(FrontPage!D$20:D$50,MATCH(Round1!$N$3,FrontPage!A$20:A$50,0),1) -> F | I4: Lane pref | L4: Rounds | U4: 0
B5: Distance | C5: =IFERROR(IF(D5="","",VALUE(LEFT(D5,LEN(D5)-1))),0) -> 3000 | D5: =INDEX(FrontPage!B$20:B$50,MATCH(Round1!$N$3,FrontPage!A$20:A$50,0),1) -> 3000m | I5: =IF(C5>800,1,IF(FrontPage!$J$7=1,2,IF(FrontPage!$J$7=2,3,IF(FrontPage!$J$7=3,IF(C5>=100,4,2))))) -> 1 | L5: 1 | U5: 0 | W5: =IF(L5<>1,U2*U4+U5&" athletes in next round","") -> 
A7: =IFERROR(INDEX(FrontPage!I$20:I$50,MATCH(Round1!N3,FrontPage!A$20:A$50,0),1),"") -> 3000m Steeplechase Women | B7: Athlete number imported from the Athletes sheet | C7: Team Code | D7: Random number based on the team and the athlete number | E7: COPY & PASTE | F7: COPY & PASTE | G7: COPY & PASTE | H7: Heat Number (uses no of races) | I7: Heat & Lane (uses lane preference) | J7: Set up the heats | K7: Uses no of heats and max no of athletes | L7: Create Code
A8: =COUNT(B11:B171)&" athletes" -> 2 athletes | E8: From Column B | F8: From Column C | G8: From Column D
D9: If only one race then do not use the team
A10: Override | L10: =10000*$N$3+100 -> 30020100 | M10: Evt | N10: =$N$3 -> 3002 | O10: =$A$7 -> 3000m Steeplechase Women | P10: ="Start Time "&INDEX(FrontPage!F$20:F$50,MATCH(Round1!$N$3,FrontPage!A$20:A$50,0),1) -> Start Time 16:00 | Q10: =$C$5 -> 3000 | R10: =$L5 -> 1 | S10: =$U2 -> 1 | T10: =$U3 -> 8
B11: =IFERROR(IF(Athletes!A4="","",IF(AND(Athletes!F4=$C$4,INDEX(Athletes!$G4:$Z4,1,MATCH($C$3,Athletes!$G$3:$Z$3,0))<>""),Athletes!A4,"")),"") ->  | C11: =IF(B11="","",INDEX(Athletes!$A$4:$E$1003,MATCH(B11,Athletes!$A$4:$A$1003,0),4)) ->  | D11: =IF(B11="","",ABS(SIN(B11))+IF($U$2=1,0,INDEX(Athletes!$AH$4:$AH$102,MATCH($C11,Athletes!$AE$4:$AE$102,0),1))) ->  | E11: 989 | F11: s | G11: 0.5660330878 | H11: =IF(E11="","",1) -> 1 | I11: =IF(E11="","",100*H11+IFERROR(INDEX(FrontPage!$AA$3:$AD$10,MATCH(COUNTIF(H$11:H11,H11),FrontPage!$AA$3:$AA$10,0),$I$5),COUNTIF(H$11:H11,H11))) -> 101 | J11: =IF(ROW()-11>$U$2*($U$3+2)-1,"",IF(MOD(ROW()-11,$U$3+2)=0,MAX(J$10:J10)+1,"")) -> 1 | K11: =IF(ROW()-11>$U$2*($U$3+2)-1,"",IF(MOD(ROW()-11,$U$3+2)=0,$N$3*10000+100+J11,IF(MOD(ROW()-11,$U$3+2)=$U$3+1,"Empty",(MOD(ROW()-11,$U$3+2))))) -> 30020101 | L11: =IF($J11<>"",$K11,IF($K11="","",IF($K11="Empty",MAX($K$11:$K11)+0.99,MAX($K$11:$K11)+0.01*$K11))) -> 30020101 | M11: =IF($J11<>"","La",IF($K11="","",IF($K11="Empty","-",$K11))) -> La | N11: =IF(J11<>"","Bib",IF(OR($K11="",K11="Empty"),"",IF(A11="",IFERROR(INDEX($E$11:$E$171,MATCH(100*MAX(J$11:J11)+M11,$I$11:$I$171,0),1),""),A11))) -> Bib | O11: =IF($J11<>"",$A$7,IF(OR($K11="",$K11="Empty",N11=""),"",INDEX(Athletes!$A$4:$E$1003,MATCH(N11,Athletes!$A$4:$A$1003,0),2)&" "& INDEX(Athletes!$A$4:$E$1003,MATCH(N11,Athletes!$A$4:$A$1003,0),3))) -> 3000m Steeplechase Women | P11: =IF($J11<>"",IF($L$5=1,"Final ","Heat ")&IF(AND($L$5=1,$U$2=1),"",$J11&" of "&$U$2),IF(OR($K11="",$K11="Empty",N11=""),"",INDEX(Athletes!$A$4:$E$1003,MATCH(N11,Athletes!$A$4:$A$1003,0),5))) -> Final | Q11: =IF($J11<>"",IF($L$5=1,"","First"),"") ->  | R11: =IF($J11<>"",IF($L$5=1,"",$U$4),"") ->  | S11: =IF($J11<>"",IF($L$5=1,"","plus "),"") ->  | T11: =IF($J11<>"",IF($L$5=1,"",$U$5),"") -> 
B12: =IFERROR(IF(Athletes!A5="","",IF(AND(Athletes!F5=$C$4,INDEX(Athletes!$G5:$Z5,1,MATCH($C$3,Athletes!$G$3:$Z$3,0))<>""),Athletes!A5,"")),"") ->  | C12: =IF(B12="","",INDEX(Athletes!$A$4:$E$1003,MATCH(B12,Athletes!$A$4:$A$1003,0),4)) ->  | D12: =IF(B12="","",ABS(SIN(B12))+IF($U$2=1,0,INDEX(Athletes!$AH$4:$AH$102,MATCH($C12,Athletes!$AE$4:$AE$102,0),1))) ->  | E12: 997 | F12: g | G12: 0.8979674805 | H12: =IF(E12="","",IF($L$5=1,1,IF(H11=$U$2,1,H11+1))) -> 1 | I12: =IF(E12="","",100*H12+IFERROR(INDEX(FrontPage!$AA$3:$AD$10,MATCH(COUNTIF(H$11:H12,H12),FrontPage!$AA$3:$AA$10,0),$I$5),COUNTIF(H$11:H12,H12))) -> 102 | J12: =IF(ROW()-11>$U$2*($U$3+2)-1,"",IF(MOD(ROW()-11,$U$3+2)=0,MAX(J$10:J11)+1,"")) ->  | K12: 1 | L12: =IF($J12<>"",$K12,IF($K12="","",IF($K12="Empty",MAX($K$11:$K12)+0.99,MAX($K$11:$K12)+0.01*$K12))) -> 30020101.01 | M12: =IF($J12<>"","La",IF($K12="","",IF($K12="Empty","-",$K12))) -> 1 | N12: =IF(J12<>"","Bib",IF(OR($K12="",K12="Empty"),"",IF(A12="",IFERROR(INDEX($E$11:$E$171,MATCH(100*MAX(J$11:J12)+M12,$I$11:$I$171,0),1),""),A12))) -> 989 | O12: =IF($J12<>"",$A$7,IF(OR($K12="",$K12="Empty",N12=""),"",INDEX(Athletes!$A$4:$E$1003,MATCH(N12,Athletes!$A$4:$A$1003,0),2)&" "& INDEX(Athletes!$A$4:$E$1003,MATCH(N12,Athletes!$A$4:$A$1003,0),3))) -> Danielle Beattie | P12: =IF($J12<>"",IF($L$5=1,"Final ","Heat ")&IF(AND($L$5=1,$U$2=1),"",$J12&" of "&$U$2),IF(OR($K12="",$K12="Empty",N12=""),"",INDEX(Athletes!$A$4:$E$1003,MATCH(N12,Athletes!$A$4:$A$1003,0),5))) -> Stirling
B13: =IFERROR(IF(Athletes!A6="","",IF(AND(Athletes!F6=$C$4,INDEX(Athletes!$G6:$Z6,1,MATCH($C$3,Athletes!$G$3:$Z$3,0))<>""),Athletes!A6,"")),"") ->  | C13: =IF(B13="","",INDEX(Athletes!$A$4:$E$1003,MATCH(B13,Athletes!$A$4:$A$1003,0),4)) ->  | D13: =IF(B13="","",ABS(SIN(B13))+IF($U$2=1,0,INDEX(Athletes!$AH$4:$AH$102,MATCH($C13,Athletes!$AE$4:$AE$102,0),1))) ->  | E13: 988 | F13: e | G13: 0.9995229557 | H13: 1 | I13: =IF(E13="","",100*H13+IFERROR(INDEX(FrontPage!$AA$3:$AD$10,MATCH(COUNTIF(H$11:H13,H13),FrontPage!$AA$3:$AA$10,0),$I$5),COUNTIF(H$11:H13,H13))) -> 103 | J13: =IF(ROW()-11>$U$2*($U$3+2)-1,"",IF(MOD(ROW()-11,$U$3+2)=0,MAX(J$10:J12)+1,"")) ->  | K13: 2 | L13: =IF($J13<>"",$K13,IF($K13="","",IF($K13="Empty",MAX($K$11:$K13)+0.99,MAX($K$11:$K13)+0.01*$K13))) -> 30020101.02 | M13: 2 | N13: =IF(J13<>"","Bib",IF(OR($K13="",K13="Empty"),"",IF(A13="",IFERROR(INDEX($E$11:$E$171,MATCH(100*MAX(J$11:J13)+M13,$I$11:$I$171,0),1),""),A13))) -> 997 | O13: =IF($J13<>"",$A$7,IF(OR($K13="",$K13="Empty",N13=""),"",INDEX(Athletes!$A$4:$E$1003,MATCH(N13,Athletes!$A$4:$A$1003,0),2)&" "& INDEX(Athletes!$A$4:$E$1003,MATCH(N13,Athletes!$A$4:$A$1003,0),3))) -> Joanna Patterson | P13: =IF($J13<>"",IF($L$5=1,"Final ","Heat ")&IF(AND($L$5=1,$U$2=1),"",$J13&" of "&$U$2),IF(OR($K13="",$K13="Empty",N13=""),"",INDEX(Athletes!$A$4:$E$1003,MATCH(N13,Athletes!$A$4:$A$1003,0),5))) -> Glasgow
B14: =IFERROR(IF(Athletes!A7="","",IF(AND(Athletes!F7=$C$4,INDEX(Athletes!$G7:$Z7,1,MATCH($C$3,Athletes!$G$3:$Z$3,0))<>""),Athletes!A7,"")),"") ->  | C14: =IF(B14="","",INDEX(Athletes!$A$4:$E$1003,MATCH(B14,Athletes!$A$4:$A$1003,0),4)) ->  | D14: =IF(B14="","",ABS(SIN(B14))+IF($U$2=1,0,INDEX(Athletes!$AH$4:$AH$102,MATCH($C14,Athletes!$AE$4:$AE$102,0),1))) ->  | I14: =IF(E14="","",100*H14+IFERROR(INDEX(FrontPage!$AA$3:$AD$10,MATCH(COUNTIF(H$11:H14,H14),FrontPage!$AA$3:$AA$10,0),$I$5),COUNTIF(H$11:H14,H14))) ->  | J14: =IF(ROW()-11>$U$2*($U$3+2)-1,"",IF(MOD(ROW()-11,$U$3+2)=0,MAX(J$10:J13)+1,"")) ->  | K14: 3 | L14: =IF($J14<>"",$K14,IF($K14="","",IF($K14="Empty",MAX($K$11:$K14)+0.99,MAX($K$11:$K14)+0.01*$K14))) -> 30020101.03 | M14: 3 | N14: =IF(J14<>"","Bib",IF(OR($K14="",K14="Empty"),"",IF(A14="",IFERROR(INDEX($E$11:$E$171,MATCH(100*MAX(J$11:J14)+M14,$I$11:$I$171,0),1),""),A14))) -> 988 | O14: =IF($J14<>"",$A$7,IF(OR($K14="",$K14="Empty",N14=""),"",INDEX(Athletes!$A$4:$E$1003,MATCH(N14,Athletes!$A$4:$A$1003,0),2)&" "& INDEX(Athletes!$A$4:$E$1003,MATCH(N14,Athletes!$A$4:$A$1003,0),3))) -> Sarah Douglas | P14: =IF($J14<>"",IF($L$5=1,"Final ","Heat ")&IF(AND($L$5=1,$U$2=1),"",$J14&" of "&$U$2),IF(OR($K14="",$K14="Empty",N14=""),"",INDEX(Athletes!$A$4:$E$1003,MATCH(N14,Athletes!$A$4:$A$1003,0),5))) -> Edinburgh
B15: =IFERROR(IF(Athletes!A8="","",IF(AND(Athletes!F8=$C$4,INDEX(Athletes!$G8:$Z8,1,MATCH($C$3,Athletes!$G$3:$Z$3,0))<>""),Athletes!A8,"")),"") ->  | C15: =IF(B15="","",INDEX(Athletes!$A$4:$E$1003,MATCH(B15,Athletes!$A$4:$A$1003,0),4)) ->  | D15: =IF(B15="","",ABS(SIN(B15))+IF($U$2=1,0,INDEX(Athletes!$AH$4:$AH$102,MATCH($C15,Athletes!$AE$4:$AE$102,0),1))) ->  | I15: =IF(E15="","",100*H15+IFERROR(INDEX(FrontPage!$AA$3:$AD$10,MATCH(COUNTIF(H$11:H15,H15),FrontPage!$AA$3:$AA$10,0),$I$5),COUNTIF(H$11:H15,H15))) ->  | J15: =IF(ROW()-11>$U$2*($U$3+2)-1,"",IF(MOD(ROW()-11,$U$3+2)=0,MAX(J$10:J14)+1,"")) ->  | K15: 4 | L15: =IF($J15<>"",$K15,IF($K15="","",IF($K15="Empty",MAX($K$11:$K15)+0.99,MAX($K$11:$K15)+0.01*$K15))) -> 30020101.04 | M15: 4 | N15: =IF(J15<>"","Bib",IF(OR($K15="",K15="Empty"),"",IF(A15="",IFERROR(INDEX($E$11:$E$171,MATCH(100*MAX(J$11:J15)+M15,$I$11:$I$171,0),1),""),A15))) ->  | O15: =IF($J15<>"",$A$7,IF(OR($K15="",$K15="Empty",N15=""),"",INDEX(Athletes!$A$4:$E$1003,MATCH(N15,Athletes!$A$4:$A$1003,0),2)&" "& INDEX(Athletes!$A$4:$E$1003,MATCH(N15,Athletes!$A$4:$A$1003,0),3))) ->  | P15: =IF($J15<>"",IF($L$5=1,"Final ","Heat ")&IF(AND($L$5=1,$U$2=1),"",$J15&" of "&$U$2),IF(OR($K15="",$K15="Empty",N15=""),"",INDEX(Athletes!$A$4:$E$1003,MATCH(N15,Athletes!$A$4:$A$1003,0),5))) -> 
B16: =IFERROR(IF(Athletes!A9="","",IF(AND(Athletes!F9=$C$4,INDEX(Athletes!$G9:$Z9,1,MATCH($C$3,Athletes!$G$3:$Z$3,0))<>""),Athletes!A9,"")),"") ->  | C16: =IF(B16="","",INDEX(Athletes!$A$4:$E$1003,MATCH(B16,Athletes!$A$4:$A$1003,0),4)) ->  | D16: =IF(B16="","",ABS(SIN(B16))+IF($U$2=1,0,INDEX(Athletes!$AH$4:$AH$102,MATCH($C16,Athletes!$AE$4:$AE$102,0),1))) ->  | I16: =IF(E16="","",100*H16+IFERROR(INDEX(FrontPage!$AA$3:$AD$10,MATCH(COUNTIF(H$11:H16,H16),FrontPage!$AA$3:$AA$10,0),$I$5),COUNTIF(H$11:H16,H16))) ->  | J16: =IF(ROW()-11>$U$2*($U$3+2)-1,"",IF(MOD(ROW()-11,$U$3+2)=0,MAX(J$10:J15)+1,"")) ->  | K16: 5 | L16: =IF($J16<>"",$K16,IF($K16="","",IF($K16="Empty",MAX($K$11:$K16)+0.99,MAX($K$11:$K16)+0.01*$K16))) -> 30020101.05 | M16: 5 | N16: =IF(J16<>"","Bib",IF(OR($K16="",K16="Empty"),"",IF(A16="",IFERROR(INDEX($E$11:$E$171,MATCH(100*MAX(J$11:J16)+M16,$I$11:$I$171,0),1),""),A16))) ->  | O16: =IF($J16<>"",$A$7,IF(OR($K16="",$K16="Empty",N16=""),"",INDEX(Athletes!$A$4:$E$1003,MATCH(N16,Athletes!$A$4:$A$1003,0),2)&" "& INDEX(Athletes!$A$4:$E$1003,MATCH(N16,Athletes!$A$4:$A$1003,0),3))) ->  | P16: =IF($J16<>"",IF($L$5=1,"Final ","Heat ")&IF(AND($L$5=1,$U$2=1),"",$J16&" of "&$U$2),IF(OR($K16="",$K16="Empty",N16=""),"",INDEX(Athletes!$A$4:$E$1003,MATCH(N16,Athletes!$A$4:$A$1003,0),5))) -> 
B17: =IFERROR(IF(Athletes!A10="","",IF(AND(Athletes!F10=$C$4,INDEX(Athletes!$G10:$Z10,1,MATCH($C$3,Athletes!$G$3:$Z$3,0))<>""),Athletes!A10,"")),"") ->  | C17: =IF(B17="","",INDEX(Athletes!$A$4:$E$1003,MATCH(B17,Athletes!$A$4:$A$1003,0),4)) ->  | D17: =IF(B17="","",ABS(SIN(B17))+IF($U$2=1,0,INDEX(Athletes!$AH$4:$AH$102,MATCH($C17,Athletes!$AE$4:$AE$102,0),1))) ->  | I17: =IF(E17="","",100*H17+IFERROR(INDEX(FrontPage!$AA$3:$AD$10,MATCH(COUNTIF(H$11:H17,H17),FrontPage!$AA$3:$AA$10,0),$I$5),COUNTIF(H$11:H17,H17))) ->  | J17: =IF(ROW()-11>$U$2*($U$3+2)-1,"",IF(MOD(ROW()-11,$U$3+2)=0,MAX(J$10:J16)+1,"")) ->  | K17: 6 | L17: =IF($J17<>"",$K17,IF($K17="","",IF($K17="Empty",MAX($K$11:$K17)+0.99,MAX($K$11:$K17)+0.01*$K17))) -> 30020101.06 | M17: 6 | N17: =IF(J17<>"","Bib",IF(OR($K17="",K17="Empty"),"",IF(A17="",IFERROR(INDEX($E$11:$E$171,MATCH(100*MAX(J$11:J17)+M17,$I$11:$I$171,0),1),""),A17))) ->  | O17: =IF($J17<>"",$A$7,IF(OR($K17="",$K17="Empty",N17=""),"",INDEX(Athletes!$A$4:$E$1003,MATCH(N17,Athletes!$A$4:$A$1003,0),2)&" "& INDEX(Athletes!$A$4:$E$1003,MATCH(N17,Athletes!$A$4:$A$1003,0),3))) ->  | P17: =IF($J17<>"",IF($L$5=1,"Final ","Heat ")&IF(AND($L$5=1,$U$2=1),"",$J17&" of "&$U$2),IF(OR($K17="",$K17="Empty",N17=""),"",INDEX(Athletes!$A$4:$E$1003,MATCH(N17,Athletes!$A$4:$A$1003,0),5))) -> 
B18: =IFERROR(IF(Athletes!A11="","",IF(AND(Athletes!F11=$C$4,INDEX(Athletes!$G11:$Z11,1,MATCH($C$3,Athletes!$G$3:$Z$3,0))<>""),Athletes!A11,"")),"") ->  | C18: =IF(B18="","",INDEX(Athletes!$A$4:$E$1003,MATCH(B18,Athletes!$A$4:$A$1003,0),4)) ->  | D18: =IF(B18="","",ABS(SIN(B18))+IF($U$2=1,0,INDEX(Athletes!$AH$4:$AH$102,MATCH($C18,Athletes!$AE$4:$AE$102,0),1))) ->  | I18: =IF(E18="","",100*H18+IFERROR(INDEX(FrontPage!$AA$3:$AD$10,MATCH(COUNTIF(H$11:H18,H18),FrontPage!$AA$3:$AA$10,0),$I$5),COUNTIF(H$11:H18,H18))) ->  | J18: =IF(ROW()-11>$U$2*($U$3+2)-1,"",IF(MOD(ROW()-11,$U$3+2)=0,MAX(J$10:J17)+1,"")) ->  | K18: 7 | L18: =IF($J18<>"",$K18,IF($K18="","",IF($K18="Empty",MAX($K$11:$K18)+0.99,MAX($K$11:$K18)+0.01*$K18))) -> 30020101.07 | M18: 7 | N18: =IF(J18<>"","Bib",IF(OR($K18="",K18="Empty"),"",IF(A18="",IFERROR(INDEX($E$11:$E$171,MATCH(100*MAX(J$11:J18)+M18,$I$11:$I$171,0),1),""),A18))) ->  | O18: =IF($J18<>"",$A$7,IF(OR($K18="",$K18="Empty",N18=""),"",INDEX(Athletes!$A$4:$E$1003,MATCH(N18,Athletes!$A$4:$A$1003,0),2)&" "& INDEX(Athletes!$A$4:$E$1003,MATCH(N18,Athletes!$A$4:$A$1003,0),3))) ->  | P18: =IF($J18<>"",IF($L$5=1,"Final ","Heat ")&IF(AND($L$5=1,$U$2=1),"",$J18&" of "&$U$2),IF(OR($K18="",$K18="Empty",N18=""),"",INDEX(Athletes!$A$4:$E$1003,MATCH(N18,Athletes!$A$4:$A$1003,0),5))) -> 
B19: =IFERROR(IF(Athletes!A12="","",IF(AND(Athletes!F12=$C$4,INDEX(Athletes!$G12:$Z12,1,MATCH($C$3,Athletes!$G$3:$Z$3,0))<>""),Athletes!A12,"")),"") ->  | C19: =IF(B19="","",INDEX(Athletes!$A$4:$E$1003,MATCH(B19,Athletes!$A$4:$A$1003,0),4)) ->  | D19: =IF(B19="","",ABS(SIN(B19))+IF($U$2=1,0,INDEX(Athletes!$AH$4:$AH$102,MATCH($C19,Athletes!$AE$4:$AE$102,0),1))) ->  | I19: =IF(E19="","",100*H19+IFERROR(INDEX(FrontPage!$AA$3:$AD$10,MATCH(COUNTIF(H$11:H19,H19),FrontPage!$AA$3:$AA$10,0),$I$5),COUNTIF(H$11:H19,H19))) ->  | J19: =IF(ROW()-11>$U$2*($U$3+2)-1,"",IF(MOD(ROW()-11,$U$3+2)=0,MAX(J$10:J18)+1,"")) ->  | K19: 8 | L19: =IF($J19<>"",$K19,IF($K19="","",IF($K19="Empty",MAX($K$11:$K19)+0.99,MAX($K$11:$K19)+0.01*$K19))) -> 30020101.08 | M19: 8 | N19: =IF(J19<>"","Bib",IF(OR($K19="",K19="Empty"),"",IF(A19="",IFERROR(INDEX($E$11:$E$171,MATCH(100*MAX(J$11:J19)+M19,$I$11:$I$171,0),1),""),A19))) ->  | O19: =IF($J19<>"",$A$7,IF(OR($K19="",$K19="Empty",N19=""),"",INDEX(Athletes!$A$4:$E$1003,MATCH(N19,Athletes!$A$4:$A$1003,0),2)&" "& INDEX(Athletes!$A$4:$E$1003,MATCH(N19,Athletes!$A$4:$A$1003,0),3))) ->  | P19: =IF($J19<>"",IF($L$5=1,"Final ","Heat ")&IF(AND($L$5=1,$U$2=1),"",$J19&" of "&$U$2),IF(OR($K19="",$K19="Empty",N19=""),"",INDEX(Athletes!$A$4:$E$1003,MATCH(N19,Athletes!$A$4:$A$1003,0),5))) -> 
B20: =IFERROR(IF(Athletes!A13="","",IF(AND(Athletes!F13=$C$4,INDEX(Athletes!$G13:$Z13,1,MATCH($C$3,Athletes!$G$3:$Z$3,0))<>""),Athletes!A13,"")),"") ->  | C20: =IF(B20="","",INDEX(Athletes!$A$4:$E$1003,MATCH(B20,Athletes!$A$4:$A$1003,0),4)) ->  | D20: =IF(B20="","",ABS(SIN(B20))+IF($U$2=1,0,INDEX(Athletes!$AH$4:$AH$102,MATCH($C20,Athletes!$AE$4:$AE$102,0),1))) ->  | I20: =IF(E20="","",100*H20+IFERROR(INDEX(FrontPage!$AA$3:$AD$10,MATCH(COUNTIF(H$11:H20,H20),FrontPage!$AA$3:$AA$10,0),$I$5),COUNTIF(H$11:H20,H20))) ->  | J20: =IF(ROW()-11>$U$2*($U$3+2)-1,"",IF(MOD(ROW()-11,$U$3+2)=0,MAX(J$10:J19)+1,"")) ->  | K20: Empty | L20: =IF($J20<>"",$K20,IF($K20="","",IF($K20="Empty",MAX($K$11:$K20)+0.99,MAX($K$11:$K20)+0.01*$K20))) -> 30020101.99 | M20: - | N20: =IF(J20<>"","Bib",IF(OR($K20="",K20="Empty"),"",IF(A20="",IFERROR(INDEX($E$11:$E$171,MATCH(100*MAX(J$11:J20)+M20,$I$11:$I$171,0),1),""),A20))) ->  | O20: =IF($J20<>"",$A$7,IF(OR($K20="",$K20="Empty",N20=""),"",INDEX(Athletes!$A$4:$E$1003,MATCH(N20,Athletes!$A$4:$A$1003,0),2)&" "& INDEX(Athletes!$A$4:$E$1003,MATCH(N20,Athletes!$A$4:$A$1003,0),3))) ->  | P20: =IF($J20<>"",IF($L$5=1,"Final ","Heat ")&IF(AND($L$5=1,$U$2=1),"",$J20&" of "&$U$2),IF(OR($K20="",$K20="Empty",N20=""),"",INDEX(Athletes!$A$4:$E$1003,MATCH(N20,Athletes!$A$4:$A$1003,0),5))) -> 
B21: =IFERROR(IF(Athletes!A14="","",IF(AND(Athletes!F14=$C$4,INDEX(Athletes!$G14:$Z14,1,MATCH($C$3,Athletes!$G$3:$Z$3,0))<>""),Athletes!A14,"")),"") ->  | C21: =IF(B21="","",INDEX(Athletes!$A$4:$E$1003,MATCH(B21,Athletes!$A$4:$A$1003,0),4)) ->  | D21: =IF(B21="","",ABS(SIN(B21))+IF($U$2=1,0,INDEX(Athletes!$AH$4:$AH$102,MATCH($C21,Athletes!$AE$4:$AE$102,0),1))) ->  | I21: =IF(E21="","",100*H21+IFERROR(INDEX(FrontPage!$AA$3:$AD$10,MATCH(COUNTIF(H$11:H21,H21),FrontPage!$AA$3:$AA$10,0),$I$5),COUNTIF(H$11:H21,H21))) ->  | J21: =IF(ROW()-11>$U$2*($U$3+2)-1,"",IF(MOD(ROW()-11,$U$3+2)=0,MAX(J$10:J20)+1,"")) ->  | L21: =IF($J21<>"",$K21,IF($K21="","",IF($K21="Empty",MAX($K$11:$K21)+0.99,MAX($K$11:$K21)+0.01*$K21))) ->  | N21: =IF(J21<>"","Bib",IF(OR($K21="",K21="Empty"),"",IF(A21="",IFERROR(INDEX($E$11:$E$171,MATCH(100*MAX(J$11:J21)+M21,$I$11:$I$171,0),1),""),A21))) ->  | O21: =IF($J21<>"",$A$7,IF(OR($K21="",$K21="Empty",N21=""),"",INDEX(Athletes!$A$4:$E$1003,MATCH(N21,Athletes!$A$4:$A$1003,0),2)&" "& INDEX(Athletes!$A$4:$E$1003,MATCH(N21,Athletes!$A$4:$A$1003,0),3))) ->  | P21: =IF($J21<>"",IF($L$5=1,"Final ","Heat ")&IF(AND($L$5=1,$U$2=1),"",$J21&" of "&$U$2),IF(OR($K21="",$K21="Empty",N21=""),"",INDEX(Athletes!$A$4:$E$1003,MATCH(N21,Athletes!$A$4:$A$1003,0),5))) -> 
B22: =IFERROR(IF(Athletes!A15="","",IF(AND(Athletes!F15=$C$4,INDEX(Athletes!$G15:$Z15,1,MATCH($C$3,Athletes!$G$3:$Z$3,0))<>""),Athletes!A15,"")),"") ->  | C22: =IF(B22="","",INDEX(Athletes!$A$4:$E$1003,MATCH(B22,Athletes!$A$4:$A$1003,0),4)) ->  | D22: =IF(B22="","",ABS(SIN(B22))+IF($U$2=1,0,INDEX(Athletes!$AH$4:$AH$102,MATCH($C22,Athletes!$AE$4:$AE$102,0),1))) ->  | I22: =IF(E22="","",100*H22+IFERROR(INDEX(FrontPage!$AA$3:$AD$10,MATCH(COUNTIF(H$11:H22,H22),FrontPage!$AA$3:$AA$10,0),$I$5),COUNTIF(H$11:H22,H22))) ->  | J22: =IF(ROW()-11>$U$2*($U$3+2)-1,"",IF(MOD(ROW()-11,$U$3+2)=0,MAX(J$10:J21)+1,"")) ->  | L22: =IF($J22<>"",$K22,IF($K22="","",IF($K22="Empty",MAX($K$11:$K22)+0.99,MAX($K$11:$K22)+0.01*$K22))) ->  | N22: =IF(J22<>"","Bib",IF(OR($K22="",K22="Empty"),"",IF(A22="",IFERROR(INDEX($E$11:$E$171,MATCH(100*MAX(J$11:J22)+M22,$I$11:$I$171,0),1),""),A22))) ->  | O22: =IF($J22<>"",$A$7,IF(OR($K22="",$K22="Empty",N22=""),"",INDEX(Athletes!$A$4:$E$1003,MATCH(N22,Athletes!$A$4:$A$1003,0),2)&" "& INDEX(Athletes!$A$4:$E$1003,MATCH(N22,Athletes!$A$4:$A$1003,0),3))) ->  | P22: =IF($J22<>"",IF($L$5=1,"Final ","Heat ")&IF(AND($L$5=1,$U$2=1),"",$J22&" of "&$U$2),IF(OR($K22="",$K22="Empty",N22=""),"",INDEX(Athletes!$A$4:$E$1003,MATCH(N22,Athletes!$A$4:$A$1003,0),5))) -> 
B23: =IFERROR(IF(Athletes!A16="","",IF(AND(Athletes!F16=$C$4,INDEX(Athletes!$G16:$Z16,1,MATCH($C$3,Athletes!$G$3:$Z$3,0))<>""),Athletes!A16,"")),"") ->  | C23: =IF(B23="","",INDEX(Athletes!$A$4:$E$1003,MATCH(B23,Athletes!$A$4:$A$1003,0),4)) ->  | D23: =IF(B23="","",ABS(SIN(B23))+IF($U$2=1,0,INDEX(Athletes!$AH$4:$AH$102,MATCH($C23,Athletes!$AE$4:$AE$102,0),1))) ->  | I23: =IF(E23="","",100*H23+IFERROR(INDEX(FrontPage!$AA$3:$AD$10,MATCH(COUNTIF(H$11:H23,H23),FrontPage!$AA$3:$AA$10,0),$I$5),COUNTIF(H$11:H23,H23))) ->  | J23: =IF(ROW()-11>$U$2*($U$3+2)-1,"",IF(MOD(ROW()-11,$U$3+2)=0,MAX(J$10:J22)+1,"")) ->  | L23: =IF($J23<>"",$K23,IF($K23="","",IF($K23="Empty",MAX($K$11:$K23)+0.99,MAX($K$11:$K23)+0.01*$K23))) ->  | N23: =IF(J23<>"","Bib",IF(OR($K23="",K23="Empty"),"",IF(A23="",IFERROR(INDEX($E$11:$E$171,MATCH(100*MAX(J$11:J23)+M23,$I$11:$I$171,0),1),""),A23))) ->  | O23: =IF($J23<>"",$A$7,IF(OR($K23="",$K23="Empty",N23=""),"",INDEX(Athletes!$A$4:$E$1003,MATCH(N23,Athletes!$A$4:$A$1003,0),2)&" "& INDEX(Athletes!$A$4:$E$1003,MATCH(N23,Athletes!$A$4:$A$1003,0),3))) ->  | P23: =IF($J23<>"",IF($L$5=1,"Final ","Heat ")&IF(AND($L$5=1,$U$2=1),"",$J23&" of "&$U$2),IF(OR($K23="",$K23="Empty",N23=""),"",INDEX(Athletes!$A$4:$E$1003,MATCH(N23,Athletes!$A$4:$A$1003,0),5))) -> 
B24: =IFERROR(IF(Athletes!A17="","",IF(AND(Athletes!F17=$C$4,INDEX(Athletes!$G17:$Z17,1,MATCH($C$3,Athletes!$G$3:$Z$3,0))<>""),Athletes!A17,"")),"") ->  | C24: =IF(B24="","",INDEX(Athletes!$A$4:$E$1003,MATCH(B24,Athletes!$A$4:$A$1003,0),4)) ->  | D24: =IF(B24="","",ABS(SIN(B24))+IF($U$2=1,0,INDEX(Athletes!$AH$4:$AH$102,MATCH($C24,Athletes!$AE$4:$AE$102,0),1))) ->  | I24: =IF(E24="","",100*H24+IFERROR(INDEX(FrontPage!$AA$3:$AD$10,MATCH(COUNTIF(H$11:H24,H24),FrontPage!$AA$3:$AA$10,0),$I$5),COUNTIF(H$11:H24,H24))) ->  | J24: =IF(ROW()-11>$U$2*($U$3+2)-1,"",IF(MOD(ROW()-11,$U$3+2)=0,MAX(J$10:J23)+1,"")) ->  | L24: =IF($J24<>"",$K24,IF($K24="","",IF($K24="Empty",MAX($K$11:$K24)+0.99,MAX($K$11:$K24)+0.01*$K24))) ->  | N24: =IF(J24<>"","Bib",IF(OR($K24="",K24="Empty"),"",IF(A24="",IFERROR(INDEX($E$11:$E$171,MATCH(100*MAX(J$11:J24)+M24,$I$11:$I$171,0),1),""),A24))) ->  | O24: =IF($J24<>"",$A$7,IF(OR($K24="",$K24="Empty",N24=""),"",INDEX(Athletes!$A$4:$E$1003,MATCH(N24,Athletes!$A$4:$A$1003,0),2)&" "& INDEX(Athletes!$A$4:$E$1003,MATCH(N24,Athletes!$A$4:$A$1003,0),3))) ->  | P24: =IF($J24<>"",IF($L$5=1,"Final ","Heat ")&IF(AND($L$5=1,$U$2=1),"",$J24&" of "&$U$2),IF(OR($K24="",$K24="Empty",N24=""),"",INDEX(Athletes!$A$4:$E$1003,MATCH(N24,Athletes!$A$4:$A$1003,0),5))) -> 
B25: =IFERROR(IF(Athletes!A18="","",IF(AND(Athletes!F18=$C$4,INDEX(Athletes!$G18:$Z18,1,MATCH($C$3,Athletes!$G$3:$Z$3,0))<>""),Athletes!A18,"")),"") ->  | C25: =IF(B25="","",INDEX(Athletes!$A$4:$E$1003,MATCH(B25,Athletes!$A$4:$A$1003,0),4)) ->  | D25: =IF(B25="","",ABS(SIN(B25))+IF($U$2=1,0,INDEX(Athletes!$AH$4:$AH$102,MATCH($C25,Athletes!$AE$4:$AE$102,0),1))) ->  | I25: =IF(E25="","",100*H25+IFERROR(INDEX(FrontPage!$AA$3:$AD$10,MATCH(COUNTIF(H$11:H25,H25),FrontPage!$AA$3:$AA$10,0),$I$5),COUNTIF(H$11:H25,H25))) ->  | J25: =IF(ROW()-11>$U$2*($U$3+2)-1,"",IF(MOD(ROW()-11,$U$3+2)=0,MAX(J$10:J24)+1,"")) ->  | L25: =IF($J25<>"",$K25,IF($K25="","",IF($K25="Empty",MAX($K$11:$K25)+0.99,MAX($K$11:$K25)+0.01*$K25))) ->  | N25: =IF(J25<>"","Bib",IF(OR($K25="",K25="Empty"),"",IF(A25="",IFERROR(INDEX($E$11:$E$171,MATCH(100*MAX(J$11:J25)+M25,$I$11:$I$171,0),1),""),A25))) ->  | O25: =IF($J25<>"",$A$7,IF(OR($K25="",$K25="Empty",N25=""),"",INDEX(Athletes!$A$4:$E$1003,MATCH(N25,Athletes!$A$4:$A$1003,0),2)&" "& INDEX(Athletes!$A$4:$E$1003,MATCH(N25,Athletes!$A$4:$A$1003,0),3))) ->  | P25: =IF($J25<>"",IF($L$5=1,"Final ","Heat ")&IF(AND($L$5=1,$U$2=1),"",$J25&" of "&$U$2),IF(OR($K25="",$K25="Empty",N25=""),"",INDEX(Athletes!$A$4:$E$1003,MATCH(N25,Athletes!$A$4:$A$1003,0),5))) -> 
B26: =IFERROR(IF(Athletes!A19="","",IF(AND(Athletes!F19=$C$4,INDEX(Athletes!$G19:$Z19,1,MATCH($C$3,Athletes!$G$3:$Z$3,0))<>""),Athletes!A19,"")),"") ->  | C26: =IF(B26="","",INDEX(Athletes!$A$4:$E$1003,MATCH(B26,Athletes!$A$4:$A$1003,0),4)) ->  | D26: =IF(B26="","",ABS(SIN(B26))+IF($U$2=1,0,INDEX(Athletes!$AH$4:$AH$102,MATCH($C26,Athletes!$AE$4:$AE$102,0),1))) ->  | I26: =IF(E26="","",100*H26+IFERROR(INDEX(FrontPage!$AA$3:$AD$10,MATCH(COUNTIF(H$11:H26,H26),FrontPage!$AA$3:$AA$10,0),$I$5),COUNTIF(H$11:H26,H26))) ->  | J26: =IF(ROW()-11>$U$2*($U$3+2)-1,"",IF(MOD(ROW()-11,$U$3+2)=0,MAX(J$10:J25)+1,"")) ->  | L26: =IF($J26<>"",$K26,IF($K26="","",IF($K26="Empty",MAX($K$11:$K26)+0.99,MAX($K$11:$K26)+0.01*$K26))) ->  | N26: =IF(J26<>"","Bib",IF(OR($K26="",K26="Empty"),"",IF(A26="",IFERROR(INDEX($E$11:$E$171,MATCH(100*MAX(J$11:J26)+M26,$I$11:$I$171,0),1),""),A26))) ->  | O26: =IF($J26<>"",$A$7,IF(OR($K26="",$K26="Empty",N26=""),"",INDEX(Athletes!$A$4:$E$1003,MATCH(N26,Athletes!$A$4:$A$1003,0),2)&" "& INDEX(Athletes!$A$4:$E$1003,MATCH(N26,Athletes!$A$4:$A$1003,0),3))) ->  | P26: =IF($J26<>"",IF($L$5=1,"Final ","Heat ")&IF(AND($L$5=1,$U$2=1),"",$J26&" of "&$U$2),IF(OR($K26="",$K26="Empty",N26=""),"",INDEX(Athletes!$A$4:$E$1003,MATCH(N26,Athletes!$A$4:$A$1003,0),5))) -> 
B27: =IFERROR(IF(Athletes!A20="","",IF(AND(Athletes!F20=$C$4,INDEX(Athletes!$G20:$Z20,1,MATCH($C$3,Athletes!$G$3:$Z$3,0))<>""),Athletes!A20,"")),"") ->  | C27: =IF(B27="","",INDEX(Athletes!$A$4:$E$1003,MATCH(B27,Athletes!$A$4:$A$1003,0),4)) ->  | D27: =IF(B27="","",ABS(SIN(B27))+IF($U$2=1,0,INDEX(Athletes!$AH$4:$AH$102,MATCH($C27,Athletes!$AE$4:$AE$102,0),1))) ->  | I27: =IF(E27="","",100*H27+IFERROR(INDEX(FrontPage!$AA$3:$AD$10,MATCH(COUNTIF(H$11:H27,H27),FrontPage!$AA$3:$AA$10,0),$I$5),COUNTIF(H$11:H27,H27))) ->  | J27: =IF(ROW()-11>$U$2*($U$3+2)-1,"",IF(MOD(ROW()-11,$U$3+2)=0,MAX(J$10:J26)+1,"")) ->  | L27: =IF($J27<>"",$K27,IF($K27="","",IF($K27="Empty",MAX($K$11:$K27)+0.99,MAX($K$11:$K27)+0.01*$K27))) ->  | N27: =IF(J27<>"","Bib",IF(OR($K27="",K27="Empty"),"",IF(A27="",IFERROR(INDEX($E$11:$E$171,MATCH(100*MAX(J$11:J27)+M27,$I$11:$I$171,0),1),""),A27))) ->  | O27: =IF($J27<>"",$A$7,IF(OR($K27="",$K27="Empty",N27=""),"",INDEX(Athletes!$A$4:$E$1003,MATCH(N27,Athletes!$A$4:$A$1003,0),2)&" "& INDEX(Athletes!$A$4:$E$1003,MATCH(N27,Athletes!$A$4:$A$1003,0),3))) ->  | P27: =IF($J27<>"",IF($L$5=1,"Final ","Heat ")&IF(AND($L$5=1,$U$2=1),"",$J27&" of "&$U$2),IF(OR($K27="",$K27="Empty",N27=""),"",INDEX(Athletes!$A$4:$E$1003,MATCH(N27,Athletes!$A$4:$A$1003,0),5))) -> 
B28: =IFERROR(IF(Athletes!A21="","",IF(AND(Athletes!F21=$C$4,INDEX(Athletes!$G21:$Z21,1,MATCH($C$3,Athletes!$G$3:$Z$3,0))<>""),Athletes!A21,"")),"") ->  | C28: =IF(B28="","",INDEX(Athletes!$A$4:$E$1003,MATCH(B28,Athletes!$A$4:$A$1003,0),4)) ->  | D28: =IF(B28="","",ABS(SIN(B28))+IF($U$2=1,0,INDEX(Athletes!$AH$4:$AH$102,MATCH($C28,Athletes!$AE$4:$AE$102,0),1))) ->  | I28: =IF(E28="","",100*H28+IFERROR(INDEX(FrontPage!$AA$3:$AD$10,MATCH(COUNTIF(H$11:H28,H28),FrontPage!$AA$3:$AA$10,0),$I$5),COUNTIF(H$11:H28,H28))) ->  | J28: =IF(ROW()-11>$U$2*($U$3+2)-1,"",IF(MOD(ROW()-11,$U$3+2)=0,MAX(J$10:J27)+1,"")) ->  | L28: =IF($J28<>"",$K28,IF($K28="","",IF($K28="Empty",MAX($K$11:$K28)+0.99,MAX($K$11:$K28)+0.01*$K28))) ->  | N28: =IF(J28<>"","Bib",IF(OR($K28="",K28="Empty"),"",IF(A28="",IFERROR(INDEX($E$11:$E$171,MATCH(100*MAX(J$11:J28)+M28,$I$11:$I$171,0),1),""),A28))) ->  | O28: =IF($J28<>"",$A$7,IF(OR($K28="",$K28="Empty",N28=""),"",INDEX(Athletes!$A$4:$E$1003,MATCH(N28,Athletes!$A$4:$A$1003,0),2)&" "& INDEX(Athletes!$A$4:$E$1003,MATCH(N28,Athletes!$A$4:$A$1003,0),3))) ->  | P28: =IF($J28<>"",IF($L$5=1,"Final ","Heat ")&IF(AND($L$5=1,$U$2=1),"",$J28&" of "&$U$2),IF(OR($K28="",$K28="Empty",N28=""),"",INDEX(Athletes!$A$4:$E$1003,MATCH(N28,Athletes!$A$4:$A$1003,0),5))) -> 
B29: =IFERROR(IF(Athletes!A22="","",IF(AND(Athletes!F22=$C$4,INDEX(Athletes!$G22:$Z22,1,MATCH($C$3,Athletes!$G$3:$Z$3,0))<>""),Athletes!A22,"")),"") ->  | C29: =IF(B29="","",INDEX(Athletes!$A$4:$E$1003,MATCH(B29,Athletes!$A$4:$A$1003,0),4)) ->  | D29: =IF(B29="","",ABS(SIN(B29))+IF($U$2=1,0,INDEX(Athletes!$AH$4:$AH$102,MATCH($C29,Athletes!$AE$4:$AE$102,0),1))) ->  | I29: =IF(E29="","",100*H29+IFERROR(INDEX(FrontPage!$AA$3:$AD$10,MATCH(COUNTIF(H$11:H29,H29),FrontPage!$AA$3:$AA$10,0),$I$5),COUNTIF(H$11:H29,H29))) ->  | J29: =IF(ROW()-11>$U$2*($U$3+2)-1,"",IF(MOD(ROW()-11,$U$3+2)=0,MAX(J$10:J28)+1,"")) ->  | L29: =IF($J29<>"",$K29,IF($K29="","",IF($K29="Empty",MAX($K$11:$K29)+0.99,MAX($K$11:$K29)+0.01*$K29))) ->  | N29: =IF(J29<>"","Bib",IF(OR($K29="",K29="Empty"),"",IF(A29="",IFERROR(INDEX($E$11:$E$171,MATCH(100*MAX(J$11:J29)+M29,$I$11:$I$171,0),1),""),A29))) ->  | O29: =IF($J29<>"",$A$7,IF(OR($K29="",$K29="Empty",N29=""),"",INDEX(Athletes!$A$4:$E$1003,MATCH(N29,Athletes!$A$4:$A$1003,0),2)&" "& INDEX(Athletes!$A$4:$E$1003,MATCH(N29,Athletes!$A$4:$A$1003,0),3))) ->  | P29: =IF($J29<>"",IF($L$5=1,"Final ","Heat ")&IF(AND($L$5=1,$U$2=1),"",$J29&" of "&$U$2),IF(OR($K29="",$K29="Empty",N29=""),"",INDEX(Athletes!$A$4:$E$1003,MATCH(N29,Athletes!$A$4:$A$1003,0),5))) -> 
B30: =IFERROR(IF(Athletes!A23="","",IF(AND(Athletes!F23=$C$4,INDEX(Athletes!$G23:$Z23,1,MATCH($C$3,Athletes!$G$3:$Z$3,0))<>""),Athletes!A23,"")),"") ->  | C30: =IF(B30="","",INDEX(Athletes!$A$4:$E$1003,MATCH(B30,Athletes!$A$4:$A$1003,0),4)) ->  | D30: =IF(B30="","",ABS(SIN(B30))+IF($U$2=1,0,INDEX(Athletes!$AH$4:$AH$102,MATCH($C30,Athletes!$AE$4:$AE$102,0),1))) ->  | I30: =IF(E30="","",100*H30+IFERROR(INDEX(FrontPage!$AA$3:$AD$10,MATCH(COUNTIF(H$11:H30,H30),FrontPage!$AA$3:$AA$10,0),$I$5),COUNTIF(H$11:H30,H30))) ->  | J30: =IF(ROW()-11>$U$2*($U$3+2)-1,"",IF(MOD(ROW()-11,$U$3+2)=0,MAX(J$10:J29)+1,"")) ->  | L30: =IF($J30<>"",$K30,IF($K30="","",IF($K30="Empty",MAX($K$11:$K30)+0.99,MAX($K$11:$K30)+0.01*$K30))) ->  | N30: =IF(J30<>"","Bib",IF(OR($K30="",K30="Empty"),"",IF(A30="",IFERROR(INDEX($E$11:$E$171,MATCH(100*MAX(J$11:J30)+M30,$I$11:$I$171,0),1),""),A30))) ->  | O30: =IF($J30<>"",$A$7,IF(OR($K30="",$K30="Empty",N30=""),"",INDEX(Athletes!$A$4:$E$1003,MATCH(N30,Athletes!$A$4:$A$1003,0),2)&" "& INDEX(Athletes!$A$4:$E$1003,MATCH(N30,Athletes!$A$4:$A$1003,0),3))) ->  | P30: =IF($J30<>"",IF($L$5=1,"Final ","Heat ")&IF(AND($L$5=1,$U$2=1),"",$J30&" of "&$U$2),IF(OR($K30="",$K30="Empty",N30=""),"",INDEX(Athletes!$A$4:$E$1003,MATCH(N30,Athletes!$A$4:$A$1003,0),5))) -> 
B31: =IFERROR(IF(Athletes!A24="","",IF(AND(Athletes!F24=$C$4,INDEX(Athletes!$G24:$Z24,1,MATCH($C$3,Athletes!$G$3:$Z$3,0))<>""),Athletes!A24,"")),"") ->  | C31: =IF(B31="","",INDEX(Athletes!$A$4:$E$1003,MATCH(B31,Athletes!$A$4:$A$1003,0),4)) ->  | D31: =IF(B31="","",ABS(SIN(B31))+IF($U$2=1,0,INDEX(Athletes!$AH$4:$AH$102,MATCH($C31,Athletes!$AE$4:$AE$102,0),1))) ->  | I31: =IF(E31="","",100*H31+IFERROR(INDEX(FrontPage!$AA$3:$AD$10,MATCH(COUNTIF(H$11:H31,H31),FrontPage!$AA$3:$AA$10,0),$I$5),COUNTIF(H$11:H31,H31))) ->  | J31: =IF(ROW()-11>$U$2*($U$3+2)-1,"",IF(MOD(ROW()-11,$U$3+2)=0,MAX(J$10:J30)+1,"")) ->  | L31: =IF($J31<>"",$K31,IF($K31="","",IF($K31="Empty",MAX($K$11:$K31)+0.99,MAX($K$11:$K31)+0.01*$K31))) ->  | N31: =IF(J31<>"","Bib",IF(OR($K31="",K31="Empty"),"",IF(A31="",IFERROR(INDEX($E$11:$E$171,MATCH(100*MAX(J$11:J31)+M31,$I$11:$I$171,0),1),""),A31))) ->  | O31: =IF($J31<>"",$A$7,IF(OR($K31="",$K31="Empty",N31=""),"",INDEX(Athletes!$A$4:$E$1003,MATCH(N31,Athletes!$A$4:$A$1003,0),2)&" "& INDEX(Athletes!$A$4:$E$1003,MATCH(N31,Athletes!$A$4:$A$1003,0),3))) ->  | P31: =IF($J31<>"",IF($L$5=1,"Final ","Heat ")&IF(AND($L$5=1,$U$2=1),"",$J31&" of "&$U$2),IF(OR($K31="",$K31="Empty",N31=""),"",INDEX(Athletes!$A$4:$E$1003,MATCH(N31,Athletes!$A$4:$A$1003,0),5))) -> 
B32: =IFERROR(IF(Athletes!A25="","",IF(AND(Athletes!F25=$C$4,INDEX(Athletes!$G25:$Z25,1,MATCH($C$3,Athletes!$G$3:$Z$3,0))<>""),Athletes!A25,"")),"") ->  | C32: =IF(B32="","",INDEX(Athletes!$A$4:$E$1003,MATCH(B32,Athletes!$A$4:$A$1003,0),4)) ->  | D32: =IF(B32="","",ABS(SIN(B32))+IF($U$2=1,0,INDEX(Athletes!$AH$4:$AH$102,MATCH($C32,Athletes!$AE$4:$AE$102,0),1))) ->  | I32: =IF(E32="","",100*H32+IFERROR(INDEX(FrontPage!$AA$3:$AD$10,MATCH(COUNTIF(H$11:H32,H32),FrontPage!$AA$3:$AA$10,0),$I$5),COUNTIF(H$11:H32,H32))) ->  | J32: =IF(ROW()-11>$U$2*($U$3+2)-1,"",IF(MOD(ROW()-11,$U$3+2)=0,MAX(J$10:J31)+1,"")) ->  | L32: =IF($J32<>"",$K32,IF($K32="","",IF($K32="Empty",MAX($K$11:$K32)+0.99,MAX($K$11:$K32)+0.01*$K32))) ->  | N32: =IF(J32<>"","Bib",IF(OR($K32="",K32="Empty"),"",IF(A32="",IFERROR(INDEX($E$11:$E$171,MATCH(100*MAX(J$11:J32)+M32,$I$11:$I$171,0),1),""),A32))) ->  | O32: =IF($J32<>"",$A$7,IF(OR($K32="",$K32="Empty",N32=""),"",INDEX(Athletes!$A$4:$E$1003,MATCH(N32,Athletes!$A$4:$A$1003,0),2)&" "& INDEX(Athletes!$A$4:$E$1003,MATCH(N32,Athletes!$A$4:$A$1003,0),3))) ->  | P32: =IF($J32<>"",IF($L$5=1,"Final ","Heat ")&IF(AND($L$5=1,$U$2=1),"",$J32&" of "&$U$2),IF(OR($K32="",$K32="Empty",N32=""),"",INDEX(Athletes!$A$4:$E$1003,MATCH(N32,Athletes!$A$4:$A$1003,0),5))) -> 
B33: =IFERROR(IF(Athletes!A26="","",IF(AND(Athletes!F26=$C$4,INDEX(Athletes!$G26:$Z26,1,MATCH($C$3,Athletes!$G$3:$Z$3,0))<>""),Athletes!A26,"")),"") ->  | C33: =IF(B33="","",INDEX(Athletes!$A$4:$E$1003,MATCH(B33,Athletes!$A$4:$A$1003,0),4)) ->  | D33: =IF(B33="","",ABS(SIN(B33))+IF($U$2=1,0,INDEX(Athletes!$AH$4:$AH$102,MATCH($C33,Athletes!$AE$4:$AE$102,0),1))) ->  | I33: =IF(E33="","",100*H33+IFERROR(INDEX(FrontPage!$AA$3:$AD$10,MATCH(COUNTIF(H$11:H33,H33),FrontPage!$AA$3:$AA$10,0),$I$5),COUNTIF(H$11:H33,H33))) ->  | J33: =IF(ROW()-11>$U$2*($U$3+2)-1,"",IF(MOD(ROW()-11,$U$3+2)=0,MAX(J$10:J32)+1,"")) ->  | L33: =IF($J33<>"",$K33,IF($K33="","",IF($K33="Empty",MAX($K$11:$K33)+0.99,MAX($K$11:$K33)+0.01*$K33))) ->  | N33: =IF(J33<>"","Bib",IF(OR($K33="",K33="Empty"),"",IF(A33="",IFERROR(INDEX($E$11:$E$171,MATCH(100*MAX(J$11:J33)+M33,$I$11:$I$171,0),1),""),A33))) ->  | O33: =IF($J33<>"",$A$7,IF(OR($K33="",$K33="Empty",N33=""),"",INDEX(Athletes!$A$4:$E$1003,MATCH(N33,Athletes!$A$4:$A$1003,0),2)&" "& INDEX(Athletes!$A$4:$E$1003,MATCH(N33,Athletes!$A$4:$A$1003,0),3))) ->  | P33: =IF($J33<>"",IF($L$5=1,"Final ","Heat ")&IF(AND($L$5=1,$U$2=1),"",$J33&" of "&$U$2),IF(OR($K33="",$K33="Empty",N33=""),"",INDEX(Athletes!$A$4:$E$1003,MATCH(N33,Athletes!$A$4:$A$1003,0),5))) -> 
B34: =IFERROR(IF(Athletes!A27="","",IF(AND(Athletes!F27=$C$4,INDEX(Athletes!$G27:$Z27,1,MATCH($C$3,Athletes!$G$3:$Z$3,0))<>""),Athletes!A27,"")),"") ->  | C34: =IF(B34="","",INDEX(Athletes!$A$4:$E$1003,MATCH(B34,Athletes!$A$4:$A$1003,0),4)) ->  | D34: =IF(B34="","",ABS(SIN(B34))+IF($U$2=1,0,INDEX(Athletes!$AH$4:$AH$102,MATCH($C34,Athletes!$AE$4:$AE$102,0),1))) ->  | I34: =IF(E34="","",100*H34+IFERROR(INDEX(FrontPage!$AA$3:$AD$10,MATCH(COUNTIF(H$11:H34,H34),FrontPage!$AA$3:$AA$10,0),$I$5),COUNTIF(H$11:H34,H34))) ->  | J34: =IF(ROW()-11>$U$2*($U$3+2)-1,"",IF(MOD(ROW()-11,$U$3+2)=0,MAX(J$10:J33)+1,"")) ->  | L34: =IF($J34<>"",$K34,IF($K34="","",IF($K34="Empty",MAX($K$11:$K34)+0.99,MAX($K$11:$K34)+0.01*$K34))) ->  | N34: =IF(J34<>"","Bib",IF(OR($K34="",K34="Empty"),"",IF(A34="",IFERROR(INDEX($E$11:$E$171,MATCH(100*MAX(J$11:J34)+M34,$I$11:$I$171,0),1),""),A34))) ->  | O34: =IF($J34<>"",$A$7,IF(OR($K34="",$K34="Empty",N34=""),"",INDEX(Athletes!$A$4:$E$1003,MATCH(N34,Athletes!$A$4:$A$1003,0),2)&" "& INDEX(Athletes!$A$4:$E$1003,MATCH(N34,Athletes!$A$4:$A$1003,0),3))) ->  | P34: =IF($J34<>"",IF($L$5=1,"Final ","Heat ")&IF(AND($L$5=1,$U$2=1),"",$J34&" of "&$U$2),IF(OR($K34="",$K34="Empty",N34=""),"",INDEX(Athletes!$A$4:$E$1003,MATCH(N34,Athletes!$A$4:$A$1003,0),5))) -> 
B35: =IFERROR(IF(Athletes!A28="","",IF(AND(Athletes!F28=$C$4,INDEX(Athletes!$G28:$Z28,1,MATCH($C$3,Athletes!$G$3:$Z$3,0))<>""),Athletes!A28,"")),"") ->  | C35: =IF(B35="","",INDEX(Athletes!$A$4:$E$1003,MATCH(B35,Athletes!$A$4:$A$1003,0),4)) ->  | D35: =IF(B35="","",ABS(SIN(B35))+IF($U$2=1,0,INDEX(Athletes!$AH$4:$AH$102,MATCH($C35,Athletes!$AE$4:$AE$102,0),1))) ->  | I35: =IF(E35="","",100*H35+IFERROR(INDEX(FrontPage!$AA$3:$AD$10,MATCH(COUNTIF(H$11:H35,H35),FrontPage!$AA$3:$AA$10,0),$I$5),COUNTIF(H$11:H35,H35))) ->  | J35: =IF(ROW()-11>$U$2*($U$3+2)-1,"",IF(MOD(ROW()-11,$U$3+2)=0,MAX(J$10:J34)+1,"")) ->  | L35: =IF($J35<>"",$K35,IF($K35="","",IF($K35="Empty",MAX($K$11:$K35)+0.99,MAX($K$11:$K35)+0.01*$K35))) ->  | N35: =IF(J35<>"","Bib",IF(OR($K35="",K35="Empty"),"",IF(A35="",IFERROR(INDEX($E$11:$E$171,MATCH(100*MAX(J$11:J35)+M35,$I$11:$I$171,0),1),""),A35))) ->  | O35: =IF($J35<>"",$A$7,IF(OR($K35="",$K35="Empty",N35=""),"",INDEX(Athletes!$A$4:$E$1003,MATCH(N35,Athletes!$A$4:$A$1003,0),2)&" "& INDEX(Athletes!$A$4:$E$1003,MATCH(N35,Athletes!$A$4:$A$1003,0),3))) ->  | P35: =IF($J35<>"",IF($L$5=1,"Final ","Heat ")&IF(AND($L$5=1,$U$2=1),"",$J35&" of "&$U$2),IF(OR($K35="",$K35="Empty",N35=""),"",INDEX(Athletes!$A$4:$E$1003,MATCH(N35,Athletes!$A$4:$A$1003,0),5))) -> 
B36: =IFERROR(IF(Athletes!A29="","",IF(AND(Athletes!F29=$C$4,INDEX(Athletes!$G29:$Z29,1,MATCH($C$3,Athletes!$G$3:$Z$3,0))<>""),Athletes!A29,"")),"") ->  | C36: =IF(B36="","",INDEX(Athletes!$A$4:$E$1003,MATCH(B36,Athletes!$A$4:$A$1003,0),4)) ->  | D36: =IF(B36="","",ABS(SIN(B36))+IF($U$2=1,0,INDEX(Athletes!$AH$4:$AH$102,MATCH($C36,Athletes!$AE$4:$AE$102,0),1))) ->  | I36: =IF(E36="","",100*H36+IFERROR(INDEX(FrontPage!$AA$3:$AD$10,MATCH(COUNTIF(H$11:H36,H36),FrontPage!$AA$3:$AA$10,0),$I$5),COUNTIF(H$11:H36,H36))) ->  | J36: =IF(ROW()-11>$U$2*($U$3+2)-1,"",IF(MOD(ROW()-11,$U$3+2)=0,MAX(J$10:J35)+1,"")) ->  | L36: =IF($J36<>"",$K36,IF($K36="","",IF($K36="Empty",MAX($K$11:$K36)+0.99,MAX($K$11:$K36)+0.01*$K36))) ->  | N36: =IF(J36<>"","Bib",IF(OR($K36="",K36="Empty"),"",IF(A36="",IFERROR(INDEX($E$11:$E$171,MATCH(100*MAX(J$11:J36)+M36,$I$11:$I$171,0),1),""),A36))) ->  | O36: =IF($J36<>"",$A$7,IF(OR($K36="",$K36="Empty",N36=""),"",INDEX(Athletes!$A$4:$E$1003,MATCH(N36,Athletes!$A$4:$A$1003,0),2)&" "& INDEX(Athletes!$A$4:$E$1003,MATCH(N36,Athletes!$A$4:$A$1003,0),3))) ->  | P36: =IF($J36<>"",IF($L$5=1,"Final ","Heat ")&IF(AND($L$5=1,$U$2=1),"",$J36&" of "&$U$2),IF(OR($K36="",$K36="Empty",N36=""),"",INDEX(Athletes!$A$4:$E$1003,MATCH(N36,Athletes!$A$4:$A$1003,0),5))) -> 
B37: =IFERROR(IF(Athletes!A30="","",IF(AND(Athletes!F30=$C$4,INDEX(Athletes!$G30:$Z30,1,MATCH($C$3,Athletes!$G$3:$Z$3,0))<>""),Athletes!A30,"")),"") ->  | C37: =IF(B37="","",INDEX(Athletes!$A$4:$E$1003,MATCH(B37,Athletes!$A$4:$A$1003,0),4)) ->  | D37: =IF(B37="","",ABS(SIN(B37))+IF($U$2=1,0,INDEX(Athletes!$AH$4:$AH$102,MATCH($C37,Athletes!$AE$4:$AE$102,0),1))) ->  | I37: =IF(E37="","",100*H37+IFERROR(INDEX(FrontPage!$AA$3:$AD$10,MATCH(COUNTIF(H$11:H37,H37),FrontPage!$AA$3:$AA$10,0),$I$5),COUNTIF(H$11:H37,H37))) ->  | J37: =IF(ROW()-11>$U$2*($U$3+2)-1,"",IF(MOD(ROW()-11,$U$3+2)=0,MAX(J$10:J36)+1,"")) ->  | L37: =IF($J37<>"",$K37,IF($K37="","",IF($K37="Empty",MAX($K$11:$K37)+0.99,MAX($K$11:$K37)+0.01*$K37))) ->  | N37: =IF(J37<>"","Bib",IF(OR($K37="",K37="Empty"),"",IF(A37="",IFERROR(INDEX($E$11:$E$171,MATCH(100*MAX(J$11:J37)+M37,$I$11:$I$171,0),1),""),A37))) ->  | O37: =IF($J37<>"",$A$7,IF(OR($K37="",$K37="Empty",N37=""),"",INDEX(Athletes!$A$4:$E$1003,MATCH(N37,Athletes!$A$4:$A$1003,0),2)&" "& INDEX(Athletes!$A$4:$E$1003,MATCH(N37,Athletes!$A$4:$A$1003,0),3))) ->  | P37: =IF($J37<>"",IF($L$5=1,"Final ","Heat ")&IF(AND($L$5=1,$U$2=1),"",$J37&" of "&$U$2),IF(OR($K37="",$K37="Empty",N37=""),"",INDEX(Athletes!$A$4:$E$1003,MATCH(N37,Athletes!$A$4:$A$1003,0),5))) -> 
B38: =IFERROR(IF(Athletes!A31="","",IF(AND(Athletes!F31=$C$4,INDEX(Athletes!$G31:$Z31,1,MATCH($C$3,Athletes!$G$3:$Z$3,0))<>""),Athletes!A31,"")),"") ->  | C38: =IF(B38="","",INDEX(Athletes!$A$4:$E$1003,MATCH(B38,Athletes!$A$4:$A$1003,0),4)) ->  | D38: =IF(B38="","",ABS(SIN(B38))+IF($U$2=1,0,INDEX(Athletes!$AH$4:$AH$102,MATCH($C38,Athletes!$AE$4:$AE$102,0),1))) ->  | I38: =IF(E38="","",100*H38+IFERROR(INDEX(FrontPage!$AA$3:$AD$10,MATCH(COUNTIF(H$11:H38,H38),FrontPage!$AA$3:$AA$10,0),$I$5),COUNTIF(H$11:H38,H38))) ->  | J38: =IF(ROW()-11>$U$2*($U$3+2)-1,"",IF(MOD(ROW()-11,$U$3+2)=0,MAX(J$10:J37)+1,"")) ->  | L38: =IF($J38<>"",$K38,IF($K38="","",IF($K38="Empty",MAX($K$11:$K38)+0.99,MAX($K$11:$K38)+0.01*$K38))) ->  | N38: =IF(J38<>"","Bib",IF(OR($K38="",K38="Empty"),"",IF(A38="",IFERROR(INDEX($E$11:$E$171,MATCH(100*MAX(J$11:J38)+M38,$I$11:$I$171,0),1),""),A38))) ->  | O38: =IF($J38<>"",$A$7,IF(OR($K38="",$K38="Empty",N38=""),"",INDEX(Athletes!$A$4:$E$1003,MATCH(N38,Athletes!$A$4:$A$1003,0),2)&" "& INDEX(Athletes!$A$4:$E$1003,MATCH(N38,Athletes!$A$4:$A$1003,0),3))) ->  | P38: =IF($J38<>"",IF($L$5=1,"Final ","Heat ")&IF(AND($L$5=1,$U$2=1),"",$J38&" of "&$U$2),IF(OR($K38="",$K38="Empty",N38=""),"",INDEX(Athletes!$A$4:$E$1003,MATCH(N38,Athletes!$A$4:$A$1003,0),5))) -> 
B39: =IFERROR(IF(Athletes!A32="","",IF(AND(Athletes!F32=$C$4,INDEX(Athletes!$G32:$Z32,1,MATCH($C$3,Athletes!$G$3:$Z$3,0))<>""),Athletes!A32,"")),"") ->  | C39: =IF(B39="","",INDEX(Athletes!$A$4:$E$1003,MATCH(B39,Athletes!$A$4:$A$1003,0),4)) ->  | D39: =IF(B39="","",ABS(SIN(B39))+IF($U$2=1,0,INDEX(Athletes!$AH$4:$AH$102,MATCH($C39,Athletes!$AE$4:$AE$102,0),1))) ->  | I39: =IF(E39="","",100*H39+IFERROR(INDEX(FrontPage!$AA$3:$AD$10,MATCH(COUNTIF(H$11:H39,H39),FrontPage!$AA$3:$AA$10,0),$I$5),COUNTIF(H$11:H39,H39))) ->  | J39: =IF(ROW()-11>$U$2*($U$3+2)-1,"",IF(MOD(ROW()-11,$U$3+2)=0,MAX(J$10:J38)+1,"")) ->  | L39: =IF($J39<>"",$K39,IF($K39="","",IF($K39="Empty",MAX($K$11:$K39)+0.99,MAX($K$11:$K39)+0.01*$K39))) ->  | N39: =IF(J39<>"","Bib",IF(OR($K39="",K39="Empty"),"",IF(A39="",IFERROR(INDEX($E$11:$E$171,MATCH(100*MAX(J$11:J39)+M39,$I$11:$I$171,0),1),""),A39))) ->  | O39: =IF($J39<>"",$A$7,IF(OR($K39="",$K39="Empty",N39=""),"",INDEX(Athletes!$A$4:$E$1003,MATCH(N39,Athletes!$A$4:$A$1003,0),2)&" "& INDEX(Athletes!$A$4:$E$1003,MATCH(N39,Athletes!$A$4:$A$1003,0),3))) ->  | P39: =IF($J39<>"",IF($L$5=1,"Final ","Heat ")&IF(AND($L$5=1,$U$2=1),"",$J39&" of "&$U$2),IF(OR($K39="",$K39="Empty",N39=""),"",INDEX(Athletes!$A$4:$E$1003,MATCH(N39,Athletes!$A$4:$A$1003,0),5))) -> 
B40: =IFERROR(IF(Athletes!A33="","",IF(AND(Athletes!F33=$C$4,INDEX(Athletes!$G33:$Z33,1,MATCH($C$3,Athletes!$G$3:$Z$3,0))<>""),Athletes!A33,"")),"") ->  | C40: =IF(B40="","",INDEX(Athletes!$A$4:$E$1003,MATCH(B40,Athletes!$A$4:$A$1003,0),4)) ->  | D40: =IF(B40="","",ABS(SIN(B40))+IF($U$2=1,0,INDEX(Athletes!$AH$4:$AH$102,MATCH($C40,Athletes!$AE$4:$AE$102,0),1))) ->  | I40: =IF(E40="","",100*H40+IFERROR(INDEX(FrontPage!$AA$3:$AD$10,MATCH(COUNTIF(H$11:H40,H40),FrontPage!$AA$3:$AA$10,0),$I$5),COUNTIF(H$11:H40,H40))) ->  | J40: =IF(ROW()-11>$U$2*($U$3+2)-1,"",IF(MOD(ROW()-11,$U$3+2)=0,MAX(J$10:J39)+1,"")) ->  | L40: =IF($J40<>"",$K40,IF($K40="","",IF($K40="Empty",MAX($K$11:$K40)+0.99,MAX($K$11:$K40)+0.01*$K40))) ->  | N40: =IF(J40<>"","Bib",IF(OR($K40="",K40="Empty"),"",IF(A40="",IFERROR(INDEX($E$11:$E$171,MATCH(100*MAX(J$11:J40)+M40,$I$11:$I$171,0),1),""),A40))) ->  | O40: =IF($J40<>"",$A$7,IF(OR($K40="",$K40="Empty",N40=""),"",INDEX(Athletes!$A$4:$E$1003,MATCH(N40,Athletes!$A$4:$A$1003,0),2)&" "& INDEX(Athletes!$A$4:$E$1003,MATCH(N40,Athletes!$A$4:$A$1003,0),3))) ->  | P40: =IF($J40<>"",IF($L$5=1,"Final ","Heat ")&IF(AND($L$5=1,$U$2=1),"",$J40&" of "&$U$2),IF(OR($K40="",$K40="Empty",N40=""),"",INDEX(Athletes!$A$4:$E$1003,MATCH(N40,Athletes!$A$4:$A$1003,0),5))) -> 
B41: =IFERROR(IF(Athletes!A34="","",IF(AND(Athletes!F34=$C$4,INDEX(Athletes!$G34:$Z34,1,MATCH($C$3,Athletes!$G$3:$Z$3,0))<>""),Athletes!A34,"")),"") ->  | C41: =IF(B41="","",INDEX(Athletes!$A$4:$E$1003,MATCH(B41,Athletes!$A$4:$A$1003,0),4)) ->  | D41: =IF(B41="","",ABS(SIN(B41))+IF($U$2=1,0,INDEX(Athletes!$AH$4:$AH$102,MATCH($C41,Athletes!$AE$4:$AE$102,0),1))) ->  | I41: =IF(E41="","",100*H41+IFERROR(INDEX(FrontPage!$AA$3:$AD$10,MATCH(COUNTIF(H$11:H41,H41),FrontPage!$AA$3:$AA$10,0),$I$5),COUNTIF(H$11:H41,H41))) ->  | J41: =IF(ROW()-11>$U$2*($U$3+2)-1,"",IF(MOD(ROW()-11,$U$3+2)=0,MAX(J$10:J40)+1,"")) ->  | L41: =IF($J41<>"",$K41,IF($K41="","",IF($K41="Empty",MAX($K$11:$K41)+0.99,MAX($K$11:$K41)+0.01*$K41))) ->  | N41: =IF(J41<>"","Bib",IF(OR($K41="",K41="Empty"),"",IF(A41="",IFERROR(INDEX($E$11:$E$171,MATCH(100*MAX(J$11:J41)+M41,$I$11:$I$171,0),1),""),A41))) ->  | O41: =IF($J41<>"",$A$7,IF(OR($K41="",$K41="Empty",N41=""),"",INDEX(Athletes!$A$4:$E$1003,MATCH(N41,Athletes!$A$4:$A$1003,0),2)&" "& INDEX(Athletes!$A$4:$E$1003,MATCH(N41,Athletes!$A$4:$A$1003,0),3))) ->  | P41: =IF($J41<>"",IF($L$5=1,"Final ","Heat ")&IF(AND($L$5=1,$U$2=1),"",$J41&" of "&$U$2),IF(OR($K41="",$K41="Empty",N41=""),"",INDEX(Athletes!$A$4:$E$1003,MATCH(N41,Athletes!$A$4:$A$1003,0),5))) -> 
B42: =IFERROR(IF(Athletes!A35="","",IF(AND(Athletes!F35=$C$4,INDEX(Athletes!$G35:$Z35,1,MATCH($C$3,Athletes!$G$3:$Z$3,0))<>""),Athletes!A35,"")),"") ->  | C42: =IF(B42="","",INDEX(Athletes!$A$4:$E$1003,MATCH(B42,Athletes!$A$4:$A$1003,0),4)) ->  | D42: =IF(B42="","",ABS(SIN(B42))+IF($U$2=1,0,INDEX(Athletes!$AH$4:$AH$102,MATCH($C42,Athletes!$AE$4:$AE$102,0),1))) ->  | I42: =IF(E42="","",100*H42+IFERROR(INDEX(FrontPage!$AA$3:$AD$10,MATCH(COUNTIF(H$11:H42,H42),FrontPage!$AA$3:$AA$10,0),$I$5),COUNTIF(H$11:H42,H42))) ->  | J42: =IF(ROW()-11>$U$2*($U$3+2)-1,"",IF(MOD(ROW()-11,$U$3+2)=0,MAX(J$10:J41)+1,"")) ->  | L42: =IF($J42<>"",$K42,IF($K42="","",IF($K42="Empty",MAX($K$11:$K42)+0.99,MAX($K$11:$K42)+0.01*$K42))) ->  | N42: =IF(J42<>"","Bib",IF(OR($K42="",K42="Empty"),"",IF(A42="",IFERROR(INDEX($E$11:$E$171,MATCH(100*MAX(J$11:J42)+M42,$I$11:$I$171,0),1),""),A42))) ->  | O42: =IF($J42<>"",$A$7,IF(OR($K42="",$K42="Empty",N42=""),"",INDEX(Athletes!$A$4:$E$1003,MATCH(N42,Athletes!$A$4:$A$1003,0),2)&" "& INDEX(Athletes!$A$4:$E$1003,MATCH(N42,Athletes!$A$4:$A$1003,0),3))) ->  | P42: =IF($J42<>"",IF($L$5=1,"Final ","Heat ")&IF(AND($L$5=1,$U$2=1),"",$J42&" of "&$U$2),IF(OR($K42="",$K42="Empty",N42=""),"",INDEX(Athletes!$A$4:$E$1003,MATCH(N42,Athletes!$A$4:$A$1003,0),5))) -> 
B43: =IFERROR(IF(Athletes!A36="","",IF(AND(Athletes!F36=$C$4,INDEX(Athletes!$G36:$Z36,1,MATCH($C$3,Athletes!$G$3:$Z$3,0))<>""),Athletes!A36,"")),"") ->  | C43: =IF(B43="","",INDEX(Athletes!$A$4:$E$1003,MATCH(B43,Athletes!$A$4:$A$1003,0),4)) ->  | D43: =IF(B43="","",ABS(SIN(B43))+IF($U$2=1,0,INDEX(Athletes!$AH$4:$AH$102,MATCH($C43,Athletes!$AE$4:$AE$102,0),1))) ->  | I43: =IF(E43="","",100*H43+IFERROR(INDEX(FrontPage!$AA$3:$AD$10,MATCH(COUNTIF(H$11:H43,H43),FrontPage!$AA$3:$AA$10,0),$I$5),COUNTIF(H$11:H43,H43))) ->  | J43: =IF(ROW()-11>$U$2*($U$3+2)-1,"",IF(MOD(ROW()-11,$U$3+2)=0,MAX(J$10:J42)+1,"")) ->  | K43: =IF(ROW()-11>$U$2*($U$3+2)-1,"",IF(MOD(ROW()-11,$U$3+2)=0,$N$3*10000+100+J43,IF(MOD(ROW()-11,$U$3+2)=$U$3+1,"Empty",(MOD(ROW()-11,$U$3+2))))) ->  | L43: =IF($J43<>"",$K43,IF($K43="","",IF($K43="Empty",MAX($K$11:$K43)+0.99,MAX($K$11:$K43)+0.01*$K43))) ->  | N43: =IF(J43<>"","Bib",IF(OR($K43="",K43="Empty"),"",IF(A43="",IFERROR(INDEX($E$11:$E$171,MATCH(100*MAX(J$11:J43)+M43,$I$11:$I$171,0),1),""),A43))) ->  | O43: =IF($J43<>"",$A$7,IF(OR($K43="",$K43="Empty",N43=""),"",INDEX(Athletes!$A$4:$E$1003,MATCH(N43,Athletes!$A$4:$A$1003,0),2)&" "& INDEX(Athletes!$A$4:$E$1003,MATCH(N43,Athletes!$A$4:$A$1003,0),3))) ->  | P43: =IF($J43<>"",IF($L$5=1,"Final ","Heat ")&IF(AND($L$5=1,$U$2=1),"",$J43&" of "&$U$2),IF(OR($K43="",$K43="Empty",N43=""),"",INDEX(Athletes!$A$4:$E$1003,MATCH(N43,Athletes!$A$4:$A$1003,0),5))) ->  | Q43: =IF($J43<>"",IF($L$5=1,"","First"),"") ->  | R43: =IF($J43<>"",IF($L$5=1,"",$U$4),"") ->  | S43: =IF($J43<>"",IF($L$5=1,"","plus "),"") ->  | T43: =IF($J43<>"",IF($L$5=1,"",$U$5),"") -> 
B44: =IFERROR(IF(Athletes!A37="","",IF(AND(Athletes!F37=$C$4,INDEX(Athletes!$G37:$Z37,1,MATCH($C$3,Athletes!$G$3:$Z$3,0))<>""),Athletes!A37,"")),"") ->  | C44: =IF(B44="","",INDEX(Athletes!$A$4:$E$1003,MATCH(B44,Athletes!$A$4:$A$1003,0),4)) ->  | D44: =IF(B44="","",ABS(SIN(B44))+IF($U$2=1,0,INDEX(Athletes!$AH$4:$AH$102,MATCH($C44,Athletes!$AE$4:$AE$102,0),1))) ->  | H44: =IF(E44="","",IF($L$5=1,1,IF(H43=$U$2,1,H43+1))) ->  | I44: =IF(E44="","",100*H44+IFERROR(INDEX(FrontPage!$AA$3:$AD$10,MATCH(COUNTIF(H$11:H44,H44),FrontPage!$AA$3:$AA$10,0),$I$5),COUNTIF(H$11:H44,H44))) ->  | J44: =IF(ROW()-11>$U$2*($U$3+2)-1,"",IF(MOD(ROW()-11,$U$3+2)=0,MAX(J$10:J43)+1,"")) ->  | L44: =IF($J44<>"",$K44,IF($K44="","",IF($K44="Empty",MAX($K$11:$K44)+0.99,MAX($K$11:$K44)+0.01*$K44))) ->  | N44: =IF(J44<>"","Bib",IF(OR($K44="",K44="Empty"),"",IF(A44="",IFERROR(INDEX($E$11:$E$171,MATCH(100*MAX(J$11:J44)+M44,$I$11:$I$171,0),1),""),A44))) ->  | O44: =IF($J44<>"",$A$7,IF(OR($K44="",$K44="Empty",N44=""),"",INDEX(Athletes!$A$4:$E$1003,MATCH(N44,Athletes!$A$4:$A$1003,0),2)&" "& INDEX(Athletes!$A$4:$E$1003,MATCH(N44,Athletes!$A$4:$A$1003,0),3))) ->  | P44: =IF($J44<>"",IF($L$5=1,"Final ","Heat ")&IF(AND($L$5=1,$U$2=1),"",$J44&" of "&$U$2),IF(OR($K44="",$K44="Empty",N44=""),"",INDEX(Athletes!$A$4:$E$1003,MATCH(N44,Athletes!$A$4:$A$1003,0),5))) -> 
B45: =IFERROR(IF(Athletes!A38="","",IF(AND(Athletes!F38=$C$4,INDEX(Athletes!$G38:$Z38,1,MATCH($C$3,Athletes!$G$3:$Z$3,0))<>""),Athletes!A38,"")),"") ->  | C45: =IF(B45="","",INDEX(Athletes!$A$4:$E$1003,MATCH(B45,Athletes!$A$4:$A$1003,0),4)) ->  | D45: =IF(B45="","",ABS(SIN(B45))+IF($U$2=1,0,INDEX(Athletes!$AH$4:$AH$102,MATCH($C45,Athletes!$AE$4:$AE$102,0),1))) ->  | I45: =IF(E45="","",100*H45+IFERROR(INDEX(FrontPage!$AA$3:$AD$10,MATCH(COUNTIF(H$11:H45,H45),FrontPage!$AA$3:$AA$10,0),$I$5),COUNTIF(H$11:H45,H45))) ->  | J45: =IF(ROW()-11>$U$2*($U$3+2)-1,"",IF(MOD(ROW()-11,$U$3+2)=0,MAX(J$10:J44)+1,"")) ->  | L45: =IF($J45<>"",$K45,IF($K45="","",IF($K45="Empty",MAX($K$11:$K45)+0.99,MAX($K$11:$K45)+0.01*$K45))) ->  | N45: =IF(J45<>"","Bib",IF(OR($K45="",K45="Empty"),"",IF(A45="",IFERROR(INDEX($E$11:$E$171,MATCH(100*MAX(J$11:J45)+M45,$I$11:$I$171,0),1),""),A45))) ->  | O45: =IF($J45<>"",$A$7,IF(OR($K45="",$K45="Empty",N45=""),"",INDEX(Athletes!$A$4:$E$1003,MATCH(N45,Athletes!$A$4:$A$1003,0),2)&" "& INDEX(Athletes!$A$4:$E$1003,MATCH(N45,Athletes!$A$4:$A$1003,0),3))) ->  | P45: =IF($J45<>"",IF($L$5=1,"Final ","Heat ")&IF(AND($L$5=1,$U$2=1),"",$J45&" of "&$U$2),IF(OR($K45="",$K45="Empty",N45=""),"",INDEX(Athletes!$A$4:$E$1003,MATCH(N45,Athletes!$A$4:$A$1003,0),5))) -> 
B46: =IFERROR(IF(Athletes!A39="","",IF(AND(Athletes!F39=$C$4,INDEX(Athletes!$G39:$Z39,1,MATCH($C$3,Athletes!$G$3:$Z$3,0))<>""),Athletes!A39,"")),"") ->  | C46: =IF(B46="","",INDEX(Athletes!$A$4:$E$1003,MATCH(B46,Athletes!$A$4:$A$1003,0),4)) ->  | D46: =IF(B46="","",ABS(SIN(B46))+IF($U$2=1,0,INDEX(Athletes!$AH$4:$AH$102,MATCH($C46,Athletes!$AE$4:$AE$102,0),1))) ->  | I46: =IF(E46="","",100*H46+IFERROR(INDEX(FrontPage!$AA$3:$AD$10,MATCH(COUNTIF(H$11:H46,H46),FrontPage!$AA$3:$AA$10,0),$I$5),COUNTIF(H$11:H46,H46))) ->  | J46: =IF(ROW()-11>$U$2*($U$3+2)-1,"",IF(MOD(ROW()-11,$U$3+2)=0,MAX(J$10:J45)+1,"")) ->  | L46: =IF($J46<>"",$K46,IF($K46="","",IF($K46="Empty",MAX($K$11:$K46)+0.99,MAX($K$11:$K46)+0.01*$K46))) ->  | N46: =IF(J46<>"","Bib",IF(OR($K46="",K46="Empty"),"",IF(A46="",IFERROR(INDEX($E$11:$E$171,MATCH(100*MAX(J$11:J46)+M46,$I$11:$I$171,0),1),""),A46))) ->  | O46: =IF($J46<>"",$A$7,IF(OR($K46="",$K46="Empty",N46=""),"",INDEX(Athletes!$A$4:$E$1003,MATCH(N46,Athletes!$A$4:$A$1003,0),2)&" "& INDEX(Athletes!$A$4:$E$1003,MATCH(N46,Athletes!$A$4:$A$1003,0),3))) ->  | P46: =IF($J46<>"",IF($L$5=1,"Final ","Heat ")&IF(AND($L$5=1,$U$2=1),"",$J46&" of "&$U$2),IF(OR($K46="",$K46="Empty",N46=""),"",INDEX(Athletes!$A$4:$E$1003,MATCH(N46,Athletes!$A$4:$A$1003,0),5))) -> 
B47: =IFERROR(IF(Athletes!A40="","",IF(AND(Athletes!F40=$C$4,INDEX(Athletes!$G40:$Z40,1,MATCH($C$3,Athletes!$G$3:$Z$3,0))<>""),Athletes!A40,"")),"") ->  | C47: =IF(B47="","",INDEX(Athletes!$A$4:$E$1003,MATCH(B47,Athletes!$A$4:$A$1003,0),4)) ->  | D47: =IF(B47="","",ABS(SIN(B47))+IF($U$2=1,0,INDEX(Athletes!$AH$4:$AH$102,MATCH($C47,Athletes!$AE$4:$AE$102,0),1))) ->  | I47: =IF(E47="","",100*H47+IFERROR(INDEX(FrontPage!$AA$3:$AD$10,MATCH(COUNTIF(H$11:H47,H47),FrontPage!$AA$3:$AA$10,0),$I$5),COUNTIF(H$11:H47,H47))) ->  | J47: =IF(ROW()-11>$U$2*($U$3+2)-1,"",IF(MOD(ROW()-11,$U$3+2)=0,MAX(J$10:J46)+1,"")) ->  | L47: =IF($J47<>"",$K47,IF($K47="","",IF($K47="Empty",MAX($K$11:$K47)+0.99,MAX($K$11:$K47)+0.01*$K47))) ->  | N47: =IF(J47<>"","Bib",IF(OR($K47="",K47="Empty"),"",IF(A47="",IFERROR(INDEX($E$11:$E$171,MATCH(100*MAX(J$11:J47)+M47,$I$11:$I$171,0),1),""),A47))) ->  | O47: =IF($J47<>"",$A$7,IF(OR($K47="",$K47="Empty",N47=""),"",INDEX(Athletes!$A$4:$E$1003,MATCH(N47,Athletes!$A$4:$A$1003,0),2)&" "& INDEX(Athletes!$A$4:$E$1003,MATCH(N47,Athletes!$A$4:$A$1003,0),3))) ->  | P47: =IF($J47<>"",IF($L$5=1,"Final ","Heat ")&IF(AND($L$5=1,$U$2=1),"",$J47&" of "&$U$2),IF(OR($K47="",$K47="Empty",N47=""),"",INDEX(Athletes!$A$4:$E$1003,MATCH(N47,Athletes!$A$4:$A$1003,0),5))) -> 
B48: =IFERROR(IF(Athletes!A41="","",IF(AND(Athletes!F41=$C$4,INDEX(Athletes!$G41:$Z41,1,MATCH($C$3,Athletes!$G$3:$Z$3,0))<>""),Athletes!A41,"")),"") ->  | C48: =IF(B48="","",INDEX(Athletes!$A$4:$E$1003,MATCH(B48,Athletes!$A$4:$A$1003,0),4)) ->  | D48: =IF(B48="","",ABS(SIN(B48))+IF($U$2=1,0,INDEX(Athletes!$AH$4:$AH$102,MATCH($C48,Athletes!$AE$4:$AE$102,0),1))) ->  | I48: =IF(E48="","",100*H48+IFERROR(INDEX(FrontPage!$AA$3:$AD$10,MATCH(COUNTIF(H$11:H48,H48),FrontPage!$AA$3:$AA$10,0),$I$5),COUNTIF(H$11:H48,H48))) ->  | J48: =IF(ROW()-11>$U$2*($U$3+2)-1,"",IF(MOD(ROW()-11,$U$3+2)=0,MAX(J$10:J47)+1,"")) ->  | L48: =IF($J48<>"",$K48,IF($K48="","",IF($K48="Empty",MAX($K$11:$K48)+0.99,MAX($K$11:$K48)+0.01*$K48))) ->  | N48: =IF(J48<>"","Bib",IF(OR($K48="",K48="Empty"),"",IF(A48="",IFERROR(INDEX($E$11:$E$171,MATCH(100*MAX(J$11:J48)+M48,$I$11:$I$171,0),1),""),A48))) ->  | O48: =IF($J48<>"",$A$7,IF(OR($K48="",$K48="Empty",N48=""),"",INDEX(Athletes!$A$4:$E$1003,MATCH(N48,Athletes!$A$4:$A$1003,0),2)&" "& INDEX(Athletes!$A$4:$E$1003,MATCH(N48,Athletes!$A$4:$A$1003,0),3))) ->  | P48: =IF($J48<>"",IF($L$5=1,"Final ","Heat ")&IF(AND($L$5=1,$U$2=1),"",$J48&" of "&$U$2),IF(OR($K48="",$K48="Empty",N48=""),"",INDEX(Athletes!$A$4:$E$1003,MATCH(N48,Athletes!$A$4:$A$1003,0),5))) -> 
B49: =IFERROR(IF(Athletes!A42="","",IF(AND(Athletes!F42=$C$4,INDEX(Athletes!$G42:$Z42,1,MATCH($C$3,Athletes!$G$3:$Z$3,0))<>""),Athletes!A42,"")),"") ->  | C49: =IF(B49="","",INDEX(Athletes!$A$4:$E$1003,MATCH(B49,Athletes!$A$4:$A$1003,0),4)) ->  | D49: =IF(B49="","",ABS(SIN(B49))+IF($U$2=1,0,INDEX(Athletes!$AH$4:$AH$102,MATCH($C49,Athletes!$AE$4:$AE$102,0),1))) ->  | I49: =IF(E49="","",100*H49+IFERROR(INDEX(FrontPage!$AA$3:$AD$10,MATCH(COUNTIF(H$11:H49,H49),FrontPage!$AA$3:$AA$10,0),$I$5),COUNTIF(H$11:H49,H49))) ->  | J49: =IF(ROW()-11>$U$2*($U$3+2)-1,"",IF(MOD(ROW()-11,$U$3+2)=0,MAX(J$10:J48)+1,"")) ->  | L49: =IF($J49<>"",$K49,IF($K49="","",IF($K49="Empty",MAX($K$11:$K49)+0.99,MAX($K$11:$K49)+0.01*$K49))) ->  | N49: =IF(J49<>"","Bib",IF(OR($K49="",K49="Empty"),"",IF(A49="",IFERROR(INDEX($E$11:$E$171,MATCH(100*MAX(J$11:J49)+M49,$I$11:$I$171,0),1),""),A49))) ->  | O49: =IF($J49<>"",$A$7,IF(OR($K49="",$K49="Empty",N49=""),"",INDEX(Athletes!$A$4:$E$1003,MATCH(N49,Athletes!$A$4:$A$1003,0),2)&" "& INDEX(Athletes!$A$4:$E$1003,MATCH(N49,Athletes!$A$4:$A$1003,0),3))) ->  | P49: =IF($J49<>"",IF($L$5=1,"Final ","Heat ")&IF(AND($L$5=1,$U$2=1),"",$J49&" of "&$U$2),IF(OR($K49="",$K49="Empty",N49=""),"",INDEX(Athletes!$A$4:$E$1003,MATCH(N49,Athletes!$A$4:$A$1003,0),5))) -> 
B50: =IFERROR(IF(Athletes!A43="","",IF(AND(Athletes!F43=$C$4,INDEX(Athletes!$G43:$Z43,1,MATCH($C$3,Athletes!$G$3:$Z$3,0))<>""),Athletes!A43,"")),"") ->  | C50: =IF(B50="","",INDEX(Athletes!$A$4:$E$1003,MATCH(B50,Athletes!$A$4:$A$1003,0),4)) ->  | D50: =IF(B50="","",ABS(SIN(B50))+IF($U$2=1,0,INDEX(Athletes!$AH$4:$AH$102,MATCH($C50,Athletes!$AE$4:$AE$102,0),1))) ->  | I50: =IF(E50="","",100*H50+IFERROR(INDEX(FrontPage!$AA$3:$AD$10,MATCH(COUNTIF(H$11:H50,H50),FrontPage!$AA$3:$AA$10,0),$I$5),COUNTIF(H$11:H50,H50))) ->  | J50: =IF(ROW()-11>$U$2*($U$3+2)-1,"",IF(MOD(ROW()-11,$U$3+2)=0,MAX(J$10:J49)+1,"")) ->  | L50: =IF($J50<>"",$K50,IF($K50="","",IF($K50="Empty",MAX($K$11:$K50)+0.99,MAX($K$11:$K50)+0.01*$K50))) ->  | N50: =IF(J50<>"","Bib",IF(OR($K50="",K50="Empty"),"",IF(A50="",IFERROR(INDEX($E$11:$E$171,MATCH(100*MAX(J$11:J50)+M50,$I$11:$I$171,0),1),""),A50))) ->  | O50: =IF($J50<>"",$A$7,IF(OR($K50="",$K50="Empty",N50=""),"",INDEX(Athletes!$A$4:$E$1003,MATCH(N50,Athletes!$A$4:$A$1003,0),2)&" "& INDEX(Athletes!$A$4:$E$1003,MATCH(N50,Athletes!$A$4:$A$1003,0),3))) ->  | P50: =IF($J50<>"",IF($L$5=1,"Final ","Heat ")&IF(AND($L$5=1,$U$2=1),"",$J50&" of "&$U$2),IF(OR($K50="",$K50="Empty",N50=""),"",INDEX(Athletes!$A$4:$E$1003,MATCH(N50,Athletes!$A$4:$A$1003,0),5))) -> 
B51: =IFERROR(IF(Athletes!A44="","",IF(AND(Athletes!F44=$C$4,INDEX(Athletes!$G44:$Z44,1,MATCH($C$3,Athletes!$G$3:$Z$3,0))<>""),Athletes!A44,"")),"") ->  | C51: =IF(B51="","",INDEX(Athletes!$A$4:$E$1003,MATCH(B51,Athletes!$A$4:$A$1003,0),4)) ->  | D51: =IF(B51="","",ABS(SIN(B51))+IF($U$2=1,0,INDEX(Athletes!$AH$4:$AH$102,MATCH($C51,Athletes!$AE$4:$AE$102,0),1))) ->  | I51: =IF(E51="","",100*H51+IFERROR(INDEX(FrontPage!$AA$3:$AD$10,MATCH(COUNTIF(H$11:H51,H51),FrontPage!$AA$3:$AA$10,0),$I$5),COUNTIF(H$11:H51,H51))) ->  | J51: =IF(ROW()-11>$U$2*($U$3+2)-1,"",IF(MOD(ROW()-11,$U$3+2)=0,MAX(J$10:J50)+1,"")) ->  | L51: =IF($J51<>"",$K51,IF($K51="","",IF($K51="Empty",MAX($K$11:$K51)+0.99,MAX($K$11:$K51)+0.01*$K51))) ->  | N51: =IF(J51<>"","Bib",IF(OR($K51="",K51="Empty"),"",IF(A51="",IFERROR(INDEX($E$11:$E$171,MATCH(100*MAX(J$11:J51)+M51,$I$11:$I$171,0),1),""),A51))) ->  | O51: =IF($J51<>"",$A$7,IF(OR($K51="",$K51="Empty",N51=""),"",INDEX(Athletes!$A$4:$E$1003,MATCH(N51,Athletes!$A$4:$A$1003,0),2)&" "& INDEX(Athletes!$A$4:$E$1003,MATCH(N51,Athletes!$A$4:$A$1003,0),3))) ->  | P51: =IF($J51<>"",IF($L$5=1,"Final ","Heat ")&IF(AND($L$5=1,$U$2=1),"",$J51&" of "&$U$2),IF(OR($K51="",$K51="Empty",N51=""),"",INDEX(Athletes!$A$4:$E$1003,MATCH(N51,Athletes!$A$4:$A$1003,0),5))) -> 
B52: =IFERROR(IF(Athletes!A45="","",IF(AND(Athletes!F45=$C$4,INDEX(Athletes!$G45:$Z45,1,MATCH($C$3,Athletes!$G$3:$Z$3,0))<>""),Athletes!A45,"")),"") ->  | C52: =IF(B52="","",INDEX(Athletes!$A$4:$E$1003,MATCH(B52,Athletes!$A$4:$A$1003,0),4)) ->  | D52: =IF(B52="","",ABS(SIN(B52))+IF($U$2=1,0,INDEX(Athletes!$AH$4:$AH$102,MATCH($C52,Athletes!$AE$4:$AE$102,0),1))) ->  | I52: =IF(E52="","",100*H52+IFERROR(INDEX(FrontPage!$AA$3:$AD$10,MATCH(COUNTIF(H$11:H52,H52),FrontPage!$AA$3:$AA$10,0),$I$5),COUNTIF(H$11:H52,H52))) ->  | J52: =IF(ROW()-11>$U$2*($U$3+2)-1,"",IF(MOD(ROW()-11,$U$3+2)=0,MAX(J$10:J51)+1,"")) ->  | L52: =IF($J52<>"",$K52,IF($K52="","",IF($K52="Empty",MAX($K$11:$K52)+0.99,MAX($K$11:$K52)+0.01*$K52))) ->  | N52: =IF(J52<>"","Bib",IF(OR($K52="",K52="Empty"),"",IF(A52="",IFERROR(INDEX($E$11:$E$171,MATCH(100*MAX(J$11:J52)+M52,$I$11:$I$171,0),1),""),A52))) ->  | O52: =IF($J52<>"",$A$7,IF(OR($K52="",$K52="Empty",N52=""),"",INDEX(Athletes!$A$4:$E$1003,MATCH(N52,Athletes!$A$4:$A$1003,0),2)&" "& INDEX(Athletes!$A$4:$E$1003,MATCH(N52,Athletes!$A$4:$A$1003,0),3))) ->  | P52: =IF($J52<>"",IF($L$5=1,"Final ","Heat ")&IF(AND($L$5=1,$U$2=1),"",$J52&" of "&$U$2),IF(OR($K52="",$K52="Empty",N52=""),"",INDEX(Athletes!$A$4:$E$1003,MATCH(N52,Athletes!$A$4:$A$1003,0),5))) -> 
B53: =IFERROR(IF(Athletes!A46="","",IF(AND(Athletes!F46=$C$4,INDEX(Athletes!$G46:$Z46,1,MATCH($C$3,Athletes!$G$3:$Z$3,0))<>""),Athletes!A46,"")),"") ->  | C53: =IF(B53="","",INDEX(Athletes!$A$4:$E$1003,MATCH(B53,Athletes!$A$4:$A$1003,0),4)) ->  | D53: =IF(B53="","",ABS(SIN(B53))+IF($U$2=1,0,INDEX(Athletes!$AH$4:$AH$102,MATCH($C53,Athletes!$AE$4:$AE$102,0),1))) ->  | I53: =IF(E53="","",100*H53+IFERROR(INDEX(FrontPage!$AA$3:$AD$10,MATCH(COUNTIF(H$11:H53,H53),FrontPage!$AA$3:$AA$10,0),$I$5),COUNTIF(H$11:H53,H53))) ->  | J53: =IF(ROW()-11>$U$2*($U$3+2)-1,"",IF(MOD(ROW()-11,$U$3+2)=0,MAX(J$10:J52)+1,"")) ->  | L53: =IF($J53<>"",$K53,IF($K53="","",IF($K53="Empty",MAX($K$11:$K53)+0.99,MAX($K$11:$K53)+0.01*$K53))) ->  | N53: =IF(J53<>"","Bib",IF(OR($K53="",K53="Empty"),"",IF(A53="",IFERROR(INDEX($E$11:$E$171,MATCH(100*MAX(J$11:J53)+M53,$I$11:$I$171,0),1),""),A53))) ->  | O53: =IF($J53<>"",$A$7,IF(OR($K53="",$K53="Empty",N53=""),"",INDEX(Athletes!$A$4:$E$1003,MATCH(N53,Athletes!$A$4:$A$1003,0),2)&" "& INDEX(Athletes!$A$4:$E$1003,MATCH(N53,Athletes!$A$4:$A$1003,0),3))) ->  | P53: =IF($J53<>"",IF($L$5=1,"Final ","Heat ")&IF(AND($L$5=1,$U$2=1),"",$J53&" of "&$U$2),IF(OR($K53="",$K53="Empty",N53=""),"",INDEX(Athletes!$A$4:$E$1003,MATCH(N53,Athletes!$A$4:$A$1003,0),5))) -> 
B54: =IFERROR(IF(Athletes!A47="","",IF(AND(Athletes!F47=$C$4,INDEX(Athletes!$G47:$Z47,1,MATCH($C$3,Athletes!$G$3:$Z$3,0))<>""),Athletes!A47,"")),"") ->  | C54: =IF(B54="","",INDEX(Athletes!$A$4:$E$1003,MATCH(B54,Athletes!$A$4:$A$1003,0),4)) ->  | D54: =IF(B54="","",ABS(SIN(B54))+IF($U$2=1,0,INDEX(Athletes!$AH$4:$AH$102,MATCH($C54,Athletes!$AE$4:$AE$102,0),1))) ->  | I54: =IF(E54="","",100*H54+IFERROR(INDEX(FrontPage!$AA$3:$AD$10,MATCH(COUNTIF(H$11:H54,H54),FrontPage!$AA$3:$AA$10,0),$I$5),COUNTIF(H$11:H54,H54))) ->  | J54: =IF(ROW()-11>$U$2*($U$3+2)-1,"",IF(MOD(ROW()-11,$U$3+2)=0,MAX(J$10:J53)+1,"")) ->  | L54: =IF($J54<>"",$K54,IF($K54="","",IF($K54="Empty",MAX($K$11:$K54)+0.99,MAX($K$11:$K54)+0.01*$K54))) ->  | N54: =IF(J54<>"","Bib",IF(OR($K54="",K54="Empty"),"",IF(A54="",IFERROR(INDEX($E$11:$E$171,MATCH(100*MAX(J$11:J54)+M54,$I$11:$I$171,0),1),""),A54))) ->  | O54: =IF($J54<>"",$A$7,IF(OR($K54="",$K54="Empty",N54=""),"",INDEX(Athletes!$A$4:$E$1003,MATCH(N54,Athletes!$A$4:$A$1003,0),2)&" "& INDEX(Athletes!$A$4:$E$1003,MATCH(N54,Athletes!$A$4:$A$1003,0),3))) ->  | P54: =IF($J54<>"",IF($L$5=1,"Final ","Heat ")&IF(AND($L$5=1,$U$2=1),"",$J54&" of "&$U$2),IF(OR($K54="",$K54="Empty",N54=""),"",INDEX(Athletes!$A$4:$E$1003,MATCH(N54,Athletes!$A$4:$A$1003,0),5))) -> 
B55: =IFERROR(IF(Athletes!A48="","",IF(AND(Athletes!F48=$C$4,INDEX(Athletes!$G48:$Z48,1,MATCH($C$3,Athletes!$G$3:$Z$3,0))<>""),Athletes!A48,"")),"") ->  | C55: =IF(B55="","",INDEX(Athletes!$A$4:$E$1003,MATCH(B55,Athletes!$A$4:$A$1003,0),4)) ->  | D55: =IF(B55="","",ABS(SIN(B55))+IF($U$2=1,0,INDEX(Athletes!$AH$4:$AH$102,MATCH($C55,Athletes!$AE$4:$AE$102,0),1))) ->  | I55: =IF(E55="","",100*H55+IFERROR(INDEX(FrontPage!$AA$3:$AD$10,MATCH(COUNTIF(H$11:H55,H55),FrontPage!$AA$3:$AA$10,0),$I$5),COUNTIF(H$11:H55,H55))) ->  | J55: =IF(ROW()-11>$U$2*($U$3+2)-1,"",IF(MOD(ROW()-11,$U$3+2)=0,MAX(J$10:J54)+1,"")) ->  | L55: =IF($J55<>"",$K55,IF($K55="","",IF($K55="Empty",MAX($K$11:$K55)+0.99,MAX($K$11:$K55)+0.01*$K55))) ->  | N55: =IF(J55<>"","Bib",IF(OR($K55="",K55="Empty"),"",IF(A55="",IFERROR(INDEX($E$11:$E$171,MATCH(100*MAX(J$11:J55)+M55,$I$11:$I$171,0),1),""),A55))) ->  | O55: =IF($J55<>"",$A$7,IF(OR($K55="",$K55="Empty",N55=""),"",INDEX(Athletes!$A$4:$E$1003,MATCH(N55,Athletes!$A$4:$A$1003,0),2)&" "& INDEX(Athletes!$A$4:$E$1003,MATCH(N55,Athletes!$A$4:$A$1003,0),3))) ->  | P55: =IF($J55<>"",IF($L$5=1,"Final ","Heat ")&IF(AND($L$5=1,$U$2=1),"",$J55&" of "&$U$2),IF(OR($K55="",$K55="Empty",N55=""),"",INDEX(Athletes!$A$4:$E$1003,MATCH(N55,Athletes!$A$4:$A$1003,0),5))) -> 
B56: =IFERROR(IF(Athletes!A49="","",IF(AND(Athletes!F49=$C$4,INDEX(Athletes!$G49:$Z49,1,MATCH($C$3,Athletes!$G$3:$Z$3,0))<>""),Athletes!A49,"")),"") ->  | C56: =IF(B56="","",INDEX(Athletes!$A$4:$E$1003,MATCH(B56,Athletes!$A$4:$A$1003,0),4)) ->  | D56: =IF(B56="","",ABS(SIN(B56))+IF($U$2=1,0,INDEX(Athletes!$AH$4:$AH$102,MATCH($C56,Athletes!$AE$4:$AE$102,0),1))) ->  | I56: =IF(E56="","",100*H56+IFERROR(INDEX(FrontPage!$AA$3:$AD$10,MATCH(COUNTIF(H$11:H56,H56),FrontPage!$AA$3:$AA$10,0),$I$5),COUNTIF(H$11:H56,H56))) ->  | J56: =IF(ROW()-11>$U$2*($U$3+2)-1,"",IF(MOD(ROW()-11,$U$3+2)=0,MAX(J$10:J55)+1,"")) ->  | L56: =IF($J56<>"",$K56,IF($K56="","",IF($K56="Empty",MAX($K$11:$K56)+0.99,MAX($K$11:$K56)+0.01*$K56))) ->  | N56: =IF(J56<>"","Bib",IF(OR($K56="",K56="Empty"),"",IF(A56="",IFERROR(INDEX($E$11:$E$171,MATCH(100*MAX(J$11:J56)+M56,$I$11:$I$171,0),1),""),A56))) ->  | O56: =IF($J56<>"",$A$7,IF(OR($K56="",$K56="Empty",N56=""),"",INDEX(Athletes!$A$4:$E$1003,MATCH(N56,Athletes!$A$4:$A$1003,0),2)&" "& INDEX(Athletes!$A$4:$E$1003,MATCH(N56,Athletes!$A$4:$A$1003,0),3))) ->  | P56: =IF($J56<>"",IF($L$5=1,"Final ","Heat ")&IF(AND($L$5=1,$U$2=1),"",$J56&" of "&$U$2),IF(OR($K56="",$K56="Empty",N56=""),"",INDEX(Athletes!$A$4:$E$1003,MATCH(N56,Athletes!$A$4:$A$1003,0),5))) -> 
B57: =IFERROR(IF(Athletes!A50="","",IF(AND(Athletes!F50=$C$4,INDEX(Athletes!$G50:$Z50,1,MATCH($C$3,Athletes!$G$3:$Z$3,0))<>""),Athletes!A50,"")),"") ->  | C57: =IF(B57="","",INDEX(Athletes!$A$4:$E$1003,MATCH(B57,Athletes!$A$4:$A$1003,0),4)) ->  | D57: =IF(B57="","",ABS(SIN(B57))+IF($U$2=1,0,INDEX(Athletes!$AH$4:$AH$102,MATCH($C57,Athletes!$AE$4:$AE$102,0),1))) ->  | I57: =IF(E57="","",100*H57+IFERROR(INDEX(FrontPage!$AA$3:$AD$10,MATCH(COUNTIF(H$11:H57,H57),FrontPage!$AA$3:$AA$10,0),$I$5),COUNTIF(H$11:H57,H57))) ->  | J57: =IF(ROW()-11>$U$2*($U$3+2)-1,"",IF(MOD(ROW()-11,$U$3+2)=0,MAX(J$10:J56)+1,"")) ->  | L57: =IF($J57<>"",$K57,IF($K57="","",IF($K57="Empty",MAX($K$11:$K57)+0.99,MAX($K$11:$K57)+0.01*$K57))) ->  | N57: =IF(J57<>"","Bib",IF(OR($K57="",K57="Empty"),"",IF(A57="",IFERROR(INDEX($E$11:$E$171,MATCH(100*MAX(J$11:J57)+M57,$I$11:$I$171,0),1),""),A57))) ->  | O57: =IF($J57<>"",$A$7,IF(OR($K57="",$K57="Empty",N57=""),"",INDEX(Athletes!$A$4:$E$1003,MATCH(N57,Athletes!$A$4:$A$1003,0),2)&" "& INDEX(Athletes!$A$4:$E$1003,MATCH(N57,Athletes!$A$4:$A$1003,0),3))) ->  | P57: =IF($J57<>"",IF($L$5=1,"Final ","Heat ")&IF(AND($L$5=1,$U$2=1),"",$J57&" of "&$U$2),IF(OR($K57="",$K57="Empty",N57=""),"",INDEX(Athletes!$A$4:$E$1003,MATCH(N57,Athletes!$A$4:$A$1003,0),5))) -> 
B58: =IFERROR(IF(Athletes!A51="","",IF(AND(Athletes!F51=$C$4,INDEX(Athletes!$G51:$Z51,1,MATCH($C$3,Athletes!$G$3:$Z$3,0))<>""),Athletes!A51,"")),"") ->  | C58: =IF(B58="","",INDEX(Athletes!$A$4:$E$1003,MATCH(B58,Athletes!$A$4:$A$1003,0),4)) ->  | D58: =IF(B58="","",ABS(SIN(B58))+IF($U$2=1,0,INDEX(Athletes!$AH$4:$AH$102,MATCH($C58,Athletes!$AE$4:$AE$102,0),1))) ->  | I58: =IF(E58="","",100*H58+IFERROR(INDEX(FrontPage!$AA$3:$AD$10,MATCH(COUNTIF(H$11:H58,H58),FrontPage!$AA$3:$AA$10,0),$I$5),COUNTIF(H$11:H58,H58))) ->  | J58: =IF(ROW()-11>$U$2*($U$3+2)-1,"",IF(MOD(ROW()-11,$U$3+2)=0,MAX(J$10:J57)+1,"")) ->  | L58: =IF($J58<>"",$K58,IF($K58="","",IF($K58="Empty",MAX($K$11:$K58)+0.99,MAX($K$11:$K58)+0.01*$K58))) ->  | N58: =IF(J58<>"","Bib",IF(OR($K58="",K58="Empty"),"",IF(A58="",IFERROR(INDEX($E$11:$E$171,MATCH(100*MAX(J$11:J58)+M58,$I$11:$I$171,0),1),""),A58))) ->  | O58: =IF($J58<>"",$A$7,IF(OR($K58="",$K58="Empty",N58=""),"",INDEX(Athletes!$A$4:$E$1003,MATCH(N58,Athletes!$A$4:$A$1003,0),2)&" "& INDEX(Athletes!$A$4:$E$1003,MATCH(N58,Athletes!$A$4:$A$1003,0),3))) ->  | P58: =IF($J58<>"",IF($L$5=1,"Final ","Heat ")&IF(AND($L$5=1,$U$2=1),"",$J58&" of "&$U$2),IF(OR($K58="",$K58="Empty",N58=""),"",INDEX(Athletes!$A$4:$E$1003,MATCH(N58,Athletes!$A$4:$A$1003,0),5))) -> 
B59: =IFERROR(IF(Athletes!A52="","",IF(AND(Athletes!F52=$C$4,INDEX(Athletes!$G52:$Z52,1,MATCH($C$3,Athletes!$G$3:$Z$3,0))<>""),Athletes!A52,"")),"") ->  | C59: =IF(B59="","",INDEX(Athletes!$A$4:$E$1003,MATCH(B59,Athletes!$A$4:$A$1003,0),4)) ->  | D59: =IF(B59="","",ABS(SIN(B59))+IF($U$2=1,0,INDEX(Athletes!$AH$4:$AH$102,MATCH($C59,Athletes!$AE$4:$AE$102,0),1))) ->  | I59: =IF(E59="","",100*H59+IFERROR(INDEX(FrontPage!$AA$3:$AD$10,MATCH(COUNTIF(H$11:H59,H59),FrontPage!$AA$3:$AA$10,0),$I$5),COUNTIF(H$11:H59,H59))) ->  | J59: =IF(ROW()-11>$U$2*($U$3+2)-1,"",IF(MOD(ROW()-11,$U$3+2)=0,MAX(J$10:J58)+1,"")) ->  | L59: =IF($J59<>"",$K59,IF($K59="","",IF($K59="Empty",MAX($K$11:$K59)+0.99,MAX($K$11:$K59)+0.01*$K59))) ->  | N59: =IF(J59<>"","Bib",IF(OR($K59="",K59="Empty"),"",IF(A59="",IFERROR(INDEX($E$11:$E$171,MATCH(100*MAX(J$11:J59)+M59,$I$11:$I$171,0),1),""),A59))) ->  | O59: =IF($J59<>"",$A$7,IF(OR($K59="",$K59="Empty",N59=""),"",INDEX(Athletes!$A$4:$E$1003,MATCH(N59,Athletes!$A$4:$A$1003,0),2)&" "& INDEX(Athletes!$A$4:$E$1003,MATCH(N59,Athletes!$A$4:$A$1003,0),3))) ->  | P59: =IF($J59<>"",IF($L$5=1,"Final ","Heat ")&IF(AND($L$5=1,$U$2=1),"",$J59&" of "&$U$2),IF(OR($K59="",$K59="Empty",N59=""),"",INDEX(Athletes!$A$4:$E$1003,MATCH(N59,Athletes!$A$4:$A$1003,0),5))) -> 
B60: =IFERROR(IF(Athletes!A53="","",IF(AND(Athletes!F53=$C$4,INDEX(Athletes!$G53:$Z53,1,MATCH($C$3,Athletes!$G$3:$Z$3,0))<>""),Athletes!A53,"")),"") ->  | C60: =IF(B60="","",INDEX(Athletes!$A$4:$E$1003,MATCH(B60,Athletes!$A$4:$A$1003,0),4)) ->  | D60: =IF(B60="","",ABS(SIN(B60))+IF($U$2=1,0,INDEX(Athletes!$AH$4:$AH$102,MATCH($C60,Athletes!$AE$4:$AE$102,0),1))) ->  | I60: =IF(E60="","",100*H60+IFERROR(INDEX(FrontPage!$AA$3:$AD$10,MATCH(COUNTIF(H$11:H60,H60),FrontPage!$AA$3:$AA$10,0),$I$5),COUNTIF(H$11:H60,H60))) ->  | J60: =IF(ROW()-11>$U$2*($U$3+2)-1,"",IF(MOD(ROW()-11,$U$3+2)=0,MAX(J$10:J59)+1,"")) ->  | L60: =IF($J60<>"",$K60,IF($K60="","",IF($K60="Empty",MAX($K$11:$K60)+0.99,MAX($K$11:$K60)+0.01*$K60))) ->  | N60: =IF(J60<>"","Bib",IF(OR($K60="",K60="Empty"),"",IF(A60="",IFERROR(INDEX($E$11:$E$171,MATCH(100*MAX(J$11:J60)+M60,$I$11:$I$171,0),1),""),A60))) ->  | O60: =IF($J60<>"",$A$7,IF(OR($K60="",$K60="Empty",N60=""),"",INDEX(Athletes!$A$4:$E$1003,MATCH(N60,Athletes!$A$4:$A$1003,0),2)&" "& INDEX(Athletes!$A$4:$E$1003,MATCH(N60,Athletes!$A$4:$A$1003,0),3))) ->  | P60: =IF($J60<>"",IF($L$5=1,"Final ","Heat ")&IF(AND($L$5=1,$U$2=1),"",$J60&" of "&$U$2),IF(OR($K60="",$K60="Empty",N60=""),"",INDEX(Athletes!$A$4:$E$1003,MATCH(N60,Athletes!$A$4:$A$1003,0),5))) -> 
B61: =IFERROR(IF(Athletes!A54="","",IF(AND(Athletes!F54=$C$4,INDEX(Athletes!$G54:$Z54,1,MATCH($C$3,Athletes!$G$3:$Z$3,0))<>""),Athletes!A54,"")),"") ->  | C61: =IF(B61="","",INDEX(Athletes!$A$4:$E$1003,MATCH(B61,Athletes!$A$4:$A$1003,0),4)) ->  | D61: =IF(B61="","",ABS(SIN(B61))+IF($U$2=1,0,INDEX(Athletes!$AH$4:$AH$102,MATCH($C61,Athletes!$AE$4:$AE$102,0),1))) ->  | I61: =IF(E61="","",100*H61+IFERROR(INDEX(FrontPage!$AA$3:$AD$10,MATCH(COUNTIF(H$11:H61,H61),FrontPage!$AA$3:$AA$10,0),$I$5),COUNTIF(H$11:H61,H61))) ->  | J61: =IF(ROW()-11>$U$2*($U$3+2)-1,"",IF(MOD(ROW()-11,$U$3+2)=0,MAX(J$10:J60)+1,"")) ->  | L61: =IF($J61<>"",$K61,IF($K61="","",IF($K61="Empty",MAX($K$11:$K61)+0.99,MAX($K$11:$K61)+0.01*$K61))) ->  | N61: =IF(J61<>"","Bib",IF(OR($K61="",K61="Empty"),"",IF(A61="",IFERROR(INDEX($E$11:$E$171,MATCH(100*MAX(J$11:J61)+M61,$I$11:$I$171,0),1),""),A61))) ->  | O61: =IF($J61<>"",$A$7,IF(OR($K61="",$K61="Empty",N61=""),"",INDEX(Athletes!$A$4:$E$1003,MATCH(N61,Athletes!$A$4:$A$1003,0),2)&" "& INDEX(Athletes!$A$4:$E$1003,MATCH(N61,Athletes!$A$4:$A$1003,0),3))) ->  | P61: =IF($J61<>"",IF($L$5=1,"Final ","Heat ")&IF(AND($L$5=1,$U$2=1),"",$J61&" of "&$U$2),IF(OR($K61="",$K61="Empty",N61=""),"",INDEX(Athletes!$A$4:$E$1003,MATCH(N61,Athletes!$A$4:$A$1003,0),5))) -> 
B62: =IFERROR(IF(Athletes!A55="","",IF(AND(Athletes!F55=$C$4,INDEX(Athletes!$G55:$Z55,1,MATCH($C$3,Athletes!$G$3:$Z$3,0))<>""),Athletes!A55,"")),"") ->  | C62: =IF(B62="","",INDEX(Athletes!$A$4:$E$1003,MATCH(B62,Athletes!$A$4:$A$1003,0),4)) ->  | D62: =IF(B62="","",ABS(SIN(B62))+IF($U$2=1,0,INDEX(Athletes!$AH$4:$AH$102,MATCH($C62,Athletes!$AE$4:$AE$102,0),1))) ->  | I62: =IF(E62="","",100*H62+IFERROR(INDEX(FrontPage!$AA$3:$AD$10,MATCH(COUNTIF(H$11:H62,H62),FrontPage!$AA$3:$AA$10,0),$I$5),COUNTIF(H$11:H62,H62))) ->  | J62: =IF(ROW()-11>$U$2*($U$3+2)-1,"",IF(MOD(ROW()-11,$U$3+2)=0,MAX(J$10:J61)+1,"")) ->  | L62: =IF($J62<>"",$K62,IF($K62="","",IF($K62="Empty",MAX($K$11:$K62)+0.99,MAX($K$11:$K62)+0.01*$K62))) ->  | N62: =IF(J62<>"","Bib",IF(OR($K62="",K62="Empty"),"",IF(A62="",IFERROR(INDEX($E$11:$E$171,MATCH(100*MAX(J$11:J62)+M62,$I$11:$I$171,0),1),""),A62))) ->  | O62: =IF($J62<>"",$A$7,IF(OR($K62="",$K62="Empty",N62=""),"",INDEX(Athletes!$A$4:$E$1003,MATCH(N62,Athletes!$A$4:$A$1003,0),2)&" "& INDEX(Athletes!$A$4:$E$1003,MATCH(N62,Athletes!$A$4:$A$1003,0),3))) ->  | P62: =IF($J62<>"",IF($L$5=1,"Final ","Heat ")&IF(AND($L$5=1,$U$2=1),"",$J62&" of "&$U$2),IF(OR($K62="",$K62="Empty",N62=""),"",INDEX(Athletes!$A$4:$E$1003,MATCH(N62,Athletes!$A$4:$A$1003,0),5))) -> 
B63: =IFERROR(IF(Athletes!A56="","",IF(AND(Athletes!F56=$C$4,INDEX(Athletes!$G56:$Z56,1,MATCH($C$3,Athletes!$G$3:$Z$3,0))<>""),Athletes!A56,"")),"") ->  | C63: =IF(B63="","",INDEX(Athletes!$A$4:$E$1003,MATCH(B63,Athletes!$A$4:$A$1003,0),4)) ->  | D63: =IF(B63="","",ABS(SIN(B63))+IF($U$2=1,0,INDEX(Athletes!$AH$4:$AH$102,MATCH($C63,Athletes!$AE$4:$AE$102,0),1))) ->  | I63: =IF(E63="","",100*H63+IFERROR(INDEX(FrontPage!$AA$3:$AD$10,MATCH(COUNTIF(H$11:H63,H63),FrontPage!$AA$3:$AA$10,0),$I$5),COUNTIF(H$11:H63,H63))) ->  | J63: =IF(ROW()-11>$U$2*($U$3+2)-1,"",IF(MOD(ROW()-11,$U$3+2)=0,MAX(J$10:J62)+1,"")) ->  | L63: =IF($J63<>"",$K63,IF($K63="","",IF($K63="Empty",MAX($K$11:$K63)+0.99,MAX($K$11:$K63)+0.01*$K63))) ->  | N63: =IF(J63<>"","Bib",IF(OR($K63="",K63="Empty"),"",IF(A63="",IFERROR(INDEX($E$11:$E$171,MATCH(100*MAX(J$11:J63)+M63,$I$11:$I$171,0),1),""),A63))) ->  | O63: =IF($J63<>"",$A$7,IF(OR($K63="",$K63="Empty",N63=""),"",INDEX(Athletes!$A$4:$E$1003,MATCH(N63,Athletes!$A$4:$A$1003,0),2)&" "& INDEX(Athletes!$A$4:$E$1003,MATCH(N63,Athletes!$A$4:$A$1003,0),3))) ->  | P63: =IF($J63<>"",IF($L$5=1,"Final ","Heat ")&IF(AND($L$5=1,$U$2=1),"",$J63&" of "&$U$2),IF(OR($K63="",$K63="Empty",N63=""),"",INDEX(Athletes!$A$4:$E$1003,MATCH(N63,Athletes!$A$4:$A$1003,0),5))) -> 
B64: =IFERROR(IF(Athletes!A57="","",IF(AND(Athletes!F57=$C$4,INDEX(Athletes!$G57:$Z57,1,MATCH($C$3,Athletes!$G$3:$Z$3,0))<>""),Athletes!A57,"")),"") ->  | C64: =IF(B64="","",INDEX(Athletes!$A$4:$E$1003,MATCH(B64,Athletes!$A$4:$A$1003,0),4)) ->  | D64: =IF(B64="","",ABS(SIN(B64))+IF($U$2=1,0,INDEX(Athletes!$AH$4:$AH$102,MATCH($C64,Athletes!$AE$4:$AE$102,0),1))) ->  | I64: =IF(E64="","",100*H64+IFERROR(INDEX(FrontPage!$AA$3:$AD$10,MATCH(COUNTIF(H$11:H64,H64),FrontPage!$AA$3:$AA$10,0),$I$5),COUNTIF(H$11:H64,H64))) ->  | J64: =IF(ROW()-11>$U$2*($U$3+2)-1,"",IF(MOD(ROW()-11,$U$3+2)=0,MAX(J$10:J63)+1,"")) ->  | L64: =IF($J64<>"",$K64,IF($K64="","",IF($K64="Empty",MAX($K$11:$K64)+0.99,MAX($K$11:$K64)+0.01*$K64))) ->  | N64: =IF(J64<>"","Bib",IF(OR($K64="",K64="Empty"),"",IF(A64="",IFERROR(INDEX($E$11:$E$171,MATCH(100*MAX(J$11:J64)+M64,$I$11:$I$171,0),1),""),A64))) ->  | O64: =IF($J64<>"",$A$7,IF(OR($K64="",$K64="Empty",N64=""),"",INDEX(Athletes!$A$4:$E$1003,MATCH(N64,Athletes!$A$4:$A$1003,0),2)&" "& INDEX(Athletes!$A$4:$E$1003,MATCH(N64,Athletes!$A$4:$A$1003,0),3))) ->  | P64: =IF($J64<>"",IF($L$5=1,"Final ","Heat ")&IF(AND($L$5=1,$U$2=1),"",$J64&" of "&$U$2),IF(OR($K64="",$K64="Empty",N64=""),"",INDEX(Athletes!$A$4:$E$1003,MATCH(N64,Athletes!$A$4:$A$1003,0),5))) -> 
B65: =IFERROR(IF(Athletes!A58="","",IF(AND(Athletes!F58=$C$4,INDEX(Athletes!$G58:$Z58,1,MATCH($C$3,Athletes!$G$3:$Z$3,0))<>""),Athletes!A58,"")),"") ->  | C65: =IF(B65="","",INDEX(Athletes!$A$4:$E$1003,MATCH(B65,Athletes!$A$4:$A$1003,0),4)) ->  | D65: =IF(B65="","",ABS(SIN(B65))+IF($U$2=1,0,INDEX(Athletes!$AH$4:$AH$102,MATCH($C65,Athletes!$AE$4:$AE$102,0),1))) ->  | I65: =IF(E65="","",100*H65+IFERROR(INDEX(FrontPage!$AA$3:$AD$10,MATCH(COUNTIF(H$11:H65,H65),FrontPage!$AA$3:$AA$10,0),$I$5),COUNTIF(H$11:H65,H65))) ->  | J65: =IF(ROW()-11>$U$2*($U$3+2)-1,"",IF(MOD(ROW()-11,$U$3+2)=0,MAX(J$10:J64)+1,"")) ->  | L65: =IF($J65<>"",$K65,IF($K65="","",IF($K65="Empty",MAX($K$11:$K65)+0.99,MAX($K$11:$K65)+0.01*$K65))) ->  | N65: =IF(J65<>"","Bib",IF(OR($K65="",K65="Empty"),"",IF(A65="",IFERROR(INDEX($E$11:$E$171,MATCH(100*MAX(J$11:J65)+M65,$I$11:$I$171,0),1),""),A65))) ->  | O65: =IF($J65<>"",$A$7,IF(OR($K65="",$K65="Empty",N65=""),"",INDEX(Athletes!$A$4:$E$1003,MATCH(N65,Athletes!$A$4:$A$1003,0),2)&" "& INDEX(Athletes!$A$4:$E$1003,MATCH(N65,Athletes!$A$4:$A$1003,0),3))) ->  | P65: =IF($J65<>"",IF($L$5=1,"Final ","Heat ")&IF(AND($L$5=1,$U$2=1),"",$J65&" of "&$U$2),IF(OR($K65="",$K65="Empty",N65=""),"",INDEX(Athletes!$A$4:$E$1003,MATCH(N65,Athletes!$A$4:$A$1003,0),5))) -> 
B66: =IFERROR(IF(Athletes!A59="","",IF(AND(Athletes!F59=$C$4,INDEX(Athletes!$G59:$Z59,1,MATCH($C$3,Athletes!$G$3:$Z$3,0))<>""),Athletes!A59,"")),"") ->  | C66: =IF(B66="","",INDEX(Athletes!$A$4:$E$1003,MATCH(B66,Athletes!$A$4:$A$1003,0),4)) ->  | D66: =IF(B66="","",ABS(SIN(B66))+IF($U$2=1,0,INDEX(Athletes!$AH$4:$AH$102,MATCH($C66,Athletes!$AE$4:$AE$102,0),1))) ->  | I66: =IF(E66="","",100*H66+IFERROR(INDEX(FrontPage!$AA$3:$AD$10,MATCH(COUNTIF(H$11:H66,H66),FrontPage!$AA$3:$AA$10,0),$I$5),COUNTIF(H$11:H66,H66))) ->  | J66: =IF(ROW()-11>$U$2*($U$3+2)-1,"",IF(MOD(ROW()-11,$U$3+2)=0,MAX(J$10:J65)+1,"")) ->  | L66: =IF($J66<>"",$K66,IF($K66="","",IF($K66="Empty",MAX($K$11:$K66)+0.99,MAX($K$11:$K66)+0.01*$K66))) ->  | N66: =IF(J66<>"","Bib",IF(OR($K66="",K66="Empty"),"",IF(A66="",IFERROR(INDEX($E$11:$E$171,MATCH(100*MAX(J$11:J66)+M66,$I$11:$I$171,0),1),""),A66))) ->  | O66: =IF($J66<>"",$A$7,IF(OR($K66="",$K66="Empty",N66=""),"",INDEX(Athletes!$A$4:$E$1003,MATCH(N66,Athletes!$A$4:$A$1003,0),2)&" "& INDEX(Athletes!$A$4:$E$1003,MATCH(N66,Athletes!$A$4:$A$1003,0),3))) ->  | P66: =IF($J66<>"",IF($L$5=1,"Final ","Heat ")&IF(AND($L$5=1,$U$2=1),"",$J66&" of "&$U$2),IF(OR($K66="",$K66="Empty",N66=""),"",INDEX(Athletes!$A$4:$E$1003,MATCH(N66,Athletes!$A$4:$A$1003,0),5))) -> 
B67: =IFERROR(IF(Athletes!A60="","",IF(AND(Athletes!F60=$C$4,INDEX(Athletes!$G60:$Z60,1,MATCH($C$3,Athletes!$G$3:$Z$3,0))<>""),Athletes!A60,"")),"") ->  | C67: =IF(B67="","",INDEX(Athletes!$A$4:$E$1003,MATCH(B67,Athletes!$A$4:$A$1003,0),4)) ->  | D67: =IF(B67="","",ABS(SIN(B67))+IF($U$2=1,0,INDEX(Athletes!$AH$4:$AH$102,MATCH($C67,Athletes!$AE$4:$AE$102,0),1))) ->  | I67: =IF(E67="","",100*H67+IFERROR(INDEX(FrontPage!$AA$3:$AD$10,MATCH(COUNTIF(H$11:H67,H67),FrontPage!$AA$3:$AA$10,0),$I$5),COUNTIF(H$11:H67,H67))) ->  | J67: =IF(ROW()-11>$U$2*($U$3+2)-1,"",IF(MOD(ROW()-11,$U$3+2)=0,MAX(J$10:J66)+1,"")) ->  | L67: =IF($J67<>"",$K67,IF($K67="","",IF($K67="Empty",MAX($K$11:$K67)+0.99,MAX($K$11:$K67)+0.01*$K67))) ->  | N67: =IF(J67<>"","Bib",IF(OR($K67="",K67="Empty"),"",IF(A67="",IFERROR(INDEX($E$11:$E$171,MATCH(100*MAX(J$11:J67)+M67,$I$11:$I$171,0),1),""),A67))) ->  | O67: =IF($J67<>"",$A$7,IF(OR($K67="",$K67="Empty",N67=""),"",INDEX(Athletes!$A$4:$E$1003,MATCH(N67,Athletes!$A$4:$A$1003,0),2)&" "& INDEX(Athletes!$A$4:$E$1003,MATCH(N67,Athletes!$A$4:$A$1003,0),3))) ->  | P67: =IF($J67<>"",IF($L$5=1,"Final ","Heat ")&IF(AND($L$5=1,$U$2=1),"",$J67&" of "&$U$2),IF(OR($K67="",$K67="Empty",N67=""),"",INDEX(Athletes!$A$4:$E$1003,MATCH(N67,Athletes!$A$4:$A$1003,0),5))) -> 
B68: =IFERROR(IF(Athletes!A61="","",IF(AND(Athletes!F61=$C$4,INDEX(Athletes!$G61:$Z61,1,MATCH($C$3,Athletes!$G$3:$Z$3,0))<>""),Athletes!A61,"")),"") ->  | C68: =IF(B68="","",INDEX(Athletes!$A$4:$E$1003,MATCH(B68,Athletes!$A$4:$A$1003,0),4)) ->  | D68: =IF(B68="","",ABS(SIN(B68))+IF($U$2=1,0,INDEX(Athletes!$AH$4:$AH$102,MATCH($C68,Athletes!$AE$4:$AE$102,0),1))) ->  | I68: =IF(E68="","",100*H68+IFERROR(INDEX(FrontPage!$AA$3:$AD$10,MATCH(COUNTIF(H$11:H68,H68),FrontPage!$AA$3:$AA$10,0),$I$5),COUNTIF(H$11:H68,H68))) ->  | J68: =IF(ROW()-11>$U$2*($U$3+2)-1,"",IF(MOD(ROW()-11,$U$3+2)=0,MAX(J$10:J67)+1,"")) ->  | L68: =IF($J68<>"",$K68,IF($K68="","",IF($K68="Empty",MAX($K$11:$K68)+0.99,MAX($K$11:$K68)+0.01*$K68))) ->  | N68: =IF(J68<>"","Bib",IF(OR($K68="",K68="Empty"),"",IF(A68="",IFERROR(INDEX($E$11:$E$171,MATCH(100*MAX(J$11:J68)+M68,$I$11:$I$171,0),1),""),A68))) ->  | O68: =IF($J68<>"",$A$7,IF(OR($K68="",$K68="Empty",N68=""),"",INDEX(Athletes!$A$4:$E$1003,MATCH(N68,Athletes!$A$4:$A$1003,0),2)&" "& INDEX(Athletes!$A$4:$E$1003,MATCH(N68,Athletes!$A$4:$A$1003,0),3))) ->  | P68: =IF($J68<>"",IF($L$5=1,"Final ","Heat ")&IF(AND($L$5=1,$U$2=1),"",$J68&" of "&$U$2),IF(OR($K68="",$K68="Empty",N68=""),"",INDEX(Athletes!$A$4:$E$1003,MATCH(N68,Athletes!$A$4:$A$1003,0),5))) -> 
B69: =IFERROR(IF(Athletes!A62="","",IF(AND(Athletes!F62=$C$4,INDEX(Athletes!$G62:$Z62,1,MATCH($C$3,Athletes!$G$3:$Z$3,0))<>""),Athletes!A62,"")),"") ->  | C69: =IF(B69="","",INDEX(Athletes!$A$4:$E$1003,MATCH(B69,Athletes!$A$4:$A$1003,0),4)) ->  | D69: =IF(B69="","",ABS(SIN(B69))+IF($U$2=1,0,INDEX(Athletes!$AH$4:$AH$102,MATCH($C69,Athletes!$AE$4:$AE$102,0),1))) ->  | I69: =IF(E69="","",100*H69+IFERROR(INDEX(FrontPage!$AA$3:$AD$10,MATCH(COUNTIF(H$11:H69,H69),FrontPage!$AA$3:$AA$10,0),$I$5),COUNTIF(H$11:H69,H69))) ->  | J69: =IF(ROW()-11>$U$2*($U$3+2)-1,"",IF(MOD(ROW()-11,$U$3+2)=0,MAX(J$10:J68)+1,"")) ->  | L69: =IF($J69<>"",$K69,IF($K69="","",IF($K69="Empty",MAX($K$11:$K69)+0.99,MAX($K$11:$K69)+0.01*$K69))) ->  | N69: =IF(J69<>"","Bib",IF(OR($K69="",K69="Empty"),"",IF(A69="",IFERROR(INDEX($E$11:$E$171,MATCH(100*MAX(J$11:J69)+M69,$I$11:$I$171,0),1),""),A69))) ->  | O69: =IF($J69<>"",$A$7,IF(OR($K69="",$K69="Empty",N69=""),"",INDEX(Athletes!$A$4:$E$1003,MATCH(N69,Athletes!$A$4:$A$1003,0),2)&" "& INDEX(Athletes!$A$4:$E$1003,MATCH(N69,Athletes!$A$4:$A$1003,0),3))) ->  | P69: =IF($J69<>"",IF($L$5=1,"Final ","Heat ")&IF(AND($L$5=1,$U$2=1),"",$J69&" of "&$U$2),IF(OR($K69="",$K69="Empty",N69=""),"",INDEX(Athletes!$A$4:$E$1003,MATCH(N69,Athletes!$A$4:$A$1003,0),5))) -> 
B70: =IFERROR(IF(Athletes!A63="","",IF(AND(Athletes!F63=$C$4,INDEX(Athletes!$G63:$Z63,1,MATCH($C$3,Athletes!$G$3:$Z$3,0))<>""),Athletes!A63,"")),"") ->  | C70: =IF(B70="","",INDEX(Athletes!$A$4:$E$1003,MATCH(B70,Athletes!$A$4:$A$1003,0),4)) ->  | D70: =IF(B70="","",ABS(SIN(B70))+IF($U$2=1,0,INDEX(Athletes!$AH$4:$AH$102,MATCH($C70,Athletes!$AE$4:$AE$102,0),1))) ->  | I70: =IF(E70="","",100*H70+IFERROR(INDEX(FrontPage!$AA$3:$AD$10,MATCH(COUNTIF(H$11:H70,H70),FrontPage!$AA$3:$AA$10,0),$I$5),COUNTIF(H$11:H70,H70))) ->  | J70: =IF(ROW()-11>$U$2*($U$3+2)-1,"",IF(MOD(ROW()-11,$U$3+2)=0,MAX(J$10:J69)+1,"")) ->  | L70: =IF($J70<>"",$K70,IF($K70="","",IF($K70="Empty",MAX($K$11:$K70)+0.99,MAX($K$11:$K70)+0.01*$K70))) ->  | N70: =IF(J70<>"","Bib",IF(OR($K70="",K70="Empty"),"",IF(A70="",IFERROR(INDEX($E$11:$E$171,MATCH(100*MAX(J$11:J70)+M70,$I$11:$I$171,0),1),""),A70))) ->  | O70: =IF($J70<>"",$A$7,IF(OR($K70="",$K70="Empty",N70=""),"",INDEX(Athletes!$A$4:$E$1003,MATCH(N70,Athletes!$A$4:$A$1003,0),2)&" "& INDEX(Athletes!$A$4:$E$1003,MATCH(N70,Athletes!$A$4:$A$1003,0),3))) ->  | P70: =IF($J70<>"",IF($L$5=1,"Final ","Heat ")&IF(AND($L$5=1,$U$2=1),"",$J70&" of "&$U$2),IF(OR($K70="",$K70="Empty",N70=""),"",INDEX(Athletes!$A$4:$E$1003,MATCH(N70,Athletes!$A$4:$A$1003,0),5))) -> 
B71: =IFERROR(IF(Athletes!A64="","",IF(AND(Athletes!F64=$C$4,INDEX(Athletes!$G64:$Z64,1,MATCH($C$3,Athletes!$G$3:$Z$3,0))<>""),Athletes!A64,"")),"") ->  | C71: =IF(B71="","",INDEX(Athletes!$A$4:$E$1003,MATCH(B71,Athletes!$A$4:$A$1003,0),4)) ->  | D71: =IF(B71="","",ABS(SIN(B71))+IF($U$2=1,0,INDEX(Athletes!$AH$4:$AH$102,MATCH($C71,Athletes!$AE$4:$AE$102,0),1))) ->  | I71: =IF(E71="","",100*H71+IFERROR(INDEX(FrontPage!$AA$3:$AD$10,MATCH(COUNTIF(H$11:H71,H71),FrontPage!$AA$3:$AA$10,0),$I$5),COUNTIF(H$11:H71,H71))) ->  | J71: =IF(ROW()-11>$U$2*($U$3+2)-1,"",IF(MOD(ROW()-11,$U$3+2)=0,MAX(J$10:J70)+1,"")) ->  | L71: =IF($J71<>"",$K71,IF($K71="","",IF($K71="Empty",MAX($K$11:$K71)+0.99,MAX($K$11:$K71)+0.01*$K71))) ->  | N71: =IF(J71<>"","Bib",IF(OR($K71="",K71="Empty"),"",IF(A71="",IFERROR(INDEX($E$11:$E$171,MATCH(100*MAX(J$11:J71)+M71,$I$11:$I$171,0),1),""),A71))) ->  | O71: =IF($J71<>"",$A$7,IF(OR($K71="",$K71="Empty",N71=""),"",INDEX(Athletes!$A$4:$E$1003,MATCH(N71,Athletes!$A$4:$A$1003,0),2)&" "& INDEX(Athletes!$A$4:$E$1003,MATCH(N71,Athletes!$A$4:$A$1003,0),3))) ->  | P71: =IF($J71<>"",IF($L$5=1,"Final ","Heat ")&IF(AND($L$5=1,$U$2=1),"",$J71&" of "&$U$2),IF(OR($K71="",$K71="Empty",N71=""),"",INDEX(Athletes!$A$4:$E$1003,MATCH(N71,Athletes!$A$4:$A$1003,0),5))) -> 
B72: =IFERROR(IF(Athletes!A65="","",IF(AND(Athletes!F65=$C$4,INDEX(Athletes!$G65:$Z65,1,MATCH($C$3,Athletes!$G$3:$Z$3,0))<>""),Athletes!A65,"")),"") ->  | C72: =IF(B72="","",INDEX(Athletes!$A$4:$E$1003,MATCH(B72,Athletes!$A$4:$A$1003,0),4)) ->  | D72: =IF(B72="","",ABS(SIN(B72))+IF($U$2=1,0,INDEX(Athletes!$AH$4:$AH$102,MATCH($C72,Athletes!$AE$4:$AE$102,0),1))) ->  | I72: =IF(E72="","",100*H72+IFERROR(INDEX(FrontPage!$AA$3:$AD$10,MATCH(COUNTIF(H$11:H72,H72),FrontPage!$AA$3:$AA$10,0),$I$5),COUNTIF(H$11:H72,H72))) ->  | J72: =IF(ROW()-11>$U$2*($U$3+2)-1,"",IF(MOD(ROW()-11,$U$3+2)=0,MAX(J$10:J71)+1,"")) ->  | L72: =IF($J72<>"",$K72,IF($K72="","",IF($K72="Empty",MAX($K$11:$K72)+0.99,MAX($K$11:$K72)+0.01*$K72))) ->  | N72: =IF(J72<>"","Bib",IF(OR($K72="",K72="Empty"),"",IF(A72="",IFERROR(INDEX($E$11:$E$171,MATCH(100*MAX(J$11:J72)+M72,$I$11:$I$171,0),1),""),A72))) ->  | O72: =IF($J72<>"",$A$7,IF(OR($K72="",$K72="Empty",N72=""),"",INDEX(Athletes!$A$4:$E$1003,MATCH(N72,Athletes!$A$4:$A$1003,0),2)&" "& INDEX(Athletes!$A$4:$E$1003,MATCH(N72,Athletes!$A$4:$A$1003,0),3))) ->  | P72: =IF($J72<>"",IF($L$5=1,"Final ","Heat ")&IF(AND($L$5=1,$U$2=1),"",$J72&" of "&$U$2),IF(OR($K72="",$K72="Empty",N72=""),"",INDEX(Athletes!$A$4:$E$1003,MATCH(N72,Athletes!$A$4:$A$1003,0),5))) -> 
B73: =IFERROR(IF(Athletes!A66="","",IF(AND(Athletes!F66=$C$4,INDEX(Athletes!$G66:$Z66,1,MATCH($C$3,Athletes!$G$3:$Z$3,0))<>""),Athletes!A66,"")),"") ->  | C73: =IF(B73="","",INDEX(Athletes!$A$4:$E$1003,MATCH(B73,Athletes!$A$4:$A$1003,0),4)) ->  | D73: =IF(B73="","",ABS(SIN(B73))+IF($U$2=1,0,INDEX(Athletes!$AH$4:$AH$102,MATCH($C73,Athletes!$AE$4:$AE$102,0),1))) ->  | I73: =IF(E73="","",100*H73+IFERROR(INDEX(FrontPage!$AA$3:$AD$10,MATCH(COUNTIF(H$11:H73,H73),FrontPage!$AA$3:$AA$10,0),$I$5),COUNTIF(H$11:H73,H73))) ->  | J73: =IF(ROW()-11>$U$2*($U$3+2)-1,"",IF(MOD(ROW()-11,$U$3+2)=0,MAX(J$10:J72)+1,"")) ->  | L73: =IF($J73<>"",$K73,IF($K73="","",IF($K73="Empty",MAX($K$11:$K73)+0.99,MAX($K$11:$K73)+0.01*$K73))) ->  | N73: =IF(J73<>"","Bib",IF(OR($K73="",K73="Empty"),"",IF(A73="",IFERROR(INDEX($E$11:$E$171,MATCH(100*MAX(J$11:J73)+M73,$I$11:$I$171,0),1),""),A73))) ->  | O73: =IF($J73<>"",$A$7,IF(OR($K73="",$K73="Empty",N73=""),"",INDEX(Athletes!$A$4:$E$1003,MATCH(N73,Athletes!$A$4:$A$1003,0),2)&" "& INDEX(Athletes!$A$4:$E$1003,MATCH(N73,Athletes!$A$4:$A$1003,0),3))) ->  | P73: =IF($J73<>"",IF($L$5=1,"Final ","Heat ")&IF(AND($L$5=1,$U$2=1),"",$J73&" of "&$U$2),IF(OR($K73="",$K73="Empty",N73=""),"",INDEX(Athletes!$A$4:$E$1003,MATCH(N73,Athletes!$A$4:$A$1003,0),5))) -> 
B74: =IFERROR(IF(Athletes!A67="","",IF(AND(Athletes!F67=$C$4,INDEX(Athletes!$G67:$Z67,1,MATCH($C$3,Athletes!$G$3:$Z$3,0))<>""),Athletes!A67,"")),"") ->  | C74: =IF(B74="","",INDEX(Athletes!$A$4:$E$1003,MATCH(B74,Athletes!$A$4:$A$1003,0),4)) ->  | D74: =IF(B74="","",ABS(SIN(B74))+IF($U$2=1,0,INDEX(Athletes!$AH$4:$AH$102,MATCH($C74,Athletes!$AE$4:$AE$102,0),1))) ->  | I74: =IF(E74="","",100*H74+IFERROR(INDEX(FrontPage!$AA$3:$AD$10,MATCH(COUNTIF(H$11:H74,H74),FrontPage!$AA$3:$AA$10,0),$I$5),COUNTIF(H$11:H74,H74))) ->  | J74: =IF(ROW()-11>$U$2*($U$3+2)-1,"",IF(MOD(ROW()-11,$U$3+2)=0,MAX(J$10:J73)+1,"")) ->  | L74: =IF($J74<>"",$K74,IF($K74="","",IF($K74="Empty",MAX($K$11:$K74)+0.99,MAX($K$11:$K74)+0.01*$K74))) ->  | N74: =IF(J74<>"","Bib",IF(OR($K74="",K74="Empty"),"",IF(A74="",IFERROR(INDEX($E$11:$E$171,MATCH(100*MAX(J$11:J74)+M74,$I$11:$I$171,0),1),""),A74))) ->  | O74: =IF($J74<>"",$A$7,IF(OR($K74="",$K74="Empty",N74=""),"",INDEX(Athletes!$A$4:$E$1003,MATCH(N74,Athletes!$A$4:$A$1003,0),2)&" "& INDEX(Athletes!$A$4:$E$1003,MATCH(N74,Athletes!$A$4:$A$1003,0),3))) ->  | P74: =IF($J74<>"",IF($L$5=1,"Final ","Heat ")&IF(AND($L$5=1,$U$2=1),"",$J74&" of "&$U$2),IF(OR($K74="",$K74="Empty",N74=""),"",INDEX(Athletes!$A$4:$E$1003,MATCH(N74,Athletes!$A$4:$A$1003,0),5))) -> 
B75: =IFERROR(IF(Athletes!A68="","",IF(AND(Athletes!F68=$C$4,INDEX(Athletes!$G68:$Z68,1,MATCH($C$3,Athletes!$G$3:$Z$3,0))<>""),Athletes!A68,"")),"") ->  | C75: =IF(B75="","",INDEX(Athletes!$A$4:$E$1003,MATCH(B75,Athletes!$A$4:$A$1003,0),4)) ->  | D75: =IF(B75="","",ABS(SIN(B75))+IF($U$2=1,0,INDEX(Athletes!$AH$4:$AH$102,MATCH($C75,Athletes!$AE$4:$AE$102,0),1))) ->  | I75: =IF(E75="","",100*H75+IFERROR(INDEX(FrontPage!$AA$3:$AD$10,MATCH(COUNTIF(H$11:H75,H75),FrontPage!$AA$3:$AA$10,0),$I$5),COUNTIF(H$11:H75,H75))) ->  | J75: =IF(ROW()-11>$U$2*($U$3+2)-1,"",IF(MOD(ROW()-11,$U$3+2)=0,MAX(J$10:J74)+1,"")) ->  | K75: =IF(ROW()-11>$U$2*($U$3+2)-1,"",IF(MOD(ROW()-11,$U$3+2)=0,$N$3*10000+100+J75,IF(MOD(ROW()-11,$U$3+2)=$U$3+1,"Empty",(MOD(ROW()-11,$U$3+2))))) ->  | L75: =IF($J75<>"",$K75,IF($K75="","",IF($K75="Empty",MAX($K$11:$K75)+0.99,MAX($K$11:$K75)+0.01*$K75))) ->  | N75: =IF(J75<>"","Bib",IF(OR($K75="",K75="Empty"),"",IF(A75="",IFERROR(INDEX($E$11:$E$171,MATCH(100*MAX(J$11:J75)+M75,$I$11:$I$171,0),1),""),A75))) ->  | O75: =IF($J75<>"",$A$7,IF(OR($K75="",$K75="Empty",N75=""),"",INDEX(Athletes!$A$4:$E$1003,MATCH(N75,Athletes!$A$4:$A$1003,0),2)&" "& INDEX(Athletes!$A$4:$E$1003,MATCH(N75,Athletes!$A$4:$A$1003,0),3))) ->  | P75: =IF($J75<>"",IF($L$5=1,"Final ","Heat ")&IF(AND($L$5=1,$U$2=1),"",$J75&" of "&$U$2),IF(OR($K75="",$K75="Empty",N75=""),"",INDEX(Athletes!$A$4:$E$1003,MATCH(N75,Athletes!$A$4:$A$1003,0),5))) ->  | Q75: =IF($J75<>"",IF($L$5=1,"","First"),"") ->  | R75: =IF($J75<>"",IF($L$5=1,"",$U$4),"") ->  | S75: =IF($J75<>"",IF($L$5=1,"","plus "),"") ->  | T75: =IF($J75<>"",IF($L$5=1,"",$U$5),"") -> 
B76: =IFERROR(IF(Athletes!A69="","",IF(AND(Athletes!F69=$C$4,INDEX(Athletes!$G69:$Z69,1,MATCH($C$3,Athletes!$G$3:$Z$3,0))<>""),Athletes!A69,"")),"") ->  | C76: =IF(B76="","",INDEX(Athletes!$A$4:$E$1003,MATCH(B76,Athletes!$A$4:$A$1003,0),4)) ->  | D76: =IF(B76="","",ABS(SIN(B76))+IF($U$2=1,0,INDEX(Athletes!$AH$4:$AH$102,MATCH($C76,Athletes!$AE$4:$AE$102,0),1))) ->  | H76: =IF(E76="","",IF($L$5=1,1,IF(H75=$U$2,1,H75+1))) ->  | I76: =IF(E76="","",100*H76+IFERROR(INDEX(FrontPage!$AA$3:$AD$10,MATCH(COUNTIF(H$11:H76,H76),FrontPage!$AA$3:$AA$10,0),$I$5),COUNTIF(H$11:H76,H76))) ->  | J76: =IF(ROW()-11>$U$2*($U$3+2)-1,"",IF(MOD(ROW()-11,$U$3+2)=0,MAX(J$10:J75)+1,"")) ->  | L76: =IF($J76<>"",$K76,IF($K76="","",IF($K76="Empty",MAX($K$11:$K76)+0.99,MAX($K$11:$K76)+0.01*$K76))) ->  | M76: =IF($J76<>"","La",IF($K76="","",IF($K76="Empty","-",$K76))) ->  | N76: =IF(J76<>"","Bib",IF(OR($K76="",K76="Empty"),"",IF(A76="",IFERROR(INDEX($E$11:$E$171,MATCH(100*MAX(J$11:J76)+M76,$I$11:$I$171,0),1),""),A76))) ->  | O76: =IF($J76<>"",$A$7,IF(OR($K76="",$K76="Empty",N76=""),"",INDEX(Athletes!$A$4:$E$1003,MATCH(N76,Athletes!$A$4:$A$1003,0),2)&" "& INDEX(Athletes!$A$4:$E$1003,MATCH(N76,Athletes!$A$4:$A$1003,0),3))) ->  | P76: =IF($J76<>"",IF($L$5=1,"Final ","Heat ")&IF(AND($L$5=1,$U$2=1),"",$J76&" of "&$U$2),IF(OR($K76="",$K76="Empty",N76=""),"",INDEX(Athletes!$A$4:$E$1003,MATCH(N76,Athletes!$A$4:$A$1003,0),5))) -> 
B77: =IFERROR(IF(Athletes!A70="","",IF(AND(Athletes!F70=$C$4,INDEX(Athletes!$G70:$Z70,1,MATCH($C$3,Athletes!$G$3:$Z$3,0))<>""),Athletes!A70,"")),"") ->  | C77: =IF(B77="","",INDEX(Athletes!$A$4:$E$1003,MATCH(B77,Athletes!$A$4:$A$1003,0),4)) ->  | D77: =IF(B77="","",ABS(SIN(B77))+IF($U$2=1,0,INDEX(Athletes!$AH$4:$AH$102,MATCH($C77,Athletes!$AE$4:$AE$102,0),1))) ->  | I77: =IF(E77="","",100*H77+IFERROR(INDEX(FrontPage!$AA$3:$AD$10,MATCH(COUNTIF(H$11:H77,H77),FrontPage!$AA$3:$AA$10,0),$I$5),COUNTIF(H$11:H77,H77))) ->  | J77: =IF(ROW()-11>$U$2*($U$3+2)-1,"",IF(MOD(ROW()-11,$U$3+2)=0,MAX(J$10:J76)+1,"")) ->  | L77: =IF($J77<>"",$K77,IF($K77="","",IF($K77="Empty",MAX($K$11:$K77)+0.99,MAX($K$11:$K77)+0.01*$K77))) ->  | N77: =IF(J77<>"","Bib",IF(OR($K77="",K77="Empty"),"",IF(A77="",IFERROR(INDEX($E$11:$E$171,MATCH(100*MAX(J$11:J77)+M77,$I$11:$I$171,0),1),""),A77))) ->  | O77: =IF($J77<>"",$A$7,IF(OR($K77="",$K77="Empty",N77=""),"",INDEX(Athletes!$A$4:$E$1003,MATCH(N77,Athletes!$A$4:$A$1003,0),2)&" "& INDEX(Athletes!$A$4:$E$1003,MATCH(N77,Athletes!$A$4:$A$1003,0),3))) ->  | P77: =IF($J77<>"",IF($L$5=1,"Final ","Heat ")&IF(AND($L$5=1,$U$2=1),"",$J77&" of "&$U$2),IF(OR($K77="",$K77="Empty",N77=""),"",INDEX(Athletes!$A$4:$E$1003,MATCH(N77,Athletes!$A$4:$A$1003,0),5))) -> 
B78: =IFERROR(IF(Athletes!A71="","",IF(AND(Athletes!F71=$C$4,INDEX(Athletes!$G71:$Z71,1,MATCH($C$3,Athletes!$G$3:$Z$3,0))<>""),Athletes!A71,"")),"") ->  | C78: =IF(B78="","",INDEX(Athletes!$A$4:$E$1003,MATCH(B78,Athletes!$A$4:$A$1003,0),4)) ->  | D78: =IF(B78="","",ABS(SIN(B78))+IF($U$2=1,0,INDEX(Athletes!$AH$4:$AH$102,MATCH($C78,Athletes!$AE$4:$AE$102,0),1))) ->  | I78: =IF(E78="","",100*H78+IFERROR(INDEX(FrontPage!$AA$3:$AD$10,MATCH(COUNTIF(H$11:H78,H78),FrontPage!$AA$3:$AA$10,0),$I$5),COUNTIF(H$11:H78,H78))) ->  | J78: =IF(ROW()-11>$U$2*($U$3+2)-1,"",IF(MOD(ROW()-11,$U$3+2)=0,MAX(J$10:J77)+1,"")) ->  | L78: =IF($J78<>"",$K78,IF($K78="","",IF($K78="Empty",MAX($K$11:$K78)+0.99,MAX($K$11:$K78)+0.01*$K78))) ->  | N78: =IF(J78<>"","Bib",IF(OR($K78="",K78="Empty"),"",IF(A78="",IFERROR(INDEX($E$11:$E$171,MATCH(100*MAX(J$11:J78)+M78,$I$11:$I$171,0),1),""),A78))) ->  | O78: =IF($J78<>"",$A$7,IF(OR($K78="",$K78="Empty",N78=""),"",INDEX(Athletes!$A$4:$E$1003,MATCH(N78,Athletes!$A$4:$A$1003,0),2)&" "& INDEX(Athletes!$A$4:$E$1003,MATCH(N78,Athletes!$A$4:$A$1003,0),3))) ->  | P78: =IF($J78<>"",IF($L$5=1,"Final ","Heat ")&IF(AND($L$5=1,$U$2=1),"",$J78&" of "&$U$2),IF(OR($K78="",$K78="Empty",N78=""),"",INDEX(Athletes!$A$4:$E$1003,MATCH(N78,Athletes!$A$4:$A$1003,0),5))) -> 
B79: =IFERROR(IF(Athletes!A72="","",IF(AND(Athletes!F72=$C$4,INDEX(Athletes!$G72:$Z72,1,MATCH($C$3,Athletes!$G$3:$Z$3,0))<>""),Athletes!A72,"")),"") ->  | C79: =IF(B79="","",INDEX(Athletes!$A$4:$E$1003,MATCH(B79,Athletes!$A$4:$A$1003,0),4)) ->  | D79: =IF(B79="","",ABS(SIN(B79))+IF($U$2=1,0,INDEX(Athletes!$AH$4:$AH$102,MATCH($C79,Athletes!$AE$4:$AE$102,0),1))) ->  | I79: =IF(E79="","",100*H79+IFERROR(INDEX(FrontPage!$AA$3:$AD$10,MATCH(COUNTIF(H$11:H79,H79),FrontPage!$AA$3:$AA$10,0),$I$5),COUNTIF(H$11:H79,H79))) ->  | J79: =IF(ROW()-11>$U$2*($U$3+2)-1,"",IF(MOD(ROW()-11,$U$3+2)=0,MAX(J$10:J78)+1,"")) ->  | L79: =IF($J79<>"",$K79,IF($K79="","",IF($K79="Empty",MAX($K$11:$K79)+0.99,MAX($K$11:$K79)+0.01*$K79))) ->  | N79: =IF(J79<>"","Bib",IF(OR($K79="",K79="Empty"),"",IF(A79="",IFERROR(INDEX($E$11:$E$171,MATCH(100*MAX(J$11:J79)+M79,$I$11:$I$171,0),1),""),A79))) ->  | O79: =IF($J79<>"",$A$7,IF(OR($K79="",$K79="Empty",N79=""),"",INDEX(Athletes!$A$4:$E$1003,MATCH(N79,Athletes!$A$4:$A$1003,0),2)&" "& INDEX(Athletes!$A$4:$E$1003,MATCH(N79,Athletes!$A$4:$A$1003,0),3))) ->  | P79: =IF($J79<>"",IF($L$5=1,"Final ","Heat ")&IF(AND($L$5=1,$U$2=1),"",$J79&" of "&$U$2),IF(OR($K79="",$K79="Empty",N79=""),"",INDEX(Athletes!$A$4:$E$1003,MATCH(N79,Athletes!$A$4:$A$1003,0),5))) -> 
B80: =IFERROR(IF(Athletes!A73="","",IF(AND(Athletes!F73=$C$4,INDEX(Athletes!$G73:$Z73,1,MATCH($C$3,Athletes!$G$3:$Z$3,0))<>""),Athletes!A73,"")),"") ->  | C80: =IF(B80="","",INDEX(Athletes!$A$4:$E$1003,MATCH(B80,Athletes!$A$4:$A$1003,0),4)) ->  | D80: =IF(B80="","",ABS(SIN(B80))+IF($U$2=1,0,INDEX(Athletes!$AH$4:$AH$102,MATCH($C80,Athletes!$AE$4:$AE$102,0),1))) ->  | I80: =IF(E80="","",100*H80+IFERROR(INDEX(FrontPage!$AA$3:$AD$10,MATCH(COUNTIF(H$11:H80,H80),FrontPage!$AA$3:$AA$10,0),$I$5),COUNTIF(H$11:H80,H80))) ->  | J80: =IF(ROW()-11>$U$2*($U$3+2)-1,"",IF(MOD(ROW()-11,$U$3+2)=0,MAX(J$10:J79)+1,"")) ->  | L80: =IF($J80<>"",$K80,IF($K80="","",IF($K80="Empty",MAX($K$11:$K80)+0.99,MAX($K$11:$K80)+0.01*$K80))) ->  | N80: =IF(J80<>"","Bib",IF(OR($K80="",K80="Empty"),"",IF(A80="",IFERROR(INDEX($E$11:$E$171,MATCH(100*MAX(J$11:J80)+M80,$I$11:$I$171,0),1),""),A80))) ->  | O80: =IF($J80<>"",$A$7,IF(OR($K80="",$K80="Empty",N80=""),"",INDEX(Athletes!$A$4:$E$1003,MATCH(N80,Athletes!$A$4:$A$1003,0),2)&" "& INDEX(Athletes!$A$4:$E$1003,MATCH(N80,Athletes!$A$4:$A$1003,0),3))) ->  | P80: =IF($J80<>"",IF($L$5=1,"Final ","Heat ")&IF(AND($L$5=1,$U$2=1),"",$J80&" of "&$U$2),IF(OR($K80="",$K80="Empty",N80=""),"",INDEX(Athletes!$A$4:$E$1003,MATCH(N80,Athletes!$A$4:$A$1003,0),5))) -> 
B81: =IFERROR(IF(Athletes!A74="","",IF(AND(Athletes!F74=$C$4,INDEX(Athletes!$G74:$Z74,1,MATCH($C$3,Athletes!$G$3:$Z$3,0))<>""),Athletes!A74,"")),"") ->  | C81: =IF(B81="","",INDEX(Athletes!$A$4:$E$1003,MATCH(B81,Athletes!$A$4:$A$1003,0),4)) ->  | D81: =IF(B81="","",ABS(SIN(B81))+IF($U$2=1,0,INDEX(Athletes!$AH$4:$AH$102,MATCH($C81,Athletes!$AE$4:$AE$102,0),1))) ->  | I81: =IF(E81="","",100*H81+IFERROR(INDEX(FrontPage!$AA$3:$AD$10,MATCH(COUNTIF(H$11:H81,H81),FrontPage!$AA$3:$AA$10,0),$I$5),COUNTIF(H$11:H81,H81))) ->  | J81: =IF(ROW()-11>$U$2*($U$3+2)-1,"",IF(MOD(ROW()-11,$U$3+2)=0,MAX(J$10:J80)+1,"")) ->  | L81: =IF($J81<>"",$K81,IF($K81="","",IF($K81="Empty",MAX($K$11:$K81)+0.99,MAX($K$11:$K81)+0.01*$K81))) ->  | N81: =IF(J81<>"","Bib",IF(OR($K81="",K81="Empty"),"",IF(A81="",IFERROR(INDEX($E$11:$E$171,MATCH(100*MAX(J$11:J81)+M81,$I$11:$I$171,0),1),""),A81))) ->  | O81: =IF($J81<>"",$A$7,IF(OR($K81="",$K81="Empty",N81=""),"",INDEX(Athletes!$A$4:$E$1003,MATCH(N81,Athletes!$A$4:$A$1003,0),2)&" "& INDEX(Athletes!$A$4:$E$1003,MATCH(N81,Athletes!$A$4:$A$1003,0),3))) ->  | P81: =IF($J81<>"",IF($L$5=1,"Final ","Heat ")&IF(AND($L$5=1,$U$2=1),"",$J81&" of "&$U$2),IF(OR($K81="",$K81="Empty",N81=""),"",INDEX(Athletes!$A$4:$E$1003,MATCH(N81,Athletes!$A$4:$A$1003,0),5))) -> 
B82: =IFERROR(IF(Athletes!A75="","",IF(AND(Athletes!F75=$C$4,INDEX(Athletes!$G75:$Z75,1,MATCH($C$3,Athletes!$G$3:$Z$3,0))<>""),Athletes!A75,"")),"") ->  | C82: =IF(B82="","",INDEX(Athletes!$A$4:$E$1003,MATCH(B82,Athletes!$A$4:$A$1003,0),4)) ->  | D82: =IF(B82="","",ABS(SIN(B82))+IF($U$2=1,0,INDEX(Athletes!$AH$4:$AH$102,MATCH($C82,Athletes!$AE$4:$AE$102,0),1))) ->  | I82: =IF(E82="","",100*H82+IFERROR(INDEX(FrontPage!$AA$3:$AD$10,MATCH(COUNTIF(H$11:H82,H82),FrontPage!$AA$3:$AA$10,0),$I$5),COUNTIF(H$11:H82,H82))) ->  | J82: =IF(ROW()-11>$U$2*($U$3+2)-1,"",IF(MOD(ROW()-11,$U$3+2)=0,MAX(J$10:J81)+1,"")) ->  | L82: =IF($J82<>"",$K82,IF($K82="","",IF($K82="Empty",MAX($K$11:$K82)+0.99,MAX($K$11:$K82)+0.01*$K82))) ->  | N82: =IF(J82<>"","Bib",IF(OR($K82="",K82="Empty"),"",IF(A82="",IFERROR(INDEX($E$11:$E$171,MATCH(100*MAX(J$11:J82)+M82,$I$11:$I$171,0),1),""),A82))) ->  | O82: =IF($J82<>"",$A$7,IF(OR($K82="",$K82="Empty",N82=""),"",INDEX(Athletes!$A$4:$E$1003,MATCH(N82,Athletes!$A$4:$A$1003,0),2)&" "& INDEX(Athletes!$A$4:$E$1003,MATCH(N82,Athletes!$A$4:$A$1003,0),3))) ->  | P82: =IF($J82<>"",IF($L$5=1,"Final ","Heat ")&IF(AND($L$5=1,$U$2=1),"",$J82&" of "&$U$2),IF(OR($K82="",$K82="Empty",N82=""),"",INDEX(Athletes!$A$4:$E$1003,MATCH(N82,Athletes!$A$4:$A$1003,0),5))) -> 
B83: =IFERROR(IF(Athletes!A76="","",IF(AND(Athletes!F76=$C$4,INDEX(Athletes!$G76:$Z76,1,MATCH($C$3,Athletes!$G$3:$Z$3,0))<>""),Athletes!A76,"")),"") ->  | C83: =IF(B83="","",INDEX(Athletes!$A$4:$E$1003,MATCH(B83,Athletes!$A$4:$A$1003,0),4)) ->  | D83: =IF(B83="","",ABS(SIN(B83))+IF($U$2=1,0,INDEX(Athletes!$AH$4:$AH$102,MATCH($C83,Athletes!$AE$4:$AE$102,0),1))) ->  | I83: =IF(E83="","",100*H83+IFERROR(INDEX(FrontPage!$AA$3:$AD$10,MATCH(COUNTIF(H$11:H83,H83),FrontPage!$AA$3:$AA$10,0),$I$5),COUNTIF(H$11:H83,H83))) ->  | J83: =IF(ROW()-11>$U$2*($U$3+2)-1,"",IF(MOD(ROW()-11,$U$3+2)=0,MAX(J$10:J82)+1,"")) ->  | L83: =IF($J83<>"",$K83,IF($K83="","",IF($K83="Empty",MAX($K$11:$K83)+0.99,MAX($K$11:$K83)+0.01*$K83))) ->  | N83: =IF(J83<>"","Bib",IF(OR($K83="",K83="Empty"),"",IF(A83="",IFERROR(INDEX($E$11:$E$171,MATCH(100*MAX(J$11:J83)+M83,$I$11:$I$171,0),1),""),A83))) ->  | O83: =IF($J83<>"",$A$7,IF(OR($K83="",$K83="Empty",N83=""),"",INDEX(Athletes!$A$4:$E$1003,MATCH(N83,Athletes!$A$4:$A$1003,0),2)&" "& INDEX(Athletes!$A$4:$E$1003,MATCH(N83,Athletes!$A$4:$A$1003,0),3))) ->  | P83: =IF($J83<>"",IF($L$5=1,"Final ","Heat ")&IF(AND($L$5=1,$U$2=1),"",$J83&" of "&$U$2),IF(OR($K83="",$K83="Empty",N83=""),"",INDEX(Athletes!$A$4:$E$1003,MATCH(N83,Athletes!$A$4:$A$1003,0),5))) -> 
B84: =IFERROR(IF(Athletes!A77="","",IF(AND(Athletes!F77=$C$4,INDEX(Athletes!$G77:$Z77,1,MATCH($C$3,Athletes!$G$3:$Z$3,0))<>""),Athletes!A77,"")),"") ->  | C84: =IF(B84="","",INDEX(Athletes!$A$4:$E$1003,MATCH(B84,Athletes!$A$4:$A$1003,0),4)) ->  | D84: =IF(B84="","",ABS(SIN(B84))+IF($U$2=1,0,INDEX(Athletes!$AH$4:$AH$102,MATCH($C84,Athletes!$AE$4:$AE$102,0),1))) ->  | I84: =IF(E84="","",100*H84+IFERROR(INDEX(FrontPage!$AA$3:$AD$10,MATCH(COUNTIF(H$11:H84,H84),FrontPage!$AA$3:$AA$10,0),$I$5),COUNTIF(H$11:H84,H84))) ->  | J84: =IF(ROW()-11>$U$2*($U$3+2)-1,"",IF(MOD(ROW()-11,$U$3+2)=0,MAX(J$10:J83)+1,"")) ->  | L84: =IF($J84<>"",$K84,IF($K84="","",IF($K84="Empty",MAX($K$11:$K84)+0.99,MAX($K$11:$K84)+0.01*$K84))) ->  | N84: =IF(J84<>"","Bib",IF(OR($K84="",K84="Empty"),"",IF(A84="",IFERROR(INDEX($E$11:$E$171,MATCH(100*MAX(J$11:J84)+M84,$I$11:$I$171,0),1),""),A84))) ->  | O84: =IF($J84<>"",$A$7,IF(OR($K84="",$K84="Empty",N84=""),"",INDEX(Athletes!$A$4:$E$1003,MATCH(N84,Athletes!$A$4:$A$1003,0),2)&" "& INDEX(Athletes!$A$4:$E$1003,MATCH(N84,Athletes!$A$4:$A$1003,0),3))) ->  | P84: =IF($J84<>"",IF($L$5=1,"Final ","Heat ")&IF(AND($L$5=1,$U$2=1),"",$J84&" of "&$U$2),IF(OR($K84="",$K84="Empty",N84=""),"",INDEX(Athletes!$A$4:$E$1003,MATCH(N84,Athletes!$A$4:$A$1003,0),5))) -> 
B85: =IFERROR(IF(Athletes!A78="","",IF(AND(Athletes!F78=$C$4,INDEX(Athletes!$G78:$Z78,1,MATCH($C$3,Athletes!$G$3:$Z$3,0))<>""),Athletes!A78,"")),"") ->  | C85: =IF(B85="","",INDEX(Athletes!$A$4:$E$1003,MATCH(B85,Athletes!$A$4:$A$1003,0),4)) ->  | D85: =IF(B85="","",ABS(SIN(B85))+IF($U$2=1,0,INDEX(Athletes!$AH$4:$AH$102,MATCH($C85,Athletes!$AE$4:$AE$102,0),1))) ->  | I85: =IF(E85="","",100*H85+IFERROR(INDEX(FrontPage!$AA$3:$AD$10,MATCH(COUNTIF(H$11:H85,H85),FrontPage!$AA$3:$AA$10,0),$I$5),COUNTIF(H$11:H85,H85))) ->  | J85: =IF(ROW()-11>$U$2*($U$3+2)-1,"",IF(MOD(ROW()-11,$U$3+2)=0,MAX(J$10:J84)+1,"")) ->  | L85: =IF($J85<>"",$K85,IF($K85="","",IF($K85="Empty",MAX($K$11:$K85)+0.99,MAX($K$11:$K85)+0.01*$K85))) ->  | N85: =IF(J85<>"","Bib",IF(OR($K85="",K85="Empty"),"",IF(A85="",IFERROR(INDEX($E$11:$E$171,MATCH(100*MAX(J$11:J85)+M85,$I$11:$I$171,0),1),""),A85))) ->  | O85: =IF($J85<>"",$A$7,IF(OR($K85="",$K85="Empty",N85=""),"",INDEX(Athletes!$A$4:$E$1003,MATCH(N85,Athletes!$A$4:$A$1003,0),2)&" "& INDEX(Athletes!$A$4:$E$1003,MATCH(N85,Athletes!$A$4:$A$1003,0),3))) ->  | P85: =IF($J85<>"",IF($L$5=1,"Final ","Heat ")&IF(AND($L$5=1,$U$2=1),"",$J85&" of "&$U$2),IF(OR($K85="",$K85="Empty",N85=""),"",INDEX(Athletes!$A$4:$E$1003,MATCH(N85,Athletes!$A$4:$A$1003,0),5))) -> 
B86: =IFERROR(IF(Athletes!A79="","",IF(AND(Athletes!F79=$C$4,INDEX(Athletes!$G79:$Z79,1,MATCH($C$3,Athletes!$G$3:$Z$3,0))<>""),Athletes!A79,"")),"") ->  | C86: =IF(B86="","",INDEX(Athletes!$A$4:$E$1003,MATCH(B86,Athletes!$A$4:$A$1003,0),4)) ->  | D86: =IF(B86="","",ABS(SIN(B86))+IF($U$2=1,0,INDEX(Athletes!$AH$4:$AH$102,MATCH($C86,Athletes!$AE$4:$AE$102,0),1))) ->  | I86: =IF(E86="","",100*H86+IFERROR(INDEX(FrontPage!$AA$3:$AD$10,MATCH(COUNTIF(H$11:H86,H86),FrontPage!$AA$3:$AA$10,0),$I$5),COUNTIF(H$11:H86,H86))) ->  | J86: =IF(ROW()-11>$U$2*($U$3+2)-1,"",IF(MOD(ROW()-11,$U$3+2)=0,MAX(J$10:J85)+1,"")) ->  | L86: =IF($J86<>"",$K86,IF($K86="","",IF($K86="Empty",MAX($K$11:$K86)+0.99,MAX($K$11:$K86)+0.01*$K86))) ->  | N86: =IF(J86<>"","Bib",IF(OR($K86="",K86="Empty"),"",IF(A86="",IFERROR(INDEX($E$11:$E$171,MATCH(100*MAX(J$11:J86)+M86,$I$11:$I$171,0),1),""),A86))) ->  | O86: =IF($J86<>"",$A$7,IF(OR($K86="",$K86="Empty",N86=""),"",INDEX(Athletes!$A$4:$E$1003,MATCH(N86,Athletes!$A$4:$A$1003,0),2)&" "& INDEX(Athletes!$A$4:$E$1003,MATCH(N86,Athletes!$A$4:$A$1003,0),3))) ->  | P86: =IF($J86<>"",IF($L$5=1,"Final ","Heat ")&IF(AND($L$5=1,$U$2=1),"",$J86&" of "&$U$2),IF(OR($K86="",$K86="Empty",N86=""),"",INDEX(Athletes!$A$4:$E$1003,MATCH(N86,Athletes!$A$4:$A$1003,0),5))) -> 
B87: =IFERROR(IF(Athletes!A80="","",IF(AND(Athletes!F80=$C$4,INDEX(Athletes!$G80:$Z80,1,MATCH($C$3,Athletes!$G$3:$Z$3,0))<>""),Athletes!A80,"")),"") ->  | C87: =IF(B87="","",INDEX(Athletes!$A$4:$E$1003,MATCH(B87,Athletes!$A$4:$A$1003,0),4)) ->  | D87: =IF(B87="","",ABS(SIN(B87))+IF($U$2=1,0,INDEX(Athletes!$AH$4:$AH$102,MATCH($C87,Athletes!$AE$4:$AE$102,0),1))) ->  | I87: =IF(E87="","",100*H87+IFERROR(INDEX(FrontPage!$AA$3:$AD$10,MATCH(COUNTIF(H$11:H87,H87),FrontPage!$AA$3:$AA$10,0),$I$5),COUNTIF(H$11:H87,H87))) ->  | J87: =IF(ROW()-11>$U$2*($U$3+2)-1,"",IF(MOD(ROW()-11,$U$3+2)=0,MAX(J$10:J86)+1,"")) ->  | L87: =IF($J87<>"",$K87,IF($K87="","",IF($K87="Empty",MAX($K$11:$K87)+0.99,MAX($K$11:$K87)+0.01*$K87))) ->  | N87: =IF(J87<>"","Bib",IF(OR($K87="",K87="Empty"),"",IF(A87="",IFERROR(INDEX($E$11:$E$171,MATCH(100*MAX(J$11:J87)+M87,$I$11:$I$171,0),1),""),A87))) ->  | O87: =IF($J87<>"",$A$7,IF(OR($K87="",$K87="Empty",N87=""),"",INDEX(Athletes!$A$4:$E$1003,MATCH(N87,Athletes!$A$4:$A$1003,0),2)&" "& INDEX(Athletes!$A$4:$E$1003,MATCH(N87,Athletes!$A$4:$A$1003,0),3))) ->  | P87: =IF($J87<>"",IF($L$5=1,"Final ","Heat ")&IF(AND($L$5=1,$U$2=1),"",$J87&" of "&$U$2),IF(OR($K87="",$K87="Empty",N87=""),"",INDEX(Athletes!$A$4:$E$1003,MATCH(N87,Athletes!$A$4:$A$1003,0),5))) -> 
B88: =IFERROR(IF(Athletes!A81="","",IF(AND(Athletes!F81=$C$4,INDEX(Athletes!$G81:$Z81,1,MATCH($C$3,Athletes!$G$3:$Z$3,0))<>""),Athletes!A81,"")),"") ->  | C88: =IF(B88="","",INDEX(Athletes!$A$4:$E$1003,MATCH(B88,Athletes!$A$4:$A$1003,0),4)) ->  | D88: =IF(B88="","",ABS(SIN(B88))+IF($U$2=1,0,INDEX(Athletes!$AH$4:$AH$102,MATCH($C88,Athletes!$AE$4:$AE$102,0),1))) ->  | I88: =IF(E88="","",100*H88+IFERROR(INDEX(FrontPage!$AA$3:$AD$10,MATCH(COUNTIF(H$11:H88,H88),FrontPage!$AA$3:$AA$10,0),$I$5),COUNTIF(H$11:H88,H88))) ->  | J88: =IF(ROW()-11>$U$2*($U$3+2)-1,"",IF(MOD(ROW()-11,$U$3+2)=0,MAX(J$10:J87)+1,"")) ->  | L88: =IF($J88<>"",$K88,IF($K88="","",IF($K88="Empty",MAX($K$11:$K88)+0.99,MAX($K$11:$K88)+0.01*$K88))) ->  | N88: =IF(J88<>"","Bib",IF(OR($K88="",K88="Empty"),"",IF(A88="",IFERROR(INDEX($E$11:$E$171,MATCH(100*MAX(J$11:J88)+M88,$I$11:$I$171,0),1),""),A88))) ->  | O88: =IF($J88<>"",$A$7,IF(OR($K88="",$K88="Empty",N88=""),"",INDEX(Athletes!$A$4:$E$1003,MATCH(N88,Athletes!$A$4:$A$1003,0),2)&" "& INDEX(Athletes!$A$4:$E$1003,MATCH(N88,Athletes!$A$4:$A$1003,0),3))) ->  | P88: =IF($J88<>"",IF($L$5=1,"Final ","Heat ")&IF(AND($L$5=1,$U$2=1),"",$J88&" of "&$U$2),IF(OR($K88="",$K88="Empty",N88=""),"",INDEX(Athletes!$A$4:$E$1003,MATCH(N88,Athletes!$A$4:$A$1003,0),5))) -> 
B89: =IFERROR(IF(Athletes!A82="","",IF(AND(Athletes!F82=$C$4,INDEX(Athletes!$G82:$Z82,1,MATCH($C$3,Athletes!$G$3:$Z$3,0))<>""),Athletes!A82,"")),"") ->  | C89: =IF(B89="","",INDEX(Athletes!$A$4:$E$1003,MATCH(B89,Athletes!$A$4:$A$1003,0),4)) ->  | D89: =IF(B89="","",ABS(SIN(B89))+IF($U$2=1,0,INDEX(Athletes!$AH$4:$AH$102,MATCH($C89,Athletes!$AE$4:$AE$102,0),1))) ->  | I89: =IF(E89="","",100*H89+IFERROR(INDEX(FrontPage!$AA$3:$AD$10,MATCH(COUNTIF(H$11:H89,H89),FrontPage!$AA$3:$AA$10,0),$I$5),COUNTIF(H$11:H89,H89))) ->  | J89: =IF(ROW()-11>$U$2*($U$3+2)-1,"",IF(MOD(ROW()-11,$U$3+2)=0,MAX(J$10:J88)+1,"")) ->  | L89: =IF($J89<>"",$K89,IF($K89="","",IF($K89="Empty",MAX($K$11:$K89)+0.99,MAX($K$11:$K89)+0.01*$K89))) ->  | N89: =IF(J89<>"","Bib",IF(OR($K89="",K89="Empty"),"",IF(A89="",IFERROR(INDEX($E$11:$E$171,MATCH(100*MAX(J$11:J89)+M89,$I$11:$I$171,0),1),""),A89))) ->  | O89: =IF($J89<>"",$A$7,IF(OR($K89="",$K89="Empty",N89=""),"",INDEX(Athletes!$A$4:$E$1003,MATCH(N89,Athletes!$A$4:$A$1003,0),2)&" "& INDEX(Athletes!$A$4:$E$1003,MATCH(N89,Athletes!$A$4:$A$1003,0),3))) ->  | P89: =IF($J89<>"",IF($L$5=1,"Final ","Heat ")&IF(AND($L$5=1,$U$2=1),"",$J89&" of "&$U$2),IF(OR($K89="",$K89="Empty",N89=""),"",INDEX(Athletes!$A$4:$E$1003,MATCH(N89,Athletes!$A$4:$A$1003,0),5))) -> 
B90: =IFERROR(IF(Athletes!A83="","",IF(AND(Athletes!F83=$C$4,INDEX(Athletes!$G83:$Z83,1,MATCH($C$3,Athletes!$G$3:$Z$3,0))<>""),Athletes!A83,"")),"") ->  | C90: =IF(B90="","",INDEX(Athletes!$A$4:$E$1003,MATCH(B90,Athletes!$A$4:$A$1003,0),4)) ->  | D90: =IF(B90="","",ABS(SIN(B90))+IF($U$2=1,0,INDEX(Athletes!$AH$4:$AH$102,MATCH($C90,Athletes!$AE$4:$AE$102,0),1))) ->  | I90: =IF(E90="","",100*H90+IFERROR(INDEX(FrontPage!$AA$3:$AD$10,MATCH(COUNTIF(H$11:H90,H90),FrontPage!$AA$3:$AA$10,0),$I$5),COUNTIF(H$11:H90,H90))) ->  | J90: =IF(ROW()-11>$U$2*($U$3+2)-1,"",IF(MOD(ROW()-11,$U$3+2)=0,MAX(J$10:J89)+1,"")) ->  | L90: =IF($J90<>"",$K90,IF($K90="","",IF($K90="Empty",MAX($K$11:$K90)+0.99,MAX($K$11:$K90)+0.01*$K90))) ->  | N90: =IF(J90<>"","Bib",IF(OR($K90="",K90="Empty"),"",IF(A90="",IFERROR(INDEX($E$11:$E$171,MATCH(100*MAX(J$11:J90)+M90,$I$11:$I$171,0),1),""),A90))) ->  | O90: =IF($J90<>"",$A$7,IF(OR($K90="",$K90="Empty",N90=""),"",INDEX(Athletes!$A$4:$E$1003,MATCH(N90,Athletes!$A$4:$A$1003,0),2)&" "& INDEX(Athletes!$A$4:$E$1003,MATCH(N90,Athletes!$A$4:$A$1003,0),3))) ->  | P90: =IF($J90<>"",IF($L$5=1,"Final ","Heat ")&IF(AND($L$5=1,$U$2=1),"",$J90&" of "&$U$2),IF(OR($K90="",$K90="Empty",N90=""),"",INDEX(Athletes!$A$4:$E$1003,MATCH(N90,Athletes!$A$4:$A$1003,0),5))) -> 
B91: =IFERROR(IF(Athletes!A84="","",IF(AND(Athletes!F84=$C$4,INDEX(Athletes!$G84:$Z84,1,MATCH($C$3,Athletes!$G$3:$Z$3,0))<>""),Athletes!A84,"")),"") ->  | C91: =IF(B91="","",INDEX(Athletes!$A$4:$E$1003,MATCH(B91,Athletes!$A$4:$A$1003,0),4)) ->  | D91: =IF(B91="","",ABS(SIN(B91))+IF($U$2=1,0,INDEX(Athletes!$AH$4:$AH$102,MATCH($C91,Athletes!$AE$4:$AE$102,0),1))) ->  | I91: =IF(E91="","",100*H91+IFERROR(INDEX(FrontPage!$AA$3:$AD$10,MATCH(COUNTIF(H$11:H91,H91),FrontPage!$AA$3:$AA$10,0),$I$5),COUNTIF(H$11:H91,H91))) ->  | J91: =IF(ROW()-11>$U$2*($U$3+2)-1,"",IF(MOD(ROW()-11,$U$3+2)=0,MAX(J$10:J90)+1,"")) ->  | L91: =IF($J91<>"",$K91,IF($K91="","",IF($K91="Empty",MAX($K$11:$K91)+0.99,MAX($K$11:$K91)+0.01*$K91))) ->  | N91: =IF(J91<>"","Bib",IF(OR($K91="",K91="Empty"),"",IF(A91="",IFERROR(INDEX($E$11:$E$171,MATCH(100*MAX(J$11:J91)+M91,$I$11:$I$171,0),1),""),A91))) ->  | O91: =IF($J91<>"",$A$7,IF(OR($K91="",$K91="Empty",N91=""),"",INDEX(Athletes!$A$4:$E$1003,MATCH(N91,Athletes!$A$4:$A$1003,0),2)&" "& INDEX(Athletes!$A$4:$E$1003,MATCH(N91,Athletes!$A$4:$A$1003,0),3))) ->  | P91: =IF($J91<>"",IF($L$5=1,"Final ","Heat ")&IF(AND($L$5=1,$U$2=1),"",$J91&" of "&$U$2),IF(OR($K91="",$K91="Empty",N91=""),"",INDEX(Athletes!$A$4:$E$1003,MATCH(N91,Athletes!$A$4:$A$1003,0),5))) -> 
B92: =IFERROR(IF(Athletes!A85="","",IF(AND(Athletes!F85=$C$4,INDEX(Athletes!$G85:$Z85,1,MATCH($C$3,Athletes!$G$3:$Z$3,0))<>""),Athletes!A85,"")),"") ->  | C92: =IF(B92="","",INDEX(Athletes!$A$4:$E$1003,MATCH(B92,Athletes!$A$4:$A$1003,0),4)) ->  | D92: =IF(B92="","",ABS(SIN(B92))+IF($U$2=1,0,INDEX(Athletes!$AH$4:$AH$102,MATCH($C92,Athletes!$AE$4:$AE$102,0),1))) ->  | I92: =IF(E92="","",100*H92+IFERROR(INDEX(FrontPage!$AA$3:$AD$10,MATCH(COUNTIF(H$11:H92,H92),FrontPage!$AA$3:$AA$10,0),$I$5),COUNTIF(H$11:H92,H92))) ->  | J92: =IF(ROW()-11>$U$2*($U$3+2)-1,"",IF(MOD(ROW()-11,$U$3+2)=0,MAX(J$10:J91)+1,"")) ->  | L92: =IF($J92<>"",$K92,IF($K92="","",IF($K92="Empty",MAX($K$11:$K92)+0.99,MAX($K$11:$K92)+0.01*$K92))) ->  | N92: =IF(J92<>"","Bib",IF(OR($K92="",K92="Empty"),"",IF(A92="",IFERROR(INDEX($E$11:$E$171,MATCH(100*MAX(J$11:J92)+M92,$I$11:$I$171,0),1),""),A92))) ->  | O92: =IF($J92<>"",$A$7,IF(OR($K92="",$K92="Empty",N92=""),"",INDEX(Athletes!$A$4:$E$1003,MATCH(N92,Athletes!$A$4:$A$1003,0),2)&" "& INDEX(Athletes!$A$4:$E$1003,MATCH(N92,Athletes!$A$4:$A$1003,0),3))) ->  | P92: =IF($J92<>"",IF($L$5=1,"Final ","Heat ")&IF(AND($L$5=1,$U$2=1),"",$J92&" of "&$U$2),IF(OR($K92="",$K92="Empty",N92=""),"",INDEX(Athletes!$A$4:$E$1003,MATCH(N92,Athletes!$A$4:$A$1003,0),5))) -> 
B93: =IFERROR(IF(Athletes!A86="","",IF(AND(Athletes!F86=$C$4,INDEX(Athletes!$G86:$Z86,1,MATCH($C$3,Athletes!$G$3:$Z$3,0))<>""),Athletes!A86,"")),"") ->  | C93: =IF(B93="","",INDEX(Athletes!$A$4:$E$1003,MATCH(B93,Athletes!$A$4:$A$1003,0),4)) ->  | D93: =IF(B93="","",ABS(SIN(B93))+IF($U$2=1,0,INDEX(Athletes!$AH$4:$AH$102,MATCH($C93,Athletes!$AE$4:$AE$102,0),1))) ->  | I93: =IF(E93="","",100*H93+IFERROR(INDEX(FrontPage!$AA$3:$AD$10,MATCH(COUNTIF(H$11:H93,H93),FrontPage!$AA$3:$AA$10,0),$I$5),COUNTIF(H$11:H93,H93))) ->  | J93: =IF(ROW()-11>$U$2*($U$3+2)-1,"",IF(MOD(ROW()-11,$U$3+2)=0,MAX(J$10:J92)+1,"")) ->  | L93: =IF($J93<>"",$K93,IF($K93="","",IF($K93="Empty",MAX($K$11:$K93)+0.99,MAX($K$11:$K93)+0.01*$K93))) ->  | N93: =IF(J93<>"","Bib",IF(OR($K93="",K93="Empty"),"",IF(A93="",IFERROR(INDEX($E$11:$E$171,MATCH(100*MAX(J$11:J93)+M93,$I$11:$I$171,0),1),""),A93))) ->  | O93: =IF($J93<>"",$A$7,IF(OR($K93="",$K93="Empty",N93=""),"",INDEX(Athletes!$A$4:$E$1003,MATCH(N93,Athletes!$A$4:$A$1003,0),2)&" "& INDEX(Athletes!$A$4:$E$1003,MATCH(N93,Athletes!$A$4:$A$1003,0),3))) ->  | P93: =IF($J93<>"",IF($L$5=1,"Final ","Heat ")&IF(AND($L$5=1,$U$2=1),"",$J93&" of "&$U$2),IF(OR($K93="",$K93="Empty",N93=""),"",INDEX(Athletes!$A$4:$E$1003,MATCH(N93,Athletes!$A$4:$A$1003,0),5))) -> 
B94: =IFERROR(IF(Athletes!A87="","",IF(AND(Athletes!F87=$C$4,INDEX(Athletes!$G87:$Z87,1,MATCH($C$3,Athletes!$G$3:$Z$3,0))<>""),Athletes!A87,"")),"") ->  | C94: =IF(B94="","",INDEX(Athletes!$A$4:$E$1003,MATCH(B94,Athletes!$A$4:$A$1003,0),4)) ->  | D94: =IF(B94="","",ABS(SIN(B94))+IF($U$2=1,0,INDEX(Athletes!$AH$4:$AH$102,MATCH($C94,Athletes!$AE$4:$AE$102,0),1))) ->  | I94: =IF(E94="","",100*H94+IFERROR(INDEX(FrontPage!$AA$3:$AD$10,MATCH(COUNTIF(H$11:H94,H94),FrontPage!$AA$3:$AA$10,0),$I$5),COUNTIF(H$11:H94,H94))) ->  | J94: =IF(ROW()-11>$U$2*($U$3+2)-1,"",IF(MOD(ROW()-11,$U$3+2)=0,MAX(J$10:J93)+1,"")) ->  | L94: =IF($J94<>"",$K94,IF($K94="","",IF($K94="Empty",MAX($K$11:$K94)+0.99,MAX($K$11:$K94)+0.01*$K94))) ->  | N94: =IF(J94<>"","Bib",IF(OR($K94="",K94="Empty"),"",IF(A94="",IFERROR(INDEX($E$11:$E$171,MATCH(100*MAX(J$11:J94)+M94,$I$11:$I$171,0),1),""),A94))) ->  | O94: =IF($J94<>"",$A$7,IF(OR($K94="",$K94="Empty",N94=""),"",INDEX(Athletes!$A$4:$E$1003,MATCH(N94,Athletes!$A$4:$A$1003,0),2)&" "& INDEX(Athletes!$A$4:$E$1003,MATCH(N94,Athletes!$A$4:$A$1003,0),3))) ->  | P94: =IF($J94<>"",IF($L$5=1,"Final ","Heat ")&IF(AND($L$5=1,$U$2=1),"",$J94&" of "&$U$2),IF(OR($K94="",$K94="Empty",N94=""),"",INDEX(Athletes!$A$4:$E$1003,MATCH(N94,Athletes!$A$4:$A$1003,0),5))) -> 
B95: =IFERROR(IF(Athletes!A88="","",IF(AND(Athletes!F88=$C$4,INDEX(Athletes!$G88:$Z88,1,MATCH($C$3,Athletes!$G$3:$Z$3,0))<>""),Athletes!A88,"")),"") ->  | C95: =IF(B95="","",INDEX(Athletes!$A$4:$E$1003,MATCH(B95,Athletes!$A$4:$A$1003,0),4)) ->  | D95: =IF(B95="","",ABS(SIN(B95))+IF($U$2=1,0,INDEX(Athletes!$AH$4:$AH$102,MATCH($C95,Athletes!$AE$4:$AE$102,0),1))) ->  | I95: =IF(E95="","",100*H95+IFERROR(INDEX(FrontPage!$AA$3:$AD$10,MATCH(COUNTIF(H$11:H95,H95),FrontPage!$AA$3:$AA$10,0),$I$5),COUNTIF(H$11:H95,H95))) ->  | J95: =IF(ROW()-11>$U$2*($U$3+2)-1,"",IF(MOD(ROW()-11,$U$3+2)=0,MAX(J$10:J94)+1,"")) ->  | L95: =IF($J95<>"",$K95,IF($K95="","",IF($K95="Empty",MAX($K$11:$K95)+0.99,MAX($K$11:$K95)+0.01*$K95))) ->  | N95: =IF(J95<>"","Bib",IF(OR($K95="",K95="Empty"),"",IF(A95="",IFERROR(INDEX($E$11:$E$171,MATCH(100*MAX(J$11:J95)+M95,$I$11:$I$171,0),1),""),A95))) ->  | O95: =IF($J95<>"",$A$7,IF(OR($K95="",$K95="Empty",N95=""),"",INDEX(Athletes!$A$4:$E$1003,MATCH(N95,Athletes!$A$4:$A$1003,0),2)&" "& INDEX(Athletes!$A$4:$E$1003,MATCH(N95,Athletes!$A$4:$A$1003,0),3))) ->  | P95: =IF($J95<>"",IF($L$5=1,"Final ","Heat ")&IF(AND($L$5=1,$U$2=1),"",$J95&" of "&$U$2),IF(OR($K95="",$K95="Empty",N95=""),"",INDEX(Athletes!$A$4:$E$1003,MATCH(N95,Athletes!$A$4:$A$1003,0),5))) -> 
B96: =IFERROR(IF(Athletes!A89="","",IF(AND(Athletes!F89=$C$4,INDEX(Athletes!$G89:$Z89,1,MATCH($C$3,Athletes!$G$3:$Z$3,0))<>""),Athletes!A89,"")),"") ->  | C96: =IF(B96="","",INDEX(Athletes!$A$4:$E$1003,MATCH(B96,Athletes!$A$4:$A$1003,0),4)) ->  | D96: =IF(B96="","",ABS(SIN(B96))+IF($U$2=1,0,INDEX(Athletes!$AH$4:$AH$102,MATCH($C96,Athletes!$AE$4:$AE$102,0),1))) ->  | I96: =IF(E96="","",100*H96+IFERROR(INDEX(FrontPage!$AA$3:$AD$10,MATCH(COUNTIF(H$11:H96,H96),FrontPage!$AA$3:$AA$10,0),$I$5),COUNTIF(H$11:H96,H96))) ->  | J96: =IF(ROW()-11>$U$2*($U$3+2)-1,"",IF(MOD(ROW()-11,$U$3+2)=0,MAX(J$10:J95)+1,"")) ->  | L96: =IF($J96<>"",$K96,IF($K96="","",IF($K96="Empty",MAX($K$11:$K96)+0.99,MAX($K$11:$K96)+0.01*$K96))) ->  | N96: =IF(J96<>"","Bib",IF(OR($K96="",K96="Empty"),"",IF(A96="",IFERROR(INDEX($E$11:$E$171,MATCH(100*MAX(J$11:J96)+M96,$I$11:$I$171,0),1),""),A96))) ->  | O96: =IF($J96<>"",$A$7,IF(OR($K96="",$K96="Empty",N96=""),"",INDEX(Athletes!$A$4:$E$1003,MATCH(N96,Athletes!$A$4:$A$1003,0),2)&" "& INDEX(Athletes!$A$4:$E$1003,MATCH(N96,Athletes!$A$4:$A$1003,0),3))) ->  | P96: =IF($J96<>"",IF($L$5=1,"Final ","Heat ")&IF(AND($L$5=1,$U$2=1),"",$J96&" of "&$U$2),IF(OR($K96="",$K96="Empty",N96=""),"",INDEX(Athletes!$A$4:$E$1003,MATCH(N96,Athletes!$A$4:$A$1003,0),5))) -> 
B97: =IFERROR(IF(Athletes!A90="","",IF(AND(Athletes!F90=$C$4,INDEX(Athletes!$G90:$Z90,1,MATCH($C$3,Athletes!$G$3:$Z$3,0))<>""),Athletes!A90,"")),"") ->  | C97: =IF(B97="","",INDEX(Athletes!$A$4:$E$1003,MATCH(B97,Athletes!$A$4:$A$1003,0),4)) ->  | D97: =IF(B97="","",ABS(SIN(B97))+IF($U$2=1,0,INDEX(Athletes!$AH$4:$AH$102,MATCH($C97,Athletes!$AE$4:$AE$102,0),1))) ->  | I97: =IF(E97="","",100*H97+IFERROR(INDEX(FrontPage!$AA$3:$AD$10,MATCH(COUNTIF(H$11:H97,H97),FrontPage!$AA$3:$AA$10,0),$I$5),COUNTIF(H$11:H97,H97))) ->  | J97: =IF(ROW()-11>$U$2*($U$3+2)-1,"",IF(MOD(ROW()-11,$U$3+2)=0,MAX(J$10:J96)+1,"")) ->  | L97: =IF($J97<>"",$K97,IF($K97="","",IF($K97="Empty",MAX($K$11:$K97)+0.99,MAX($K$11:$K97)+0.01*$K97))) ->  | N97: =IF(J97<>"","Bib",IF(OR($K97="",K97="Empty"),"",IF(A97="",IFERROR(INDEX($E$11:$E$171,MATCH(100*MAX(J$11:J97)+M97,$I$11:$I$171,0),1),""),A97))) ->  | O97: =IF($J97<>"",$A$7,IF(OR($K97="",$K97="Empty",N97=""),"",INDEX(Athletes!$A$4:$E$1003,MATCH(N97,Athletes!$A$4:$A$1003,0),2)&" "& INDEX(Athletes!$A$4:$E$1003,MATCH(N97,Athletes!$A$4:$A$1003,0),3))) ->  | P97: =IF($J97<>"",IF($L$5=1,"Final ","Heat ")&IF(AND($L$5=1,$U$2=1),"",$J97&" of "&$U$2),IF(OR($K97="",$K97="Empty",N97=""),"",INDEX(Athletes!$A$4:$E$1003,MATCH(N97,Athletes!$A$4:$A$1003,0),5))) -> 
B98: =IFERROR(IF(Athletes!A91="","",IF(AND(Athletes!F91=$C$4,INDEX(Athletes!$G91:$Z91,1,MATCH($C$3,Athletes!$G$3:$Z$3,0))<>""),Athletes!A91,"")),"") ->  | C98: =IF(B98="","",INDEX(Athletes!$A$4:$E$1003,MATCH(B98,Athletes!$A$4:$A$1003,0),4)) ->  | D98: =IF(B98="","",ABS(SIN(B98))+IF($U$2=1,0,INDEX(Athletes!$AH$4:$AH$102,MATCH($C98,Athletes!$AE$4:$AE$102,0),1))) ->  | I98: =IF(E98="","",100*H98+IFERROR(INDEX(FrontPage!$AA$3:$AD$10,MATCH(COUNTIF(H$11:H98,H98),FrontPage!$AA$3:$AA$10,0),$I$5),COUNTIF(H$11:H98,H98))) ->  | J98: =IF(ROW()-11>$U$2*($U$3+2)-1,"",IF(MOD(ROW()-11,$U$3+2)=0,MAX(J$10:J97)+1,"")) ->  | L98: =IF($J98<>"",$K98,IF($K98="","",IF($K98="Empty",MAX($K$11:$K98)+0.99,MAX($K$11:$K98)+0.01*$K98))) ->  | N98: =IF(J98<>"","Bib",IF(OR($K98="",K98="Empty"),"",IF(A98="",IFERROR(INDEX($E$11:$E$171,MATCH(100*MAX(J$11:J98)+M98,$I$11:$I$171,0),1),""),A98))) ->  | O98: =IF($J98<>"",$A$7,IF(OR($K98="",$K98="Empty",N98=""),"",INDEX(Athletes!$A$4:$E$1003,MATCH(N98,Athletes!$A$4:$A$1003,0),2)&" "& INDEX(Athletes!$A$4:$E$1003,MATCH(N98,Athletes!$A$4:$A$1003,0),3))) ->  | P98: =IF($J98<>"",IF($L$5=1,"Final ","Heat ")&IF(AND($L$5=1,$U$2=1),"",$J98&" of "&$U$2),IF(OR($K98="",$K98="Empty",N98=""),"",INDEX(Athletes!$A$4:$E$1003,MATCH(N98,Athletes!$A$4:$A$1003,0),5))) -> 
B99: =IFERROR(IF(Athletes!A92="","",IF(AND(Athletes!F92=$C$4,INDEX(Athletes!$G92:$Z92,1,MATCH($C$3,Athletes!$G$3:$Z$3,0))<>""),Athletes!A92,"")),"") ->  | C99: =IF(B99="","",INDEX(Athletes!$A$4:$E$1003,MATCH(B99,Athletes!$A$4:$A$1003,0),4)) ->  | D99: =IF(B99="","",ABS(SIN(B99))+IF($U$2=1,0,INDEX(Athletes!$AH$4:$AH$102,MATCH($C99,Athletes!$AE$4:$AE$102,0),1))) ->  | I99: =IF(E99="","",100*H99+IFERROR(INDEX(FrontPage!$AA$3:$AD$10,MATCH(COUNTIF(H$11:H99,H99),FrontPage!$AA$3:$AA$10,0),$I$5),COUNTIF(H$11:H99,H99))) ->  | J99: =IF(ROW()-11>$U$2*($U$3+2)-1,"",IF(MOD(ROW()-11,$U$3+2)=0,MAX(J$10:J98)+1,"")) ->  | L99: =IF($J99<>"",$K99,IF($K99="","",IF($K99="Empty",MAX($K$11:$K99)+0.99,MAX($K$11:$K99)+0.01*$K99))) ->  | N99: =IF(J99<>"","Bib",IF(OR($K99="",K99="Empty"),"",IF(A99="",IFERROR(INDEX($E$11:$E$171,MATCH(100*MAX(J$11:J99)+M99,$I$11:$I$171,0),1),""),A99))) ->  | O99: =IF($J99<>"",$A$7,IF(OR($K99="",$K99="Empty",N99=""),"",INDEX(Athletes!$A$4:$E$1003,MATCH(N99,Athletes!$A$4:$A$1003,0),2)&" "& INDEX(Athletes!$A$4:$E$1003,MATCH(N99,Athletes!$A$4:$A$1003,0),3))) ->  | P99: =IF($J99<>"",IF($L$5=1,"Final ","Heat ")&IF(AND($L$5=1,$U$2=1),"",$J99&" of "&$U$2),IF(OR($K99="",$K99="Empty",N99=""),"",INDEX(Athletes!$A$4:$E$1003,MATCH(N99,Athletes!$A$4:$A$1003,0),5))) -> 
B100: =IFERROR(IF(Athletes!A93="","",IF(AND(Athletes!F93=$C$4,INDEX(Athletes!$G93:$Z93,1,MATCH($C$3,Athletes!$G$3:$Z$3,0))<>""),Athletes!A93,"")),"") ->  | C100: =IF(B100="","",INDEX(Athletes!$A$4:$E$1003,MATCH(B100,Athletes!$A$4:$A$1003,0),4)) ->  | D100: =IF(B100="","",ABS(SIN(B100))+IF($U$2=1,0,INDEX(Athletes!$AH$4:$AH$102,MATCH($C100,Athletes!$AE$4:$AE$102,0),1))) ->  | I100: =IF(E100="","",100*H100+IFERROR(INDEX(FrontPage!$AA$3:$AD$10,MATCH(COUNTIF(H$11:H100,H100),FrontPage!$AA$3:$AA$10,0),$I$5),COUNTIF(H$11:H100,H100))) ->  | J100: =IF(ROW()-11>$U$2*($U$3+2)-1,"",IF(MOD(ROW()-11,$U$3+2)=0,MAX(J$10:J99)+1,"")) ->  | L100: =IF($J100<>"",$K100,IF($K100="","",IF($K100="Empty",MAX($K$11:$K100)+0.99,MAX($K$11:$K100)+0.01*$K100))) ->  | N100: =IF(J100<>"","Bib",IF(OR($K100="",K100="Empty"),"",IF(A100="",IFERROR(INDEX($E$11:$E$171,MATCH(100*MAX(J$11:J100)+M100,$I$11:$I$171,0),1),""),A100))) ->  | O100: =IF($J100<>"",$A$7,IF(OR($K100="",$K100="Empty",N100=""),"",INDEX(Athletes!$A$4:$E$1003,MATCH(N100,Athletes!$A$4:$A$1003,0),2)&" "& INDEX(Athletes!$A$4:$E$1003,MATCH(N100,Athletes!$A$4:$A$1003,0),3))) ->  | P100: =IF($J100<>"",IF($L$5=1,"Final ","Heat ")&IF(AND($L$5=1,$U$2=1),"",$J100&" of "&$U$2),IF(OR($K100="",$K100="Empty",N100=""),"",INDEX(Athletes!$A$4:$E$1003,MATCH(N100,Athletes!$A$4:$A$1003,0),5))) -> 
B101: =IFERROR(IF(Athletes!A94="","",IF(AND(Athletes!F94=$C$4,INDEX(Athletes!$G94:$Z94,1,MATCH($C$3,Athletes!$G$3:$Z$3,0))<>""),Athletes!A94,"")),"") ->  | C101: =IF(B101="","",INDEX(Athletes!$A$4:$E$1003,MATCH(B101,Athletes!$A$4:$A$1003,0),4)) ->  | D101: =IF(B101="","",ABS(SIN(B101))+IF($U$2=1,0,INDEX(Athletes!$AH$4:$AH$102,MATCH($C101,Athletes!$AE$4:$AE$102,0),1))) ->  | I101: =IF(E101="","",100*H101+IFERROR(INDEX(FrontPage!$AA$3:$AD$10,MATCH(COUNTIF(H$11:H101,H101),FrontPage!$AA$3:$AA$10,0),$I$5),COUNTIF(H$11:H101,H101))) ->  | J101: =IF(ROW()-11>$U$2*($U$3+2)-1,"",IF(MOD(ROW()-11,$U$3+2)=0,MAX(J$10:J100)+1,"")) ->  | L101: =IF($J101<>"",$K101,IF($K101="","",IF($K101="Empty",MAX($K$11:$K101)+0.99,MAX($K$11:$K101)+0.01*$K101))) ->  | N101: =IF(J101<>"","Bib",IF(OR($K101="",K101="Empty"),"",IF(A101="",IFERROR(INDEX($E$11:$E$171,MATCH(100*MAX(J$11:J101)+M101,$I$11:$I$171,0),1),""),A101))) ->  | O101: =IF($J101<>"",$A$7,IF(OR($K101="",$K101="Empty",N101=""),"",INDEX(Athletes!$A$4:$E$1003,MATCH(N101,Athletes!$A$4:$A$1003,0),2)&" "& INDEX(Athletes!$A$4:$E$1003,MATCH(N101,Athletes!$A$4:$A$1003,0),3))) ->  | P101: =IF($J101<>"",IF($L$5=1,"Final ","Heat ")&IF(AND($L$5=1,$U$2=1),"",$J101&" of "&$U$2),IF(OR($K101="",$K101="Empty",N101=""),"",INDEX(Athletes!$A$4:$E$1003,MATCH(N101,Athletes!$A$4:$A$1003,0),5))) -> 
B102: =IFERROR(IF(Athletes!A95="","",IF(AND(Athletes!F95=$C$4,INDEX(Athletes!$G95:$Z95,1,MATCH($C$3,Athletes!$G$3:$Z$3,0))<>""),Athletes!A95,"")),"") ->  | C102: =IF(B102="","",INDEX(Athletes!$A$4:$E$1003,MATCH(B102,Athletes!$A$4:$A$1003,0),4)) ->  | D102: =IF(B102="","",ABS(SIN(B102))+IF($U$2=1,0,INDEX(Athletes!$AH$4:$AH$102,MATCH($C102,Athletes!$AE$4:$AE$102,0),1))) ->  | I102: =IF(E102="","",100*H102+IFERROR(INDEX(FrontPage!$AA$3:$AD$10,MATCH(COUNTIF(H$11:H102,H102),FrontPage!$AA$3:$AA$10,0),$I$5),COUNTIF(H$11:H102,H102))) ->  | J102: =IF(ROW()-11>$U$2*($U$3+2)-1,"",IF(MOD(ROW()-11,$U$3+2)=0,MAX(J$10:J101)+1,"")) ->  | L102: =IF($J102<>"",$K102,IF($K102="","",IF($K102="Empty",MAX($K$11:$K102)+0.99,MAX($K$11:$K102)+0.01*$K102))) ->  | N102: =IF(J102<>"","Bib",IF(OR($K102="",K102="Empty"),"",IF(A102="",IFERROR(INDEX($E$11:$E$171,MATCH(100*MAX(J$11:J102)+M102,$I$11:$I$171,0),1),""),A102))) ->  | O102: =IF($J102<>"",$A$7,IF(OR($K102="",$K102="Empty",N102=""),"",INDEX(Athletes!$A$4:$E$1003,MATCH(N102,Athletes!$A$4:$A$1003,0),2)&" "& INDEX(Athletes!$A$4:$E$1003,MATCH(N102,Athletes!$A$4:$A$1003,0),3))) ->  | P102: =IF($J102<>"",IF($L$5=1,"Final ","Heat ")&IF(AND($L$5=1,$U$2=1),"",$J102&" of "&$U$2),IF(OR($K102="",$K102="Empty",N102=""),"",INDEX(Athletes!$A$4:$E$1003,MATCH(N102,Athletes!$A$4:$A$1003,0),5))) -> 
B103: =IFERROR(IF(Athletes!A96="","",IF(AND(Athletes!F96=$C$4,INDEX(Athletes!$G96:$Z96,1,MATCH($C$3,Athletes!$G$3:$Z$3,0))<>""),Athletes!A96,"")),"") ->  | C103: =IF(B103="","",INDEX(Athletes!$A$4:$E$1003,MATCH(B103,Athletes!$A$4:$A$1003,0),4)) ->  | D103: =IF(B103="","",ABS(SIN(B103))+IF($U$2=1,0,INDEX(Athletes!$AH$4:$AH$102,MATCH($C103,Athletes!$AE$4:$AE$102,0),1))) ->  | I103: =IF(E103="","",100*H103+IFERROR(INDEX(FrontPage!$AA$3:$AD$10,MATCH(COUNTIF(H$11:H103,H103),FrontPage!$AA$3:$AA$10,0),$I$5),COUNTIF(H$11:H103,H103))) ->  | J103: =IF(ROW()-11>$U$2*($U$3+2)-1,"",IF(MOD(ROW()-11,$U$3+2)=0,MAX(J$10:J102)+1,"")) ->  | L103: =IF($J103<>"",$K103,IF($K103="","",IF($K103="Empty",MAX($K$11:$K103)+0.99,MAX($K$11:$K103)+0.01*$K103))) ->  | N103: =IF(J103<>"","Bib",IF(OR($K103="",K103="Empty"),"",IF(A103="",IFERROR(INDEX($E$11:$E$171,MATCH(100*MAX(J$11:J103)+M103,$I$11:$I$171,0),1),""),A103))) ->  | O103: =IF($J103<>"",$A$7,IF(OR($K103="",$K103="Empty",N103=""),"",INDEX(Athletes!$A$4:$E$1003,MATCH(N103,Athletes!$A$4:$A$1003,0),2)&" "& INDEX(Athletes!$A$4:$E$1003,MATCH(N103,Athletes!$A$4:$A$1003,0),3))) ->  | P103: =IF($J103<>"",IF($L$5=1,"Final ","Heat ")&IF(AND($L$5=1,$U$2=1),"",$J103&" of "&$U$2),IF(OR($K103="",$K103="Empty",N103=""),"",INDEX(Athletes!$A$4:$E$1003,MATCH(N103,Athletes!$A$4:$A$1003,0),5))) -> 
B104: =IFERROR(IF(Athletes!A97="","",IF(AND(Athletes!F97=$C$4,INDEX(Athletes!$G97:$Z97,1,MATCH($C$3,Athletes!$G$3:$Z$3,0))<>""),Athletes!A97,"")),"") ->  | C104: =IF(B104="","",INDEX(Athletes!$A$4:$E$1003,MATCH(B104,Athletes!$A$4:$A$1003,0),4)) ->  | D104: =IF(B104="","",ABS(SIN(B104))+IF($U$2=1,0,INDEX(Athletes!$AH$4:$AH$102,MATCH($C104,Athletes!$AE$4:$AE$102,0),1))) ->  | I104: =IF(E104="","",100*H104+IFERROR(INDEX(FrontPage!$AA$3:$AD$10,MATCH(COUNTIF(H$11:H104,H104),FrontPage!$AA$3:$AA$10,0),$I$5),COUNTIF(H$11:H104,H104))) ->  | J104: =IF(ROW()-11>$U$2*($U$3+2)-1,"",IF(MOD(ROW()-11,$U$3+2)=0,MAX(J$10:J103)+1,"")) ->  | L104: =IF($J104<>"",$K104,IF($K104="","",IF($K104="Empty",MAX($K$11:$K104)+0.99,MAX($K$11:$K104)+0.01*$K104))) ->  | N104: =IF(J104<>"","Bib",IF(OR($K104="",K104="Empty"),"",IF(A104="",IFERROR(INDEX($E$11:$E$171,MATCH(100*MAX(J$11:J104)+M104,$I$11:$I$171,0),1),""),A104))) ->  | O104: =IF($J104<>"",$A$7,IF(OR($K104="",$K104="Empty",N104=""),"",INDEX(Athletes!$A$4:$E$1003,MATCH(N104,Athletes!$A$4:$A$1003,0),2)&" "& INDEX(Athletes!$A$4:$E$1003,MATCH(N104,Athletes!$A$4:$A$1003,0),3))) ->  | P104: =IF($J104<>"",IF($L$5=1,"Final ","Heat ")&IF(AND($L$5=1,$U$2=1),"",$J104&" of "&$U$2),IF(OR($K104="",$K104="Empty",N104=""),"",INDEX(Athletes!$A$4:$E$1003,MATCH(N104,Athletes!$A$4:$A$1003,0),5))) -> 
B105: =IFERROR(IF(Athletes!A98="","",IF(AND(Athletes!F98=$C$4,INDEX(Athletes!$G98:$Z98,1,MATCH($C$3,Athletes!$G$3:$Z$3,0))<>""),Athletes!A98,"")),"") ->  | C105: =IF(B105="","",INDEX(Athletes!$A$4:$E$1003,MATCH(B105,Athletes!$A$4:$A$1003,0),4)) ->  | D105: =IF(B105="","",ABS(SIN(B105))+IF($U$2=1,0,INDEX(Athletes!$AH$4:$AH$102,MATCH($C105,Athletes!$AE$4:$AE$102,0),1))) ->  | I105: =IF(E105="","",100*H105+IFERROR(INDEX(FrontPage!$AA$3:$AD$10,MATCH(COUNTIF(H$11:H105,H105),FrontPage!$AA$3:$AA$10,0),$I$5),COUNTIF(H$11:H105,H105))) ->  | J105: =IF(ROW()-11>$U$2*($U$3+2)-1,"",IF(MOD(ROW()-11,$U$3+2)=0,MAX(J$10:J104)+1,"")) ->  | L105: =IF($J105<>"",$K105,IF($K105="","",IF($K105="Empty",MAX($K$11:$K105)+0.99,MAX($K$11:$K105)+0.01*$K105))) ->  | N105: =IF(J105<>"","Bib",IF(OR($K105="",K105="Empty"),"",IF(A105="",IFERROR(INDEX($E$11:$E$171,MATCH(100*MAX(J$11:J105)+M105,$I$11:$I$171,0),1),""),A105))) ->  | O105: =IF($J105<>"",$A$7,IF(OR($K105="",$K105="Empty",N105=""),"",INDEX(Athletes!$A$4:$E$1003,MATCH(N105,Athletes!$A$4:$A$1003,0),2)&" "& INDEX(Athletes!$A$4:$E$1003,MATCH(N105,Athletes!$A$4:$A$1003,0),3))) ->  | P105: =IF($J105<>"",IF($L$5=1,"Final ","Heat ")&IF(AND($L$5=1,$U$2=1),"",$J105&" of "&$U$2),IF(OR($K105="",$K105="Empty",N105=""),"",INDEX(Athletes!$A$4:$E$1003,MATCH(N105,Athletes!$A$4:$A$1003,0),5))) -> 
B106: =IFERROR(IF(Athletes!A99="","",IF(AND(Athletes!F99=$C$4,INDEX(Athletes!$G99:$Z99,1,MATCH($C$3,Athletes!$G$3:$Z$3,0))<>""),Athletes!A99,"")),"") ->  | C106: =IF(B106="","",INDEX(Athletes!$A$4:$E$1003,MATCH(B106,Athletes!$A$4:$A$1003,0),4)) ->  | D106: =IF(B106="","",ABS(SIN(B106))+IF($U$2=1,0,INDEX(Athletes!$AH$4:$AH$102,MATCH($C106,Athletes!$AE$4:$AE$102,0),1))) ->  | I106: =IF(E106="","",100*H106+IFERROR(INDEX(FrontPage!$AA$3:$AD$10,MATCH(COUNTIF(H$11:H106,H106),FrontPage!$AA$3:$AA$10,0),$I$5),COUNTIF(H$11:H106,H106))) ->  | J106: =IF(ROW()-11>$U$2*($U$3+2)-1,"",IF(MOD(ROW()-11,$U$3+2)=0,MAX(J$10:J105)+1,"")) ->  | L106: =IF($J106<>"",$K106,IF($K106="","",IF($K106="Empty",MAX($K$11:$K106)+0.99,MAX($K$11:$K106)+0.01*$K106))) ->  | N106: =IF(J106<>"","Bib",IF(OR($K106="",K106="Empty"),"",IF(A106="",IFERROR(INDEX($E$11:$E$171,MATCH(100*MAX(J$11:J106)+M106,$I$11:$I$171,0),1),""),A106))) ->  | O106: =IF($J106<>"",$A$7,IF(OR($K106="",$K106="Empty",N106=""),"",INDEX(Athletes!$A$4:$E$1003,MATCH(N106,Athletes!$A$4:$A$1003,0),2)&" "& INDEX(Athletes!$A$4:$E$1003,MATCH(N106,Athletes!$A$4:$A$1003,0),3))) ->  | P106: =IF($J106<>"",IF($L$5=1,"Final ","Heat ")&IF(AND($L$5=1,$U$2=1),"",$J106&" of "&$U$2),IF(OR($K106="",$K106="Empty",N106=""),"",INDEX(Athletes!$A$4:$E$1003,MATCH(N106,Athletes!$A$4:$A$1003,0),5))) -> 
B107: =IFERROR(IF(Athletes!A100="","",IF(AND(Athletes!F100=$C$4,INDEX(Athletes!$G100:$Z100,1,MATCH($C$3,Athletes!$G$3:$Z$3,0))<>""),Athletes!A100,"")),"") ->  | C107: =IF(B107="","",INDEX(Athletes!$A$4:$E$1003,MATCH(B107,Athletes!$A$4:$A$1003,0),4)) ->  | D107: =IF(B107="","",ABS(SIN(B107))+IF($U$2=1,0,INDEX(Athletes!$AH$4:$AH$102,MATCH($C107,Athletes!$AE$4:$AE$102,0),1))) ->  | I107: =IF(E107="","",100*H107+IFERROR(INDEX(FrontPage!$AA$3:$AD$10,MATCH(COUNTIF(H$11:H107,H107),FrontPage!$AA$3:$AA$10,0),$I$5),COUNTIF(H$11:H107,H107))) ->  | J107: =IF(ROW()-11>$U$2*($U$3+2)-1,"",IF(MOD(ROW()-11,$U$3+2)=0,MAX(J$10:J106)+1,"")) ->  | K107: =IF(ROW()-11>$U$2*($U$3+2)-1,"",IF(MOD(ROW()-11,$U$3+2)=0,$N$3*10000+100+J107,IF(MOD(ROW()-11,$U$3+2)=$U$3+1,"Empty",(MOD(ROW()-11,$U$3+2))))) ->  | L107: =IF($J107<>"",$K107,IF($K107="","",IF($K107="Empty",MAX($K$11:$K107)+0.99,MAX($K$11:$K107)+0.01*$K107))) ->  | N107: =IF(J107<>"","Bib",IF(OR($K107="",K107="Empty"),"",IF(A107="",IFERROR(INDEX($E$11:$E$171,MATCH(100*MAX(J$11:J107)+M107,$I$11:$I$171,0),1),""),A107))) ->  | O107: =IF($J107<>"",$A$7,IF(OR($K107="",$K107="Empty",N107=""),"",INDEX(Athletes!$A$4:$E$1003,MATCH(N107,Athletes!$A$4:$A$1003,0),2)&" "& INDEX(Athletes!$A$4:$E$1003,MATCH(N107,Athletes!$A$4:$A$1003,0),3))) ->  | P107: =IF($J107<>"",IF($L$5=1,"Final ","Heat ")&IF(AND($L$5=1,$U$2=1),"",$J107&" of "&$U$2),IF(OR($K107="",$K107="Empty",N107=""),"",INDEX(Athletes!$A$4:$E$1003,MATCH(N107,Athletes!$A$4:$A$1003,0),5))) ->  | Q107: =IF($J107<>"",IF($L$5=1,"","First"),"") ->  | R107: =IF($J107<>"",IF($L$5=1,"",$U$4),"") ->  | S107: =IF($J107<>"",IF($L$5=1,"","plus "),"") ->  | T107: =IF($J107<>"",IF($L$5=1,"",$U$5),"") -> 
B108: =IFERROR(IF(Athletes!A101="","",IF(AND(Athletes!F101=$C$4,INDEX(Athletes!$G101:$Z101,1,MATCH($C$3,Athletes!$G$3:$Z$3,0))<>""),Athletes!A101,"")),"") ->  | C108: =IF(B108="","",INDEX(Athletes!$A$4:$E$1003,MATCH(B108,Athletes!$A$4:$A$1003,0),4)) ->  | D108: =IF(B108="","",ABS(SIN(B108))+IF($U$2=1,0,INDEX(Athletes!$AH$4:$AH$102,MATCH($C108,Athletes!$AE$4:$AE$102,0),1))) ->  | H108: =IF(E108="","",IF($L$5=1,1,IF(H107=$U$2,1,H107+1))) ->  | I108: =IF(E108="","",100*H108+IFERROR(INDEX(FrontPage!$AA$3:$AD$10,MATCH(COUNTIF(H$11:H108,H108),FrontPage!$AA$3:$AA$10,0),$I$5),COUNTIF(H$11:H108,H108))) ->  | J108: =IF(ROW()-11>$U$2*($U$3+2)-1,"",IF(MOD(ROW()-11,$U$3+2)=0,MAX(J$10:J107)+1,"")) ->  | L108: =IF($J108<>"",$K108,IF($K108="","",IF($K108="Empty",MAX($K$11:$K108)+0.99,MAX($K$11:$K108)+0.01*$K108))) ->  | N108: =IF(J108<>"","Bib",IF(OR($K108="",K108="Empty"),"",IF(A108="",IFERROR(INDEX($E$11:$E$171,MATCH(100*MAX(J$11:J108)+M108,$I$11:$I$171,0),1),""),A108))) ->  | O108: =IF($J108<>"",$A$7,IF(OR($K108="",$K108="Empty",N108=""),"",INDEX(Athletes!$A$4:$E$1003,MATCH(N108,Athletes!$A$4:$A$1003,0),2)&" "& INDEX(Athletes!$A$4:$E$1003,MATCH(N108,Athletes!$A$4:$A$1003,0),3))) ->  | P108: =IF($J108<>"",IF($L$5=1,"Final ","Heat ")&IF(AND($L$5=1,$U$2=1),"",$J108&" of "&$U$2),IF(OR($K108="",$K108="Empty",N108=""),"",INDEX(Athletes!$A$4:$E$1003,MATCH(N108,Athletes!$A$4:$A$1003,0),5))) -> 
B109: =IFERROR(IF(Athletes!A102="","",IF(AND(Athletes!F102=$C$4,INDEX(Athletes!$G102:$Z102,1,MATCH($C$3,Athletes!$G$3:$Z$3,0))<>""),Athletes!A102,"")),"") ->  | C109: =IF(B109="","",INDEX(Athletes!$A$4:$E$1003,MATCH(B109,Athletes!$A$4:$A$1003,0),4)) ->  | D109: =IF(B109="","",ABS(SIN(B109))+IF($U$2=1,0,INDEX(Athletes!$AH$4:$AH$102,MATCH($C109,Athletes!$AE$4:$AE$102,0),1))) ->  | I109: =IF(E109="","",100*H109+IFERROR(INDEX(FrontPage!$AA$3:$AD$10,MATCH(COUNTIF(H$11:H109,H109),FrontPage!$AA$3:$AA$10,0),$I$5),COUNTIF(H$11:H109,H109))) ->  | J109: =IF(ROW()-11>$U$2*($U$3+2)-1,"",IF(MOD(ROW()-11,$U$3+2)=0,MAX(J$10:J108)+1,"")) ->  | L109: =IF($J109<>"",$K109,IF($K109="","",IF($K109="Empty",MAX($K$11:$K109)+0.99,MAX($K$11:$K109)+0.01*$K109))) ->  | N109: =IF(J109<>"","Bib",IF(OR($K109="",K109="Empty"),"",IF(A109="",IFERROR(INDEX($E$11:$E$171,MATCH(100*MAX(J$11:J109)+M109,$I$11:$I$171,0),1),""),A109))) ->  | O109: =IF($J109<>"",$A$7,IF(OR($K109="",$K109="Empty",N109=""),"",INDEX(Athletes!$A$4:$E$1003,MATCH(N109,Athletes!$A$4:$A$1003,0),2)&" "& INDEX(Athletes!$A$4:$E$1003,MATCH(N109,Athletes!$A$4:$A$1003,0),3))) ->  | P109: =IF($J109<>"",IF($L$5=1,"Final ","Heat ")&IF(AND($L$5=1,$U$2=1),"",$J109&" of "&$U$2),IF(OR($K109="",$K109="Empty",N109=""),"",INDEX(Athletes!$A$4:$E$1003,MATCH(N109,Athletes!$A$4:$A$1003,0),5))) -> 
B110: =IFERROR(IF(Athletes!A103="","",IF(AND(Athletes!F103=$C$4,INDEX(Athletes!$G103:$Z103,1,MATCH($C$3,Athletes!$G$3:$Z$3,0))<>""),Athletes!A103,"")),"") ->  | C110: =IF(B110="","",INDEX(Athletes!$A$4:$E$1003,MATCH(B110,Athletes!$A$4:$A$1003,0),4)) ->  | D110: =IF(B110="","",ABS(SIN(B110))+IF($U$2=1,0,INDEX(Athletes!$AH$4:$AH$102,MATCH($C110,Athletes!$AE$4:$AE$102,0),1))) ->  | I110: =IF(E110="","",100*H110+IFERROR(INDEX(FrontPage!$AA$3:$AD$10,MATCH(COUNTIF(H$11:H110,H110),FrontPage!$AA$3:$AA$10,0),$I$5),COUNTIF(H$11:H110,H110))) ->  | J110: =IF(ROW()-11>$U$2*($U$3+2)-1,"",IF(MOD(ROW()-11,$U$3+2)=0,MAX(J$10:J109)+1,"")) ->  | L110: =IF($J110<>"",$K110,IF($K110="","",IF($K110="Empty",MAX($K$11:$K110)+0.99,MAX($K$11:$K110)+0.01*$K110))) ->  | N110: =IF(J110<>"","Bib",IF(OR($K110="",K110="Empty"),"",IF(A110="",IFERROR(INDEX($E$11:$E$171,MATCH(100*MAX(J$11:J110)+M110,$I$11:$I$171,0),1),""),A110))) ->  | O110: =IF($J110<>"",$A$7,IF(OR($K110="",$K110="Empty",N110=""),"",INDEX(Athletes!$A$4:$E$1003,MATCH(N110,Athletes!$A$4:$A$1003,0),2)&" "& INDEX(Athletes!$A$4:$E$1003,MATCH(N110,Athletes!$A$4:$A$1003,0),3))) ->  | P110: =IF($J110<>"",IF($L$5=1,"Final ","Heat ")&IF(AND($L$5=1,$U$2=1),"",$J110&" of "&$U$2),IF(OR($K110="",$K110="Empty",N110=""),"",INDEX(Athletes!$A$4:$E$1003,MATCH(N110,Athletes!$A$4:$A$1003,0),5))) -> 
B111: =IFERROR(IF(Athletes!A104="","",IF(AND(Athletes!F104=$C$4,INDEX(Athletes!$G104:$Z104,1,MATCH($C$3,Athletes!$G$3:$Z$3,0))<>""),Athletes!A104,"")),"") ->  | C111: =IF(B111="","",INDEX(Athletes!$A$4:$E$1003,MATCH(B111,Athletes!$A$4:$A$1003,0),4)) ->  | D111: =IF(B111="","",ABS(SIN(B111))+IF($U$2=1,0,INDEX(Athletes!$AH$4:$AH$102,MATCH($C111,Athletes!$AE$4:$AE$102,0),1))) ->  | I111: =IF(E111="","",100*H111+IFERROR(INDEX(FrontPage!$AA$3:$AD$10,MATCH(COUNTIF(H$11:H111,H111),FrontPage!$AA$3:$AA$10,0),$I$5),COUNTIF(H$11:H111,H111))) ->  | J111: =IF(ROW()-11>$U$2*($U$3+2)-1,"",IF(MOD(ROW()-11,$U$3+2)=0,MAX(J$10:J110)+1,"")) ->  | L111: =IF($J111<>"",$K111,IF($K111="","",IF($K111="Empty",MAX($K$11:$K111)+0.99,MAX($K$11:$K111)+0.01*$K111))) ->  | N111: =IF(J111<>"","Bib",IF(OR($K111="",K111="Empty"),"",IF(A111="",IFERROR(INDEX($E$11:$E$171,MATCH(100*MAX(J$11:J111)+M111,$I$11:$I$171,0),1),""),A111))) ->  | O111: =IF($J111<>"",$A$7,IF(OR($K111="",$K111="Empty",N111=""),"",INDEX(Athletes!$A$4:$E$1003,MATCH(N111,Athletes!$A$4:$A$1003,0),2)&" "& INDEX(Athletes!$A$4:$E$1003,MATCH(N111,Athletes!$A$4:$A$1003,0),3))) ->  | P111: =IF($J111<>"",IF($L$5=1,"Final ","Heat ")&IF(AND($L$5=1,$U$2=1),"",$J111&" of "&$U$2),IF(OR($K111="",$K111="Empty",N111=""),"",INDEX(Athletes!$A$4:$E$1003,MATCH(N111,Athletes!$A$4:$A$1003,0),5))) -> 
B112: =IFERROR(IF(Athletes!A105="","",IF(AND(Athletes!F105=$C$4,INDEX(Athletes!$G105:$Z105,1,MATCH($C$3,Athletes!$G$3:$Z$3,0))<>""),Athletes!A105,"")),"") ->  | C112: =IF(B112="","",INDEX(Athletes!$A$4:$E$1003,MATCH(B112,Athletes!$A$4:$A$1003,0),4)) ->  | D112: =IF(B112="","",ABS(SIN(B112))+IF($U$2=1,0,INDEX(Athletes!$AH$4:$AH$102,MATCH($C112,Athletes!$AE$4:$AE$102,0),1))) ->  | I112: =IF(E112="","",100*H112+IFERROR(INDEX(FrontPage!$AA$3:$AD$10,MATCH(COUNTIF(H$11:H112,H112),FrontPage!$AA$3:$AA$10,0),$I$5),COUNTIF(H$11:H112,H112))) ->  | J112: =IF(ROW()-11>$U$2*($U$3+2)-1,"",IF(MOD(ROW()-11,$U$3+2)=0,MAX(J$10:J111)+1,"")) ->  | L112: =IF($J112<>"",$K112,IF($K112="","",IF($K112="Empty",MAX($K$11:$K112)+0.99,MAX($K$11:$K112)+0.01*$K112))) ->  | N112: =IF(J112<>"","Bib",IF(OR($K112="",K112="Empty"),"",IF(A112="",IFERROR(INDEX($E$11:$E$171,MATCH(100*MAX(J$11:J112)+M112,$I$11:$I$171,0),1),""),A112))) ->  | O112: =IF($J112<>"",$A$7,IF(OR($K112="",$K112="Empty",N112=""),"",INDEX(Athletes!$A$4:$E$1003,MATCH(N112,Athletes!$A$4:$A$1003,0),2)&" "& INDEX(Athletes!$A$4:$E$1003,MATCH(N112,Athletes!$A$4:$A$1003,0),3))) ->  | P112: =IF($J112<>"",IF($L$5=1,"Final ","Heat ")&IF(AND($L$5=1,$U$2=1),"",$J112&" of "&$U$2),IF(OR($K112="",$K112="Empty",N112=""),"",INDEX(Athletes!$A$4:$E$1003,MATCH(N112,Athletes!$A$4:$A$1003,0),5))) -> 
B113: =IFERROR(IF(Athletes!A106="","",IF(AND(Athletes!F106=$C$4,INDEX(Athletes!$G106:$Z106,1,MATCH($C$3,Athletes!$G$3:$Z$3,0))<>""),Athletes!A106,"")),"") ->  | C113: =IF(B113="","",INDEX(Athletes!$A$4:$E$1003,MATCH(B113,Athletes!$A$4:$A$1003,0),4)) ->  | D113: =IF(B113="","",ABS(SIN(B113))+IF($U$2=1,0,INDEX(Athletes!$AH$4:$AH$102,MATCH($C113,Athletes!$AE$4:$AE$102,0),1))) ->  | I113: =IF(E113="","",100*H113+IFERROR(INDEX(FrontPage!$AA$3:$AD$10,MATCH(COUNTIF(H$11:H113,H113),FrontPage!$AA$3:$AA$10,0),$I$5),COUNTIF(H$11:H113,H113))) ->  | J113: =IF(ROW()-11>$U$2*($U$3+2)-1,"",IF(MOD(ROW()-11,$U$3+2)=0,MAX(J$10:J112)+1,"")) ->  | L113: =IF($J113<>"",$K113,IF($K113="","",IF($K113="Empty",MAX($K$11:$K113)+0.99,MAX($K$11:$K113)+0.01*$K113))) ->  | N113: =IF(J113<>"","Bib",IF(OR($K113="",K113="Empty"),"",IF(A113="",IFERROR(INDEX($E$11:$E$171,MATCH(100*MAX(J$11:J113)+M113,$I$11:$I$171,0),1),""),A113))) ->  | O113: =IF($J113<>"",$A$7,IF(OR($K113="",$K113="Empty",N113=""),"",INDEX(Athletes!$A$4:$E$1003,MATCH(N113,Athletes!$A$4:$A$1003,0),2)&" "& INDEX(Athletes!$A$4:$E$1003,MATCH(N113,Athletes!$A$4:$A$1003,0),3))) ->  | P113: =IF($J113<>"",IF($L$5=1,"Final ","Heat ")&IF(AND($L$5=1,$U$2=1),"",$J113&" of "&$U$2),IF(OR($K113="",$K113="Empty",N113=""),"",INDEX(Athletes!$A$4:$E$1003,MATCH(N113,Athletes!$A$4:$A$1003,0),5))) -> 
B114: =IFERROR(IF(Athletes!A107="","",IF(AND(Athletes!F107=$C$4,INDEX(Athletes!$G107:$Z107,1,MATCH($C$3,Athletes!$G$3:$Z$3,0))<>""),Athletes!A107,"")),"") ->  | C114: =IF(B114="","",INDEX(Athletes!$A$4:$E$1003,MATCH(B114,Athletes!$A$4:$A$1003,0),4)) ->  | D114: =IF(B114="","",ABS(SIN(B114))+IF($U$2=1,0,INDEX(Athletes!$AH$4:$AH$102,MATCH($C114,Athletes!$AE$4:$AE$102,0),1))) ->  | I114: =IF(E114="","",100*H114+IFERROR(INDEX(FrontPage!$AA$3:$AD$10,MATCH(COUNTIF(H$11:H114,H114),FrontPage!$AA$3:$AA$10,0),$I$5),COUNTIF(H$11:H114,H114))) ->  | J114: =IF(ROW()-11>$U$2*($U$3+2)-1,"",IF(MOD(ROW()-11,$U$3+2)=0,MAX(J$10:J113)+1,"")) ->  | L114: =IF($J114<>"",$K114,IF($K114="","",IF($K114="Empty",MAX($K$11:$K114)+0.99,MAX($K$11:$K114)+0.01*$K114))) ->  | N114: =IF(J114<>"","Bib",IF(OR($K114="",K114="Empty"),"",IF(A114="",IFERROR(INDEX($E$11:$E$171,MATCH(100*MAX(J$11:J114)+M114,$I$11:$I$171,0),1),""),A114))) ->  | O114: =IF($J114<>"",$A$7,IF(OR($K114="",$K114="Empty",N114=""),"",INDEX(Athletes!$A$4:$E$1003,MATCH(N114,Athletes!$A$4:$A$1003,0),2)&" "& INDEX(Athletes!$A$4:$E$1003,MATCH(N114,Athletes!$A$4:$A$1003,0),3))) ->  | P114: =IF($J114<>"",IF($L$5=1,"Final ","Heat ")&IF(AND($L$5=1,$U$2=1),"",$J114&" of "&$U$2),IF(OR($K114="",$K114="Empty",N114=""),"",INDEX(Athletes!$A$4:$E$1003,MATCH(N114,Athletes!$A$4:$A$1003,0),5))) -> 
B115: =IFERROR(IF(Athletes!A108="","",IF(AND(Athletes!F108=$C$4,INDEX(Athletes!$G108:$Z108,1,MATCH($C$3,Athletes!$G$3:$Z$3,0))<>""),Athletes!A108,"")),"") ->  | C115: =IF(B115="","",INDEX(Athletes!$A$4:$E$1003,MATCH(B115,Athletes!$A$4:$A$1003,0),4)) ->  | D115: =IF(B115="","",ABS(SIN(B115))+IF($U$2=1,0,INDEX(Athletes!$AH$4:$AH$102,MATCH($C115,Athletes!$AE$4:$AE$102,0),1))) ->  | I115: =IF(E115="","",100*H115+IFERROR(INDEX(FrontPage!$AA$3:$AD$10,MATCH(COUNTIF(H$11:H115,H115),FrontPage!$AA$3:$AA$10,0),$I$5),COUNTIF(H$11:H115,H115))) ->  | J115: =IF(ROW()-11>$U$2*($U$3+2)-1,"",IF(MOD(ROW()-11,$U$3+2)=0,MAX(J$10:J114)+1,"")) ->  | L115: =IF($J115<>"",$K115,IF($K115="","",IF($K115="Empty",MAX($K$11:$K115)+0.99,MAX($K$11:$K115)+0.01*$K115))) ->  | N115: =IF(J115<>"","Bib",IF(OR($K115="",K115="Empty"),"",IF(A115="",IFERROR(INDEX($E$11:$E$171,MATCH(100*MAX(J$11:J115)+M115,$I$11:$I$171,0),1),""),A115))) ->  | O115: =IF($J115<>"",$A$7,IF(OR($K115="",$K115="Empty",N115=""),"",INDEX(Athletes!$A$4:$E$1003,MATCH(N115,Athletes!$A$4:$A$1003,0),2)&" "& INDEX(Athletes!$A$4:$E$1003,MATCH(N115,Athletes!$A$4:$A$1003,0),3))) ->  | P115: =IF($J115<>"",IF($L$5=1,"Final ","Heat ")&IF(AND($L$5=1,$U$2=1),"",$J115&" of "&$U$2),IF(OR($K115="",$K115="Empty",N115=""),"",INDEX(Athletes!$A$4:$E$1003,MATCH(N115,Athletes!$A$4:$A$1003,0),5))) -> 
B116: =IFERROR(IF(Athletes!A109="","",IF(AND(Athletes!F109=$C$4,INDEX(Athletes!$G109:$Z109,1,MATCH($C$3,Athletes!$G$3:$Z$3,0))<>""),Athletes!A109,"")),"") ->  | C116: =IF(B116="","",INDEX(Athletes!$A$4:$E$1003,MATCH(B116,Athletes!$A$4:$A$1003,0),4)) ->  | D116: =IF(B116="","",ABS(SIN(B116))+IF($U$2=1,0,INDEX(Athletes!$AH$4:$AH$102,MATCH($C116,Athletes!$AE$4:$AE$102,0),1))) ->  | I116: =IF(E116="","",100*H116+IFERROR(INDEX(FrontPage!$AA$3:$AD$10,MATCH(COUNTIF(H$11:H116,H116),FrontPage!$AA$3:$AA$10,0),$I$5),COUNTIF(H$11:H116,H116))) ->  | J116: =IF(ROW()-11>$U$2*($U$3+2)-1,"",IF(MOD(ROW()-11,$U$3+2)=0,MAX(J$10:J115)+1,"")) ->  | L116: =IF($J116<>"",$K116,IF($K116="","",IF($K116="Empty",MAX($K$11:$K116)+0.99,MAX($K$11:$K116)+0.01*$K116))) ->  | N116: =IF(J116<>"","Bib",IF(OR($K116="",K116="Empty"),"",IF(A116="",IFERROR(INDEX($E$11:$E$171,MATCH(100*MAX(J$11:J116)+M116,$I$11:$I$171,0),1),""),A116))) ->  | O116: =IF($J116<>"",$A$7,IF(OR($K116="",$K116="Empty",N116=""),"",INDEX(Athletes!$A$4:$E$1003,MATCH(N116,Athletes!$A$4:$A$1003,0),2)&" "& INDEX(Athletes!$A$4:$E$1003,MATCH(N116,Athletes!$A$4:$A$1003,0),3))) ->  | P116: =IF($J116<>"",IF($L$5=1,"Final ","Heat ")&IF(AND($L$5=1,$U$2=1),"",$J116&" of "&$U$2),IF(OR($K116="",$K116="Empty",N116=""),"",INDEX(Athletes!$A$4:$E$1003,MATCH(N116,Athletes!$A$4:$A$1003,0),5))) -> 
B117: =IFERROR(IF(Athletes!A110="","",IF(AND(Athletes!F110=$C$4,INDEX(Athletes!$G110:$Z110,1,MATCH($C$3,Athletes!$G$3:$Z$3,0))<>""),Athletes!A110,"")),"") ->  | C117: =IF(B117="","",INDEX(Athletes!$A$4:$E$1003,MATCH(B117,Athletes!$A$4:$A$1003,0),4)) ->  | D117: =IF(B117="","",ABS(SIN(B117))+IF($U$2=1,0,INDEX(Athletes!$AH$4:$AH$102,MATCH($C117,Athletes!$AE$4:$AE$102,0),1))) ->  | I117: =IF(E117="","",100*H117+IFERROR(INDEX(FrontPage!$AA$3:$AD$10,MATCH(COUNTIF(H$11:H117,H117),FrontPage!$AA$3:$AA$10,0),$I$5),COUNTIF(H$11:H117,H117))) ->  | J117: =IF(ROW()-11>$U$2*($U$3+2)-1,"",IF(MOD(ROW()-11,$U$3+2)=0,MAX(J$10:J116)+1,"")) ->  | L117: =IF($J117<>"",$K117,IF($K117="","",IF($K117="Empty",MAX($K$11:$K117)+0.99,MAX($K$11:$K117)+0.01*$K117))) ->  | N117: =IF(J117<>"","Bib",IF(OR($K117="",K117="Empty"),"",IF(A117="",IFERROR(INDEX($E$11:$E$171,MATCH(100*MAX(J$11:J117)+M117,$I$11:$I$171,0),1),""),A117))) ->  | O117: =IF($J117<>"",$A$7,IF(OR($K117="",$K117="Empty",N117=""),"",INDEX(Athletes!$A$4:$E$1003,MATCH(N117,Athletes!$A$4:$A$1003,0),2)&" "& INDEX(Athletes!$A$4:$E$1003,MATCH(N117,Athletes!$A$4:$A$1003,0),3))) ->  | P117: =IF($J117<>"",IF($L$5=1,"Final ","Heat ")&IF(AND($L$5=1,$U$2=1),"",$J117&" of "&$U$2),IF(OR($K117="",$K117="Empty",N117=""),"",INDEX(Athletes!$A$4:$E$1003,MATCH(N117,Athletes!$A$4:$A$1003,0),5))) -> 
B118: =IFERROR(IF(Athletes!A111="","",IF(AND(Athletes!F111=$C$4,INDEX(Athletes!$G111:$Z111,1,MATCH($C$3,Athletes!$G$3:$Z$3,0))<>""),Athletes!A111,"")),"") ->  | C118: =IF(B118="","",INDEX(Athletes!$A$4:$E$1003,MATCH(B118,Athletes!$A$4:$A$1003,0),4)) ->  | D118: =IF(B118="","",ABS(SIN(B118))+IF($U$2=1,0,INDEX(Athletes!$AH$4:$AH$102,MATCH($C118,Athletes!$AE$4:$AE$102,0),1))) ->  | I118: =IF(E118="","",100*H118+IFERROR(INDEX(FrontPage!$AA$3:$AD$10,MATCH(COUNTIF(H$11:H118,H118),FrontPage!$AA$3:$AA$10,0),$I$5),COUNTIF(H$11:H118,H118))) ->  | J118: =IF(ROW()-11>$U$2*($U$3+2)-1,"",IF(MOD(ROW()-11,$U$3+2)=0,MAX(J$10:J117)+1,"")) ->  | L118: =IF($J118<>"",$K118,IF($K118="","",IF($K118="Empty",MAX($K$11:$K118)+0.99,MAX($K$11:$K118)+0.01*$K118))) ->  | N118: =IF(J118<>"","Bib",IF(OR($K118="",K118="Empty"),"",IF(A118="",IFERROR(INDEX($E$11:$E$171,MATCH(100*MAX(J$11:J118)+M118,$I$11:$I$171,0),1),""),A118))) ->  | O118: =IF($J118<>"",$A$7,IF(OR($K118="",$K118="Empty",N118=""),"",INDEX(Athletes!$A$4:$E$1003,MATCH(N118,Athletes!$A$4:$A$1003,0),2)&" "& INDEX(Athletes!$A$4:$E$1003,MATCH(N118,Athletes!$A$4:$A$1003,0),3))) ->  | P118: =IF($J118<>"",IF($L$5=1,"Final ","Heat ")&IF(AND($L$5=1,$U$2=1),"",$J118&" of "&$U$2),IF(OR($K118="",$K118="Empty",N118=""),"",INDEX(Athletes!$A$4:$E$1003,MATCH(N118,Athletes!$A$4:$A$1003,0),5))) -> 
B119: =IFERROR(IF(Athletes!A112="","",IF(AND(Athletes!F112=$C$4,INDEX(Athletes!$G112:$Z112,1,MATCH($C$3,Athletes!$G$3:$Z$3,0))<>""),Athletes!A112,"")),"") ->  | C119: =IF(B119="","",INDEX(Athletes!$A$4:$E$1003,MATCH(B119,Athletes!$A$4:$A$1003,0),4)) ->  | D119: =IF(B119="","",ABS(SIN(B119))+IF($U$2=1,0,INDEX(Athletes!$AH$4:$AH$102,MATCH($C119,Athletes!$AE$4:$AE$102,0),1))) ->  | I119: =IF(E119="","",100*H119+IFERROR(INDEX(FrontPage!$AA$3:$AD$10,MATCH(COUNTIF(H$11:H119,H119),FrontPage!$AA$3:$AA$10,0),$I$5),COUNTIF(H$11:H119,H119))) ->  | J119: =IF(ROW()-11>$U$2*($U$3+2)-1,"",IF(MOD(ROW()-11,$U$3+2)=0,MAX(J$10:J118)+1,"")) ->  | L119: =IF($J119<>"",$K119,IF($K119="","",IF($K119="Empty",MAX($K$11:$K119)+0.99,MAX($K$11:$K119)+0.01*$K119))) ->  | N119: =IF(J119<>"","Bib",IF(OR($K119="",K119="Empty"),"",IF(A119="",IFERROR(INDEX($E$11:$E$171,MATCH(100*MAX(J$11:J119)+M119,$I$11:$I$171,0),1),""),A119))) ->  | O119: =IF($J119<>"",$A$7,IF(OR($K119="",$K119="Empty",N119=""),"",INDEX(Athletes!$A$4:$E$1003,MATCH(N119,Athletes!$A$4:$A$1003,0),2)&" "& INDEX(Athletes!$A$4:$E$1003,MATCH(N119,Athletes!$A$4:$A$1003,0),3))) ->  | P119: =IF($J119<>"",IF($L$5=1,"Final ","Heat ")&IF(AND($L$5=1,$U$2=1),"",$J119&" of "&$U$2),IF(OR($K119="",$K119="Empty",N119=""),"",INDEX(Athletes!$A$4:$E$1003,MATCH(N119,Athletes!$A$4:$A$1003,0),5))) -> 
B120: =IFERROR(IF(Athletes!A113="","",IF(AND(Athletes!F113=$C$4,INDEX(Athletes!$G113:$Z113,1,MATCH($C$3,Athletes!$G$3:$Z$3,0))<>""),Athletes!A113,"")),"") ->  | C120: =IF(B120="","",INDEX(Athletes!$A$4:$E$1003,MATCH(B120,Athletes!$A$4:$A$1003,0),4)) ->  | D120: =IF(B120="","",ABS(SIN(B120))+IF($U$2=1,0,INDEX(Athletes!$AH$4:$AH$102,MATCH($C120,Athletes!$AE$4:$AE$102,0),1))) ->  | I120: =IF(E120="","",100*H120+IFERROR(INDEX(FrontPage!$AA$3:$AD$10,MATCH(COUNTIF(H$11:H120,H120),FrontPage!$AA$3:$AA$10,0),$I$5),COUNTIF(H$11:H120,H120))) ->  | J120: =IF(ROW()-11>$U$2*($U$3+2)-1,"",IF(MOD(ROW()-11,$U$3+2)=0,MAX(J$10:J119)+1,"")) ->  | L120: =IF($J120<>"",$K120,IF($K120="","",IF($K120="Empty",MAX($K$11:$K120)+0.99,MAX($K$11:$K120)+0.01*$K120))) ->  | N120: =IF(J120<>"","Bib",IF(OR($K120="",K120="Empty"),"",IF(A120="",IFERROR(INDEX($E$11:$E$171,MATCH(100*MAX(J$11:J120)+M120,$I$11:$I$171,0),1),""),A120))) ->  | O120: =IF($J120<>"",$A$7,IF(OR($K120="",$K120="Empty",N120=""),"",INDEX(Athletes!$A$4:$E$1003,MATCH(N120,Athletes!$A$4:$A$1003,0),2)&" "& INDEX(Athletes!$A$4:$E$1003,MATCH(N120,Athletes!$A$4:$A$1003,0),3))) ->  | P120: =IF($J120<>"",IF($L$5=1,"Final ","Heat ")&IF(AND($L$5=1,$U$2=1),"",$J120&" of "&$U$2),IF(OR($K120="",$K120="Empty",N120=""),"",INDEX(Athletes!$A$4:$E$1003,MATCH(N120,Athletes!$A$4:$A$1003,0),5))) -> 
B121: =IFERROR(IF(Athletes!A114="","",IF(AND(Athletes!F114=$C$4,INDEX(Athletes!$G114:$Z114,1,MATCH($C$3,Athletes!$G$3:$Z$3,0))<>""),Athletes!A114,"")),"") ->  | C121: =IF(B121="","",INDEX(Athletes!$A$4:$E$1003,MATCH(B121,Athletes!$A$4:$A$1003,0),4)) ->  | D121: =IF(B121="","",ABS(SIN(B121))+IF($U$2=1,0,INDEX(Athletes!$AH$4:$AH$102,MATCH($C121,Athletes!$AE$4:$AE$102,0),1))) ->  | I121: =IF(E121="","",100*H121+IFERROR(INDEX(FrontPage!$AA$3:$AD$10,MATCH(COUNTIF(H$11:H121,H121),FrontPage!$AA$3:$AA$10,0),$I$5),COUNTIF(H$11:H121,H121))) ->  | J121: =IF(ROW()-11>$U$2*($U$3+2)-1,"",IF(MOD(ROW()-11,$U$3+2)=0,MAX(J$10:J120)+1,"")) ->  | L121: =IF($J121<>"",$K121,IF($K121="","",IF($K121="Empty",MAX($K$11:$K121)+0.99,MAX($K$11:$K121)+0.01*$K121))) ->  | N121: =IF(J121<>"","Bib",IF(OR($K121="",K121="Empty"),"",IF(A121="",IFERROR(INDEX($E$11:$E$171,MATCH(100*MAX(J$11:J121)+M121,$I$11:$I$171,0),1),""),A121))) ->  | O121: =IF($J121<>"",$A$7,IF(OR($K121="",$K121="Empty",N121=""),"",INDEX(Athletes!$A$4:$E$1003,MATCH(N121,Athletes!$A$4:$A$1003,0),2)&" "& INDEX(Athletes!$A$4:$E$1003,MATCH(N121,Athletes!$A$4:$A$1003,0),3))) ->  | P121: =IF($J121<>"",IF($L$5=1,"Final ","Heat ")&IF(AND($L$5=1,$U$2=1),"",$J121&" of "&$U$2),IF(OR($K121="",$K121="Empty",N121=""),"",INDEX(Athletes!$A$4:$E$1003,MATCH(N121,Athletes!$A$4:$A$1003,0),5))) -> 
B122: =IFERROR(IF(Athletes!A115="","",IF(AND(Athletes!F115=$C$4,INDEX(Athletes!$G115:$Z115,1,MATCH($C$3,Athletes!$G$3:$Z$3,0))<>""),Athletes!A115,"")),"") ->  | C122: =IF(B122="","",INDEX(Athletes!$A$4:$E$1003,MATCH(B122,Athletes!$A$4:$A$1003,0),4)) ->  | D122: =IF(B122="","",ABS(SIN(B122))+IF($U$2=1,0,INDEX(Athletes!$AH$4:$AH$102,MATCH($C122,Athletes!$AE$4:$AE$102,0),1))) ->  | I122: =IF(E122="","",100*H122+IFERROR(INDEX(FrontPage!$AA$3:$AD$10,MATCH(COUNTIF(H$11:H122,H122),FrontPage!$AA$3:$AA$10,0),$I$5),COUNTIF(H$11:H122,H122))) ->  | J122: =IF(ROW()-11>$U$2*($U$3+2)-1,"",IF(MOD(ROW()-11,$U$3+2)=0,MAX(J$10:J121)+1,"")) ->  | L122: =IF($J122<>"",$K122,IF($K122="","",IF($K122="Empty",MAX($K$11:$K122)+0.99,MAX($K$11:$K122)+0.01*$K122))) ->  | N122: =IF(J122<>"","Bib",IF(OR($K122="",K122="Empty"),"",IF(A122="",IFERROR(INDEX($E$11:$E$171,MATCH(100*MAX(J$11:J122)+M122,$I$11:$I$171,0),1),""),A122))) ->  | O122: =IF($J122<>"",$A$7,IF(OR($K122="",$K122="Empty",N122=""),"",INDEX(Athletes!$A$4:$E$1003,MATCH(N122,Athletes!$A$4:$A$1003,0),2)&" "& INDEX(Athletes!$A$4:$E$1003,MATCH(N122,Athletes!$A$4:$A$1003,0),3))) ->  | P122: =IF($J122<>"",IF($L$5=1,"Final ","Heat ")&IF(AND($L$5=1,$U$2=1),"",$J122&" of "&$U$2),IF(OR($K122="",$K122="Empty",N122=""),"",INDEX(Athletes!$A$4:$E$1003,MATCH(N122,Athletes!$A$4:$A$1003,0),5))) -> 
B123: =IFERROR(IF(Athletes!A116="","",IF(AND(Athletes!F116=$C$4,INDEX(Athletes!$G116:$Z116,1,MATCH($C$3,Athletes!$G$3:$Z$3,0))<>""),Athletes!A116,"")),"") ->  | C123: =IF(B123="","",INDEX(Athletes!$A$4:$E$1003,MATCH(B123,Athletes!$A$4:$A$1003,0),4)) ->  | D123: =IF(B123="","",ABS(SIN(B123))+IF($U$2=1,0,INDEX(Athletes!$AH$4:$AH$102,MATCH($C123,Athletes!$AE$4:$AE$102,0),1))) ->  | I123: =IF(E123="","",100*H123+IFERROR(INDEX(FrontPage!$AA$3:$AD$10,MATCH(COUNTIF(H$11:H123,H123),FrontPage!$AA$3:$AA$10,0),$I$5),COUNTIF(H$11:H123,H123))) ->  | J123: =IF(ROW()-11>$U$2*($U$3+2)-1,"",IF(MOD(ROW()-11,$U$3+2)=0,MAX(J$10:J122)+1,"")) ->  | L123: =IF($J123<>"",$K123,IF($K123="","",IF($K123="Empty",MAX($K$11:$K123)+0.99,MAX($K$11:$K123)+0.01*$K123))) ->  | N123: =IF(J123<>"","Bib",IF(OR($K123="",K123="Empty"),"",IF(A123="",IFERROR(INDEX($E$11:$E$171,MATCH(100*MAX(J$11:J123)+M123,$I$11:$I$171,0),1),""),A123))) ->  | O123: =IF($J123<>"",$A$7,IF(OR($K123="",$K123="Empty",N123=""),"",INDEX(Athletes!$A$4:$E$1003,MATCH(N123,Athletes!$A$4:$A$1003,0),2)&" "& INDEX(Athletes!$A$4:$E$1003,MATCH(N123,Athletes!$A$4:$A$1003,0),3))) ->  | P123: =IF($J123<>"",IF($L$5=1,"Final ","Heat ")&IF(AND($L$5=1,$U$2=1),"",$J123&" of "&$U$2),IF(OR($K123="",$K123="Empty",N123=""),"",INDEX(Athletes!$A$4:$E$1003,MATCH(N123,Athletes!$A$4:$A$1003,0),5))) -> 
B124: =IFERROR(IF(Athletes!A117="","",IF(AND(Athletes!F117=$C$4,INDEX(Athletes!$G117:$Z117,1,MATCH($C$3,Athletes!$G$3:$Z$3,0))<>""),Athletes!A117,"")),"") ->  | C124: =IF(B124="","",INDEX(Athletes!$A$4:$E$1003,MATCH(B124,Athletes!$A$4:$A$1003,0),4)) ->  | D124: =IF(B124="","",ABS(SIN(B124))+IF($U$2=1,0,INDEX(Athletes!$AH$4:$AH$102,MATCH($C124,Athletes!$AE$4:$AE$102,0),1))) ->  | I124: =IF(E124="","",100*H124+IFERROR(INDEX(FrontPage!$AA$3:$AD$10,MATCH(COUNTIF(H$11:H124,H124),FrontPage!$AA$3:$AA$10,0),$I$5),COUNTIF(H$11:H124,H124))) ->  | J124: =IF(ROW()-11>$U$2*($U$3+2)-1,"",IF(MOD(ROW()-11,$U$3+2)=0,MAX(J$10:J123)+1,"")) ->  | L124: =IF($J124<>"",$K124,IF($K124="","",IF($K124="Empty",MAX($K$11:$K124)+0.99,MAX($K$11:$K124)+0.01*$K124))) ->  | N124: =IF(J124<>"","Bib",IF(OR($K124="",K124="Empty"),"",IF(A124="",IFERROR(INDEX($E$11:$E$171,MATCH(100*MAX(J$11:J124)+M124,$I$11:$I$171,0),1),""),A124))) ->  | O124: =IF($J124<>"",$A$7,IF(OR($K124="",$K124="Empty",N124=""),"",INDEX(Athletes!$A$4:$E$1003,MATCH(N124,Athletes!$A$4:$A$1003,0),2)&" "& INDEX(Athletes!$A$4:$E$1003,MATCH(N124,Athletes!$A$4:$A$1003,0),3))) ->  | P124: =IF($J124<>"",IF($L$5=1,"Final ","Heat ")&IF(AND($L$5=1,$U$2=1),"",$J124&" of "&$U$2),IF(OR($K124="",$K124="Empty",N124=""),"",INDEX(Athletes!$A$4:$E$1003,MATCH(N124,Athletes!$A$4:$A$1003,0),5))) -> 
B125: =IFERROR(IF(Athletes!A118="","",IF(AND(Athletes!F118=$C$4,INDEX(Athletes!$G118:$Z118,1,MATCH($C$3,Athletes!$G$3:$Z$3,0))<>""),Athletes!A118,"")),"") ->  | C125: =IF(B125="","",INDEX(Athletes!$A$4:$E$1003,MATCH(B125,Athletes!$A$4:$A$1003,0),4)) ->  | D125: =IF(B125="","",ABS(SIN(B125))+IF($U$2=1,0,INDEX(Athletes!$AH$4:$AH$102,MATCH($C125,Athletes!$AE$4:$AE$102,0),1))) ->  | I125: =IF(E125="","",100*H125+IFERROR(INDEX(FrontPage!$AA$3:$AD$10,MATCH(COUNTIF(H$11:H125,H125),FrontPage!$AA$3:$AA$10,0),$I$5),COUNTIF(H$11:H125,H125))) ->  | J125: =IF(ROW()-11>$U$2*($U$3+2)-1,"",IF(MOD(ROW()-11,$U$3+2)=0,MAX(J$10:J124)+1,"")) ->  | L125: =IF($J125<>"",$K125,IF($K125="","",IF($K125="Empty",MAX($K$11:$K125)+0.99,MAX($K$11:$K125)+0.01*$K125))) ->  | N125: =IF(J125<>"","Bib",IF(OR($K125="",K125="Empty"),"",IF(A125="",IFERROR(INDEX($E$11:$E$171,MATCH(100*MAX(J$11:J125)+M125,$I$11:$I$171,0),1),""),A125))) ->  | O125: =IF($J125<>"",$A$7,IF(OR($K125="",$K125="Empty",N125=""),"",INDEX(Athletes!$A$4:$E$1003,MATCH(N125,Athletes!$A$4:$A$1003,0),2)&" "& INDEX(Athletes!$A$4:$E$1003,MATCH(N125,Athletes!$A$4:$A$1003,0),3))) ->  | P125: =IF($J125<>"",IF($L$5=1,"Final ","Heat ")&IF(AND($L$5=1,$U$2=1),"",$J125&" of "&$U$2),IF(OR($K125="",$K125="Empty",N125=""),"",INDEX(Athletes!$A$4:$E$1003,MATCH(N125,Athletes!$A$4:$A$1003,0),5))) -> 
B126: =IFERROR(IF(Athletes!A119="","",IF(AND(Athletes!F119=$C$4,INDEX(Athletes!$G119:$Z119,1,MATCH($C$3,Athletes!$G$3:$Z$3,0))<>""),Athletes!A119,"")),"") ->  | C126: =IF(B126="","",INDEX(Athletes!$A$4:$E$1003,MATCH(B126,Athletes!$A$4:$A$1003,0),4)) ->  | D126: =IF(B126="","",ABS(SIN(B126))+IF($U$2=1,0,INDEX(Athletes!$AH$4:$AH$102,MATCH($C126,Athletes!$AE$4:$AE$102,0),1))) ->  | I126: =IF(E126="","",100*H126+IFERROR(INDEX(FrontPage!$AA$3:$AD$10,MATCH(COUNTIF(H$11:H126,H126),FrontPage!$AA$3:$AA$10,0),$I$5),COUNTIF(H$11:H126,H126))) ->  | J126: =IF(ROW()-11>$U$2*($U$3+2)-1,"",IF(MOD(ROW()-11,$U$3+2)=0,MAX(J$10:J125)+1,"")) ->  | L126: =IF($J126<>"",$K126,IF($K126="","",IF($K126="Empty",MAX($K$11:$K126)+0.99,MAX($K$11:$K126)+0.01*$K126))) ->  | N126: =IF(J126<>"","Bib",IF(OR($K126="",K126="Empty"),"",IF(A126="",IFERROR(INDEX($E$11:$E$171,MATCH(100*MAX(J$11:J126)+M126,$I$11:$I$171,0),1),""),A126))) ->  | O126: =IF($J126<>"",$A$7,IF(OR($K126="",$K126="Empty",N126=""),"",INDEX(Athletes!$A$4:$E$1003,MATCH(N126,Athletes!$A$4:$A$1003,0),2)&" "& INDEX(Athletes!$A$4:$E$1003,MATCH(N126,Athletes!$A$4:$A$1003,0),3))) ->  | P126: =IF($J126<>"",IF($L$5=1,"Final ","Heat ")&IF(AND($L$5=1,$U$2=1),"",$J126&" of "&$U$2),IF(OR($K126="",$K126="Empty",N126=""),"",INDEX(Athletes!$A$4:$E$1003,MATCH(N126,Athletes!$A$4:$A$1003,0),5))) -> 
B127: =IFERROR(IF(Athletes!A120="","",IF(AND(Athletes!F120=$C$4,INDEX(Athletes!$G120:$Z120,1,MATCH($C$3,Athletes!$G$3:$Z$3,0))<>""),Athletes!A120,"")),"") ->  | C127: =IF(B127="","",INDEX(Athletes!$A$4:$E$1003,MATCH(B127,Athletes!$A$4:$A$1003,0),4)) ->  | D127: =IF(B127="","",ABS(SIN(B127))+IF($U$2=1,0,INDEX(Athletes!$AH$4:$AH$102,MATCH($C127,Athletes!$AE$4:$AE$102,0),1))) ->  | I127: =IF(E127="","",100*H127+IFERROR(INDEX(FrontPage!$AA$3:$AD$10,MATCH(COUNTIF(H$11:H127,H127),FrontPage!$AA$3:$AA$10,0),$I$5),COUNTIF(H$11:H127,H127))) ->  | J127: =IF(ROW()-11>$U$2*($U$3+2)-1,"",IF(MOD(ROW()-11,$U$3+2)=0,MAX(J$10:J126)+1,"")) ->  | L127: =IF($J127<>"",$K127,IF($K127="","",IF($K127="Empty",MAX($K$11:$K127)+0.99,MAX($K$11:$K127)+0.01*$K127))) ->  | N127: =IF(J127<>"","Bib",IF(OR($K127="",K127="Empty"),"",IF(A127="",IFERROR(INDEX($E$11:$E$171,MATCH(100*MAX(J$11:J127)+M127,$I$11:$I$171,0),1),""),A127))) ->  | O127: =IF($J127<>"",$A$7,IF(OR($K127="",$K127="Empty",N127=""),"",INDEX(Athletes!$A$4:$E$1003,MATCH(N127,Athletes!$A$4:$A$1003,0),2)&" "& INDEX(Athletes!$A$4:$E$1003,MATCH(N127,Athletes!$A$4:$A$1003,0),3))) ->  | P127: =IF($J127<>"",IF($L$5=1,"Final ","Heat ")&IF(AND($L$5=1,$U$2=1),"",$J127&" of "&$U$2),IF(OR($K127="",$K127="Empty",N127=""),"",INDEX(Athletes!$A$4:$E$1003,MATCH(N127,Athletes!$A$4:$A$1003,0),5))) -> 
B128: =IFERROR(IF(Athletes!A121="","",IF(AND(Athletes!F121=$C$4,INDEX(Athletes!$G121:$Z121,1,MATCH($C$3,Athletes!$G$3:$Z$3,0))<>""),Athletes!A121,"")),"") ->  | C128: =IF(B128="","",INDEX(Athletes!$A$4:$E$1003,MATCH(B128,Athletes!$A$4:$A$1003,0),4)) ->  | D128: =IF(B128="","",ABS(SIN(B128))+IF($U$2=1,0,INDEX(Athletes!$AH$4:$AH$102,MATCH($C128,Athletes!$AE$4:$AE$102,0),1))) ->  | I128: =IF(E128="","",100*H128+IFERROR(INDEX(FrontPage!$AA$3:$AD$10,MATCH(COUNTIF(H$11:H128,H128),FrontPage!$AA$3:$AA$10,0),$I$5),COUNTIF(H$11:H128,H128))) ->  | J128: =IF(ROW()-11>$U$2*($U$3+2)-1,"",IF(MOD(ROW()-11,$U$3+2)=0,MAX(J$10:J127)+1,"")) ->  | L128: =IF($J128<>"",$K128,IF($K128="","",IF($K128="Empty",MAX($K$11:$K128)+0.99,MAX($K$11:$K128)+0.01*$K128))) ->  | N128: =IF(J128<>"","Bib",IF(OR($K128="",K128="Empty"),"",IF(A128="",IFERROR(INDEX($E$11:$E$171,MATCH(100*MAX(J$11:J128)+M128,$I$11:$I$171,0),1),""),A128))) ->  | O128: =IF($J128<>"",$A$7,IF(OR($K128="",$K128="Empty",N128=""),"",INDEX(Athletes!$A$4:$E$1003,MATCH(N128,Athletes!$A$4:$A$1003,0),2)&" "& INDEX(Athletes!$A$4:$E$1003,MATCH(N128,Athletes!$A$4:$A$1003,0),3))) ->  | P128: =IF($J128<>"",IF($L$5=1,"Final ","Heat ")&IF(AND($L$5=1,$U$2=1),"",$J128&" of "&$U$2),IF(OR($K128="",$K128="Empty",N128=""),"",INDEX(Athletes!$A$4:$E$1003,MATCH(N128,Athletes!$A$4:$A$1003,0),5))) -> 
B129: =IFERROR(IF(Athletes!A122="","",IF(AND(Athletes!F122=$C$4,INDEX(Athletes!$G122:$Z122,1,MATCH($C$3,Athletes!$G$3:$Z$3,0))<>""),Athletes!A122,"")),"") ->  | C129: =IF(B129="","",INDEX(Athletes!$A$4:$E$1003,MATCH(B129,Athletes!$A$4:$A$1003,0),4)) ->  | D129: =IF(B129="","",ABS(SIN(B129))+IF($U$2=1,0,INDEX(Athletes!$AH$4:$AH$102,MATCH($C129,Athletes!$AE$4:$AE$102,0),1))) ->  | I129: =IF(E129="","",100*H129+IFERROR(INDEX(FrontPage!$AA$3:$AD$10,MATCH(COUNTIF(H$11:H129,H129),FrontPage!$AA$3:$AA$10,0),$I$5),COUNTIF(H$11:H129,H129))) ->  | J129: =IF(ROW()-11>$U$2*($U$3+2)-1,"",IF(MOD(ROW()-11,$U$3+2)=0,MAX(J$10:J128)+1,"")) ->  | L129: =IF($J129<>"",$K129,IF($K129="","",IF($K129="Empty",MAX($K$11:$K129)+0.99,MAX($K$11:$K129)+0.01*$K129))) ->  | N129: =IF(J129<>"","Bib",IF(OR($K129="",K129="Empty"),"",IF(A129="",IFERROR(INDEX($E$11:$E$171,MATCH(100*MAX(J$11:J129)+M129,$I$11:$I$171,0),1),""),A129))) ->  | O129: =IF($J129<>"",$A$7,IF(OR($K129="",$K129="Empty",N129=""),"",INDEX(Athletes!$A$4:$E$1003,MATCH(N129,Athletes!$A$4:$A$1003,0),2)&" "& INDEX(Athletes!$A$4:$E$1003,MATCH(N129,Athletes!$A$4:$A$1003,0),3))) ->  | P129: =IF($J129<>"",IF($L$5=1,"Final ","Heat ")&IF(AND($L$5=1,$U$2=1),"",$J129&" of "&$U$2),IF(OR($K129="",$K129="Empty",N129=""),"",INDEX(Athletes!$A$4:$E$1003,MATCH(N129,Athletes!$A$4:$A$1003,0),5))) -> 
B130: =IFERROR(IF(Athletes!A123="","",IF(AND(Athletes!F123=$C$4,INDEX(Athletes!$G123:$Z123,1,MATCH($C$3,Athletes!$G$3:$Z$3,0))<>""),Athletes!A123,"")),"") ->  | C130: =IF(B130="","",INDEX(Athletes!$A$4:$E$1003,MATCH(B130,Athletes!$A$4:$A$1003,0),4)) ->  | D130: =IF(B130="","",ABS(SIN(B130))+IF($U$2=1,0,INDEX(Athletes!$AH$4:$AH$102,MATCH($C130,Athletes!$AE$4:$AE$102,0),1))) ->  | I130: =IF(E130="","",100*H130+IFERROR(INDEX(FrontPage!$AA$3:$AD$10,MATCH(COUNTIF(H$11:H130,H130),FrontPage!$AA$3:$AA$10,0),$I$5),COUNTIF(H$11:H130,H130))) ->  | J130: =IF(ROW()-11>$U$2*($U$3+2)-1,"",IF(MOD(ROW()-11,$U$3+2)=0,MAX(J$10:J129)+1,"")) ->  | L130: =IF($J130<>"",$K130,IF($K130="","",IF($K130="Empty",MAX($K$11:$K130)+0.99,MAX($K$11:$K130)+0.01*$K130))) ->  | N130: =IF(J130<>"","Bib",IF(OR($K130="",K130="Empty"),"",IF(A130="",IFERROR(INDEX($E$11:$E$171,MATCH(100*MAX(J$11:J130)+M130,$I$11:$I$171,0),1),""),A130))) ->  | O130: =IF($J130<>"",$A$7,IF(OR($K130="",$K130="Empty",N130=""),"",INDEX(Athletes!$A$4:$E$1003,MATCH(N130,Athletes!$A$4:$A$1003,0),2)&" "& INDEX(Athletes!$A$4:$E$1003,MATCH(N130,Athletes!$A$4:$A$1003,0),3))) ->  | P130: =IF($J130<>"",IF($L$5=1,"Final ","Heat ")&IF(AND($L$5=1,$U$2=1),"",$J130&" of "&$U$2),IF(OR($K130="",$K130="Empty",N130=""),"",INDEX(Athletes!$A$4:$E$1003,MATCH(N130,Athletes!$A$4:$A$1003,0),5))) -> 
B131: =IFERROR(IF(Athletes!A124="","",IF(AND(Athletes!F124=$C$4,INDEX(Athletes!$G124:$Z124,1,MATCH($C$3,Athletes!$G$3:$Z$3,0))<>""),Athletes!A124,"")),"") ->  | C131: =IF(B131="","",INDEX(Athletes!$A$4:$E$1003,MATCH(B131,Athletes!$A$4:$A$1003,0),4)) ->  | D131: =IF(B131="","",ABS(SIN(B131))+IF($U$2=1,0,INDEX(Athletes!$AH$4:$AH$102,MATCH($C131,Athletes!$AE$4:$AE$102,0),1))) ->  | I131: =IF(E131="","",100*H131+IFERROR(INDEX(FrontPage!$AA$3:$AD$10,MATCH(COUNTIF(H$11:H131,H131),FrontPage!$AA$3:$AA$10,0),$I$5),COUNTIF(H$11:H131,H131))) ->  | J131: =IF(ROW()-11>$U$2*($U$3+2)-1,"",IF(MOD(ROW()-11,$U$3+2)=0,MAX(J$10:J130)+1,"")) ->  | L131: =IF($J131<>"",$K131,IF($K131="","",IF($K131="Empty",MAX($K$11:$K131)+0.99,MAX($K$11:$K131)+0.01*$K131))) ->  | N131: =IF(J131<>"","Bib",IF(OR($K131="",K131="Empty"),"",IF(A131="",IFERROR(INDEX($E$11:$E$171,MATCH(100*MAX(J$11:J131)+M131,$I$11:$I$171,0),1),""),A131))) ->  | O131: =IF($J131<>"",$A$7,IF(OR($K131="",$K131="Empty",N131=""),"",INDEX(Athletes!$A$4:$E$1003,MATCH(N131,Athletes!$A$4:$A$1003,0),2)&" "& INDEX(Athletes!$A$4:$E$1003,MATCH(N131,Athletes!$A$4:$A$1003,0),3))) ->  | P131: =IF($J131<>"",IF($L$5=1,"Final ","Heat ")&IF(AND($L$5=1,$U$2=1),"",$J131&" of "&$U$2),IF(OR($K131="",$K131="Empty",N131=""),"",INDEX(Athletes!$A$4:$E$1003,MATCH(N131,Athletes!$A$4:$A$1003,0),5))) -> 
B132: =IFERROR(IF(Athletes!A125="","",IF(AND(Athletes!F125=$C$4,INDEX(Athletes!$G125:$Z125,1,MATCH($C$3,Athletes!$G$3:$Z$3,0))<>""),Athletes!A125,"")),"") ->  | C132: =IF(B132="","",INDEX(Athletes!$A$4:$E$1003,MATCH(B132,Athletes!$A$4:$A$1003,0),4)) ->  | D132: =IF(B132="","",ABS(SIN(B132))+IF($U$2=1,0,INDEX(Athletes!$AH$4:$AH$102,MATCH($C132,Athletes!$AE$4:$AE$102,0),1))) ->  | I132: =IF(E132="","",100*H132+IFERROR(INDEX(FrontPage!$AA$3:$AD$10,MATCH(COUNTIF(H$11:H132,H132),FrontPage!$AA$3:$AA$10,0),$I$5),COUNTIF(H$11:H132,H132))) ->  | J132: =IF(ROW()-11>$U$2*($U$3+2)-1,"",IF(MOD(ROW()-11,$U$3+2)=0,MAX(J$10:J131)+1,"")) ->  | L132: =IF($J132<>"",$K132,IF($K132="","",IF($K132="Empty",MAX($K$11:$K132)+0.99,MAX($K$11:$K132)+0.01*$K132))) ->  | N132: =IF(J132<>"","Bib",IF(OR($K132="",K132="Empty"),"",IF(A132="",IFERROR(INDEX($E$11:$E$171,MATCH(100*MAX(J$11:J132)+M132,$I$11:$I$171,0),1),""),A132))) ->  | O132: =IF($J132<>"",$A$7,IF(OR($K132="",$K132="Empty",N132=""),"",INDEX(Athletes!$A$4:$E$1003,MATCH(N132,Athletes!$A$4:$A$1003,0),2)&" "& INDEX(Athletes!$A$4:$E$1003,MATCH(N132,Athletes!$A$4:$A$1003,0),3))) ->  | P132: =IF($J132<>"",IF($L$5=1,"Final ","Heat ")&IF(AND($L$5=1,$U$2=1),"",$J132&" of "&$U$2),IF(OR($K132="",$K132="Empty",N132=""),"",INDEX(Athletes!$A$4:$E$1003,MATCH(N132,Athletes!$A$4:$A$1003,0),5))) -> 
B133: =IFERROR(IF(Athletes!A126="","",IF(AND(Athletes!F126=$C$4,INDEX(Athletes!$G126:$Z126,1,MATCH($C$3,Athletes!$G$3:$Z$3,0))<>""),Athletes!A126,"")),"") ->  | C133: =IF(B133="","",INDEX(Athletes!$A$4:$E$1003,MATCH(B133,Athletes!$A$4:$A$1003,0),4)) ->  | D133: =IF(B133="","",ABS(SIN(B133))+IF($U$2=1,0,INDEX(Athletes!$AH$4:$AH$102,MATCH($C133,Athletes!$AE$4:$AE$102,0),1))) ->  | I133: =IF(E133="","",100*H133+IFERROR(INDEX(FrontPage!$AA$3:$AD$10,MATCH(COUNTIF(H$11:H133,H133),FrontPage!$AA$3:$AA$10,0),$I$5),COUNTIF(H$11:H133,H133))) ->  | J133: =IF(ROW()-11>$U$2*($U$3+2)-1,"",IF(MOD(ROW()-11,$U$3+2)=0,MAX(J$10:J132)+1,"")) ->  | L133: =IF($J133<>"",$K133,IF($K133="","",IF($K133="Empty",MAX($K$11:$K133)+0.99,MAX($K$11:$K133)+0.01*$K133))) ->  | N133: =IF(J133<>"","Bib",IF(OR($K133="",K133="Empty"),"",IF(A133="",IFERROR(INDEX($E$11:$E$171,MATCH(100*MAX(J$11:J133)+M133,$I$11:$I$171,0),1),""),A133))) ->  | O133: =IF($J133<>"",$A$7,IF(OR($K133="",$K133="Empty",N133=""),"",INDEX(Athletes!$A$4:$E$1003,MATCH(N133,Athletes!$A$4:$A$1003,0),2)&" "& INDEX(Athletes!$A$4:$E$1003,MATCH(N133,Athletes!$A$4:$A$1003,0),3))) ->  | P133: =IF($J133<>"",IF($L$5=1,"Final ","Heat ")&IF(AND($L$5=1,$U$2=1),"",$J133&" of "&$U$2),IF(OR($K133="",$K133="Empty",N133=""),"",INDEX(Athletes!$A$4:$E$1003,MATCH(N133,Athletes!$A$4:$A$1003,0),5))) -> 
B134: =IFERROR(IF(Athletes!A127="","",IF(AND(Athletes!F127=$C$4,INDEX(Athletes!$G127:$Z127,1,MATCH($C$3,Athletes!$G$3:$Z$3,0))<>""),Athletes!A127,"")),"") ->  | C134: =IF(B134="","",INDEX(Athletes!$A$4:$E$1003,MATCH(B134,Athletes!$A$4:$A$1003,0),4)) ->  | D134: =IF(B134="","",ABS(SIN(B134))+IF($U$2=1,0,INDEX(Athletes!$AH$4:$AH$102,MATCH($C134,Athletes!$AE$4:$AE$102,0),1))) ->  | I134: =IF(E134="","",100*H134+IFERROR(INDEX(FrontPage!$AA$3:$AD$10,MATCH(COUNTIF(H$11:H134,H134),FrontPage!$AA$3:$AA$10,0),$I$5),COUNTIF(H$11:H134,H134))) ->  | J134: =IF(ROW()-11>$U$2*($U$3+2)-1,"",IF(MOD(ROW()-11,$U$3+2)=0,MAX(J$10:J133)+1,"")) ->  | L134: =IF($J134<>"",$K134,IF($K134="","",IF($K134="Empty",MAX($K$11:$K134)+0.99,MAX($K$11:$K134)+0.01*$K134))) ->  | N134: =IF(J134<>"","Bib",IF(OR($K134="",K134="Empty"),"",IF(A134="",IFERROR(INDEX($E$11:$E$171,MATCH(100*MAX(J$11:J134)+M134,$I$11:$I$171,0),1),""),A134))) ->  | O134: =IF($J134<>"",$A$7,IF(OR($K134="",$K134="Empty",N134=""),"",INDEX(Athletes!$A$4:$E$1003,MATCH(N134,Athletes!$A$4:$A$1003,0),2)&" "& INDEX(Athletes!$A$4:$E$1003,MATCH(N134,Athletes!$A$4:$A$1003,0),3))) ->  | P134: =IF($J134<>"",IF($L$5=1,"Final ","Heat ")&IF(AND($L$5=1,$U$2=1),"",$J134&" of "&$U$2),IF(OR($K134="",$K134="Empty",N134=""),"",INDEX(Athletes!$A$4:$E$1003,MATCH(N134,Athletes!$A$4:$A$1003,0),5))) -> 
B135: =IFERROR(IF(Athletes!A128="","",IF(AND(Athletes!F128=$C$4,INDEX(Athletes!$G128:$Z128,1,MATCH($C$3,Athletes!$G$3:$Z$3,0))<>""),Athletes!A128,"")),"") ->  | C135: =IF(B135="","",INDEX(Athletes!$A$4:$E$1003,MATCH(B135,Athletes!$A$4:$A$1003,0),4)) ->  | D135: =IF(B135="","",ABS(SIN(B135))+IF($U$2=1,0,INDEX(Athletes!$AH$4:$AH$102,MATCH($C135,Athletes!$AE$4:$AE$102,0),1))) ->  | I135: =IF(E135="","",100*H135+IFERROR(INDEX(FrontPage!$AA$3:$AD$10,MATCH(COUNTIF(H$11:H135,H135),FrontPage!$AA$3:$AA$10,0),$I$5),COUNTIF(H$11:H135,H135))) ->  | J135: =IF(ROW()-11>$U$2*($U$3+2)-1,"",IF(MOD(ROW()-11,$U$3+2)=0,MAX(J$10:J134)+1,"")) ->  | L135: =IF($J135<>"",$K135,IF($K135="","",IF($K135="Empty",MAX($K$11:$K135)+0.99,MAX($K$11:$K135)+0.01*$K135))) ->  | N135: =IF(J135<>"","Bib",IF(OR($K135="",K135="Empty"),"",IF(A135="",IFERROR(INDEX($E$11:$E$171,MATCH(100*MAX(J$11:J135)+M135,$I$11:$I$171,0),1),""),A135))) ->  | O135: =IF($J135<>"",$A$7,IF(OR($K135="",$K135="Empty",N135=""),"",INDEX(Athletes!$A$4:$E$1003,MATCH(N135,Athletes!$A$4:$A$1003,0),2)&" "& INDEX(Athletes!$A$4:$E$1003,MATCH(N135,Athletes!$A$4:$A$1003,0),3))) ->  | P135: =IF($J135<>"",IF($L$5=1,"Final ","Heat ")&IF(AND($L$5=1,$U$2=1),"",$J135&" of "&$U$2),IF(OR($K135="",$K135="Empty",N135=""),"",INDEX(Athletes!$A$4:$E$1003,MATCH(N135,Athletes!$A$4:$A$1003,0),5))) -> 
B136: =IFERROR(IF(Athletes!A129="","",IF(AND(Athletes!F129=$C$4,INDEX(Athletes!$G129:$Z129,1,MATCH($C$3,Athletes!$G$3:$Z$3,0))<>""),Athletes!A129,"")),"") ->  | C136: =IF(B136="","",INDEX(Athletes!$A$4:$E$1003,MATCH(B136,Athletes!$A$4:$A$1003,0),4)) ->  | D136: =IF(B136="","",ABS(SIN(B136))+IF($U$2=1,0,INDEX(Athletes!$AH$4:$AH$102,MATCH($C136,Athletes!$AE$4:$AE$102,0),1))) ->  | I136: =IF(E136="","",100*H136+IFERROR(INDEX(FrontPage!$AA$3:$AD$10,MATCH(COUNTIF(H$11:H136,H136),FrontPage!$AA$3:$AA$10,0),$I$5),COUNTIF(H$11:H136,H136))) ->  | J136: =IF(ROW()-11>$U$2*($U$3+2)-1,"",IF(MOD(ROW()-11,$U$3+2)=0,MAX(J$10:J135)+1,"")) ->  | L136: =IF($J136<>"",$K136,IF($K136="","",IF($K136="Empty",MAX($K$11:$K136)+0.99,MAX($K$11:$K136)+0.01*$K136))) ->  | N136: =IF(J136<>"","Bib",IF(OR($K136="",K136="Empty"),"",IF(A136="",IFERROR(INDEX($E$11:$E$171,MATCH(100*MAX(J$11:J136)+M136,$I$11:$I$171,0),1),""),A136))) ->  | O136: =IF($J136<>"",$A$7,IF(OR($K136="",$K136="Empty",N136=""),"",INDEX(Athletes!$A$4:$E$1003,MATCH(N136,Athletes!$A$4:$A$1003,0),2)&" "& INDEX(Athletes!$A$4:$E$1003,MATCH(N136,Athletes!$A$4:$A$1003,0),3))) ->  | P136: =IF($J136<>"",IF($L$5=1,"Final ","Heat ")&IF(AND($L$5=1,$U$2=1),"",$J136&" of "&$U$2),IF(OR($K136="",$K136="Empty",N136=""),"",INDEX(Athletes!$A$4:$E$1003,MATCH(N136,Athletes!$A$4:$A$1003,0),5))) -> 
B137: =IFERROR(IF(Athletes!A130="","",IF(AND(Athletes!F130=$C$4,INDEX(Athletes!$G130:$Z130,1,MATCH($C$3,Athletes!$G$3:$Z$3,0))<>""),Athletes!A130,"")),"") ->  | C137: =IF(B137="","",INDEX(Athletes!$A$4:$E$1003,MATCH(B137,Athletes!$A$4:$A$1003,0),4)) ->  | D137: =IF(B137="","",ABS(SIN(B137))+IF($U$2=1,0,INDEX(Athletes!$AH$4:$AH$102,MATCH($C137,Athletes!$AE$4:$AE$102,0),1))) ->  | I137: =IF(E137="","",100*H137+IFERROR(INDEX(FrontPage!$AA$3:$AD$10,MATCH(COUNTIF(H$11:H137,H137),FrontPage!$AA$3:$AA$10,0),$I$5),COUNTIF(H$11:H137,H137))) ->  | J137: =IF(ROW()-11>$U$2*($U$3+2)-1,"",IF(MOD(ROW()-11,$U$3+2)=0,MAX(J$10:J136)+1,"")) ->  | L137: =IF($J137<>"",$K137,IF($K137="","",IF($K137="Empty",MAX($K$11:$K137)+0.99,MAX($K$11:$K137)+0.01*$K137))) ->  | N137: =IF(J137<>"","Bib",IF(OR($K137="",K137="Empty"),"",IF(A137="",IFERROR(INDEX($E$11:$E$171,MATCH(100*MAX(J$11:J137)+M137,$I$11:$I$171,0),1),""),A137))) ->  | O137: =IF($J137<>"",$A$7,IF(OR($K137="",$K137="Empty",N137=""),"",INDEX(Athletes!$A$4:$E$1003,MATCH(N137,Athletes!$A$4:$A$1003,0),2)&" "& INDEX(Athletes!$A$4:$E$1003,MATCH(N137,Athletes!$A$4:$A$1003,0),3))) ->  | P137: =IF($J137<>"",IF($L$5=1,"Final ","Heat ")&IF(AND($L$5=1,$U$2=1),"",$J137&" of "&$U$2),IF(OR($K137="",$K137="Empty",N137=""),"",INDEX(Athletes!$A$4:$E$1003,MATCH(N137,Athletes!$A$4:$A$1003,0),5))) -> 
B138: =IFERROR(IF(Athletes!A131="","",IF(AND(Athletes!F131=$C$4,INDEX(Athletes!$G131:$Z131,1,MATCH($C$3,Athletes!$G$3:$Z$3,0))<>""),Athletes!A131,"")),"") ->  | C138: =IF(B138="","",INDEX(Athletes!$A$4:$E$1003,MATCH(B138,Athletes!$A$4:$A$1003,0),4)) ->  | D138: =IF(B138="","",ABS(SIN(B138))+IF($U$2=1,0,INDEX(Athletes!$AH$4:$AH$102,MATCH($C138,Athletes!$AE$4:$AE$102,0),1))) ->  | I138: =IF(E138="","",100*H138+IFERROR(INDEX(FrontPage!$AA$3:$AD$10,MATCH(COUNTIF(H$11:H138,H138),FrontPage!$AA$3:$AA$10,0),$I$5),COUNTIF(H$11:H138,H138))) ->  | J138: =IF(ROW()-11>$U$2*($U$3+2)-1,"",IF(MOD(ROW()-11,$U$3+2)=0,MAX(J$10:J137)+1,"")) ->  | L138: =IF($J138<>"",$K138,IF($K138="","",IF($K138="Empty",MAX($K$11:$K138)+0.99,MAX($K$11:$K138)+0.01*$K138))) ->  | N138: =IF(J138<>"","Bib",IF(OR($K138="",K138="Empty"),"",IF(A138="",IFERROR(INDEX($E$11:$E$171,MATCH(100*MAX(J$11:J138)+M138,$I$11:$I$171,0),1),""),A138))) ->  | O138: =IF($J138<>"",$A$7,IF(OR($K138="",$K138="Empty",N138=""),"",INDEX(Athletes!$A$4:$E$1003,MATCH(N138,Athletes!$A$4:$A$1003,0),2)&" "& INDEX(Athletes!$A$4:$E$1003,MATCH(N138,Athletes!$A$4:$A$1003,0),3))) ->  | P138: =IF($J138<>"",IF($L$5=1,"Final ","Heat ")&IF(AND($L$5=1,$U$2=1),"",$J138&" of "&$U$2),IF(OR($K138="",$K138="Empty",N138=""),"",INDEX(Athletes!$A$4:$E$1003,MATCH(N138,Athletes!$A$4:$A$1003,0),5))) -> 
B139: =IFERROR(IF(Athletes!A132="","",IF(AND(Athletes!F132=$C$4,INDEX(Athletes!$G132:$Z132,1,MATCH($C$3,Athletes!$G$3:$Z$3,0))<>""),Athletes!A132,"")),"") ->  | C139: =IF(B139="","",INDEX(Athletes!$A$4:$E$1003,MATCH(B139,Athletes!$A$4:$A$1003,0),4)) ->  | D139: =IF(B139="","",ABS(SIN(B139))+IF($U$2=1,0,INDEX(Athletes!$AH$4:$AH$102,MATCH($C139,Athletes!$AE$4:$AE$102,0),1))) ->  | I139: =IF(E139="","",100*H139+IFERROR(INDEX(FrontPage!$AA$3:$AD$10,MATCH(COUNTIF(H$11:H139,H139),FrontPage!$AA$3:$AA$10,0),$I$5),COUNTIF(H$11:H139,H139))) ->  | J139: =IF(ROW()-11>$U$2*($U$3+2)-1,"",IF(MOD(ROW()-11,$U$3+2)=0,MAX(J$10:J138)+1,"")) ->  | K139: =IF(ROW()-11>$U$2*($U$3+2)-1,"",IF(MOD(ROW()-11,$U$3+2)=0,$N$3*10000+100+J139,IF(MOD(ROW()-11,$U$3+2)=$U$3+1,"Empty",(MOD(ROW()-11,$U$3+2))))) ->  | L139: =IF($J139<>"",$K139,IF($K139="","",IF($K139="Empty",MAX($K$11:$K139)+0.99,MAX($K$11:$K139)+0.01*$K139))) ->  | N139: =IF(J139<>"","Bib",IF(OR($K139="",K139="Empty"),"",IF(A139="",IFERROR(INDEX($E$11:$E$171,MATCH(100*MAX(J$11:J139)+M139,$I$11:$I$171,0),1),""),A139))) ->  | O139: =IF($J139<>"",$A$7,IF(OR($K139="",$K139="Empty",N139=""),"",INDEX(Athletes!$A$4:$E$1003,MATCH(N139,Athletes!$A$4:$A$1003,0),2)&" "& INDEX(Athletes!$A$4:$E$1003,MATCH(N139,Athletes!$A$4:$A$1003,0),3))) ->  | P139: =IF($J139<>"",IF($L$5=1,"Final ","Heat ")&IF(AND($L$5=1,$U$2=1),"",$J139&" of "&$U$2),IF(OR($K139="",$K139="Empty",N139=""),"",INDEX(Athletes!$A$4:$E$1003,MATCH(N139,Athletes!$A$4:$A$1003,0),5))) ->  | Q139: =IF($J139<>"",IF($L$5=1,"","First"),"") ->  | R139: =IF($J139<>"",IF($L$5=1,"",$U$4),"") ->  | S139: =IF($J139<>"",IF($L$5=1,"","plus "),"") ->  | T139: =IF($J139<>"",IF($L$5=1,"",$U$5),"") -> 
B140: =IFERROR(IF(Athletes!A133="","",IF(AND(Athletes!F133=$C$4,INDEX(Athletes!$G133:$Z133,1,MATCH($C$3,Athletes!$G$3:$Z$3,0))<>""),Athletes!A133,"")),"") ->  | C140: =IF(B140="","",INDEX(Athletes!$A$4:$E$1003,MATCH(B140,Athletes!$A$4:$A$1003,0),4)) ->  | D140: =IF(B140="","",ABS(SIN(B140))+IF($U$2=1,0,INDEX(Athletes!$AH$4:$AH$102,MATCH($C140,Athletes!$AE$4:$AE$102,0),1))) ->  | H140: =IF(E140="","",IF($L$5=1,1,IF(H139=$U$2,1,H139+1))) ->  | I140: =IF(E140="","",100*H140+IFERROR(INDEX(FrontPage!$AA$3:$AD$10,MATCH(COUNTIF(H$11:H140,H140),FrontPage!$AA$3:$AA$10,0),$I$5),COUNTIF(H$11:H140,H140))) ->  | J140: =IF(ROW()-11>$U$2*($U$3+2)-1,"",IF(MOD(ROW()-11,$U$3+2)=0,MAX(J$10:J139)+1,"")) ->  | L140: =IF($J140<>"",$K140,IF($K140="","",IF($K140="Empty",MAX($K$11:$K140)+0.99,MAX($K$11:$K140)+0.01*$K140))) ->  | M140: =IF($J140<>"","La",IF($K140="","",IF($K140="Empty","-",$K140))) ->  | N140: =IF(J140<>"","Bib",IF(OR($K140="",K140="Empty"),"",IF(A140="",IFERROR(INDEX($E$11:$E$171,MATCH(100*MAX(J$11:J140)+M140,$I$11:$I$171,0),1),""),A140))) ->  | O140: =IF($J140<>"",$A$7,IF(OR($K140="",$K140="Empty",N140=""),"",INDEX(Athletes!$A$4:$E$1003,MATCH(N140,Athletes!$A$4:$A$1003,0),2)&" "& INDEX(Athletes!$A$4:$E$1003,MATCH(N140,Athletes!$A$4:$A$1003,0),3))) ->  | P140: =IF($J140<>"",IF($L$5=1,"Final ","Heat ")&IF(AND($L$5=1,$U$2=1),"",$J140&" of "&$U$2),IF(OR($K140="",$K140="Empty",N140=""),"",INDEX(Athletes!$A$4:$E$1003,MATCH(N140,Athletes!$A$4:$A$1003,0),5))) -> 
B141: =IFERROR(IF(Athletes!A134="","",IF(AND(Athletes!F134=$C$4,INDEX(Athletes!$G134:$Z134,1,MATCH($C$3,Athletes!$G$3:$Z$3,0))<>""),Athletes!A134,"")),"") ->  | C141: =IF(B141="","",INDEX(Athletes!$A$4:$E$1003,MATCH(B141,Athletes!$A$4:$A$1003,0),4)) ->  | D141: =IF(B141="","",ABS(SIN(B141))+IF($U$2=1,0,INDEX(Athletes!$AH$4:$AH$102,MATCH($C141,Athletes!$AE$4:$AE$102,0),1))) ->  | I141: =IF(E141="","",100*H141+IFERROR(INDEX(FrontPage!$AA$3:$AD$10,MATCH(COUNTIF(H$11:H141,H141),FrontPage!$AA$3:$AA$10,0),$I$5),COUNTIF(H$11:H141,H141))) ->  | J141: =IF(ROW()-11>$U$2*($U$3+2)-1,"",IF(MOD(ROW()-11,$U$3+2)=0,MAX(J$10:J140)+1,"")) ->  | L141: =IF($J141<>"",$K141,IF($K141="","",IF($K141="Empty",MAX($K$11:$K141)+0.99,MAX($K$11:$K141)+0.01*$K141))) ->  | N141: =IF(J141<>"","Bib",IF(OR($K141="",K141="Empty"),"",IF(A141="",IFERROR(INDEX($E$11:$E$171,MATCH(100*MAX(J$11:J141)+M141,$I$11:$I$171,0),1),""),A141))) ->  | O141: =IF($J141<>"",$A$7,IF(OR($K141="",$K141="Empty",N141=""),"",INDEX(Athletes!$A$4:$E$1003,MATCH(N141,Athletes!$A$4:$A$1003,0),2)&" "& INDEX(Athletes!$A$4:$E$1003,MATCH(N141,Athletes!$A$4:$A$1003,0),3))) ->  | P141: =IF($J141<>"",IF($L$5=1,"Final ","Heat ")&IF(AND($L$5=1,$U$2=1),"",$J141&" of "&$U$2),IF(OR($K141="",$K141="Empty",N141=""),"",INDEX(Athletes!$A$4:$E$1003,MATCH(N141,Athletes!$A$4:$A$1003,0),5))) -> 
B142: =IFERROR(IF(Athletes!A135="","",IF(AND(Athletes!F135=$C$4,INDEX(Athletes!$G135:$Z135,1,MATCH($C$3,Athletes!$G$3:$Z$3,0))<>""),Athletes!A135,"")),"") ->  | C142: =IF(B142="","",INDEX(Athletes!$A$4:$E$1003,MATCH(B142,Athletes!$A$4:$A$1003,0),4)) ->  | D142: =IF(B142="","",ABS(SIN(B142))+IF($U$2=1,0,INDEX(Athletes!$AH$4:$AH$102,MATCH($C142,Athletes!$AE$4:$AE$102,0),1))) ->  | I142: =IF(E142="","",100*H142+IFERROR(INDEX(FrontPage!$AA$3:$AD$10,MATCH(COUNTIF(H$11:H142,H142),FrontPage!$AA$3:$AA$10,0),$I$5),COUNTIF(H$11:H142,H142))) ->  | J142: =IF(ROW()-11>$U$2*($U$3+2)-1,"",IF(MOD(ROW()-11,$U$3+2)=0,MAX(J$10:J141)+1,"")) ->  | L142: =IF($J142<>"",$K142,IF($K142="","",IF($K142="Empty",MAX($K$11:$K142)+0.99,MAX($K$11:$K142)+0.01*$K142))) ->  | N142: =IF(J142<>"","Bib",IF(OR($K142="",K142="Empty"),"",IF(A142="",IFERROR(INDEX($E$11:$E$171,MATCH(100*MAX(J$11:J142)+M142,$I$11:$I$171,0),1),""),A142))) ->  | O142: =IF($J142<>"",$A$7,IF(OR($K142="",$K142="Empty",N142=""),"",INDEX(Athletes!$A$4:$E$1003,MATCH(N142,Athletes!$A$4:$A$1003,0),2)&" "& INDEX(Athletes!$A$4:$E$1003,MATCH(N142,Athletes!$A$4:$A$1003,0),3))) ->  | P142: =IF($J142<>"",IF($L$5=1,"Final ","Heat ")&IF(AND($L$5=1,$U$2=1),"",$J142&" of "&$U$2),IF(OR($K142="",$K142="Empty",N142=""),"",INDEX(Athletes!$A$4:$E$1003,MATCH(N142,Athletes!$A$4:$A$1003,0),5))) -> 
B143: =IFERROR(IF(Athletes!A136="","",IF(AND(Athletes!F136=$C$4,INDEX(Athletes!$G136:$Z136,1,MATCH($C$3,Athletes!$G$3:$Z$3,0))<>""),Athletes!A136,"")),"") ->  | C143: =IF(B143="","",INDEX(Athletes!$A$4:$E$1003,MATCH(B143,Athletes!$A$4:$A$1003,0),4)) ->  | D143: =IF(B143="","",ABS(SIN(B143))+IF($U$2=1,0,INDEX(Athletes!$AH$4:$AH$102,MATCH($C143,Athletes!$AE$4:$AE$102,0),1))) ->  | I143: =IF(E143="","",100*H143+IFERROR(INDEX(FrontPage!$AA$3:$AD$10,MATCH(COUNTIF(H$11:H143,H143),FrontPage!$AA$3:$AA$10,0),$I$5),COUNTIF(H$11:H143,H143))) ->  | J143: =IF(ROW()-11>$U$2*($U$3+2)-1,"",IF(MOD(ROW()-11,$U$3+2)=0,MAX(J$10:J142)+1,"")) ->  | L143: =IF($J143<>"",$K143,IF($K143="","",IF($K143="Empty",MAX($K$11:$K143)+0.99,MAX($K$11:$K143)+0.01*$K143))) ->  | N143: =IF(J143<>"","Bib",IF(OR($K143="",K143="Empty"),"",IF(A143="",IFERROR(INDEX($E$11:$E$171,MATCH(100*MAX(J$11:J143)+M143,$I$11:$I$171,0),1),""),A143))) ->  | O143: =IF($J143<>"",$A$7,IF(OR($K143="",$K143="Empty",N143=""),"",INDEX(Athletes!$A$4:$E$1003,MATCH(N143,Athletes!$A$4:$A$1003,0),2)&" "& INDEX(Athletes!$A$4:$E$1003,MATCH(N143,Athletes!$A$4:$A$1003,0),3))) ->  | P143: =IF($J143<>"",IF($L$5=1,"Final ","Heat ")&IF(AND($L$5=1,$U$2=1),"",$J143&" of "&$U$2),IF(OR($K143="",$K143="Empty",N143=""),"",INDEX(Athletes!$A$4:$E$1003,MATCH(N143,Athletes!$A$4:$A$1003,0),5))) -> 
B144: =IFERROR(IF(Athletes!A137="","",IF(AND(Athletes!F137=$C$4,INDEX(Athletes!$G137:$Z137,1,MATCH($C$3,Athletes!$G$3:$Z$3,0))<>""),Athletes!A137,"")),"") ->  | C144: =IF(B144="","",INDEX(Athletes!$A$4:$E$1003,MATCH(B144,Athletes!$A$4:$A$1003,0),4)) ->  | D144: =IF(B144="","",ABS(SIN(B144))+IF($U$2=1,0,INDEX(Athletes!$AH$4:$AH$102,MATCH($C144,Athletes!$AE$4:$AE$102,0),1))) ->  | I144: =IF(E144="","",100*H144+IFERROR(INDEX(FrontPage!$AA$3:$AD$10,MATCH(COUNTIF(H$11:H144,H144),FrontPage!$AA$3:$AA$10,0),$I$5),COUNTIF(H$11:H144,H144))) ->  | J144: =IF(ROW()-11>$U$2*($U$3+2)-1,"",IF(MOD(ROW()-11,$U$3+2)=0,MAX(J$10:J143)+1,"")) ->  | L144: =IF($J144<>"",$K144,IF($K144="","",IF($K144="Empty",MAX($K$11:$K144)+0.99,MAX($K$11:$K144)+0.01*$K144))) ->  | N144: =IF(J144<>"","Bib",IF(OR($K144="",K144="Empty"),"",IF(A144="",IFERROR(INDEX($E$11:$E$171,MATCH(100*MAX(J$11:J144)+M144,$I$11:$I$171,0),1),""),A144))) ->  | O144: =IF($J144<>"",$A$7,IF(OR($K144="",$K144="Empty",N144=""),"",INDEX(Athletes!$A$4:$E$1003,MATCH(N144,Athletes!$A$4:$A$1003,0),2)&" "& INDEX(Athletes!$A$4:$E$1003,MATCH(N144,Athletes!$A$4:$A$1003,0),3))) ->  | P144: =IF($J144<>"",IF($L$5=1,"Final ","Heat ")&IF(AND($L$5=1,$U$2=1),"",$J144&" of "&$U$2),IF(OR($K144="",$K144="Empty",N144=""),"",INDEX(Athletes!$A$4:$E$1003,MATCH(N144,Athletes!$A$4:$A$1003,0),5))) -> 
B145: =IFERROR(IF(Athletes!A138="","",IF(AND(Athletes!F138=$C$4,INDEX(Athletes!$G138:$Z138,1,MATCH($C$3,Athletes!$G$3:$Z$3,0))<>""),Athletes!A138,"")),"") ->  | C145: =IF(B145="","",INDEX(Athletes!$A$4:$E$1003,MATCH(B145,Athletes!$A$4:$A$1003,0),4)) ->  | D145: =IF(B145="","",ABS(SIN(B145))+IF($U$2=1,0,INDEX(Athletes!$AH$4:$AH$102,MATCH($C145,Athletes!$AE$4:$AE$102,0),1))) ->  | I145: =IF(E145="","",100*H145+IFERROR(INDEX(FrontPage!$AA$3:$AD$10,MATCH(COUNTIF(H$11:H145,H145),FrontPage!$AA$3:$AA$10,0),$I$5),COUNTIF(H$11:H145,H145))) ->  | J145: =IF(ROW()-11>$U$2*($U$3+2)-1,"",IF(MOD(ROW()-11,$U$3+2)=0,MAX(J$10:J144)+1,"")) ->  | L145: =IF($J145<>"",$K145,IF($K145="","",IF($K145="Empty",MAX($K$11:$K145)+0.99,MAX($K$11:$K145)+0.01*$K145))) ->  | N145: =IF(J145<>"","Bib",IF(OR($K145="",K145="Empty"),"",IF(A145="",IFERROR(INDEX($E$11:$E$171,MATCH(100*MAX(J$11:J145)+M145,$I$11:$I$171,0),1),""),A145))) ->  | O145: =IF($J145<>"",$A$7,IF(OR($K145="",$K145="Empty",N145=""),"",INDEX(Athletes!$A$4:$E$1003,MATCH(N145,Athletes!$A$4:$A$1003,0),2)&" "& INDEX(Athletes!$A$4:$E$1003,MATCH(N145,Athletes!$A$4:$A$1003,0),3))) ->  | P145: =IF($J145<>"",IF($L$5=1,"Final ","Heat ")&IF(AND($L$5=1,$U$2=1),"",$J145&" of "&$U$2),IF(OR($K145="",$K145="Empty",N145=""),"",INDEX(Athletes!$A$4:$E$1003,MATCH(N145,Athletes!$A$4:$A$1003,0),5))) -> 
B146: =IFERROR(IF(Athletes!A139="","",IF(AND(Athletes!F139=$C$4,INDEX(Athletes!$G139:$Z139,1,MATCH($C$3,Athletes!$G$3:$Z$3,0))<>""),Athletes!A139,"")),"") ->  | C146: =IF(B146="","",INDEX(Athletes!$A$4:$E$1003,MATCH(B146,Athletes!$A$4:$A$1003,0),4)) ->  | D146: =IF(B146="","",ABS(SIN(B146))+IF($U$2=1,0,INDEX(Athletes!$AH$4:$AH$102,MATCH($C146,Athletes!$AE$4:$AE$102,0),1))) ->  | I146: =IF(E146="","",100*H146+IFERROR(INDEX(FrontPage!$AA$3:$AD$10,MATCH(COUNTIF(H$11:H146,H146),FrontPage!$AA$3:$AA$10,0),$I$5),COUNTIF(H$11:H146,H146))) ->  | J146: =IF(ROW()-11>$U$2*($U$3+2)-1,"",IF(MOD(ROW()-11,$U$3+2)=0,MAX(J$10:J145)+1,"")) ->  | L146: =IF($J146<>"",$K146,IF($K146="","",IF($K146="Empty",MAX($K$11:$K146)+0.99,MAX($K$11:$K146)+0.01*$K146))) ->  | N146: =IF(J146<>"","Bib",IF(OR($K146="",K146="Empty"),"",IF(A146="",IFERROR(INDEX($E$11:$E$171,MATCH(100*MAX(J$11:J146)+M146,$I$11:$I$171,0),1),""),A146))) ->  | O146: =IF($J146<>"",$A$7,IF(OR($K146="",$K146="Empty",N146=""),"",INDEX(Athletes!$A$4:$E$1003,MATCH(N146,Athletes!$A$4:$A$1003,0),2)&" "& INDEX(Athletes!$A$4:$E$1003,MATCH(N146,Athletes!$A$4:$A$1003,0),3))) ->  | P146: =IF($J146<>"",IF($L$5=1,"Final ","Heat ")&IF(AND($L$5=1,$U$2=1),"",$J146&" of "&$U$2),IF(OR($K146="",$K146="Empty",N146=""),"",INDEX(Athletes!$A$4:$E$1003,MATCH(N146,Athletes!$A$4:$A$1003,0),5))) -> 
B147: =IFERROR(IF(Athletes!A140="","",IF(AND(Athletes!F140=$C$4,INDEX(Athletes!$G140:$Z140,1,MATCH($C$3,Athletes!$G$3:$Z$3,0))<>""),Athletes!A140,"")),"") ->  | C147: =IF(B147="","",INDEX(Athletes!$A$4:$E$1003,MATCH(B147,Athletes!$A$4:$A$1003,0),4)) ->  | D147: =IF(B147="","",ABS(SIN(B147))+IF($U$2=1,0,INDEX(Athletes!$AH$4:$AH$102,MATCH($C147,Athletes!$AE$4:$AE$102,0),1))) ->  | I147: =IF(E147="","",100*H147+IFERROR(INDEX(FrontPage!$AA$3:$AD$10,MATCH(COUNTIF(H$11:H147,H147),FrontPage!$AA$3:$AA$10,0),$I$5),COUNTIF(H$11:H147,H147))) ->  | J147: =IF(ROW()-11>$U$2*($U$3+2)-1,"",IF(MOD(ROW()-11,$U$3+2)=0,MAX(J$10:J146)+1,"")) ->  | L147: =IF($J147<>"",$K147,IF($K147="","",IF($K147="Empty",MAX($K$11:$K147)+0.99,MAX($K$11:$K147)+0.01*$K147))) ->  | N147: =IF(J147<>"","Bib",IF(OR($K147="",K147="Empty"),"",IF(A147="",IFERROR(INDEX($E$11:$E$171,MATCH(100*MAX(J$11:J147)+M147,$I$11:$I$171,0),1),""),A147))) ->  | O147: =IF($J147<>"",$A$7,IF(OR($K147="",$K147="Empty",N147=""),"",INDEX(Athletes!$A$4:$E$1003,MATCH(N147,Athletes!$A$4:$A$1003,0),2)&" "& INDEX(Athletes!$A$4:$E$1003,MATCH(N147,Athletes!$A$4:$A$1003,0),3))) ->  | P147: =IF($J147<>"",IF($L$5=1,"Final ","Heat ")&IF(AND($L$5=1,$U$2=1),"",$J147&" of "&$U$2),IF(OR($K147="",$K147="Empty",N147=""),"",INDEX(Athletes!$A$4:$E$1003,MATCH(N147,Athletes!$A$4:$A$1003,0),5))) -> 
B148: =IFERROR(IF(Athletes!A141="","",IF(AND(Athletes!F141=$C$4,INDEX(Athletes!$G141:$Z141,1,MATCH($C$3,Athletes!$G$3:$Z$3,0))<>""),Athletes!A141,"")),"") ->  | C148: =IF(B148="","",INDEX(Athletes!$A$4:$E$1003,MATCH(B148,Athletes!$A$4:$A$1003,0),4)) ->  | D148: =IF(B148="","",ABS(SIN(B148))+IF($U$2=1,0,INDEX(Athletes!$AH$4:$AH$102,MATCH($C148,Athletes!$AE$4:$AE$102,0),1))) ->  | I148: =IF(E148="","",100*H148+IFERROR(INDEX(FrontPage!$AA$3:$AD$10,MATCH(COUNTIF(H$11:H148,H148),FrontPage!$AA$3:$AA$10,0),$I$5),COUNTIF(H$11:H148,H148))) ->  | J148: =IF(ROW()-11>$U$2*($U$3+2)-1,"",IF(MOD(ROW()-11,$U$3+2)=0,MAX(J$10:J147)+1,"")) ->  | L148: =IF($J148<>"",$K148,IF($K148="","",IF($K148="Empty",MAX($K$11:$K148)+0.99,MAX($K$11:$K148)+0.01*$K148))) ->  | N148: =IF(J148<>"","Bib",IF(OR($K148="",K148="Empty"),"",IF(A148="",IFERROR(INDEX($E$11:$E$171,MATCH(100*MAX(J$11:J148)+M148,$I$11:$I$171,0),1),""),A148))) ->  | O148: =IF($J148<>"",$A$7,IF(OR($K148="",$K148="Empty",N148=""),"",INDEX(Athletes!$A$4:$E$1003,MATCH(N148,Athletes!$A$4:$A$1003,0),2)&" "& INDEX(Athletes!$A$4:$E$1003,MATCH(N148,Athletes!$A$4:$A$1003,0),3))) ->  | P148: =IF($J148<>"",IF($L$5=1,"Final ","Heat ")&IF(AND($L$5=1,$U$2=1),"",$J148&" of "&$U$2),IF(OR($K148="",$K148="Empty",N148=""),"",INDEX(Athletes!$A$4:$E$1003,MATCH(N148,Athletes!$A$4:$A$1003,0),5))) -> 
B149: =IFERROR(IF(Athletes!A142="","",IF(AND(Athletes!F142=$C$4,INDEX(Athletes!$G142:$Z142,1,MATCH($C$3,Athletes!$G$3:$Z$3,0))<>""),Athletes!A142,"")),"") ->  | C149: =IF(B149="","",INDEX(Athletes!$A$4:$E$1003,MATCH(B149,Athletes!$A$4:$A$1003,0),4)) ->  | D149: =IF(B149="","",ABS(SIN(B149))+IF($U$2=1,0,INDEX(Athletes!$AH$4:$AH$102,MATCH($C149,Athletes!$AE$4:$AE$102,0),1))) ->  | I149: =IF(E149="","",100*H149+IFERROR(INDEX(FrontPage!$AA$3:$AD$10,MATCH(COUNTIF(H$11:H149,H149),FrontPage!$AA$3:$AA$10,0),$I$5),COUNTIF(H$11:H149,H149))) ->  | J149: =IF(ROW()-11>$U$2*($U$3+2)-1,"",IF(MOD(ROW()-11,$U$3+2)=0,MAX(J$10:J148)+1,"")) ->  | L149: =IF($J149<>"",$K149,IF($K149="","",IF($K149="Empty",MAX($K$11:$K149)+0.99,MAX($K$11:$K149)+0.01*$K149))) ->  | N149: =IF(J149<>"","Bib",IF(OR($K149="",K149="Empty"),"",IF(A149="",IFERROR(INDEX($E$11:$E$171,MATCH(100*MAX(J$11:J149)+M149,$I$11:$I$171,0),1),""),A149))) ->  | O149: =IF($J149<>"",$A$7,IF(OR($K149="",$K149="Empty",N149=""),"",INDEX(Athletes!$A$4:$E$1003,MATCH(N149,Athletes!$A$4:$A$1003,0),2)&" "& INDEX(Athletes!$A$4:$E$1003,MATCH(N149,Athletes!$A$4:$A$1003,0),3))) ->  | P149: =IF($J149<>"",IF($L$5=1,"Final ","Heat ")&IF(AND($L$5=1,$U$2=1),"",$J149&" of "&$U$2),IF(OR($K149="",$K149="Empty",N149=""),"",INDEX(Athletes!$A$4:$E$1003,MATCH(N149,Athletes!$A$4:$A$1003,0),5))) -> 
B150: =IFERROR(IF(Athletes!A143="","",IF(AND(Athletes!F143=$C$4,INDEX(Athletes!$G143:$Z143,1,MATCH($C$3,Athletes!$G$3:$Z$3,0))<>""),Athletes!A143,"")),"") ->  | C150: =IF(B150="","",INDEX(Athletes!$A$4:$E$1003,MATCH(B150,Athletes!$A$4:$A$1003,0),4)) ->  | D150: =IF(B150="","",ABS(SIN(B150))+IF($U$2=1,0,INDEX(Athletes!$AH$4:$AH$102,MATCH($C150,Athletes!$AE$4:$AE$102,0),1))) ->  | I150: =IF(E150="","",100*H150+IFERROR(INDEX(FrontPage!$AA$3:$AD$10,MATCH(COUNTIF(H$11:H150,H150),FrontPage!$AA$3:$AA$10,0),$I$5),COUNTIF(H$11:H150,H150))) ->  | J150: =IF(ROW()-11>$U$2*($U$3+2)-1,"",IF(MOD(ROW()-11,$U$3+2)=0,MAX(J$10:J149)+1,"")) ->  | L150: =IF($J150<>"",$K150,IF($K150="","",IF($K150="Empty",MAX($K$11:$K150)+0.99,MAX($K$11:$K150)+0.01*$K150))) ->  | N150: =IF(J150<>"","Bib",IF(OR($K150="",K150="Empty"),"",IF(A150="",IFERROR(INDEX($E$11:$E$171,MATCH(100*MAX(J$11:J150)+M150,$I$11:$I$171,0),1),""),A150))) ->  | O150: =IF($J150<>"",$A$7,IF(OR($K150="",$K150="Empty",N150=""),"",INDEX(Athletes!$A$4:$E$1003,MATCH(N150,Athletes!$A$4:$A$1003,0),2)&" "& INDEX(Athletes!$A$4:$E$1003,MATCH(N150,Athletes!$A$4:$A$1003,0),3))) ->  | P150: =IF($J150<>"",IF($L$5=1,"Final ","Heat ")&IF(AND($L$5=1,$U$2=1),"",$J150&" of "&$U$2),IF(OR($K150="",$K150="Empty",N150=""),"",INDEX(Athletes!$A$4:$E$1003,MATCH(N150,Athletes!$A$4:$A$1003,0),5))) -> 
B151: =IFERROR(IF(Athletes!A144="","",IF(AND(Athletes!F144=$C$4,INDEX(Athletes!$G144:$Z144,1,MATCH($C$3,Athletes!$G$3:$Z$3,0))<>""),Athletes!A144,"")),"") ->  | C151: =IF(B151="","",INDEX(Athletes!$A$4:$E$1003,MATCH(B151,Athletes!$A$4:$A$1003,0),4)) ->  | D151: =IF(B151="","",ABS(SIN(B151))+IF($U$2=1,0,INDEX(Athletes!$AH$4:$AH$102,MATCH($C151,Athletes!$AE$4:$AE$102,0),1))) ->  | I151: =IF(E151="","",100*H151+IFERROR(INDEX(FrontPage!$AA$3:$AD$10,MATCH(COUNTIF(H$11:H151,H151),FrontPage!$AA$3:$AA$10,0),$I$5),COUNTIF(H$11:H151,H151))) ->  | J151: =IF(ROW()-11>$U$2*($U$3+2)-1,"",IF(MOD(ROW()-11,$U$3+2)=0,MAX(J$10:J150)+1,"")) ->  | L151: =IF($J151<>"",$K151,IF($K151="","",IF($K151="Empty",MAX($K$11:$K151)+0.99,MAX($K$11:$K151)+0.01*$K151))) ->  | N151: =IF(J151<>"","Bib",IF(OR($K151="",K151="Empty"),"",IF(A151="",IFERROR(INDEX($E$11:$E$171,MATCH(100*MAX(J$11:J151)+M151,$I$11:$I$171,0),1),""),A151))) ->  | O151: =IF($J151<>"",$A$7,IF(OR($K151="",$K151="Empty",N151=""),"",INDEX(Athletes!$A$4:$E$1003,MATCH(N151,Athletes!$A$4:$A$1003,0),2)&" "& INDEX(Athletes!$A$4:$E$1003,MATCH(N151,Athletes!$A$4:$A$1003,0),3))) ->  | P151: =IF($J151<>"",IF($L$5=1,"Final ","Heat ")&IF(AND($L$5=1,$U$2=1),"",$J151&" of "&$U$2),IF(OR($K151="",$K151="Empty",N151=""),"",INDEX(Athletes!$A$4:$E$1003,MATCH(N151,Athletes!$A$4:$A$1003,0),5))) -> 
B152: =IFERROR(IF(Athletes!A145="","",IF(AND(Athletes!F145=$C$4,INDEX(Athletes!$G145:$Z145,1,MATCH($C$3,Athletes!$G$3:$Z$3,0))<>""),Athletes!A145,"")),"") ->  | C152: =IF(B152="","",INDEX(Athletes!$A$4:$E$1003,MATCH(B152,Athletes!$A$4:$A$1003,0),4)) ->  | D152: =IF(B152="","",ABS(SIN(B152))+IF($U$2=1,0,INDEX(Athletes!$AH$4:$AH$102,MATCH($C152,Athletes!$AE$4:$AE$102,0),1))) ->  | I152: =IF(E152="","",100*H152+IFERROR(INDEX(FrontPage!$AA$3:$AD$10,MATCH(COUNTIF(H$11:H152,H152),FrontPage!$AA$3:$AA$10,0),$I$5),COUNTIF(H$11:H152,H152))) ->  | J152: =IF(ROW()-11>$U$2*($U$3+2)-1,"",IF(MOD(ROW()-11,$U$3+2)=0,MAX(J$10:J151)+1,"")) ->  | L152: =IF($J152<>"",$K152,IF($K152="","",IF($K152="Empty",MAX($K$11:$K152)+0.99,MAX($K$11:$K152)+0.01*$K152))) ->  | N152: =IF(J152<>"","Bib",IF(OR($K152="",K152="Empty"),"",IF(A152="",IFERROR(INDEX($E$11:$E$171,MATCH(100*MAX(J$11:J152)+M152,$I$11:$I$171,0),1),""),A152))) ->  | O152: =IF($J152<>"",$A$7,IF(OR($K152="",$K152="Empty",N152=""),"",INDEX(Athletes!$A$4:$E$1003,MATCH(N152,Athletes!$A$4:$A$1003,0),2)&" "& INDEX(Athletes!$A$4:$E$1003,MATCH(N152,Athletes!$A$4:$A$1003,0),3))) ->  | P152: =IF($J152<>"",IF($L$5=1,"Final ","Heat ")&IF(AND($L$5=1,$U$2=1),"",$J152&" of "&$U$2),IF(OR($K152="",$K152="Empty",N152=""),"",INDEX(Athletes!$A$4:$E$1003,MATCH(N152,Athletes!$A$4:$A$1003,0),5))) -> 
B153: =IFERROR(IF(Athletes!A146="","",IF(AND(Athletes!F146=$C$4,INDEX(Athletes!$G146:$Z146,1,MATCH($C$3,Athletes!$G$3:$Z$3,0))<>""),Athletes!A146,"")),"") ->  | C153: =IF(B153="","",INDEX(Athletes!$A$4:$E$1003,MATCH(B153,Athletes!$A$4:$A$1003,0),4)) ->  | D153: =IF(B153="","",ABS(SIN(B153))+IF($U$2=1,0,INDEX(Athletes!$AH$4:$AH$102,MATCH($C153,Athletes!$AE$4:$AE$102,0),1))) ->  | I153: =IF(E153="","",100*H153+IFERROR(INDEX(FrontPage!$AA$3:$AD$10,MATCH(COUNTIF(H$11:H153,H153),FrontPage!$AA$3:$AA$10,0),$I$5),COUNTIF(H$11:H153,H153))) ->  | J153: =IF(ROW()-11>$U$2*($U$3+2)-1,"",IF(MOD(ROW()-11,$U$3+2)=0,MAX(J$10:J152)+1,"")) ->  | L153: =IF($J153<>"",$K153,IF($K153="","",IF($K153="Empty",MAX($K$11:$K153)+0.99,MAX($K$11:$K153)+0.01*$K153))) ->  | N153: =IF(J153<>"","Bib",IF(OR($K153="",K153="Empty"),"",IF(A153="",IFERROR(INDEX($E$11:$E$171,MATCH(100*MAX(J$11:J153)+M153,$I$11:$I$171,0),1),""),A153))) ->  | O153: =IF($J153<>"",$A$7,IF(OR($K153="",$K153="Empty",N153=""),"",INDEX(Athletes!$A$4:$E$1003,MATCH(N153,Athletes!$A$4:$A$1003,0),2)&" "& INDEX(Athletes!$A$4:$E$1003,MATCH(N153,Athletes!$A$4:$A$1003,0),3))) ->  | P153: =IF($J153<>"",IF($L$5=1,"Final ","Heat ")&IF(AND($L$5=1,$U$2=1),"",$J153&" of "&$U$2),IF(OR($K153="",$K153="Empty",N153=""),"",INDEX(Athletes!$A$4:$E$1003,MATCH(N153,Athletes!$A$4:$A$1003,0),5))) -> 
B154: =IFERROR(IF(Athletes!A147="","",IF(AND(Athletes!F147=$C$4,INDEX(Athletes!$G147:$Z147,1,MATCH($C$3,Athletes!$G$3:$Z$3,0))<>""),Athletes!A147,"")),"") ->  | C154: =IF(B154="","",INDEX(Athletes!$A$4:$E$1003,MATCH(B154,Athletes!$A$4:$A$1003,0),4)) ->  | D154: =IF(B154="","",ABS(SIN(B154))+IF($U$2=1,0,INDEX(Athletes!$AH$4:$AH$102,MATCH($C154,Athletes!$AE$4:$AE$102,0),1))) ->  | I154: =IF(E154="","",100*H154+IFERROR(INDEX(FrontPage!$AA$3:$AD$10,MATCH(COUNTIF(H$11:H154,H154),FrontPage!$AA$3:$AA$10,0),$I$5),COUNTIF(H$11:H154,H154))) ->  | J154: =IF(ROW()-11>$U$2*($U$3+2)-1,"",IF(MOD(ROW()-11,$U$3+2)=0,MAX(J$10:J153)+1,"")) ->  | L154: =IF($J154<>"",$K154,IF($K154="","",IF($K154="Empty",MAX($K$11:$K154)+0.99,MAX($K$11:$K154)+0.01*$K154))) ->  | N154: =IF(J154<>"","Bib",IF(OR($K154="",K154="Empty"),"",IF(A154="",IFERROR(INDEX($E$11:$E$171,MATCH(100*MAX(J$11:J154)+M154,$I$11:$I$171,0),1),""),A154))) ->  | O154: =IF($J154<>"",$A$7,IF(OR($K154="",$K154="Empty",N154=""),"",INDEX(Athletes!$A$4:$E$1003,MATCH(N154,Athletes!$A$4:$A$1003,0),2)&" "& INDEX(Athletes!$A$4:$E$1003,MATCH(N154,Athletes!$A$4:$A$1003,0),3))) ->  | P154: =IF($J154<>"",IF($L$5=1,"Final ","Heat ")&IF(AND($L$5=1,$U$2=1),"",$J154&" of "&$U$2),IF(OR($K154="",$K154="Empty",N154=""),"",INDEX(Athletes!$A$4:$E$1003,MATCH(N154,Athletes!$A$4:$A$1003,0),5))) -> 
B155: =IFERROR(IF(Athletes!A148="","",IF(AND(Athletes!F148=$C$4,INDEX(Athletes!$G148:$Z148,1,MATCH($C$3,Athletes!$G$3:$Z$3,0))<>""),Athletes!A148,"")),"") ->  | C155: =IF(B155="","",INDEX(Athletes!$A$4:$E$1003,MATCH(B155,Athletes!$A$4:$A$1003,0),4)) ->  | D155: =IF(B155="","",ABS(SIN(B155))+IF($U$2=1,0,INDEX(Athletes!$AH$4:$AH$102,MATCH($C155,Athletes!$AE$4:$AE$102,0),1))) ->  | I155: =IF(E155="","",100*H155+IFERROR(INDEX(FrontPage!$AA$3:$AD$10,MATCH(COUNTIF(H$11:H155,H155),FrontPage!$AA$3:$AA$10,0),$I$5),COUNTIF(H$11:H155,H155))) ->  | J155: =IF(ROW()-11>$U$2*($U$3+2)-1,"",IF(MOD(ROW()-11,$U$3+2)=0,MAX(J$10:J154)+1,"")) ->  | L155: =IF($J155<>"",$K155,IF($K155="","",IF($K155="Empty",MAX($K$11:$K155)+0.99,MAX($K$11:$K155)+0.01*$K155))) ->  | N155: =IF(J155<>"","Bib",IF(OR($K155="",K155="Empty"),"",IF(A155="",IFERROR(INDEX($E$11:$E$171,MATCH(100*MAX(J$11:J155)+M155,$I$11:$I$171,0),1),""),A155))) ->  | O155: =IF($J155<>"",$A$7,IF(OR($K155="",$K155="Empty",N155=""),"",INDEX(Athletes!$A$4:$E$1003,MATCH(N155,Athletes!$A$4:$A$1003,0),2)&" "& INDEX(Athletes!$A$4:$E$1003,MATCH(N155,Athletes!$A$4:$A$1003,0),3))) ->  | P155: =IF($J155<>"",IF($L$5=1,"Final ","Heat ")&IF(AND($L$5=1,$U$2=1),"",$J155&" of "&$U$2),IF(OR($K155="",$K155="Empty",N155=""),"",INDEX(Athletes!$A$4:$E$1003,MATCH(N155,Athletes!$A$4:$A$1003,0),5))) -> 
B156: =IFERROR(IF(Athletes!A149="","",IF(AND(Athletes!F149=$C$4,INDEX(Athletes!$G149:$Z149,1,MATCH($C$3,Athletes!$G$3:$Z$3,0))<>""),Athletes!A149,"")),"") ->  | C156: =IF(B156="","",INDEX(Athletes!$A$4:$E$1003,MATCH(B156,Athletes!$A$4:$A$1003,0),4)) ->  | D156: =IF(B156="","",ABS(SIN(B156))+IF($U$2=1,0,INDEX(Athletes!$AH$4:$AH$102,MATCH($C156,Athletes!$AE$4:$AE$102,0),1))) ->  | I156: =IF(E156="","",100*H156+IFERROR(INDEX(FrontPage!$AA$3:$AD$10,MATCH(COUNTIF(H$11:H156,H156),FrontPage!$AA$3:$AA$10,0),$I$5),COUNTIF(H$11:H156,H156))) ->  | J156: =IF(ROW()-11>$U$2*($U$3+2)-1,"",IF(MOD(ROW()-11,$U$3+2)=0,MAX(J$10:J155)+1,"")) ->  | L156: =IF($J156<>"",$K156,IF($K156="","",IF($K156="Empty",MAX($K$11:$K156)+0.99,MAX($K$11:$K156)+0.01*$K156))) ->  | N156: =IF(J156<>"","Bib",IF(OR($K156="",K156="Empty"),"",IF(A156="",IFERROR(INDEX($E$11:$E$171,MATCH(100*MAX(J$11:J156)+M156,$I$11:$I$171,0),1),""),A156))) ->  | O156: =IF($J156<>"",$A$7,IF(OR($K156="",$K156="Empty",N156=""),"",INDEX(Athletes!$A$4:$E$1003,MATCH(N156,Athletes!$A$4:$A$1003,0),2)&" "& INDEX(Athletes!$A$4:$E$1003,MATCH(N156,Athletes!$A$4:$A$1003,0),3))) ->  | P156: =IF($J156<>"",IF($L$5=1,"Final ","Heat ")&IF(AND($L$5=1,$U$2=1),"",$J156&" of "&$U$2),IF(OR($K156="",$K156="Empty",N156=""),"",INDEX(Athletes!$A$4:$E$1003,MATCH(N156,Athletes!$A$4:$A$1003,0),5))) -> 
B157: =IFERROR(IF(Athletes!A150="","",IF(AND(Athletes!F150=$C$4,INDEX(Athletes!$G150:$Z150,1,MATCH($C$3,Athletes!$G$3:$Z$3,0))<>""),Athletes!A150,"")),"") ->  | C157: =IF(B157="","",INDEX(Athletes!$A$4:$E$1003,MATCH(B157,Athletes!$A$4:$A$1003,0),4)) ->  | D157: =IF(B157="","",ABS(SIN(B157))+IF($U$2=1,0,INDEX(Athletes!$AH$4:$AH$102,MATCH($C157,Athletes!$AE$4:$AE$102,0),1))) ->  | I157: =IF(E157="","",100*H157+IFERROR(INDEX(FrontPage!$AA$3:$AD$10,MATCH(COUNTIF(H$11:H157,H157),FrontPage!$AA$3:$AA$10,0),$I$5),COUNTIF(H$11:H157,H157))) ->  | J157: =IF(ROW()-11>$U$2*($U$3+2)-1,"",IF(MOD(ROW()-11,$U$3+2)=0,MAX(J$10:J156)+1,"")) ->  | L157: =IF($J157<>"",$K157,IF($K157="","",IF($K157="Empty",MAX($K$11:$K157)+0.99,MAX($K$11:$K157)+0.01*$K157))) ->  | N157: =IF(J157<>"","Bib",IF(OR($K157="",K157="Empty"),"",IF(A157="",IFERROR(INDEX($E$11:$E$171,MATCH(100*MAX(J$11:J157)+M157,$I$11:$I$171,0),1),""),A157))) ->  | O157: =IF($J157<>"",$A$7,IF(OR($K157="",$K157="Empty",N157=""),"",INDEX(Athletes!$A$4:$E$1003,MATCH(N157,Athletes!$A$4:$A$1003,0),2)&" "& INDEX(Athletes!$A$4:$E$1003,MATCH(N157,Athletes!$A$4:$A$1003,0),3))) ->  | P157: =IF($J157<>"",IF($L$5=1,"Final ","Heat ")&IF(AND($L$5=1,$U$2=1),"",$J157&" of "&$U$2),IF(OR($K157="",$K157="Empty",N157=""),"",INDEX(Athletes!$A$4:$E$1003,MATCH(N157,Athletes!$A$4:$A$1003,0),5))) -> 
B158: =IFERROR(IF(Athletes!A151="","",IF(AND(Athletes!F151=$C$4,INDEX(Athletes!$G151:$Z151,1,MATCH($C$3,Athletes!$G$3:$Z$3,0))<>""),Athletes!A151,"")),"") ->  | C158: =IF(B158="","",INDEX(Athletes!$A$4:$E$1003,MATCH(B158,Athletes!$A$4:$A$1003,0),4)) ->  | D158: =IF(B158="","",ABS(SIN(B158))+IF($U$2=1,0,INDEX(Athletes!$AH$4:$AH$102,MATCH($C158,Athletes!$AE$4:$AE$102,0),1))) ->  | I158: =IF(E158="","",100*H158+IFERROR(INDEX(FrontPage!$AA$3:$AD$10,MATCH(COUNTIF(H$11:H158,H158),FrontPage!$AA$3:$AA$10,0),$I$5),COUNTIF(H$11:H158,H158))) ->  | J158: =IF(ROW()-11>$U$2*($U$3+2)-1,"",IF(MOD(ROW()-11,$U$3+2)=0,MAX(J$10:J157)+1,"")) ->  | L158: =IF($J158<>"",$K158,IF($K158="","",IF($K158="Empty",MAX($K$11:$K158)+0.99,MAX($K$11:$K158)+0.01*$K158))) ->  | N158: =IF(J158<>"","Bib",IF(OR($K158="",K158="Empty"),"",IF(A158="",IFERROR(INDEX($E$11:$E$171,MATCH(100*MAX(J$11:J158)+M158,$I$11:$I$171,0),1),""),A158))) ->  | O158: =IF($J158<>"",$A$7,IF(OR($K158="",$K158="Empty",N158=""),"",INDEX(Athletes!$A$4:$E$1003,MATCH(N158,Athletes!$A$4:$A$1003,0),2)&" "& INDEX(Athletes!$A$4:$E$1003,MATCH(N158,Athletes!$A$4:$A$1003,0),3))) ->  | P158: =IF($J158<>"",IF($L$5=1,"Final ","Heat ")&IF(AND($L$5=1,$U$2=1),"",$J158&" of "&$U$2),IF(OR($K158="",$K158="Empty",N158=""),"",INDEX(Athletes!$A$4:$E$1003,MATCH(N158,Athletes!$A$4:$A$1003,0),5))) -> 
B159: =IFERROR(IF(Athletes!A152="","",IF(AND(Athletes!F152=$C$4,INDEX(Athletes!$G152:$Z152,1,MATCH($C$3,Athletes!$G$3:$Z$3,0))<>""),Athletes!A152,"")),"") ->  | C159: =IF(B159="","",INDEX(Athletes!$A$4:$E$1003,MATCH(B159,Athletes!$A$4:$A$1003,0),4)) ->  | D159: =IF(B159="","",ABS(SIN(B159))+IF($U$2=1,0,INDEX(Athletes!$AH$4:$AH$102,MATCH($C159,Athletes!$AE$4:$AE$102,0),1))) ->  | I159: =IF(E159="","",100*H159+IFERROR(INDEX(FrontPage!$AA$3:$AD$10,MATCH(COUNTIF(H$11:H159,H159),FrontPage!$AA$3:$AA$10,0),$I$5),COUNTIF(H$11:H159,H159))) ->  | J159: =IF(ROW()-11>$U$2*($U$3+2)-1,"",IF(MOD(ROW()-11,$U$3+2)=0,MAX(J$10:J158)+1,"")) ->  | L159: =IF($J159<>"",$K159,IF($K159="","",IF($K159="Empty",MAX($K$11:$K159)+0.99,MAX($K$11:$K159)+0.01*$K159))) ->  | N159: =IF(J159<>"","Bib",IF(OR($K159="",K159="Empty"),"",IF(A159="",IFERROR(INDEX($E$11:$E$171,MATCH(100*MAX(J$11:J159)+M159,$I$11:$I$171,0),1),""),A159))) ->  | O159: =IF($J159<>"",$A$7,IF(OR($K159="",$K159="Empty",N159=""),"",INDEX(Athletes!$A$4:$E$1003,MATCH(N159,Athletes!$A$4:$A$1003,0),2)&" "& INDEX(Athletes!$A$4:$E$1003,MATCH(N159,Athletes!$A$4:$A$1003,0),3))) ->  | P159: =IF($J159<>"",IF($L$5=1,"Final ","Heat ")&IF(AND($L$5=1,$U$2=1),"",$J159&" of "&$U$2),IF(OR($K159="",$K159="Empty",N159=""),"",INDEX(Athletes!$A$4:$E$1003,MATCH(N159,Athletes!$A$4:$A$1003,0),5))) -> 
B160: =IFERROR(IF(Athletes!A153="","",IF(AND(Athletes!F153=$C$4,INDEX(Athletes!$G153:$Z153,1,MATCH($C$3,Athletes!$G$3:$Z$3,0))<>""),Athletes!A153,"")),"") ->  | C160: =IF(B160="","",INDEX(Athletes!$A$4:$E$1003,MATCH(B160,Athletes!$A$4:$A$1003,0),4)) ->  | D160: =IF(B160="","",ABS(SIN(B160))+IF($U$2=1,0,INDEX(Athletes!$AH$4:$AH$102,MATCH($C160,Athletes!$AE$4:$AE$102,0),1))) ->  | I160: =IF(E160="","",100*H160+IFERROR(INDEX(FrontPage!$AA$3:$AD$10,MATCH(COUNTIF(H$11:H160,H160),FrontPage!$AA$3:$AA$10,0),$I$5),COUNTIF(H$11:H160,H160))) ->  | J160: =IF(ROW()-11>$U$2*($U$3+2)-1,"",IF(MOD(ROW()-11,$U$3+2)=0,MAX(J$10:J159)+1,"")) ->  | L160: =IF($J160<>"",$K160,IF($K160="","",IF($K160="Empty",MAX($K$11:$K160)+0.99,MAX($K$11:$K160)+0.01*$K160))) ->  | N160: =IF(J160<>"","Bib",IF(OR($K160="",K160="Empty"),"",IF(A160="",IFERROR(INDEX($E$11:$E$171,MATCH(100*MAX(J$11:J160)+M160,$I$11:$I$171,0),1),""),A160))) ->  | O160: =IF($J160<>"",$A$7,IF(OR($K160="",$K160="Empty",N160=""),"",INDEX(Athletes!$A$4:$E$1003,MATCH(N160,Athletes!$A$4:$A$1003,0),2)&" "& INDEX(Athletes!$A$4:$E$1003,MATCH(N160,Athletes!$A$4:$A$1003,0),3))) ->  | P160: =IF($J160<>"",IF($L$5=1,"Final ","Heat ")&IF(AND($L$5=1,$U$2=1),"",$J160&" of "&$U$2),IF(OR($K160="",$K160="Empty",N160=""),"",INDEX(Athletes!$A$4:$E$1003,MATCH(N160,Athletes!$A$4:$A$1003,0),5))) -> 
B161: =IFERROR(IF(Athletes!A154="","",IF(AND(Athletes!F154=$C$4,INDEX(Athletes!$G154:$Z154,1,MATCH($C$3,Athletes!$G$3:$Z$3,0))<>""),Athletes!A154,"")),"") ->  | C161: =IF(B161="","",INDEX(Athletes!$A$4:$E$1003,MATCH(B161,Athletes!$A$4:$A$1003,0),4)) ->  | D161: =IF(B161="","",ABS(SIN(B161))+IF($U$2=1,0,INDEX(Athletes!$AH$4:$AH$102,MATCH($C161,Athletes!$AE$4:$AE$102,0),1))) ->  | I161: =IF(E161="","",100*H161+IFERROR(INDEX(FrontPage!$AA$3:$AD$10,MATCH(COUNTIF(H$11:H161,H161),FrontPage!$AA$3:$AA$10,0),$I$5),COUNTIF(H$11:H161,H161))) ->  | J161: =IF(ROW()-11>$U$2*($U$3+2)-1,"",IF(MOD(ROW()-11,$U$3+2)=0,MAX(J$10:J160)+1,"")) ->  | L161: =IF($J161<>"",$K161,IF($K161="","",IF($K161="Empty",MAX($K$11:$K161)+0.99,MAX($K$11:$K161)+0.01*$K161))) ->  | N161: =IF(J161<>"","Bib",IF(OR($K161="",K161="Empty"),"",IF(A161="",IFERROR(INDEX($E$11:$E$171,MATCH(100*MAX(J$11:J161)+M161,$I$11:$I$171,0),1),""),A161))) ->  | O161: =IF($J161<>"",$A$7,IF(OR($K161="",$K161="Empty",N161=""),"",INDEX(Athletes!$A$4:$E$1003,MATCH(N161,Athletes!$A$4:$A$1003,0),2)&" "& INDEX(Athletes!$A$4:$E$1003,MATCH(N161,Athletes!$A$4:$A$1003,0),3))) ->  | P161: =IF($J161<>"",IF($L$5=1,"Final ","Heat ")&IF(AND($L$5=1,$U$2=1),"",$J161&" of "&$U$2),IF(OR($K161="",$K161="Empty",N161=""),"",INDEX(Athletes!$A$4:$E$1003,MATCH(N161,Athletes!$A$4:$A$1003,0),5))) -> 
B162: =IFERROR(IF(Athletes!A155="","",IF(AND(Athletes!F155=$C$4,INDEX(Athletes!$G155:$Z155,1,MATCH($C$3,Athletes!$G$3:$Z$3,0))<>""),Athletes!A155,"")),"") ->  | C162: =IF(B162="","",INDEX(Athletes!$A$4:$E$1003,MATCH(B162,Athletes!$A$4:$A$1003,0),4)) ->  | D162: =IF(B162="","",ABS(SIN(B162))+IF($U$2=1,0,INDEX(Athletes!$AH$4:$AH$102,MATCH($C162,Athletes!$AE$4:$AE$102,0),1))) ->  | I162: =IF(E162="","",100*H162+IFERROR(INDEX(FrontPage!$AA$3:$AD$10,MATCH(COUNTIF(H$11:H162,H162),FrontPage!$AA$3:$AA$10,0),$I$5),COUNTIF(H$11:H162,H162))) ->  | J162: =IF(ROW()-11>$U$2*($U$3+2)-1,"",IF(MOD(ROW()-11,$U$3+2)=0,MAX(J$10:J161)+1,"")) ->  | L162: =IF($J162<>"",$K162,IF($K162="","",IF($K162="Empty",MAX($K$11:$K162)+0.99,MAX($K$11:$K162)+0.01*$K162))) ->  | N162: =IF(J162<>"","Bib",IF(OR($K162="",K162="Empty"),"",IF(A162="",IFERROR(INDEX($E$11:$E$171,MATCH(100*MAX(J$11:J162)+M162,$I$11:$I$171,0),1),""),A162))) ->  | O162: =IF($J162<>"",$A$7,IF(OR($K162="",$K162="Empty",N162=""),"",INDEX(Athletes!$A$4:$E$1003,MATCH(N162,Athletes!$A$4:$A$1003,0),2)&" "& INDEX(Athletes!$A$4:$E$1003,MATCH(N162,Athletes!$A$4:$A$1003,0),3))) ->  | P162: =IF($J162<>"",IF($L$5=1,"Final ","Heat ")&IF(AND($L$5=1,$U$2=1),"",$J162&" of "&$U$2),IF(OR($K162="",$K162="Empty",N162=""),"",INDEX(Athletes!$A$4:$E$1003,MATCH(N162,Athletes!$A$4:$A$1003,0),5))) -> 
B163: =IFERROR(IF(Athletes!A156="","",IF(AND(Athletes!F156=$C$4,INDEX(Athletes!$G156:$Z156,1,MATCH($C$3,Athletes!$G$3:$Z$3,0))<>""),Athletes!A156,"")),"") ->  | C163: =IF(B163="","",INDEX(Athletes!$A$4:$E$1003,MATCH(B163,Athletes!$A$4:$A$1003,0),4)) ->  | D163: =IF(B163="","",ABS(SIN(B163))+IF($U$2=1,0,INDEX(Athletes!$AH$4:$AH$102,MATCH($C163,Athletes!$AE$4:$AE$102,0),1))) ->  | I163: =IF(E163="","",100*H163+IFERROR(INDEX(FrontPage!$AA$3:$AD$10,MATCH(COUNTIF(H$11:H163,H163),FrontPage!$AA$3:$AA$10,0),$I$5),COUNTIF(H$11:H163,H163))) ->  | J163: =IF(ROW()-11>$U$2*($U$3+2)-1,"",IF(MOD(ROW()-11,$U$3+2)=0,MAX(J$10:J162)+1,"")) ->  | L163: =IF($J163<>"",$K163,IF($K163="","",IF($K163="Empty",MAX($K$11:$K163)+0.99,MAX($K$11:$K163)+0.01*$K163))) ->  | N163: =IF(J163<>"","Bib",IF(OR($K163="",K163="Empty"),"",IF(A163="",IFERROR(INDEX($E$11:$E$171,MATCH(100*MAX(J$11:J163)+M163,$I$11:$I$171,0),1),""),A163))) ->  | O163: =IF($J163<>"",$A$7,IF(OR($K163="",$K163="Empty",N163=""),"",INDEX(Athletes!$A$4:$E$1003,MATCH(N163,Athletes!$A$4:$A$1003,0),2)&" "& INDEX(Athletes!$A$4:$E$1003,MATCH(N163,Athletes!$A$4:$A$1003,0),3))) ->  | P163: =IF($J163<>"",IF($L$5=1,"Final ","Heat ")&IF(AND($L$5=1,$U$2=1),"",$J163&" of "&$U$2),IF(OR($K163="",$K163="Empty",N163=""),"",INDEX(Athletes!$A$4:$E$1003,MATCH(N163,Athletes!$A$4:$A$1003,0),5))) -> 
B164: =IFERROR(IF(Athletes!A157="","",IF(AND(Athletes!F157=$C$4,INDEX(Athletes!$G157:$Z157,1,MATCH($C$3,Athletes!$G$3:$Z$3,0))<>""),Athletes!A157,"")),"") -> 988 | C164: =IF(B164="","",INDEX(Athletes!$A$4:$E$1003,MATCH(B164,Athletes!$A$4:$A$1003,0),4)) -> e | D164: =IF(B164="","",ABS(SIN(B164))+IF($U$2=1,0,INDEX(Athletes!$AH$4:$AH$102,MATCH($C164,Athletes!$AE$4:$AE$102,0),1))) -> 0.9995229557 | I164: =IF(E164="","",100*H164+IFERROR(INDEX(FrontPage!$AA$3:$AD$10,MATCH(COUNTIF(H$11:H164,H164),FrontPage!$AA$3:$AA$10,0),$I$5),COUNTIF(H$11:H164,H164))) ->  | J164: =IF(ROW()-11>$U$2*($U$3+2)-1,"",IF(MOD(ROW()-11,$U$3+2)=0,MAX(J$10:J163)+1,"")) ->  | L164: =IF($J164<>"",$K164,IF($K164="","",IF($K164="Empty",MAX($K$11:$K164)+0.99,MAX($K$11:$K164)+0.01*$K164))) ->  | N164: =IF(J164<>"","Bib",IF(OR($K164="",K164="Empty"),"",IF(A164="",IFERROR(INDEX($E$11:$E$171,MATCH(100*MAX(J$11:J164)+M164,$I$11:$I$171,0),1),""),A164))) ->  | O164: =IF($J164<>"",$A$7,IF(OR($K164="",$K164="Empty",N164=""),"",INDEX(Athletes!$A$4:$E$1003,MATCH(N164,Athletes!$A$4:$A$1003,0),2)&" "& INDEX(Athletes!$A$4:$E$1003,MATCH(N164,Athletes!$A$4:$A$1003,0),3))) ->  | P164: =IF($J164<>"",IF($L$5=1,"Final ","Heat ")&IF(AND($L$5=1,$U$2=1),"",$J164&" of "&$U$2),IF(OR($K164="",$K164="Empty",N164=""),"",INDEX(Athletes!$A$4:$E$1003,MATCH(N164,Athletes!$A$4:$A$1003,0),5))) -> 
B165: =IFERROR(IF(Athletes!A158="","",IF(AND(Athletes!F158=$C$4,INDEX(Athletes!$G158:$Z158,1,MATCH($C$3,Athletes!$G$3:$Z$3,0))<>""),Athletes!A158,"")),"") -> 989 | C165: =IF(B165="","",INDEX(Athletes!$A$4:$E$1003,MATCH(B165,Athletes!$A$4:$A$1003,0),4)) -> s | D165: =IF(B165="","",ABS(SIN(B165))+IF($U$2=1,0,INDEX(Athletes!$AH$4:$AH$102,MATCH($C165,Athletes!$AE$4:$AE$102,0),1))) -> 0.5660330878 | I165: =IF(E165="","",100*H165+IFERROR(INDEX(FrontPage!$AA$3:$AD$10,MATCH(COUNTIF(H$11:H165,H165),FrontPage!$AA$3:$AA$10,0),$I$5),COUNTIF(H$11:H165,H165))) ->  | J165: =IF(ROW()-11>$U$2*($U$3+2)-1,"",IF(MOD(ROW()-11,$U$3+2)=0,MAX(J$10:J164)+1,"")) ->  | L165: =IF($J165<>"",$K165,IF($K165="","",IF($K165="Empty",MAX($K$11:$K165)+0.99,MAX($K$11:$K165)+0.01*$K165))) ->  | N165: =IF(J165<>"","Bib",IF(OR($K165="",K165="Empty"),"",IF(A165="",IFERROR(INDEX($E$11:$E$171,MATCH(100*MAX(J$11:J165)+M165,$I$11:$I$171,0),1),""),A165))) ->  | O165: =IF($J165<>"",$A$7,IF(OR($K165="",$K165="Empty",N165=""),"",INDEX(Athletes!$A$4:$E$1003,MATCH(N165,Athletes!$A$4:$A$1003,0),2)&" "& INDEX(Athletes!$A$4:$E$1003,MATCH(N165,Athletes!$A$4:$A$1003,0),3))) ->  | P165: =IF($J165<>"",IF($L$5=1,"Final ","Heat ")&IF(AND($L$5=1,$U$2=1),"",$J165&" of "&$U$2),IF(OR($K165="",$K165="Empty",N165=""),"",INDEX(Athletes!$A$4:$E$1003,MATCH(N165,Athletes!$A$4:$A$1003,0),5))) -> 
B166: =IFERROR(IF(Athletes!A159="","",IF(AND(Athletes!F159=$C$4,INDEX(Athletes!$G159:$Z159,1,MATCH($C$3,Athletes!$G$3:$Z$3,0))<>""),Athletes!A159,"")),"") ->  | C166: =IF(B166="","",INDEX(Athletes!$A$4:$E$1003,MATCH(B166,Athletes!$A$4:$A$1003,0),4)) ->  | D166: =IF(B166="","",ABS(SIN(B166))+IF($U$2=1,0,INDEX(Athletes!$AH$4:$AH$102,MATCH($C166,Athletes!$AE$4:$AE$102,0),1))) ->  | I166: =IF(E166="","",100*H166+IFERROR(INDEX(FrontPage!$AA$3:$AD$10,MATCH(COUNTIF(H$11:H166,H166),FrontPage!$AA$3:$AA$10,0),$I$5),COUNTIF(H$11:H166,H166))) ->  | J166: =IF(ROW()-11>$U$2*($U$3+2)-1,"",IF(MOD(ROW()-11,$U$3+2)=0,MAX(J$10:J165)+1,"")) ->  | L166: =IF($J166<>"",$K166,IF($K166="","",IF($K166="Empty",MAX($K$11:$K166)+0.99,MAX($K$11:$K166)+0.01*$K166))) ->  | N166: =IF(J166<>"","Bib",IF(OR($K166="",K166="Empty"),"",IF(A166="",IFERROR(INDEX($E$11:$E$171,MATCH(100*MAX(J$11:J166)+M166,$I$11:$I$171,0),1),""),A166))) ->  | O166: =IF($J166<>"",$A$7,IF(OR($K166="",$K166="Empty",N166=""),"",INDEX(Athletes!$A$4:$E$1003,MATCH(N166,Athletes!$A$4:$A$1003,0),2)&" "& INDEX(Athletes!$A$4:$E$1003,MATCH(N166,Athletes!$A$4:$A$1003,0),3))) ->  | P166: =IF($J166<>"",IF($L$5=1,"Final ","Heat ")&IF(AND($L$5=1,$U$2=1),"",$J166&" of "&$U$2),IF(OR($K166="",$K166="Empty",N166=""),"",INDEX(Athletes!$A$4:$E$1003,MATCH(N166,Athletes!$A$4:$A$1003,0),5))) -> 
B167: =IFERROR(IF(Athletes!A160="","",IF(AND(Athletes!F160=$C$4,INDEX(Athletes!$G160:$Z160,1,MATCH($C$3,Athletes!$G$3:$Z$3,0))<>""),Athletes!A160,"")),"") ->  | C167: =IF(B167="","",INDEX(Athletes!$A$4:$E$1003,MATCH(B167,Athletes!$A$4:$A$1003,0),4)) ->  | D167: =IF(B167="","",ABS(SIN(B167))+IF($U$2=1,0,INDEX(Athletes!$AH$4:$AH$102,MATCH($C167,Athletes!$AE$4:$AE$102,0),1))) ->  | I167: =IF(E167="","",100*H167+IFERROR(INDEX(FrontPage!$AA$3:$AD$10,MATCH(COUNTIF(H$11:H167,H167),FrontPage!$AA$3:$AA$10,0),$I$5),COUNTIF(H$11:H167,H167))) ->  | J167: =IF(ROW()-11>$U$2*($U$3+2)-1,"",IF(MOD(ROW()-11,$U$3+2)=0,MAX(J$10:J166)+1,"")) ->  | L167: =IF($J167<>"",$K167,IF($K167="","",IF($K167="Empty",MAX($K$11:$K167)+0.99,MAX($K$11:$K167)+0.01*$K167))) ->  | N167: =IF(J167<>"","Bib",IF(OR($K167="",K167="Empty"),"",IF(A167="",IFERROR(INDEX($E$11:$E$171,MATCH(100*MAX(J$11:J167)+M167,$I$11:$I$171,0),1),""),A167))) ->  | O167: =IF($J167<>"",$A$7,IF(OR($K167="",$K167="Empty",N167=""),"",INDEX(Athletes!$A$4:$E$1003,MATCH(N167,Athletes!$A$4:$A$1003,0),2)&" "& INDEX(Athletes!$A$4:$E$1003,MATCH(N167,Athletes!$A$4:$A$1003,0),3))) ->  | P167: =IF($J167<>"",IF($L$5=1,"Final ","Heat ")&IF(AND($L$5=1,$U$2=1),"",$J167&" of "&$U$2),IF(OR($K167="",$K167="Empty",N167=""),"",INDEX(Athletes!$A$4:$E$1003,MATCH(N167,Athletes!$A$4:$A$1003,0),5))) -> 
B168: =IFERROR(IF(Athletes!A161="","",IF(AND(Athletes!F161=$C$4,INDEX(Athletes!$G161:$Z161,1,MATCH($C$3,Athletes!$G$3:$Z$3,0))<>""),Athletes!A161,"")),"") ->  | C168: =IF(B168="","",INDEX(Athletes!$A$4:$E$1003,MATCH(B168,Athletes!$A$4:$A$1003,0),4)) ->  | D168: =IF(B168="","",ABS(SIN(B168))+IF($U$2=1,0,INDEX(Athletes!$AH$4:$AH$102,MATCH($C168,Athletes!$AE$4:$AE$102,0),1))) ->  | I168: =IF(E168="","",100*H168+IFERROR(INDEX(FrontPage!$AA$3:$AD$10,MATCH(COUNTIF(H$11:H168,H168),FrontPage!$AA$3:$AA$10,0),$I$5),COUNTIF(H$11:H168,H168))) ->  | J168: =IF(ROW()-11>$U$2*($U$3+2)-1,"",IF(MOD(ROW()-11,$U$3+2)=0,MAX(J$10:J167)+1,"")) ->  | L168: =IF($J168<>"",$K168,IF($K168="","",IF($K168="Empty",MAX($K$11:$K168)+0.99,MAX($K$11:$K168)+0.01*$K168))) ->  | N168: =IF(J168<>"","Bib",IF(OR($K168="",K168="Empty"),"",IF(A168="",IFERROR(INDEX($E$11:$E$171,MATCH(100*MAX(J$11:J168)+M168,$I$11:$I$171,0),1),""),A168))) ->  | O168: =IF($J168<>"",$A$7,IF(OR($K168="",$K168="Empty",N168=""),"",INDEX(Athletes!$A$4:$E$1003,MATCH(N168,Athletes!$A$4:$A$1003,0),2)&" "& INDEX(Athletes!$A$4:$E$1003,MATCH(N168,Athletes!$A$4:$A$1003,0),3))) ->  | P168: =IF($J168<>"",IF($L$5=1,"Final ","Heat ")&IF(AND($L$5=1,$U$2=1),"",$J168&" of "&$U$2),IF(OR($K168="",$K168="Empty",N168=""),"",INDEX(Athletes!$A$4:$E$1003,MATCH(N168,Athletes!$A$4:$A$1003,0),5))) -> 
B169: =IFERROR(IF(Athletes!A162="","",IF(AND(Athletes!F162=$C$4,INDEX(Athletes!$G162:$Z162,1,MATCH($C$3,Athletes!$G$3:$Z$3,0))<>""),Athletes!A162,"")),"") ->  | C169: =IF(B169="","",INDEX(Athletes!$A$4:$E$1003,MATCH(B169,Athletes!$A$4:$A$1003,0),4)) ->  | D169: =IF(B169="","",ABS(SIN(B169))+IF($U$2=1,0,INDEX(Athletes!$AH$4:$AH$102,MATCH($C169,Athletes!$AE$4:$AE$102,0),1))) ->  | I169: =IF(E169="","",100*H169+IFERROR(INDEX(FrontPage!$AA$3:$AD$10,MATCH(COUNTIF(H$11:H169,H169),FrontPage!$AA$3:$AA$10,0),$I$5),COUNTIF(H$11:H169,H169))) ->  | J169: =IF(ROW()-11>$U$2*($U$3+2)-1,"",IF(MOD(ROW()-11,$U$3+2)=0,MAX(J$10:J168)+1,"")) ->  | L169: =IF($J169<>"",$K169,IF($K169="","",IF($K169="Empty",MAX($K$11:$K169)+0.99,MAX($K$11:$K169)+0.01*$K169))) ->  | N169: =IF(J169<>"","Bib",IF(OR($K169="",K169="Empty"),"",IF(A169="",IFERROR(INDEX($E$11:$E$171,MATCH(100*MAX(J$11:J169)+M169,$I$11:$I$171,0),1),""),A169))) ->  | O169: =IF($J169<>"",$A$7,IF(OR($K169="",$K169="Empty",N169=""),"",INDEX(Athletes!$A$4:$E$1003,MATCH(N169,Athletes!$A$4:$A$1003,0),2)&" "& INDEX(Athletes!$A$4:$E$1003,MATCH(N169,Athletes!$A$4:$A$1003,0),3))) ->  | P169: =IF($J169<>"",IF($L$5=1,"Final ","Heat ")&IF(AND($L$5=1,$U$2=1),"",$J169&" of "&$U$2),IF(OR($K169="",$K169="Empty",N169=""),"",INDEX(Athletes!$A$4:$E$1003,MATCH(N169,Athletes!$A$4:$A$1003,0),5))) -> 
B170: =IFERROR(IF(Athletes!A163="","",IF(AND(Athletes!F163=$C$4,INDEX(Athletes!$G163:$Z163,1,MATCH($C$3,Athletes!$G$3:$Z$3,0))<>""),Athletes!A163,"")),"") ->  | C170: =IF(B170="","",INDEX(Athletes!$A$4:$E$1003,MATCH(B170,Athletes!$A$4:$A$1003,0),4)) ->  | D170: =IF(B170="","",ABS(SIN(B170))+IF($U$2=1,0,INDEX(Athletes!$AH$4:$AH$102,MATCH($C170,Athletes!$AE$4:$AE$102,0),1))) ->  | I170: =IF(E170="","",100*H170+IFERROR(INDEX(FrontPage!$AA$3:$AD$10,MATCH(COUNTIF(H$11:H170,H170),FrontPage!$AA$3:$AA$10,0),$I$5),COUNTIF(H$11:H170,H170))) ->  | J170: =IF(ROW()-11>$U$2*($U$3+2)-1,"",IF(MOD(ROW()-11,$U$3+2)=0,MAX(J$10:J169)+1,"")) ->  | L170: =IF($J170<>"",$K170,IF($K170="","",IF($K170="Empty",MAX($K$11:$K170)+0.99,MAX($K$11:$K170)+0.01*$K170))) ->  | N170: =IF(J170<>"","Bib",IF(OR($K170="",K170="Empty"),"",IF(A170="",IFERROR(INDEX($E$11:$E$171,MATCH(100*MAX(J$11:J170)+M170,$I$11:$I$171,0),1),""),A170))) ->  | O170: =IF($J170<>"",$A$7,IF(OR($K170="",$K170="Empty",N170=""),"",INDEX(Athletes!$A$4:$E$1003,MATCH(N170,Athletes!$A$4:$A$1003,0),2)&" "& INDEX(Athletes!$A$4:$E$1003,MATCH(N170,Athletes!$A$4:$A$1003,0),3))) ->  | P170: =IF($J170<>"",IF($L$5=1,"Final ","Heat ")&IF(AND($L$5=1,$U$2=1),"",$J170&" of "&$U$2),IF(OR($K170="",$K170="Empty",N170=""),"",INDEX(Athletes!$A$4:$E$1003,MATCH(N170,Athletes!$A$4:$A$1003,0),5))) -> 
B171: =IFERROR(IF(Athletes!A164="","",IF(AND(Athletes!F164=$C$4,INDEX(Athletes!$G164:$Z164,1,MATCH($C$3,Athletes!$G$3:$Z$3,0))<>""),Athletes!A164,"")),"") ->  | C171: =IF(B171="","",INDEX(Athletes!$A$4:$E$1003,MATCH(B171,Athletes!$A$4:$A$1003,0),4)) ->  | D171: =IF(B171="","",ABS(SIN(B171))+IF($U$2=1,0,INDEX(Athletes!$AH$4:$AH$102,MATCH($C171,Athletes!$AE$4:$AE$102,0),1))) -> 
B172: =IFERROR(IF(Athletes!A165="","",IF(AND(Athletes!F165=$C$4,INDEX(Athletes!$G165:$Z165,1,MATCH($C$3,Athletes!$G$3:$Z$3,0))<>""),Athletes!A165,"")),"") ->  | C172: =IF(B172="","",INDEX(Athletes!$A$4:$E$1003,MATCH(B172,Athletes!$A$4:$A$1003,0),4)) ->  | D172: =IF(B172="","",ABS(SIN(B172))+IF($U$2=1,0,INDEX(Athletes!$AH$4:$AH$102,MATCH($C172,Athletes!$AE$4:$AE$102,0),1))) -> 
B173: =IFERROR(IF(Athletes!A166="","",IF(AND(Athletes!F166=$C$4,INDEX(Athletes!$G166:$Z166,1,MATCH($C$3,Athletes!$G$3:$Z$3,0))<>""),Athletes!A166,"")),"") -> 997 | C173: =IF(B173="","",INDEX(Athletes!$A$4:$E$1003,MATCH(B173,Athletes!$A$4:$A$1003,0),4)) -> g | D173: =IF(B173="","",ABS(SIN(B173))+IF($U$2=1,0,INDEX(Athletes!$AH$4:$AH$102,MATCH($C173,Athletes!$AE$4:$AE$102,0),1))) -> 0.8979674805
B174: =IFERROR(IF(Athletes!A167="","",IF(AND(Athletes!F167=$C$4,INDEX(Athletes!$G167:$Z167,1,MATCH($C$3,Athletes!$G$3:$Z$3,0))<>""),Athletes!A167,"")),"") ->  | C174: =IF(B174="","",INDEX(Athletes!$A$4:$E$1003,MATCH(B174,Athletes!$A$4:$A$1003,0),4)) ->  | D174: =IF(B174="","",ABS(SIN(B174))+IF($U$2=1,0,INDEX(Athletes!$AH$4:$AH$102,MATCH($C174,Athletes!$AE$4:$AE$102,0),1))) -> 
B175: =IFERROR(IF(Athletes!A168="","",IF(AND(Athletes!F168=$C$4,INDEX(Athletes!$G168:$Z168,1,MATCH($C$3,Athletes!$G$3:$Z$3,0))<>""),Athletes!A168,"")),"") ->  | C175: =IF(B175="","",INDEX(Athletes!$A$4:$E$1003,MATCH(B175,Athletes!$A$4:$A$1003,0),4)) ->  | D175: =IF(B175="","",ABS(SIN(B175))+IF($U$2=1,0,INDEX(Athletes!$AH$4:$AH$102,MATCH($C175,Athletes!$AE$4:$AE$102,0),1))) -> 
B176: =IFERROR(IF(Athletes!A169="","",IF(AND(Athletes!F169=$C$4,INDEX(Athletes!$G169:$Z169,1,MATCH($C$3,Athletes!$G$3:$Z$3,0))<>""),Athletes!A169,"")),"") ->  | C176: =IF(B176="","",INDEX(Athletes!$A$4:$E$1003,MATCH(B176,Athletes!$A$4:$A$1003,0),4)) ->  | D176: =IF(B176="","",ABS(SIN(B176))+IF($U$2=1,0,INDEX(Athletes!$AH$4:$AH$102,MATCH($C176,Athletes!$AE$4:$AE$102,0),1))) -> 
B177: =IFERROR(IF(Athletes!A170="","",IF(AND(Athletes!F170=$C$4,INDEX(Athletes!$G170:$Z170,1,MATCH($C$3,Athletes!$G$3:$Z$3,0))<>""),Athletes!A170,"")),"") ->  | C177: =IF(B177="","",INDEX(Athletes!$A$4:$E$1003,MATCH(B177,Athletes!$A$4:$A$1003,0),4)) ->  | D177: =IF(B177="","",ABS(SIN(B177))+IF($U$2=1,0,INDEX(Athletes!$AH$4:$AH$102,MATCH($C177,Athletes!$AE$4:$AE$102,0),1))) -> 
B178: =IFERROR(IF(Athletes!A171="","",IF(AND(Athletes!F171=$C$4,INDEX(Athletes!$G171:$Z171,1,MATCH($C$3,Athletes!$G$3:$Z$3,0))<>""),Athletes!A171,"")),"") ->  | C178: =IF(B178="","",INDEX(Athletes!$A$4:$E$1003,MATCH(B178,Athletes!$A$4:$A$1003,0),4)) ->  | D178: =IF(B178="","",ABS(SIN(B178))+IF($U$2=1,0,INDEX(Athletes!$AH$4:$AH$102,MATCH($C178,Athletes!$AE$4:$AE$102,0),1))) -> 
B179: =IFERROR(IF(Athletes!A172="","",IF(AND(Athletes!F172=$C$4,INDEX(Athletes!$G172:$Z172,1,MATCH($C$3,Athletes!$G$3:$Z$3,0))<>""),Athletes!A172,"")),"") ->  | C179: =IF(B179="","",INDEX(Athletes!$A$4:$E$1003,MATCH(B179,Athletes!$A$4:$A$1003,0),4)) ->  | D179: =IF(B179="","",ABS(SIN(B179))+IF($U$2=1,0,INDEX(Athletes!$AH$4:$AH$102,MATCH($C179,Athletes!$AE$4:$AE$102,0),1))) -> 
B180: =IFERROR(IF(Athletes!A173="","",IF(AND(Athletes!F173=$C$4,INDEX(Athletes!$G173:$Z173,1,MATCH($C$3,Athletes!$G$3:$Z$3,0))<>""),Athletes!A173,"")),"") ->  | C180: =IF(B180="","",INDEX(Athletes!$A$4:$E$1003,MATCH(B180,Athletes!$A$4:$A$1003,0),4)) ->  | D180: =IF(B180="","",ABS(SIN(B180))+IF($U$2=1,0,INDEX(Athletes!$AH$4:$AH$102,MATCH($C180,Athletes!$AE$4:$AE$102,0),1))) -> 
B181: =IFERROR(IF(Athletes!A174="","",IF(AND(Athletes!F174=$C$4,INDEX(Athletes!$G174:$Z174,1,MATCH($C$3,Athletes!$G$3:$Z$3,0))<>""),Athletes!A174,"")),"") ->  | C181: =IF(B181="","",INDEX(Athletes!$A$4:$E$1003,MATCH(B181,Athletes!$A$4:$A$1003,0),4)) ->  | D181: =IF(B181="","",ABS(SIN(B181))+IF($U$2=1,0,INDEX(Athletes!$AH$4:$AH$102,MATCH($C181,Athletes!$AE$4:$AE$102,0),1))) -> 
B182: =IFERROR(IF(Athletes!A175="","",IF(AND(Athletes!F175=$C$4,INDEX(Athletes!$G175:$Z175,1,MATCH($C$3,Athletes!$G$3:$Z$3,0))<>""),Athletes!A175,"")),"") ->  | C182: =IF(B182="","",INDEX(Athletes!$A$4:$E$1003,MATCH(B182,Athletes!$A$4:$A$1003,0),4)) ->  | D182: =IF(B182="","",ABS(SIN(B182))+IF($U$2=1,0,INDEX(Athletes!$AH$4:$AH$102,MATCH($C182,Athletes!$AE$4:$AE$102,0),1))) -> 
B183: =IFERROR(IF(Athletes!A176="","",IF(AND(Athletes!F176=$C$4,INDEX(Athletes!$G176:$Z176,1,MATCH($C$3,Athletes!$G$3:$Z$3,0))<>""),Athletes!A176,"")),"") ->  | C183: =IF(B183="","",INDEX(Athletes!$A$4:$E$1003,MATCH(B183,Athletes!$A$4:$A$1003,0),4)) ->  | D183: =IF(B183="","",ABS(SIN(B183))+IF($U$2=1,0,INDEX(Athletes!$AH$4:$AH$102,MATCH($C183,Athletes!$AE$4:$AE$102,0),1))) -> 
B184: =IFERROR(IF(Athletes!A177="","",IF(AND(Athletes!F177=$C$4,INDEX(Athletes!$G177:$Z177,1,MATCH($C$3,Athletes!$G$3:$Z$3,0))<>""),Athletes!A177,"")),"") ->  | C184: =IF(B184="","",INDEX(Athletes!$A$4:$E$1003,MATCH(B184,Athletes!$A$4:$A$1003,0),4)) ->  | D184: =IF(B184="","",ABS(SIN(B184))+IF($U$2=1,0,INDEX(Athletes!$AH$4:$AH$102,MATCH($C184,Athletes!$AE$4:$AE$102,0),1))) -> 
B185: =IFERROR(IF(Athletes!A178="","",IF(AND(Athletes!F178=$C$4,INDEX(Athletes!$G178:$Z178,1,MATCH($C$3,Athletes!$G$3:$Z$3,0))<>""),Athletes!A178,"")),"") ->  | C185: =IF(B185="","",INDEX(Athletes!$A$4:$E$1003,MATCH(B185,Athletes!$A$4:$A$1003,0),4)) ->  | D185: =IF(B185="","",ABS(SIN(B185))+IF($U$2=1,0,INDEX(Athletes!$AH$4:$AH$102,MATCH($C185,Athletes!$AE$4:$AE$102,0),1))) -> 
B186: =IFERROR(IF(Athletes!A179="","",IF(AND(Athletes!F179=$C$4,INDEX(Athletes!$G179:$Z179,1,MATCH($C$3,Athletes!$G$3:$Z$3,0))<>""),Athletes!A179,"")),"") ->  | C186: =IF(B186="","",INDEX(Athletes!$A$4:$E$1003,MATCH(B186,Athletes!$A$4:$A$1003,0),4)) ->  | D186: =IF(B186="","",ABS(SIN(B186))+IF($U$2=1,0,INDEX(Athletes!$AH$4:$AH$102,MATCH($C186,Athletes!$AE$4:$AE$102,0),1))) -> 
B187: =IFERROR(IF(Athletes!A180="","",IF(AND(Athletes!F180=$C$4,INDEX(Athletes!$G180:$Z180,1,MATCH($C$3,Athletes!$G$3:$Z$3,0))<>""),Athletes!A180,"")),"") ->  | C187: =IF(B187="","",INDEX(Athletes!$A$4:$E$1003,MATCH(B187,Athletes!$A$4:$A$1003,0),4)) ->  | D187: =IF(B187="","",ABS(SIN(B187))+IF($U$2=1,0,INDEX(Athletes!$AH$4:$AH$102,MATCH($C187,Athletes!$AE$4:$AE$102,0),1))) -> 
B188: =IFERROR(IF(Athletes!A181="","",IF(AND(Athletes!F181=$C$4,INDEX(Athletes!$G181:$Z181,1,MATCH($C$3,Athletes!$G$3:$Z$3,0))<>""),Athletes!A181,"")),"") ->  | C188: =IF(B188="","",INDEX(Athletes!$A$4:$E$1003,MATCH(B188,Athletes!$A$4:$A$1003,0),4)) ->  | D188: =IF(B188="","",ABS(SIN(B188))+IF($U$2=1,0,INDEX(Athletes!$AH$4:$AH$102,MATCH($C188,Athletes!$AE$4:$AE$102,0),1))) -> 
B189: =IFERROR(IF(Athletes!A182="","",IF(AND(Athletes!F182=$C$4,INDEX(Athletes!$G182:$Z182,1,MATCH($C$3,Athletes!$G$3:$Z$3,0))<>""),Athletes!A182,"")),"") ->  | C189: =IF(B189="","",INDEX(Athletes!$A$4:$E$1003,MATCH(B189,Athletes!$A$4:$A$1003,0),4)) ->  | D189: =IF(B189="","",ABS(SIN(B189))+IF($U$2=1,0,INDEX(Athletes!$AH$4:$AH$102,MATCH($C189,Athletes!$AE$4:$AE$102,0),1))) -> 
B190: =IFERROR(IF(Athletes!A183="","",IF(AND(Athletes!F183=$C$4,INDEX(Athletes!$G183:$Z183,1,MATCH($C$3,Athletes!$G$3:$Z$3,0))<>""),Athletes!A183,"")),"") ->  | C190: =IF(B190="","",INDEX(Athletes!$A$4:$E$1003,MATCH(B190,Athletes!$A$4:$A$1003,0),4)) ->  | D190: =IF(B190="","",ABS(SIN(B190))+IF($U$2=1,0,INDEX(Athletes!$AH$4:$AH$102,MATCH($C190,Athletes!$AE$4:$AE$102,0),1))) -> 
B191: =IFERROR(IF(Athletes!A184="","",IF(AND(Athletes!F184=$C$4,INDEX(Athletes!$G184:$Z184,1,MATCH($C$3,Athletes!$G$3:$Z$3,0))<>""),Athletes!A184,"")),"") ->  | C191: =IF(B191="","",INDEX(Athletes!$A$4:$E$1003,MATCH(B191,Athletes!$A$4:$A$1003,0),4)) ->  | D191: =IF(B191="","",ABS(SIN(B191))+IF($U$2=1,0,INDEX(Athletes!$AH$4:$AH$102,MATCH($C191,Athletes!$AE$4:$AE$102,0),1))) -> 
B192: =IFERROR(IF(Athletes!A185="","",IF(AND(Athletes!F185=$C$4,INDEX(Athletes!$G185:$Z185,1,MATCH($C$3,Athletes!$G$3:$Z$3,0))<>""),Athletes!A185,"")),"") ->  | C192: =IF(B192="","",INDEX(Athletes!$A$4:$E$1003,MATCH(B192,Athletes!$A$4:$A$1003,0),4)) ->  | D192: =IF(B192="","",ABS(SIN(B192))+IF($U$2=1,0,INDEX(Athletes!$AH$4:$AH$102,MATCH($C192,Athletes!$AE$4:$AE$102,0),1))) -> 
B193: =IFERROR(IF(Athletes!A186="","",IF(AND(Athletes!F186=$C$4,INDEX(Athletes!$G186:$Z186,1,MATCH($C$3,Athletes!$G$3:$Z$3,0))<>""),Athletes!A186,"")),"") ->  | C193: =IF(B193="","",INDEX(Athletes!$A$4:$E$1003,MATCH(B193,Athletes!$A$4:$A$1003,0),4)) ->  | D193: =IF(B193="","",ABS(SIN(B193))+IF($U$2=1,0,INDEX(Athletes!$AH$4:$AH$102,MATCH($C193,Athletes!$AE$4:$AE$102,0),1))) -> 
B194: =IFERROR(IF(Athletes!A187="","",IF(AND(Athletes!F187=$C$4,INDEX(Athletes!$G187:$Z187,1,MATCH($C$3,Athletes!$G$3:$Z$3,0))<>""),Athletes!A187,"")),"") ->  | C194: =IF(B194="","",INDEX(Athletes!$A$4:$E$1003,MATCH(B194,Athletes!$A$4:$A$1003,0),4)) ->  | D194: =IF(B194="","",ABS(SIN(B194))+IF($U$2=1,0,INDEX(Athletes!$AH$4:$AH$102,MATCH($C194,Athletes!$AE$4:$AE$102,0),1))) -> 
B195: =IFERROR(IF(Athletes!A188="","",IF(AND(Athletes!F188=$C$4,INDEX(Athletes!$G188:$Z188,1,MATCH($C$3,Athletes!$G$3:$Z$3,0))<>""),Athletes!A188,"")),"") ->  | C195: =IF(B195="","",INDEX(Athletes!$A$4:$E$1003,MATCH(B195,Athletes!$A$4:$A$1003,0),4)) ->  | D195: =IF(B195="","",ABS(SIN(B195))+IF($U$2=1,0,INDEX(Athletes!$AH$4:$AH$102,MATCH($C195,Athletes!$AE$4:$AE$102,0),1))) -> 
B196: =IFERROR(IF(Athletes!A189="","",IF(AND(Athletes!F189=$C$4,INDEX(Athletes!$G189:$Z189,1,MATCH($C$3,Athletes!$G$3:$Z$3,0))<>""),Athletes!A189,"")),"") ->  | C196: =IF(B196="","",INDEX(Athletes!$A$4:$E$1003,MATCH(B196,Athletes!$A$4:$A$1003,0),4)) ->  | D196: =IF(B196="","",ABS(SIN(B196))+IF($U$2=1,0,INDEX(Athletes!$AH$4:$AH$102,MATCH($C196,Athletes!$AE$4:$AE$102,0),1))) -> 
B197: =IFERROR(IF(Athletes!A190="","",IF(AND(Athletes!F190=$C$4,INDEX(Athletes!$G190:$Z190,1,MATCH($C$3,Athletes!$G$3:$Z$3,0))<>""),Athletes!A190,"")),"") ->  | C197: =IF(B197="","",INDEX(Athletes!$A$4:$E$1003,MATCH(B197,Athletes!$A$4:$A$1003,0),4)) ->  | D197: =IF(B197="","",ABS(SIN(B197))+IF($U$2=1,0,INDEX(Athletes!$AH$4:$AH$102,MATCH($C197,Athletes!$AE$4:$AE$102,0),1))) -> 
B198: =IFERROR(IF(Athletes!A191="","",IF(AND(Athletes!F191=$C$4,INDEX(Athletes!$G191:$Z191,1,MATCH($C$3,Athletes!$G$3:$Z$3,0))<>""),Athletes!A191,"")),"") ->  | C198: =IF(B198="","",INDEX(Athletes!$A$4:$E$1003,MATCH(B198,Athletes!$A$4:$A$1003,0),4)) ->  | D198: =IF(B198="","",ABS(SIN(B198))+IF($U$2=1,0,INDEX(Athletes!$AH$4:$AH$102,MATCH($C198,Athletes!$AE$4:$AE$102,0),1))) -> 
B199: =IFERROR(IF(Athletes!A192="","",IF(AND(Athletes!F192=$C$4,INDEX(Athletes!$G192:$Z192,1,MATCH($C$3,Athletes!$G$3:$Z$3,0))<>""),Athletes!A192,"")),"") ->  | C199: =IF(B199="","",INDEX(Athletes!$A$4:$E$1003,MATCH(B199,Athletes!$A$4:$A$1003,0),4)) ->  | D199: =IF(B199="","",ABS(SIN(B199))+IF($U$2=1,0,INDEX(Athletes!$AH$4:$AH$102,MATCH($C199,Athletes!$AE$4:$AE$102,0),1))) -> 
B200: =IFERROR(IF(Athletes!A193="","",IF(AND(Athletes!F193=$C$4,INDEX(Athletes!$G193:$Z193,1,MATCH($C$3,Athletes!$G$3:$Z$3,0))<>""),Athletes!A193,"")),"") ->  | C200: =IF(B200="","",INDEX(Athletes!$A$4:$E$1003,MATCH(B200,Athletes!$A$4:$A$1003,0),4)) ->  | D200: =IF(B200="","",ABS(SIN(B200))+IF($U$2=1,0,INDEX(Athletes!$AH$4:$AH$102,MATCH($C200,Athletes!$AE$4:$AE$102,0),1))) -> 
B201: =IFERROR(IF(Athletes!A194="","",IF(AND(Athletes!F194=$C$4,INDEX(Athletes!$G194:$Z194,1,MATCH($C$3,Athletes!$G$3:$Z$3,0))<>""),Athletes!A194,"")),"") ->  | C201: =IF(B201="","",INDEX(Athletes!$A$4:$E$1003,MATCH(B201,Athletes!$A$4:$A$1003,0),4)) ->  | D201: =IF(B201="","",ABS(SIN(B201))+IF($U$2=1,0,INDEX(Athletes!$AH$4:$AH$102,MATCH($C201,Athletes!$AE$4:$AE$102,0),1))) -> 
... 809 more rows

Sheet TrackResult (hidden)
E1: Set up the heats and the codes | W1: =IF(LEFT(Q3,5)="Error",1,IF($V$1="",INDEX(Startlist!$G:$G,MATCH(10000*$P3+100,Startlist!$A:$A,0),1),$V$1)) -> 1 | X1: Rounds | AJ1: Allocate Points | AO1: Seed the next round
W2: =IF(LEFT(Q3,5)="Error",1,IF($V$2="",INDEX(Startlist!H:H,MATCH(10000*$P$3+100*$P$4,Startlist!A:A,0),1),$V$2)) -> 1 | AD2: Check to see if there is already a file in Results | AE2: =IF(ISNA(MATCH($P$3*10000+$P$4*100+1,Results!A:A,0)),"OK",MATCH($P$3*10000+$P$4*100+1,Results!A:A,0)) -> 356 | AJ2: Relay? | AK2: =IF(RIGHT(INDEX(FrontPage!C$20:C$50,MATCH($P$3,FrontPage!A$20:A$50,0),1),5)="Relay",1,0) -> 1 | AQ2: Check to see if there is already a file in Startlist | AR2: =IF(ISNA(MATCH($P$3*10000+($P$4+1)*100+1,Startlist!A:A,0)),"OK",MATCH(P3*10000+($P$4+1)*100+1,Startlist!A:A,0)) -> OK | BD2: 1
P3: 4401 | Q3: =IF(ISNA(MATCH(10000*$P$3+100*$P$4+1,Startlist!A:A,0)),"Error. No Startlist entry found for this event","") ->  | W3: =IF(LEFT(Q3,5)="Error",1,IF($V$3="",INDEX(Startlist!I:I,MATCH(10000*$P$3+100*$P$4,Startlist!A:A,0),1),$V$3)) -> 8 | BD3: 8
P4: 1 | W4: =IF(LEFT(Q3,5)="Error",0,IF($V$4="",INDEX(Startlist!G:G,MATCH(10000*$P$3+100*$P$4,Startlist!A:A,0)+1,1),$V$4)) ->  | AP4: Lane pref | BD4: 0
W5: =IF(LEFT(Q3,5)="Error",0,IF($V$5="",INDEX(Startlist!I:I,MATCH(10000*$P$3+100*$P$4,Startlist!A:A,0)+1,1),$V$5)) ->  | AP5: =IF(AJ2>800,1,IF(FrontPage!$J$7=1,2,IF(FrontPage!$J$7=2,3,IF(FrontPage!$J$7=3,IF(AJ2>=100,4,2))))) -> 1 | BD5: 0
W6: =IF(LEFT(Q3,5)="Error",0,IF($V$6="",INDEX(Startlist!F:F,MATCH(10000*$P$3+100*$P$4,Startlist!A:A,0),1),$V$6)) -> 1600 | X6: =IF($W$6>400,"L","S") -> L | Y6: =COUNTIF(T$11:T$170,"M") -> 0
A7: =IFERROR(INDEX(FrontPage!I$20:I$50,MATCH($P$3,FrontPage!A$20:A$50,0),1),"") -> 4x400m Relay Men | E7: Set up the heats | F7: Uses no of heats and max no of athletes | G7: Set up the codes | H7: Rows within each heat | I7: Rows within each heat | Q7: =IFERROR(IF(AND($W$1>1,COUNTIF(U11:U170,"q")<>W2*W4+W5),"Check the qualifiers: "&COUNTIF(U11:U170,"q")&" when "&W2*W4+W5&" are required",COUNTIF(U11:U170,"q")&" qualifiers"),"") ->  | S7: Column S contains times and windspeeds Column T contains judges decisions and M for manual times | Y7: Was this race manual timed? | Z7: Adjust the times | AA7: Remove guests DQ, DNF, DNS etc | AB7: Rank these within each heat | AC7: Determine the qualifiers by position | AD7: Rank the fastest losers over all heats | AE7: Determine the fastest losers and convert to a Q or q | AF7: Copy and Paste this | AG7: Copy and Paste this | AH7: Pasted | AI7: Pasted | AK7: Delete teams that do not score. Delete athletes beyond 2. | AN7: Allocate the points from the table on FrontPage | AO7: Use Zig-Zag method to draw the semi-finals | AP7: Heat and Lane Draw | AQ7: Set up the heats | AR7: Uses no of heats and max no of athletes
A8: =COUNT(M$11:M$170)&" athletes" -> 6 athletes | D8: =IFERROR(INDEX(FrontPage!$E$20:$E$50,MATCH(TrackResult!P3,FrontPage!A$20:A$50,0),1),0) -> 0.00232349537 | Q8: =IF(OR(W1=1,P4=W1),"Final Result",IF(AND(P4>1,W1-P4=1),"Semi-Final Result","Round "&P4&" Result")) -> Final Result | V8: =IF(COUNTIF($V$11:$V$170,"R")>0,"Record","-") -> - | Y8: Influences conditional formatting | AG8: After round 1 retain DQ, DNF, DNS | AK8: For relays only one team scores. | AN8: Double points for relays | AX8: =IF(W1<=P4,"",IF(W1-P4=1,"Final",IF(W1-P4=2,"Semi-Final","Round "&P4+1))&" Seeding") -> 
AG9: so they can get points
A10: Heat | B10: File | M10: Athletes | S10: w/s | T10: M | V10: R? | X10: CHECK | AL10: RANK | AM10: TIES | AN10: POINTS | AT10: Override | AU10: =10000*$P$3+($P$4+1)*100 -> 44010200 | AV10: Evt | AW10: =$P$3 -> 4401 | AX10: =$A$7 -> 4x400m Relay Men | AY10: ="Start Time "&INDEX(FrontPage!F$20:H$50,MATCH($P$3,FrontPage!A$20:A$50,0),$P$4) -> Start Time 16:45 | AZ10: =$W$6 -> 1600 | BA10: =$BD$1 -> 0 | BB10: =$BD$2 -> 1 | BC10: =$BD$3 -> 8
A11: 1 | B11: =IF(A11>$W$2,"",F11) -> 44010101 | E11: =IF(ROW()-11>$W$2*($W$3+2)-1,"",IF(MOD(ROW()-11,$W$3+2)=0,MAX(E$10:E10)+1,"")) -> 1 | F11: =IF(ROW()-11>$W$2*($W$3+2)-1,"",IF(MOD(ROW()-11,$W$3+2)=0,$P$3*10000+$P$4*100+E11,IF(MOD(ROW()-11,$W$3+2)=$W$3+1,"Empty",(MOD(ROW()-11,$W$3+2))))) -> 44010101 | G11: =IF($E11<>"",$F11,IF($F11="","",IF($F11="Empty",MAX($F$11:$F11)+0.99,MAX($F$11:$F11)+0.01*$F11))) -> 44010101 | H11: =IF(G11="","",(MAX(E$11:E11)-1)*($W$3+2)+11) -> 11 | I11: =IF(G11="","",MAX(E$11:E11)*($W$3+2)+10) -> 20 | M11: =IFERROR(IF(OR(G11="",$E11<>""),"",INDEX(Startlist!C:C,MATCH(TrackResult!G11,Startlist!A:A,0),1)),"") ->  | N11: =IF(F11="","",IF(E11<>"",F11,IF(F11="Empty",MAX(F10:F$11)+0.99,MAX(F10:F$11)+0.01*F11))) -> 44010101 | Q11: =IF($E11<>"",$A$7,IF(OR($F11="",$F11="Empty",P11=""),"",INDEX(Athletes!$A$4:$E$1003,MATCH(P11,Athletes!$A$4:$A$1003,0),2)&" "& INDEX(Athletes!$A$4:$E$1003,MATCH(P11,Athletes!$A$4:$A$1003,0),3))) -> 4x400m Relay Men | R11: =IF($E11<>"",IF($W$1=1,"Final ","Heat ")&IF(AND($W$1=1,$W$2=1),"",$E11&" of "&$W$2),IF(OR($F11="",$F11="Empty",P11=""),"",INDEX(Athletes!$A$4:$E$1003,MATCH(P11,Athletes!$A$4:$A$1003,0),5))) -> Final | S11: No | U11: =IF(E11<>"","",IF(OR(F11="",F11="Empty",R11="",$W$2=1),"",IF(T11="X","",IF(T11="Q",T11,AE11)))) ->  | V11: =IF($E11<>"","",IF(OR($F11="",$F11="Empty",P11=""),"",IF(AND($R11<>"Guest",$S11<=$D$8),"R",""))) ->  | W11: =IF($E11<>"","Pts",IFERROR(IF(OR(P11="",U11="Q"),"",INDEX($AN$11:$AN$170,MATCH(P11,$AH$11:$AH$170,0),1)),"")) -> Pts | X11: =IF(P11="","",IF(ISNA(MATCH(P11,INDIRECT("M"&12+(MAX(E$11:E11)-1)*($W$3+2)&":M"&9+MAX(E$11:E11)*($W$3+2)),0)),"ERROR","")) ->  | Y11: =IF(OR(G11="",S11=""),"",$X$6&IF(INDIRECT("t"&H11)="M","M","")) -> L | Z11: =IF(S11="","",IF($Y$6>0,ROUND(IF($W$6>400,24*3600*S11,S11),1),ROUND(IF($W$6>400,24*3600*S11,S11),2))) ->  | AB11: =IF(AA11="","",RANK(AA11,INDIRECT("aa"&H11&":aa"&I11),1)) ->  | AC11: =IF(AB11="","",IF(AB11<=$W$4,10000*AB11+Z11,Z11)) ->  | AD11: =IF(AC11="","",IF(AC11>=10000,AC11,RANK(Z11,AC$11:AC$170,1))) ->  | AF11: =IF(P11="","",P11) ->  | AJ11: =IF(AH11="","",INDEX(Athletes!$A$4:$E$1003,MATCH(AH11,Athletes!$A$4:$A$1003,0),5)) ->  | AK11: =IF(AJ11="","",IF(OR(AJ11="Guest",INDEX(Athletes!$AI$4:$AI$102,MATCH(AJ11,Athletes!$AF$4:$AF$102,0),1)="",COUNTIF(AJ$11:AJ11,AJ11)>(2-$AK$2)),"",IF($W$2=1,O11,AI11))) ->  | AL11: =IF(AK11="","",RANK(AK11,AK$11:AK$170,1)) ->  | AM11: =IF(AL11="","",COUNTIF(AL$11:AL$170,AL11)) ->  | AN11: =IF(OR(AL11="",AL11>8),"",(1+$AK$2)*SUM(INDIRECT("FrontPage!AI"&2+AL11&":AI"&1+AL11+AM11))/AM11) ->  | AP11: =IF(OR(AH11="",AI11>=1000000),"",100*AO11+IFERROR(INDEX(FrontPage!$AA$3:$AD$10,MATCH(COUNTIF(AO$11:AO11,AO11),FrontPage!$AA$3:$AA$10,0),$AP$5),COUNTIF(AO$11:AO11,AO11))) ->  | AQ11: =IF($W$1<2,"",IF(ROW()-11>$BD$2*($BD$3+2)-1,"",IF(MOD(ROW()-11,$BD$3+2)=0,MAX(AQ$10:AQ10)+1,""))) ->  | AR11: =IF($W$1<2,"",IF(ROW()-11>$BD$2*($BD$3+2)-1,"",IF(MOD(ROW()-11,$BD$3+2)=0,$P$3*10000+200+AQ11,IF(MOD(ROW()-11,$BD$3+2)=$BD$3+1,"Empty",(MOD(ROW()-11,$BD$3+2)))))) ->  | AU11: =IF($AQ11<>"",$AR11,IF($AR11="","",IF($AR11="Empty",MAX($AR$11:$AR11)+0.99,MAX($AR$11:$AR11)+0.01*$AR11))) ->  | AV11: =IF($AQ11<>"","La",IF($AR11="","",IF($AR11="Empty","-",$AR11))) ->  | AW11: =IF($AQ11<>"","Bib",IF(OR($AR11="",$AR11="Empty"),"",IF(AT11="",IFERROR(INDEX($AH$11:$AH$170,MATCH(100*MAX(AQ$11:AQ11)+AV11,$AP$11:$AP$170,0),1),""),AT11))) ->  | AX11: =IF($AQ11<>"",$A$7,IF(OR($AV11="",$AR11="Empty",AW11=""),"",INDEX(Athletes!$A$4:$E$1003,MATCH(AW11,Athletes!$A$4:$A$1003,0),2)&" "& INDEX(Athletes!$A$4:$E$1003,MATCH(AW11,Athletes!$A$4:$A$1003,0),3))) ->  | AY11: =IF($AQ11<>"",IF($W$1=2,"Final ","Semi-FInal ")&IF(AND($W$1=2,$BD$2=1),"",E11&" of "&$BD$2),IF(OR(AV11="",AR11="Empty",AW11=""),"",INDEX(Athletes!$A$4:$E$1003,MATCH(AW11,Athletes!$A$4:$A$1003,0),5))) ->  | AZ11: =IF($AQ11<>"",IF($W$1=2,"","First "),"") ->  | BA11: =IF($AQ11<>"",IF($W$1=2,"",$BD$4),"") ->  | BB11: =IF($AQ11<>"",IF($W$1=2,"","plus"),"") ->  | BC11: =IF($AQ11<>"",IF($W$1=2,"",$BD$5),"") ->  | BF11: =IF($AR11="Line","–––––––––––––––––––––––––","") -> 
A12: 2 | B12: =IF(A12>$W$2,"",B11+1) ->  | E12: =IF(ROW()-11>$W$2*($W$3+2)-1,"",IF(MOD(ROW()-11,$W$3+2)=0,MAX(E$10:E11)+1,"")) ->  | F12: =IF(ROW()-11>$W$2*($W$3+2)-1,"",IF(MOD(ROW()-11,$W$3+2)=0,$P$3*10000+$P$4*100+E12,IF(MOD(ROW()-11,$W$3+2)=$W$3+1,"Empty",(MOD(ROW()-11,$W$3+2))))) -> 1 | G12: =IF($E12<>"",$F12,IF($F12="","",IF($F12="Empty",MAX($F$11:$F12)+0.99,MAX($F$11:$F12)+0.01*$F12))) -> 44010101.01 | H12: =IF(G12="","",(MAX(E$11:E12)-1)*($W$3+2)+11) -> 11 | I12: =IF(G12="","",MAX(E$11:E12)*($W$3+2)+10) -> 20 | M12: =IFERROR(IF(OR(G12="",$E12<>""),"",INDEX(Startlist!C:C,MATCH(TrackResult!G12,Startlist!A:A,0),1)),"") -> 996 | N12: =IF(F12="","",IF(E12<>"",F12,IF(F12="Empty",MAX(F$11:F11)+0.99,MAX(F$11:F11)+0.01*F12))) -> 44010101.01 | O12: 1 | P12: 203 | Q12: =IF($E12<>"",$A$7,IF(OR($F12="",$F12="Empty",P12=""),"",INDEX(Athletes!$A$4:$E$1003,MATCH(P12,Athletes!$A$4:$A$1003,0),2)&" "& INDEX(Athletes!$A$4:$E$1003,MATCH(P12,Athletes!$A$4:$A$1003,0),3))) -> Glasgow A 4 by 400 M | R12: =IF($E12<>"",IF($W$1=1,"Final ","Heat ")&IF(AND($W$1=1,$W$2=1),"",$E12&" of "&$W$2),IF(OR($F12="",$F12="Empty",P12=""),"",INDEX(Athletes!$A$4:$E$1003,MATCH(P12,Athletes!$A$4:$A$1003,0),5))) -> Glasgow | S12: 0.002443171296 | W12: 16 | X12: =IF(P12="","",IF(ISNA(MATCH(P12,INDIRECT("M"&12+(MAX(E$11:E12)-1)*($W$3+2)&":M"&9+MAX(E$11:E12)*($W$3+2)),0)),"ERROR","")) ->  | Y12: =IF(OR(G12="",S12=""),"",$X$6&IF(INDIRECT("t"&H12)="M","M","")) -> L | Z12: =IF(S12="","",IFERROR(IF($Y$6>0,ROUND(IF($W$6>400,24*3600*S12,S12),1),ROUND(IF($W$6>400,24*3600*S12,S12),2)),"")) -> 211.09 | AA12: =IF(OR(E12<>"",F12="",F12="Empty",R12="guest",S12="",LEFT(S12,1)="D",LEFT(S12,1)="N"),"",O12) -> 1 | AB12: =IF(AA12="","",RANK(AA12,INDIRECT("aa"&H12&":aa"&I12),1)) -> 1 | AC12: 10211.09 | AD12: =IF(AC12="","",IF(AC12>=10000,AC12,RANK(Z12,AC$11:AC$170,1))) -> 10211.09 | AE12: =IF(AD12="","",IF(AD12>10000,"Q",IF(AD12<=$W$5,"q",""))) -> Q | AF12: 203 | AG12: =IF(AC12="",IF(AND($P$4>=2,OR(LEFT(S12,1)="D",LEFT(S12,1)="N")),2000000,""),IF(AC12>9999,AC12,IF(U12="q",900000+AC12,1000000+AC12))) -> 10211.09 | AH12: 203 | AI12: 10211.09 | AJ12: =IF(AH12="","",INDEX(Athletes!$A$4:$E$1003,MATCH(AH12,Athletes!$A$4:$A$1003,0),5)) -> Glasgow | AK12: =IF(AJ12="","",IF(OR(AJ12="Guest",INDEX(Athletes!$AI$4:$AI$102,MATCH(AJ12,Athletes!$AF$4:$AF$102,0),1)="",COUNTIF(AJ$11:AJ12,AJ12)>(2-$AK$2)),"",IF($W$2=1,O12,AI12))) -> 1 | AL12: 1 | AM12: 1 | AN12: =IF(OR(AL12="",AL12>8),"",(1+$AK$2)*SUM(INDIRECT("FrontPage!AI"&2+AL12&":AI"&1+AL12+AM12))/AM12) -> 16 | AO12: 1 | AP12: =IF(OR(AH12="",AI12>=1000000),"",100*AO12+IFERROR(INDEX(FrontPage!$AA$3:$AD$10,MATCH(COUNTIF(AO$11:AO12,AO12),FrontPage!$AA$3:$AA$10,0),$AP$5),COUNTIF(AO$11:AO12,AO12))) -> 101 | AQ12: =IF($W$1<2,"",IF(ROW()-11>$BD$2*($BD$3+2)-1,"",IF(MOD(ROW()-11,$BD$3+2)=0,MAX(AQ$10:AQ11)+1,""))) ->  | AT12: 979 | AU12: =IF($AQ12<>"",$AR12,IF($AR12="","",IF($AR12="Empty",MAX($AR$11:$AR12)+0.99,MAX($AR$11:$AR12)+0.01*$AR12))) ->  | AV12: =IF($AQ12<>"","La",IF($AR12="","",IF($AR12="Empty","-",$AR12))) ->  | AW12: =IF($AQ12<>"","Bib",IF(OR($AR12="",$AR12="Empty"),"",IF(AT12="",IFERROR(INDEX($AH$11:$AH$170,MATCH(100*MAX(AQ$11:AQ12)+AV12,$AP$11:$AP$170,0),1),""),AT12))) ->  | AX12: =IF($AQ12<>"",$A$7,IF(OR($AV12="",$AR12="Empty",AW12=""),"",INDEX(Athletes!$A$4:$E$1003,MATCH(AW12,Athletes!$A$4:$A$1003,0),2)&" "& INDEX(Athletes!$A$4:$E$1003,MATCH(AW12,Athletes!$A$4:$A$1003,0),3))) ->  | AY12: =IF($AQ12<>"",IF($W$1=2,"Final ","Semi-FInal ")&IF(AND($W$1=2,$BD$2=1),"",E12&" of "&$BD$2),IF(OR(AV12="",AR12="Empty",AW12=""),"",INDEX(Athletes!$A$4:$E$1003,MATCH(AW12,Athletes!$A$4:$A$1003,0),5))) ->  | BF12: =IF($AR12="Line","–––––––––––––––––––––––––","") -> 
A13: 3 | B13: =IF(A13>$W$2,"",B12+1) ->  | E13: =IF(ROW()-11>$W$2*($W$3+2)-1,"",IF(MOD(ROW()-11,$W$3+2)=0,MAX(E$10:E12)+1,"")) ->  | F13: 2 | G13: =IF($E13<>"",$F13,IF($F13="","",IF($F13="Empty",MAX($F$11:$F13)+0.99,MAX($F$11:$F13)+0.01*$F13))) -> 44010101.02 | H13: =IF(G13="","",(MAX(E$11:E13)-1)*($W$3+2)+11) -> 11 | I13: =IF(G13="","",MAX(E$11:E13)*($W$3+2)+10) -> 20 | M13: =IFERROR(IF(OR(G13="",$E13<>""),"",INDEX(Startlist!C:C,MATCH(TrackResult!G13,Startlist!A:A,0),1)),"") -> 203 | N13: =IF(F13="","",IF(E13<>"",F13,IF(F13="Empty",MAX(F$11:F12)+0.99,MAX(F$11:F12)+0.01*F13))) -> 44010101.02 | O13: 2 | P13: 996 | Q13: =IF($E13<>"",$A$7,IF(OR($F13="",$F13="Empty",P13=""),"",INDEX(Athletes!$A$4:$E$1003,MATCH(P13,Athletes!$A$4:$A$1003,0),2)&" "& INDEX(Athletes!$A$4:$E$1003,MATCH(P13,Athletes!$A$4:$A$1003,0),3))) -> Aberdeen 4 by 400 M | R13: =IF($E13<>"",IF($W$1=1,"Final ","Heat ")&IF(AND($W$1=1,$W$2=1),"",$E13&" of "&$W$2),IF(OR($F13="",$F13="Empty",P13=""),"",INDEX(Athletes!$A$4:$E$1003,MATCH(P13,Athletes!$A$4:$A$1003,0),5))) -> Aberdeen | S13: 0.002447453704 | W13: 14 | X13: =IF(P13="","",IF(ISNA(MATCH(P13,INDIRECT("M"&12+(MAX(E$11:E13)-1)*($W$3+2)&":M"&9+MAX(E$11:E13)*($W$3+2)),0)),"ERROR","")) ->  | Y13: =IF(OR(G13="",S13=""),"",$X$6&IF(INDIRECT("t"&H13)="M","M","")) -> L | Z13: =IF(S13="","",IFERROR(IF($Y$6>0,ROUND(IF($W$6>400,24*3600*S13,S13),1),ROUND(IF($W$6>400,24*3600*S13,S13),2)),"")) -> 211.46 | AA13: 2 | AB13: =IF(AA13="","",RANK(AA13,INDIRECT("aa"&H13&":aa"&I13),1)) -> 2 | AC13: 20211.46 | AD13: =IF(AC13="","",IF(AC13>=10000,AC13,RANK(Z13,AC$11:AC$170,1))) -> 20211.46 | AE13: =IF(AD13="","",IF(AD13>10000,"Q",IF(AD13<=$W$5,"q",""))) -> Q | AF13: 996 | AG13: =IF(AC13="",IF(AND($P$4>=2,OR(LEFT(S13,1)="D",LEFT(S13,1)="N")),2000000,""),IF(AC13>9999,AC13,IF(U13="q",900000+AC13,1000000+AC13))) -> 20211.46 | AH13: 996 | AI13: 20211.46 | AJ13: =IF(AH13="","",INDEX(Athletes!$A$4:$E$1003,MATCH(AH13,Athletes!$A$4:$A$1003,0),5)) -> Aberdeen | AK13: =IF(AJ13="","",IF(OR(AJ13="Guest",INDEX(Athletes!$AI$4:$AI$102,MATCH(AJ13,Athletes!$AF$4:$AF$102,0),1)="",COUNTIF(AJ$11:AJ13,AJ13)>(2-$AK$2)),"",IF($W$2=1,O13,AI13))) -> 2 | AL13: 2 | AM13: 1 | AN13: 14 | AO13: =IF(OR(AH13="",AI13>=1000000),"",IF($BD$2=1,1,IF(AND(AO12=1,AO11=1),AO12+1,IF(AND(AO12=$BD$2,AO11=$BD$2),AO12-1,IF(AO12+(AO12-AO11)=$BD$2+1,$BD$2,IF(AO12+AO12-AO11=0,1,AO12+AO12-AO11)))))) -> 1 | AP13: =IF(OR(AH13="",AI13>=1000000),"",100*AO13+IFERROR(INDEX(FrontPage!$AA$3:$AD$10,MATCH(COUNTIF(AO$11:AO13,AO13),FrontPage!$AA$3:$AA$10,0),$AP$5),COUNTIF(AO$11:AO13,AO13))) -> 102 | AQ13: =IF($W$1<2,"",IF(ROW()-11>$BD$2*($BD$3+2)-1,"",IF(MOD(ROW()-11,$BD$3+2)=0,MAX(AQ$10:AQ12)+1,""))) ->  | AT13: 152 | AU13: =IF($AQ13<>"",$AR13,IF($AR13="","",IF($AR13="Empty",MAX($AR$11:$AR13)+0.99,MAX($AR$11:$AR13)+0.01*$AR13))) ->  | AW13: =IF($AQ13<>"","Bib",IF(OR($AR13="",$AR13="Empty"),"",IF(AT13="",IFERROR(INDEX($AH$11:$AH$170,MATCH(100*MAX(AQ$11:AQ13)+AV13,$AP$11:$AP$170,0),1),""),AT13))) ->  | AX13: =IF($AQ13<>"",$A$7,IF(OR($AV13="",$AR13="Empty",AW13=""),"",INDEX(Athletes!$A$4:$E$1003,MATCH(AW13,Athletes!$A$4:$A$1003,0),2)&" "& INDEX(Athletes!$A$4:$E$1003,MATCH(AW13,Athletes!$A$4:$A$1003,0),3))) ->  | AY13: =IF($AQ13<>"",IF($W$1=2,"Final ","Semi-FInal ")&IF(AND($W$1=2,$BD$2=1),"",E13&" of "&$BD$2),IF(OR(AV13="",AR13="Empty",AW13=""),"",INDEX(Athletes!$A$4:$E$1003,MATCH(AW13,Athletes!$A$4:$A$1003,0),5))) -> 
